Workbook

Sheet Foglio1 (hidden)

Sheet database2 (hidden)
A4: CENTRALINE | L4: PESO | M4: QUANTITA' OLIO
A5: TIPO | C5: POMPA | D5: A | E5: TUBO | F5: B | G5: C | H5: D | I5: E | J5: F | K5: G | L5: SENZA OLIO | M5: min | N5: utile | O5: totale
A6: CB | C6: 55 | D6: 1"1/4 | E6: 35 | F6: 830 | G6: 950 | H6: 580 | I6: 235 | J6: 630 | K6: 450 | L6: 140 | M6: 50 | N6: 100 | O6: =SUM(M6:N6) -> 150
A7: CB | C7: 75 | D7: 1"1/4 | E7: 35 | F7: 830 | G7: 950 | H7: 580 | I7: 235 | J7: 630 | K7: 450 | L7: 140 | M7: 50 | N7: 100 | O7: 150
A8: CB | C8: 100 | D8: 1"1/4 | E8: 35 | F8: 830 | G8: 950 | H8: 580 | I8: 235 | J8: 630 | K8: 450 | L8: 140 | M8: 50 | N8: 100 | O8: 150
A9: CB | C9: 125 | D9: 1"1/4 | E9: 35 | F9: 830 | G9: 950 | H9: 580 | I9: 235 | J9: 630 | K9: 450 | L9: 140 | M9: 50 | N9: 100 | O9: 150
A10: CB | C10: 150 | D10: 1"1/4 | E10: 35 | F10: 830 | G10: 950 | H10: 580 | I10: 235 | J10: 630 | K10: 450 | L10: 140 | M10: 50 | N10: 100 | O10: 150
A11: CM | C11: 55 | D11: 1"1/4 | E11: 35 | F11: 980 | G11: 950 | H11: 580 | I11: 235 | J11: 780 | K11: 450 | L11: 150 | M11: 50 | N11: 150 | O11: 200
A12: CM | C12: 75 | D12: 1"1/4 | E12: 35 | F12: 980 | G12: 950 | H12: 580 | I12: 235 | J12: 780 | K12: 450 | L12: 150 | M12: 50 | N12: 150 | O12: 200
A13: CM | C13: 100 | D13: 1"1/4 | E13: 35 | F13: 980 | G13: 950 | H13: 580 | I13: 235 | J13: 780 | K13: 450 | L13: 150 | M13: 50 | N13: 150 | O13: 200
A14: CM | C14: 125 | D14: 1"1/4 | E14: 35 | F14: 980 | G14: 950 | H14: 580 | I14: 235 | J14: 780 | K14: 450 | L14: 150 | M14: 50 | N14: 150 | O14: 200
A15: CM | C15: 150 | D15: 1"1/4 | E15: 35 | F15: 980 | G15: 950 | H15: 580 | I15: 235 | J15: 780 | K15: 450 | L15: 150 | M15: 50 | N15: 150 | O15: 200
A16: CA | C16: 180 | D16: 1"1/2 | E16: 42 | F16: 1080 | G16: 1150 | H16: 710 | I16: 285 | J16: 870 | K16: 560 | L16: 280 | M16: 100 | N16: 250 | O16: 350
A17: CA | C17: 210 | D17: 1"1/2 | E17: 42 | F17: 1080 | G17: 1150 | H17: 710 | I17: 285 | J17: 870 | K17: 560 | L17: 280 | M17: 100 | N17: 250 | O17: 350
A18: CA | C18: 250 | D18: 1"1/2 | E18: 42 | F18: 1080 | G18: 1150 | H18: 710 | I18: 285 | J18: 870 | K18: 560 | L18: 280 | M18: 100 | N18: 250 | O18: 350
A19: CA | C19: 300 | D19: 1"1/2 | E19: 42 | F19: 1080 | G19: 1150 | H19: 710 | I19: 285 | J19: 870 | K19: 560 | L19: 280 | M19: 100 | N19: 250 | O19: 350
A20: CA/A | C20: 210 | D20: 1"1/2 | E20: 42 | F20: 1080 | G20: 1490 | H20: 710 | I20: 285 | J20: 870 | K20: 560 | L20: 315 | M20: 130 | N20: 310 | O20: 440
A21: CA/A | C21: 250 | D21: 1"1/2 | E21: 42 | F21: 1080 | G21: 1490 | H21: 710 | I21: 285 | J21: 870 | K21: 560 | L21: 315 | M21: 130 | N21: 310 | O21: 440
A22: CA/A | C22: 300 | D22: 1"1/2 | E22: 42 | F22: 1080 | G22: 1490 | H22: 710 | I22: 285 | J22: 870 | K22: 560 | L22: 315 | M22: 130 | N22: 310 | O22: =SUM(M22:N22) -> 440
A23: CA/A | C23: 380 | D23: 1"1/2 | E23: 42 | F23: 1080 | G23: 1490 | H23: 710 | I23: 285 | J23: 870 | K23: 560 | L23: 315 | M23: 130 | N23: 310 | O23: =SUM(M23:N23) -> 440
A24: CG | C24: 440 | D24: 2" | E24: 50.8 | F24: 1220 | G24: 1490 | H24: 910 | I24: 305 | J24: 1000 | K24: 760 | L24: 375 | M24: 220 | N24: 480 | O24: =SUM(M24:N24) -> 700
A25: CG | C25: 500 | D25: 2" | E25: 50.8 | F25: 1220 | G25: 1490 | H25: 910 | I25: 305 | J25: 1000 | K25: 760 | L25: 375 | M25: 220 | N25: 480 | O25: =SUM(M25:N25) -> 700
A26: CG | C26: 650 | D26: 2" | E26: 50.8 | F26: 1220 | G26: 1490 | H26: 910 | I26: 305 | J26: 1000 | K26: 760 | L26: 375 | M26: 220 | N26: 480 | O26: =SUM(M26:N26) -> 700

Sheet DATOS
B1: CALCULO EQUIPOS HIDRAULICOS | D1: 2023 | K1: indice | L1: diam. | M1: spess. | N1: pompa | O1: CIF | P1: valv. | Q1: riemp. | R1: bobine | S1: emerg. | T1: NTA | U1: an.protez. | V1: da quotare | W1: da quotare | X1: tipo pistone | Y1: tipo piston | Z1: tipo pistone | AA1: attacco pistone | AB1: attacco pistone | AC1: centralina | AD1: emend. A3 | AE1: eKMI | AF1: motore | AG1: pressostato | AH1: imballo centr. | AI1: Tipo manguera hidraulica | AJ1: litros/m | AK1: Herzios
D2: V.14 | J2: diam | K2: 4 | L2: 36 | M2: 0 | N2: 8 | O2: NO | P2: STD | Q2: S | R2: 12 VDC | S2: 12 VDC | T2: 230 VAC | U2: 0 | V2: 1 | W2: =INDEX(lingue!B257:E257,1,DATOS!$B$5) -> Pistón y central | X2: 9130 | Y2: 2 | Z2: =INDEX(lingue!B260:E260,1,DATOS!$B$5) -> Suspension 2:1 9130 | AA2: 1 | AB2: =INDEX(lingue!B265:E265,1,DATOS!$B$5) -> Abajo | AC2: Lift | AD2: NO | AE2: 12 VDC | AF2: 230 VAC, mono | AG2: N.C. | AH2: =INDEX(lingue!B284:E284,1,DATOS!$B$5) -> standard: with thermoplastic foil | AI2: 3/4'' | AJ2: 0.31 | AK2: 50
D3: =TODAY() -> 2023-11-30 | J3: spess | K3: 2 | L3: 50 | M3: 5 | N3: 12 | O3: CIF | P3: ELE | Q3: D | R3: 24 VDC | S3: NO | T3: 400 VAC | U3: 1 | V3: 2 | W3: =INDEX(lingue!B259:E259,1,DATOS!$B$5) -> Pistón | X3: 9140 | Y3: 1 | Z3: =INDEX(lingue!B261:E261,1,DATOS!$B$5) -> Tiro directo 9140 | AA3: 2 | AB3: =INDEX(lingue!B264:E264,1,DATOS!$B$5) -> Arriba | AC3: HL | AD3: KMI | AE3: 24 VDC | AF3: 240 VAC,mono | AG3: =INDEX(lingue!B277:D277,1,'accessori centralina'!$A$1) ->  | AH3: =INDEX(lingue!B285:E285,1,DATOS!$B$5) -> with cardboard box and fumigated pallet | AI3: 35 | AJ3: 0.65 | AK3: 60
J4: pompa | K4: 8 | L4: 60 | M4: 6 | N4: 18 | R4: 48 VDC | V4: 3 | W4: =INDEX(lingue!B55:E55,1,DATOS!$B$5) -> Central | X4: 9150 | Y4: 1 | Z4: =INDEX(lingue!B262:E262,1,DATOS!$B$5) -> Tiro directo enterrado 9150 | AD4: Door lock valve | AF4: 230x3 VAC | AH4: =INDEX(lingue!B286:E286,1,DATOS!$B$5) -> with full plywood crate | AI4: 42 | AJ4: 1
B5: 4 | J5: centr.elettr. | K5: 1 | L5: 70 | M5: 7.5 | N5: 23 | R5: 60 VDC | X5: MCE | Y5: 2 | Z5: Suspensión 2:1 MCE | AF5: 400x3 VAC | AI5: 2'' | AJ5: 2.16
B6: =INDEX(lingue!B258:E258,1,DATOS!$B$5) -> Componentes requeridos | D6: =INDEX(V2:V4,K12,1) -> 1 | J6: riemp. | K6: 1 | L6: 80 | M6: 10 | N6: 30 | R6: 80 VDC | X6: MCS | Y6: 2 | Z6: Suspensión 2:1 MCS | AF6: 415x3 VAC
B7: =INDEX(lingue!B2:E2,1,DATOS!$B$5) -> Modelo Piston (9130;9140;9150;MCS;MCE) | D7: =INDEX(X2:X13,K13,1) -> 9130 | E7: =INDEX(Y2:Y13,K13,1) -> 2 | F7: =IF(OR(D7=9130,D7=9150,D7=9140,D7="MCE",D7="MCS",D7="CRA",D7="T",D7="HCR-75"),"OK","Errore") -> OK | J7: bobine | K7: 2 | L7: 85 | M7: 12 | N7: 35 | R7: 90 VDC | X7: MCE | Y7: 1 | Z7: Tiro directo MCE
B8: =INDEX(lingue!B3:E3,1,DATOS!$B$5) -> Suspension (2 2:1) (1 1:1) | C8: cm = | D8: =$E$7 -> 2 | J8: emerg. | K8: =IF(D44="Lift",1,2) -> 1 | L8: 90 | M8: 8 | N8: 45 | R8: 99 VDC | X8: MCS | Y8: 1 | Z8: Tiro directo MCS
B9: =INDEX(lingue!B4:E4,1,DATOS!$B$5) -> Carga | C9: Q = | D9: 300 | E9: Kg | J9: tens.NTA | K9: 1 | L9: 100 | N9: 55 | R9: 110 VDC | X9: CRA | Y9: 2 | Z9: Suspension 2:1 CRA
B10: =INDEX(lingue!B5:E5,1,DATOS!$B$5) -> Peso de la cabina y chasis | C10: P3 = | D10: 450 | E10: Kg | J10: CIF | K10: 1 | L10: 110 | N10: 75 | R10: 180 VDC | X10: CRA | Y10: 1 | Z10: Tiro directo CRA
B11: =IF(D13<=1,INDEX(lingue!B6:E6,1,DATOS!$B$5),INDEX(lingue!B7:E7,1,DATOS!$B$5)) -> Peso de los cables lado cabina | C11: Pf = | D11: 0 | E11: Kg | J11: prot.stelo | K11: 1 | L11: 120 | N11: 100 | R11: 198 VDC | X11: HCR-75 | Y11: 2 | Z11: Suspensión 2:1 HCR-75
B12: =IF(D13<=1,INDEX(lingue!B8:E8,1,DATOS!$B$5),INDEX(lingue!B9:E9,1,DATOS!$B$5)) -> Peso de la polea | C12: Prh = | D12: 0 | E12: Kg | J12: componente | K12: 1 | L12: 130 | N12: 125 | R12: 220 VDC | X12: HCR-75 | Y12: 1 | Z12: Suspension 1:1 HCR-75
B13: =INDEX(lingue!B10:E10,1,DATOS!$B$5) -> Número de pistones. | C13: Nr = | D13: 1 | J13: tipo pistone | K13: 1 | L13: 150 | N13: 150 | R13: 110 VAC | X13: T | Y13: 1 | Z13: Telescopico
B14: =INDEX(lingue!B11:E11,1,DATOS!$B$5) -> Pistón dividido en 1,2,3 piezas | C14: n = | D14: 1 | F14: =IF(AND(D7="HCR-75",D14>1),"ERROR","OK") -> OK | J14: attacco | K14: =IF(D7=9150,2,1) -> 1 | L14: 160 | N14: 180 | R14: 220 VAC
B15: =INDEX(lingue!B12:E12,1,DATOS!$B$5) -> Recorrido de la cabina | D15: 2600 | E15: mm | F15: =IF(AND(D14>1,D24<70),"GIUNTA NON POSSIBILE","") ->  | J15: centralina | K15: 1 | L15: 180 | N15: 210
B16: =INDEX(lingue!B13:E13,1,DATOS!$B$5) -> Extrarrecorrido del piston | D16: 250 | E16: mm | J16: A.3 | K16: 1 | L16: 200 | N16: 250
B17: =INDEX(lingue!B14:E14,1,DATOS!$B$5) -> Extrarrecorrido de la cabina | D17: =IF(OR(D7=9130,D7="MCE",D7="MCS",D7="T"),D16*2,D16) -> 500 | E17: mm | J17: tens. KMI | K17: 2 | L17: 36/60 | N17: 300
B18: =INDEX(lingue!B15:E15,1,DATOS!$B$5) -> Recorrido minimo | D18: =IF(OR(D14=1,D14=2,D14=3),D15/D8,"error selección uniones") -> 1300 | E18: mm | J18: tensione linea | K18: 4 | L18: 60/80 | N18: 330
B19: =INDEX(lingue!B16:E16,1,DATOS!$B$5) -> Dispositivo de guiado (si=2) | D19: 1 | F19: =IF(OR(AND(D19=1,D7=9130),AND(D19=2,D7=9130),AND(D19=1,D7=9140),AND(D19=1,D7=9150),AND(D19=1,D7="MCE"),AND(D19=1,D7="MCS"),AND(D19=1,D7="CRA"),AND(D19=1,D7="T"),AND(D19=1,D7="HCR-75")),"OK","errore") -> OK | J19: tubi KMI | K19: 2 | L19: 75 | N19: 380
B20: =INDEX(lingue!B17:E17,1,DATOS!$B$5) -> Distancia entre piston y eje polea | C20: L1 = | D20: 115 | E20: mm | J20: pressostato | K20: 1 | N20: 440
B21: =INDEX(lingue!B18:E18,1,DATOS!$B$5) -> Longitud total de la varilla. | C21: Lp = | D21: =(D15/D8+D16) -> 1550 | E21: mm | F21: =IF(OR(D19=1,D19=2),"OK", "Errore") -> OK | J21: imballo centr. | K21: 1 | N21: 500
B22: =INDEX(lingue!B19:E19,1,DATOS!$B$5) -> Longitud del pistón cerrado. | C22: Lt= | D22: =IF(D7="T",'EN 81.50 (T)'!C14,IF(OR(D7="MCE",D7="MCS"),D21+'calcoli vari'!B1+IF(AND('accessori centralina'!F10=1,D7=9140),20,0),IF(D7="HCR-75",'EN 81.50 HCR-75'!D18,D21+130*(D19-1)+'calcoli vari'!B1+IF(AND('accessori centralina'!F10=1,D7=9140),20,0)))) -> 1750 | E22: mm | F22: Ojo modelo 60/80 | J22: bob HMSV | K22: 8 | N22: 650
B23: =INDEX(lingue!B20:E20,1,DATOS!$B$5) -> Longitud libre de inflexión | C23: L1= | D23: =IF(D7="HCR-75",'EN 81.50 HCR-75'!D20*10,'EN 81.50'!D19*10) -> 1711 | E23: mm | F23: No aplica en T | J23: emerg HMSV | K23: =IF(D51="STD",K8,2) -> 1
B24: =INDEX(lingue!B21:E21,1,DATOS!$B$5) -> Diametro varilla | D24: =INDEX(L2:L19,K2,1) -> 70 | E24: mm | J24: tipo maguera | K24: 1
B25: =INDEX(lingue!B22:E22,1,DATOS!$B$5) -> Espesor varilla | D25: =INDEX(M2:M8,K3,1) -> 5 | E25: mm | F25: =IF(AND(D7="HCR-75",D25=7.5,D24=75),"OK","NOTA->") -> NOTA-> | G25: Control para HCR-75 SIEMPRE 7,5 | J25: Frecuencia | K25: 1
B26: =INDEX(lingue!B23:E23,1,DATOS!$B$5) -> Proteccion | D26: =INDEX(U2:U3,K11,1) -> 0 | E26: =IF(K11=2,INDEX(lingue!B24:E24,1,DATOS!$B$5),"NO") -> NO
B27: =INDEX(lingue!B263:E263,1,DATOS!$B$5) -> Entrada de aceite | D27: =INDEX(AB2:AB3,K14,1) -> Abajo | F27: =IF(AND(D7=9150,K14=1),"Errore","OK") -> OK
B28: =INDEX(lingue!B267:E267,1,DATOS!$B$5) -> Sistema enmienda A3 | D28: =INDEX(AD2:AD4,K16,1) -> NO
B29: =IF(K16=2,INDEX(lingue!B268:E268,1,DATOS!$B$5),INDEX(lingue!B269:E269,1,DATOS!$B$5)) -> KMI dato no necesario | D29: =INDEX(AE2:AE3,K17,1) -> 24 VDC
B30: =IF(AND(D13=1,K16=2),INDEX(lingue!B275:E275,1,DATOS!$B$5),INDEX(lingue!B282:E282,1,DATOS!$B$5)) -> data input not needed | D30: =INDEX('calcoli vari'!A61:A70,K19,1) -> 1 | E30: m
B31: =IF(K16=3,INDEX(lingue!B288:E288,1,DATOS!$B$5),INDEX(lingue!B290:E290,1,DATOS!$B$5)) -> door lock valve not requested | D31: =INDEX(R2:R14,K22,1) -> 110 VDC
B32: =IF(K16=3,INDEX(lingue!B289:E289,1,DATOS!$B$5),INDEX(lingue!B290:E290,1,DATOS!$B$5)) -> door lock valve not requested | D32: =INDEX(S2:S3,K23,1) -> 12 VDC
B33: =INDEX(lingue!B219:E219,1,DATOS!$B$5) -> Carga total sobre el pistón aprox. (kg) | D33: =((D9+D10)*D8/D13+D11+D12) -> 1500 | E33: kg
B34: =INDEX(lingue!B25:E25,1,DATOS!$B$5) -> Plena carga | C34: ='EN 81.50'!C25 -> T = | D34: =IF(D7="T",'EN 81.50 (T)'!C17,IF(D7="HCR-75",'EN 81.50 HCR-75'!D26,'EN 81.50'!D25)) -> 1471.5 | E34: ='EN 81.50'!E25 -> daN | J34: NOTA-1
B35: =INDEX(lingue!B26:E26,1,DATOS!$B$5) -> En vacio | C35: ='EN 81.50'!C26 -> Tv = | D35: =IF(D7="T",'EN 81.50 (T)'!C18,IF(D7="HCR-75",'EN 81.50 HCR-75'!D27,'EN 81.50'!D26)) -> 882.9 | E35: ='EN 81.50'!E26 -> daN | J35: 1- La presión maxima de valvula paracaidas 1-1/4' MORIS y superiores es de 45bar
B36: =INDEX(lingue!B27:E27,1,DATOS!$B$5) -> Carga en punta efectiva | D36: =IF(D7="T",'EN 81.50 (T)'!C73,IF(D7="HCR-75",'EN 81.50 HCR-75'!D60,'EN 81.50'!D59)) -> 2070.863061 | E36: ='EN 81.50'!E59 -> daN | J36: 2- Ojo por encima de 45 bar revisar espesor de camisa de los pistones
B37: =INDEX(lingue!B28:E28,1,DATOS!$B$5) -> Carga máxima admisible | D37: =IF(D7="T",'EN 81.50 (T)'!C75,IF(D7="HCR-75",'EN 81.50 HCR-75'!D62,'EN 81.50'!D61)) -> 17367.09071 | E37: ='EN 81.50'!E61 -> daN | F37: =IF(D37<D36,"ERRORE","OK") -> OK | J37: 3- La válvula 3/4 MORIS la presión máxima es 80 bar.
B38: =INDEX(lingue!B29:E29,1,DATOS!$B$5) -> Coeficiente de seguridad | D38: =2*D37/D36 -> 16.77280457
B39: =INDEX(lingue!B30:E30,1,DATOS!$B$5) -> Presion MAX. | C39: ='EN 81.50'!C32 -> pstat = | D39: =INT(G39+0.5) -> 39 | E39: ='EN 81.50'!E32 -> bar | F39: =IF(D39>45,"NOTA-1","OK") -> OK | G39: =IF(D7="T",'EN 81.50 (T)'!C39,IF(D7="HCR-75",'EN 81.50 HCR-75'!D33,'EN 81.50'!D32)) -> 38.68624761 | H39: pressione base pistone | J39: NOTA-2
B40: =INDEX(lingue!B31:E31,1,DATOS!$B$5) -> Presion MIN. | C40: ='EN 81.50'!C33 -> pv = | D40: =IF(D7="T",'EN 81.50 (T)'!C40,IF(D7="HCR-75",'EN 81.50 HCR-75'!D34,'EN 81.50'!D33)) -> 23.39178238 | E40: ='EN 81.50'!E33 -> bar | F40: =IF(D40<15,"NOTA-2","OK") -> OK | J40: 1- La presión mínima de valvula paracaidas 1-1/4' MORIS y superiores es de 15bar
B41: Dif,.nivelacion por compresion de vacia a cabina llena | C41: deriva final | D41: ='COMPRESIBILIDAD DEL ACEITE'!O8 -> 10.04217913 | E41: mm | F41: =IF(D41>40,"NOTA-2","OK") -> OK | J41: 2- Si la deriva es superior a 40mm recomendar un piston de mayor diametro.
B42: =INDEX(lingue!B32:E32,1,DATOS!$B$5) -> Potencia motor | J42: 2- Ojo HES -GREENVALVE NO CONVIENE ESTAR POR DEBAJO DE 15bar
B43: =INDEX(lingue!B33:E33,1,DATOS!$B$5) -> Número de centrales | D43: 1 | J43: 3- La válvula 3/4 MORIS la presión mínima es 12 bar.
B44: =INDEX(lingue!B35:E35,1,DATOS!$B$5) -> Ascensor o HomeLift (Siempre LIFT nuestros HOMELIFT) | D44: =INDEX(AC2:AC3,K15,1) -> Lift | G44: Para-v-pist | H44: =IF(D7="HCR-75",MATCH(D24+5,velocidad!B4:R4,0),MATCH(D24,velocidad!B4:R4,0)) -> 4
B45: =INDEX(lingue!B34:E34,1,DATOS!$B$5) -> Bomba | D45: =INDEX(N2:N22,K4,1) -> 55 | E45: L/min | G45: Para-v-pump | H45: =MATCH(D45,velocidad!A5:A26,0) -> 9
B46: =INDEX(lingue!B276:E276,1,DATOS!$B$5) -> Tension alimentación motor | D46: =INDEX(AF2:AF6,K18,1) -> 400x3 VAC | H46: =IF(RIGHT(D46,4)="mono","M","T") -> T
B47: =INDEX(lingue!B365:E365,1,DATOS!$B$5) -> Frecuencia Motor | D47: =INDEX(AK2:AK3,K25,1) -> 50 | E47: Hz | G47: presion | H47: =INT(D39-0.1)+1 -> 39 | M47: se std | N47: se ele | O47: se HL | P47: diam.=70..90 | Q47: diam.=100 | R47: diam.=110..130
B48: =INDEX(lingue!B37:E37,1,DATOS!$B$5) -> Sumergido (O) Aereo (A) HL MORIS | D48: O | F48: =IF(AND(D45=30,D49=1,D45="HL"),"ERRORE","OK") -> OK | G48: Para-P-press | H48: =MATCH(H47,velocidad!B30:AX30,0) -> 28 | I48: para-p-pump | J48: =MATCH(L48,velocidad!A31:A76,0) -> 33 | K48: mod | L48: =CONCATENATE(IF((D44="HL"),"HL",),D45,H46,IF(AND(D49=2,D44="HL"),"D",)) -> 55T | M48: =INDEX(G53:G59,K50,1) -> MS-A/K | N48: =INDEX(G53:G57,K50,1) -> MS-A/K | O48: =IF(D48="O",P67,IF(D52="S",N67,IF(D52="D",O67,"verificare olio"))) -> HL/OIL-265 | P48: =IF(AND(D24<=90,D24>=70),TRUE,FALSE) -> TRUE | Q48: =IF(D24=100,TRUE,FALSE) -> FALSE | R48: =IF(AND(D24<=130,D24>=110),TRUE,FALSE) -> FALSE
B49: =INDEX(lingue!B38:E38,1,DATOS!$B$5) -> 1V (1) 2V(2) solo HL | D49: 1 | G49: para olio | H49: =IF(D7="HCR-75",MATCH(D24+5,database1!C72:Q72,0),MATCH(D24,database1!C72:Q72,0)) -> 4 | P49: =IF(AND(P48,D21>4500,D14=1),TRUE,FALSE) -> FALSE | Q49: =IF(AND(Q48,D21>5000,D14=1),TRUE,FALSE) -> FALSE | R49: =IF(AND(R48,D21>6000,D14=1),TRUE,FALSE) -> FALSE
B50: =INDEX(lingue!B39:E39,1,DATOS!$B$5) -> CIF - central en foso ( 55 a 250 l/min) | D50: =INDEX(O2:O3,K10,1) -> NO | G50: para cass | H50: =MATCH(IF(D52="S",D63+D62,D64+1),H52:H59,1) -> 1 | I50: =MATCH(D59,I52:I59,1) -> 1 | J50: =MATCH(D45,J52:J59,1) -> 1 | K50: =MAX(H50:J50) -> 1
B51: =INDEX(lingue!B40:E40,1,DATOS!$B$5) -> Valvula Estándar (STD) Electronica (ELE) | D51: =INDEX(P2:P3,K5,1) -> STD | H51: litros | I51: potencia | J51: bomba | K51: nivel minimo
B52: =INDEX(lingue!B41:E41,1,DATOS!$B$5) -> simple (S) o doble (D) relleno | D52: =INDEX(Q2:Q3,K6,1) -> S | F52: =IF(AND(D7="HCR-75",D52="D"),"ERROR","OK") -> OK | H52: 0 | I52: 0 | J52: 0
B53: =IF(D51="STD",INDEX(lingue!B42:E42,1,DATOS!$B$5),INDEX(lingue!B44:E44,1,DATOS!$B$5)) -> Tensión bobinas | D53: =INDEX(R2:R14,K7,1) -> 24 VDC | G53: MS-A/K | H53: =70*IF(D52="D",0.85,1) -> 70 | I53: 7.4 | J53: 100.1 | K53: 28.5
B54: =IF(D51="STD",INDEX(lingue!B43:E43,1,DATOS!$B$5),INDEX(lingue!B44:E44,1,DATOS!$B$5)) -> Tensión bobina emergencia | D54: =INDEX(S2:S3,K8,1) -> 12 VDC | G54: MS-A/K | H54: =70*IF(D52="D",0.85,1) -> 70 | I54: 7.4 | J54: 100.1 | K54: 30
B55: =IF(D51="STD",INDEX(lingue!B45:E45,1,DATOS!$B$5),INDEX(lingue!B46:E46,1,DATOS!$B$5)) -> Válvula estándar dato no necesario | D55: =INDEX(T2:T3,K9,1) -> 230 VAC | F55: =IF(OR('calcoli vari'!B74="x",'calcoli vari'!B75="x"),"ERRORE","OK") -> OK | G55: =IF(D51="STD","CM-320","CE-320/MB") -> CM-320 | H55: =110*IF(D52="D",0.85,1) -> 110 | I55: 15.1 | J55: 150.1 | K55: 40
B56: =INDEX(lingue!B283:E283,1,DATOS!$B$5) -> power unit packaging | D56: =INDEX(AH2:AH4,K21,1) -> standard: with thermoplastic foil | E56: . | G56: =IF(D51="STD","CM","CE/CM-MB") -> CM | H56: =150*IF(D52="D",0.85,1) -> 150 | I56: 18.6 | J56: 210.1 | K56: 50
B57: =INDEX(lingue!B47:E47,1,DATOS!$B$5) -> Velocidad pistón | D57: =IF(D7="T",'EN 81.50 (T)'!J45/D13*D43,IF($D$47=50,INDEX(velocidad!B5:R26,H45,H44),INDEX(velocidad!W5:AM26,H45,H44))/D13*D43) -> 0.22 | E57: m/s | F57: =IF(AND(H46="M",D59>8),"Errore","OK") -> OK | G57: =IF(D51="STD","CA","CE/CA-MB") -> CA | H57: =245*IF(D52="D",0.85,1) -> 245 | I57: 30.1 | J57: =IF(D51="STD",250.1,380.1) -> 250.1 | K57: 55
B58: =INDEX(lingue!B48:E48,1,DATOS!$B$5) -> Velocidad cabina | D58: =D57*D8 -> 0.44 | E58: m/s | G58: CA/A | H58: =310*IF(D52="D",0.85,1) -> 310 | I58: 37.1 | J58: 380.1 | K58: 160
B59: =INDEX(lingue!B49:E49,1,DATOS!$B$5) -> Potencia motor | D59: =IF(D7="T",'EN 81.50 (T)'!J46,IF($D$47=50,INDEX(velocidad!B31:AX76,J48,H48),INDEX(velocidad!B101:AX146,J48,H48))) -> 6 | E59: kW | G59: CG | H59: =530*IF(D52="D",0.85,1) -> 530 | I59: 75.1 | J59: 650.1 | K59: 220
B60: Tipo manguera hidraulica | D60: =INDEX(AJ2:AJ5,$K$24,1) -> 0.31 | G60: =IF(D51="STD","CIF-2","CE/CIF-2-MB") -> CIF-2 | H60: =IF(D51="STD",200,210) -> 200 | I60: 18.6 | J60: 250.1 | K60: 70
B61: Longitud de manguera | D61: 5 | E61: m
B62: Aceite en maguera | D62: =D61*D60 -> 1.55 | E62: l
B63: =INDEX(lingue!B50:E50,1,DATOS!$B$5) -> Aceite total en piston | D63: =IF(OR(K2=17,K2=16),'EN 81.50 (T)'!J47,IF(D7="HCR-75",D64,IF(D7="HCR-75",0,IF(OR(D7="MCS",D7="MCE"),INDEX(database1!$C$100:$Q$101,1,$H$49)*D21/1000*D13,IF(D7="CRA",INDEX(database1!$C$117:$Q$118,1,$H$49)*D21/1000*D13,INDEX(database1!$C$81:$Q$82,1,$H$49)*D21/1000*D13))))) -> 13.95 | E63: l
B64: =INDEX(lingue!B51:E51,1,DATOS!$B$5) -> Aceite en circulación | D64: =IF(OR(K2=16,K2=17),'EN 81.50 (T)'!J48,IF(D7="HCR-75",'EN 81.50 HCR-75'!L25*D21/1000,IF(OR(D7="MCS",D7="MCE"),INDEX(database1!$C$100:$Q$101,2,$H$49)*D21/1000*D13,IF(D7="CRA",INDEX(database1!$C$117:$Q$118,2,$H$49)*D21/1000*D13,INDEX(database1!$C$81:$Q$82,2,$H$49)*D21/1000*D13)))) -> 5.9675 | E64: l
B65: =INDEX(lingue!B52:E52,1,DATOS!$B$5) -> Modelo de central | D65: =IF(D50="CIF",G60,IF(D44="Lift",IF(D51="STD",M48,IF(D51="ELE",N48,"ERRORE")),IF(D44="HL",O48,"ERRORE"))) -> MS-A/K | G65: para cass | H65: =MATCH(D63,H67:H70,1) -> 1 | I65: =MATCH(D59,I67:I70,1) -> 4 | J65: =MATCH(D45,J67:J70,1) -> 4 | K65: =MAX(H65:J65) -> 4
D66: verifica | E66: ='accessori centralina'!E18 ->  | H66: litri | I66: potenza | J66: pompa | K66: olio base | N66: singolo | O66: doppio | P66: oil singolo
H67: 0 | I67: 0 | J67: 0 | N67: =IF(AND(D63<38,D49=1),"HL-300",IF(D63<55,IF(D49=1,"HL-420",IF(AND(D49=2,D63<52),"HL-420-2V","verificare olio")))) -> HL-300 | O67: =IF(AND(D64<H68,D49=1),"HL-300",IF(D64<H69,IF(D49=1,"HL-420",IF(AND(D49=2,D64<H70),"HL-420-2V","verificare olio")))) -> HL-300 | P67: =IF(OR(AND(D63<=H71,D52="S"),AND(D64<=H71,D52="D")),CONCATENATE("HL/OIL-265",IF(D49=2,"-2V","")),"verificare olio") -> HL/OIL-265
B68: =CONCATENATE(INDEX(lingue!B53:E53,1,DATOS!$B$5)," ",$D$24," x ",$D$25," x ",$D$21, " ",INDEX(lingue!B54:E54,1,DATOS!$B$5)," ",$D$14) -> Piston 70 x 5 x 1550 Por piezas 1 | G68: HL-300 | H68: =38*IF(D52="D",0.85,1) -> 38 | I68: 2.3 | J68: 23.1 | K68: 4
B69: =CONCATENATE(INDEX(lingue!B55:E55,1,DATOS!$B$5)," ",$D$65, " ",$D$45," x ",$D$59) -> Central MS-A/K 55 x 6 | G69: HL-420 | H69: =55*IF(D52="D",0.85,1) -> 55 | I69: 2.3 | J69: 23.1 | K69: 5
B70: =CONCATENATE(INDEX(lingue!B56:E56,1,DATOS!$B$5)," ",$D$58) -> Modelo central 0,44 | D70: =IF($D$47="50 Hz",INDEX(velocidad!B5:P26,H45,H44),INDEX(velocidad!T5:AH26,H45,H44))/D13*D43 ->  | G70: HL-420-2V | H70: =52*IF(D52="D",0.85,1) -> 52 | I70: 3.1 | J70: 30.1 | K70: 8
B71: =CONCATENATE(INDEX(lingue!B57:E57,1,DATOS!$B$5)," ",D39) -> Presion 39 | G71: HL/OIL-265 | H71: =40*IF(D52="D",0.85,1) -> 40 | K71: 9
G72: HL/OIL-265-2V | H72: =40*IF(D52="D",0.85,1) -> 40 | K72: 9
B74: =CONCATENATE(INDEX(lingue!B58:E58,1,DATOS!$B$5)," ",'accessori centralina'!$C$2," - ",'accessori centralina'!$H$67) -> Descuento 0 - 0
B75: =CONCATENATE(INDEX(lingue!B59:E59,1,DATOS!$B$5)," EUR = ",'accessori centralina'!$H$68) ->  | G75: tens. valv. | H75: =CONCATENATE(D53,IF(D54="NO","",CONCATENATE(" + ",D54))) -> 24 VDC + 12 VDC
G76: tens. HSV | H76: =CONCATENATE(D31,IF(D32="NO","",CONCATENATE(" + ",D32))) -> 110 VDC + 12 VDC
B77: =CONCATENATE("peso piston /i: ",'EN 81.50'!C120," kg") -> peso piston /i: 46 kg | G77: indice centralina | H77: =IF(D44="Lift",MATCH(D65,G53:G60,0),MATCH(D65,G68:G72,0)) -> 1
B78: =CONCATENATE("peso central/e: ",INDEX('calcoli vari'!B14:B30,'calcoli vari'!B31,1)*D43," kg") -> 
B79: =CONCATENATE("peso piston+central: ",'EN 81.50'!C120+INDEX('calcoli vari'!B14:B30,'calcoli vari'!B31,1)*D43," kg") -> 
B81: aceite necesario para el funcionamiento conexiones incluidas (litros) | D81: =IF(D44="Lift",INDEX(K53:K60,H77,1)*D43+D63,INDEX(K68:K72,H77,1)*D43+D63)+D62 -> 44

Sheet accessori vari (hidden)
A1: 4
A3: =INDEX(lingue!B61:E61,1,'accessori vari'!A1) -> Cantidad | C3: 1 | E3: =INDEX(lingue!B62:E62,1,'accessori vari'!A1) -> Precio
A4: 0 | B4: =INDEX(lingue!B63:E63,1,'accessori vari'!$A$1) -> barra tubo mandata ø 35 x 2,5 (m 6) | C4: 5438 / P | D4: ='Prezzo P'!C142 -> 68 | E4: =+D4*A4*$C$3 -> 0
A5: 0 | B5: =INDEX(lingue!B64:E64,1,'accessori vari'!$A$1) -> barra tubo mandata ø 42 x 3 (m 6) | C5: 5439 / P | D5: ='Prezzo P'!C143 -> 97 | E5: =+D5*A5*$C$3 -> 0
A6: 0 | B6: =INDEX(lingue!B65:E65,1,'accessori vari'!$A$1) -> Racor a 90º ø 28 salida vertical en central | C6: =lingue!A65 -> KIT.RACC/VER28 | D6: ='Prezzo P'!C149 -> 12 | E6: 0
A7: 0 | B7: =INDEX(lingue!B66:E66,1,'accessori vari'!$A$1) -> Racor a 90º ø 35 salida vertical en central | C7: =lingue!A66 -> KIT.RACC/VER35 | D7: ='Prezzo P'!C150 -> 22 | E7: 0
A8: 0 | B8: =INDEX(lingue!B67:E67,1,'accessori vari'!$A$1) -> Racor a 90º ø 42 salida vertical en central | C8: =lingue!A67 -> KIT.RACC/VER42 | D8: ='Prezzo P'!C151 -> 29 | E8: =+D8*A8*$C$3 -> 0
A9: 0 | B9: =INDEX(lingue!B68:E68,1,'accessori vari'!$A$1) -> Racor a 90º ø 35 salida horizontal en central | C9: =lingue!A68 -> KIT.RACC/ORR35 | D9: ='Prezzo P'!C152 -> 22 | E9: =+D9*A9*$C$3 -> 0
A10: 0 | B10: =INDEX(lingue!B69:E69,1,'accessori vari'!$A$1) -> Racor a 90º ø 42 salida horizontal en central | C10: =lingue!A69 -> KIT.RACC/ORR42 | D10: ='Prezzo P'!C153 -> 29 | E10: =+D10*A10*$C$3 -> 0
A11: 0 | B11: =INDEX(lingue!B70:E70,1,'accessori vari'!$A$1) -> Racor de conexión directo ø 35 | C11: 5308 | D11: ='Prezzo P'!C154 -> 16 | E11: 0
A12: 0 | B12: =INDEX(lingue!B71:E71,1,'accessori vari'!$A$1) -> Racor de conexión directo ø 42 | C12: 5309 | D12: ='Prezzo P'!C155 -> 21 | E12: 0
A13: 0 | B13: =INDEX(lingue!B72:E72,1,'accessori vari'!$A$1) -> Racor de conexion directo ø 35 | C13: 5310 | D13: ='Prezzo P'!C156 -> 22 | E13: 0
A14: 0 | B14: =INDEX(lingue!B73:E73,1,'accessori vari'!$A$1) -> Racor de conexión a 90º ø 42 | C14: 5311 | D14: ='Prezzo P'!C157 -> 29 | E14: 0
A15: 0 | B15: =INDEX(lingue!B74:E74,1,'accessori vari'!$A$1) -> Conexión 3 vias ‘T’ 1" ¼ | C15: 5316 | D15: ='Prezzo P'!C160 -> 59 | E15: 0
A16: 0 | B16: =INDEX(lingue!B75:E75,1,'accessori vari'!$A$1) -> Conexión 3 vias a ‘T’ 1" ½ x 1" ¼ x 1" ¼ | C16: RACC.T42+2/35 | D16: ='Prezzo P'!C161 -> 70 | E16: 0
A17: 0 | B17: =INDEX(lingue!B76:E76,1,'accessori vari'!$A$1) -> Conexión 3 vias‘T’ 1" ½ | C17: 5317 | D17: ='Prezzo P'!C162 -> 70 | E17: 0
A18: 0 | B18: =INDEX(lingue!B77:E77,1,'accessori vari'!$A$1) -> Conexión 3 vias a ‘Y’ 1" ½ x 1" ¼ x 1" ¼ | C18: 0696/2 | D18: ='Prezzo P'!C163 -> 103 | E18: 0
A19: 0 | B19: =INDEX(lingue!B78:E78,1,'accessori vari'!$A$1) -> Conexión 3 vias‘Y’ 1" ½ | C19: 0696/1 | D19: ='Prezzo P'!C164 -> 103 | E19: 0
A20: 0 | B20: =INDEX(lingue!B79:E79,1,'accessori vari'!$A$1) -> Conexión 3 vias a ‘Y’ 2" x 1" ½ x 1" ½ | C20: 0696 | D20: ='Prezzo P'!C165 -> 160 | E20: 0
A21: 0 | B21: =INDEX(lingue!B80:E80,1,'accessori vari'!$A$1) -> Conexión 3 vias‘Y’ 2" | C21: 0696/3 | D21: ='Prezzo P'!C166 -> 177 | E21: 0
A22: 0 | B22: =INDEX(lingue!B81:E81,1,'accessori vari'!$A$1) -> Racor 1"1/4 para conexion a tres vias a Y | C22: 5306 | D22: ='Prezzo P'!C167 -> 20 | E22: 0
A23: 0 | B23: =INDEX(lingue!B82:E82,1,'accessori vari'!$A$1) -> Racor 1"1/2 para conexion a tres vias a Y | C23: 5307 | D23: ='Prezzo P'!C168 -> 20 | E23: 0
A24: 0 | B24: =INDEX(lingue!B83:E83,1,'accessori vari'!$A$1) -> Racor 2" para conexion a tres vias a Y | C24: 5325 | D24: ='Prezzo P'!C169 -> 22 | E24: 0
A25: =IF(DATOS!$D$13=2,2,0) -> 0 | B25: =INDEX(lingue!B84:E84,1,'accessori vari'!$A$1) -> tubo miniflex para valvula paracaidas ø 8 -5 m | C25: 5425 | D25: ='Prezzo P'!C170 -> 35 | E25: 0
A26: =IF(DATOS!$D$13=2,1,0) -> 0 | B26: =INDEX(lingue!B85:E85,1,'accessori vari'!$A$1) -> Conexión tubo miniflex-valvula paracaidas 2 piezas | C26: RACC.90/VP-MF | D26: ='Prezzo P'!C171 -> 6 | E26: 0
A27: =IF(DATOS!$D$13=2,1,0) -> 0 | B27: =INDEX(lingue!B86:E86,1,'accessori vari'!$A$1) -> Conexión intermedia tubo miniflex ø 8 | C27: 5307/5 | D27: ='Prezzo P'!C172 -> 3 | E27: 0
C29: =INDEX(lingue!B12:DE212,1,'accessori vari'!$A$1) -> Recorrido de la cabina
A30: 0 | B30: =INDEX(lingue!B91:E91,1,'accessori vari'!$A$1) -> tuboflex 3/4 " diritto-90° | C30: 5 | D30: =IF(C30=0,0,'Prezzo P'!C131+(C30-1)*'Prezzo P'!C132) -> 85 | E30: 0
A31: 0 | B31: =INDEX(lingue!B92:E92,1,'accessori vari'!$A$1) -> tuboflex 3/4 " diritto-diritto | C31: 0 | D31: =IF(C31=0,0,'Prezzo P'!C131+(C31-1)*'Prezzo P'!C132) -> 0 | E31: 0
A32: 0 | B32: =INDEX(lingue!B93:E93,1,'accessori vari'!$A$1) -> tuboflex 1" diritto-90° | C32: 5 | D32: =IF(C32=0,0,'Prezzo P'!C133+(C32-1)*'Prezzo P'!C134) -> 109 | E32: 0
A33: 0 | B33: =INDEX(lingue!B94:E94,1,'accessori vari'!$A$1) -> tuboflex 1" diritto-diritto | C33: 0 | D33: =IF(C33=0,0,'Prezzo P'!C133+(C33-1)*'Prezzo P'!C134) -> 0 | E33: 0
A34: 0 | B34: =INDEX(lingue!B95:E95,1,'accessori vari'!$A$1) -> tuboflex 1" 1/4 diritto-90° | C34: 5 | D34: =IF(C34=0,0,'Prezzo P'!C135+(C34-1)*'Prezzo P'!C136) -> 159 | E34: 0
A35: 0 | B35: =INDEX(lingue!B96:E96,1,'accessori vari'!$A$1) -> tuboflex 1" 1/4 diritto-diritto | C35: 0 | D35: =IF(C35=0,0,'Prezzo P'!C135+(C35-1)*'Prezzo P'!C136) -> 0 | E35: 0
A36: 0 | B36: =INDEX(lingue!B97:E97,1,'accessori vari'!$A$1) -> tuboflex 1" 1/2 diritto-90° | C36: 5 | D36: =IF(C36=0,0,'Prezzo P'!C137+(C36-1)*'Prezzo P'!C138) -> 217 | E36: 0
A37: 0 | B37: =INDEX(lingue!B98:E98,1,'accessori vari'!$A$1) -> tuboflex 1" 1/2 diritto-diritto | C37: 0 | D37: =IF(C37=0,0,'Prezzo P'!C137+(C37-1)*'Prezzo P'!C138) -> 0 | E37: 0
A38: 0 | B38: =INDEX(lingue!B99:E99,1,'accessori vari'!$A$1) -> tuboflex 2" diritto-diritto | C38: 0 | D38: =IF(C38=0,0,'Prezzo P'!C139+(C38-1)*'Prezzo P'!C140) -> 0 | E38: 0
A39: 0 | B39: =INDEX(lingue!B100:E100,1,'accessori vari'!$A$1) -> tuboflex 2" diritto-diritto | C39: 0 | D39: =IF(C39=0,0,'Prezzo P'!C139+(C39-1)*'Prezzo P'!C140) -> 0 | E39: 0
A41: 0 | B41: =INDEX(lingue!B101:E101,1,'accessori vari'!$A$1) -> staffa fissaggio per tubiflex ¾", 1" e barre tubo ø 35 | C41: STAF.TUB.35 | D41: ='Prezzo P'!C144 -> 8 | E41: =+D41*A41*$C$3 -> 0
A42: 0 | B42: =INDEX(lingue!B102:E102,1,'accessori vari'!$A$1) -> staffa fissaggio per barre tubo ø 42 | C42: STAF.TUB.42 | D42: ='Prezzo P'!C145 -> 8 | E42: 0
A43: 0 | B43: =INDEX(lingue!B103:E103,1,'accessori vari'!$A$1) -> staffa fissaggio per tuboflex 1" ¼ | C43: STAF.TU.1"1/4 | D43: ='Prezzo P'!C146 -> 8 | E43: 0
A44: 0 | B44: =INDEX(lingue!B104:E104,1,'accessori vari'!$A$1) -> staffa fissaggio per tuboflex 1" ½ | C44: STAF.TU.1"1/2 | D44: ='Prezzo P'!C147 -> 8 | E44: 0
A45: 0 | B45: =INDEX(lingue!B105:E105,1,'accessori vari'!$A$1) -> staffa fissaggio per tuboflex 2" | C45: STAF.TU.2"G | D45: ='Prezzo P'!C148 -> 11 | E45: 0
A46: 0 | B46: =INDEX(lingue!B106:E106,1,'accessori vari'!$A$1) -> staffa speciale fissaggio per tuboflex 1" ¼ | C46: FAS/FLEX 1"1/4 | D46: 13 | E46: =+D46*A46*$C$3 -> 0
A47: 0 | B47: =INDEX(lingue!B107:E107,1,'accessori vari'!$A$1) -> staffa speciale fissaggio per tuboflex 1" ½ | C47: FAS/FLEX 1"1/2 | D47: 15 | E47: =+D47*A47*$C$3 -> 0
A48: 0 | B48: =INDEX(lingue!B108:E108,1,'accessori vari'!$A$1) -> staffa speciale fissaggio per tuboflex 2" | C48: FAS/FLEX 2" | D48: 18 | E48: =+D48*A48*$C$3 -> 0
A49: 0 | B49: =INDEX(lingue!B291:E291,1,'accessori vari'!$A$1) -> oil recovery tank for piston, 5 liters | C49: TANICA R05 LT | D49: 8 | E49: =+D49*A49*$C$3 -> 0
A50: 0 | B50: =INDEX(lingue!B112:E112,1,'accessori vari'!$A$1) -> coppia staffe per avvitamento pistone in due pezzi da ø 70 a ø 120 | C50: 0745 | D50: ='Prezzo P'!C173 -> 279 | E50: 0
A51: 0 | B51: =INDEX(lingue!B113:E113,1,'accessori vari'!$A$1) -> coppia staffe per avvitamento pistone in due pezzi da ø 130 a ø 200 | C51: 0747 | D51: ='Prezzo P'!C174 -> 321 | E51: 0
A52: 0 | B52: =INDEX(lingue!B114:E114,1,'accessori vari'!$A$1) -> carta catramata – rotolo lungh. 10 m largh. 10 cm per pistoni interrati | C52: 5256/5 | D52: ='Prezzo P'!C175 -> 35 | E52: 0
A53: 0 | B53: =INDEX(lingue!B270:E270,1,'accessori vari'!$A$1) -> Complete roomless box for HL-300/AR tank | C53: 0946/300-COMPL. | D53: ='Prezzo P'!C182 -> 316 | E53: =+D53*A53*$C$3 -> 0
A54: 0 | B54: =INDEX(lingue!B271:E271,1,'accessori vari'!$A$1) -> Complete roomless box for HL-420/AR tank | C54: 0946/420-COMPL. | D54: ='Prezzo P'!C183 -> 316 | E54: 0
A55: 0 | B55: =INDEX(lingue!B272:E272,1,'accessori vari'!$A$1) -> Complete roomless box for HL-300/AR tank (disassembled version) | C55: 0946/300-COMPL.SM. | D55: ='Prezzo P'!C184 -> 324 | E55: 0
A56: 0 | B56: =INDEX(lingue!B273:E273,1,'accessori vari'!$A$1) -> Complete roomless box for HL-420/AR tank (disassembled version) | C56: 0946/420-COMPL.SM. | D56: ='Prezzo P'!C185 -> 324 | E56: 0
A57: 0 | B57: =INDEX(lingue!B278:E278,1,'accessori vari'!$A$1) -> Complete roomless box for HL/OIL-265 tank | C57: 0946/HL-OIL | D57: ='Prezzo P'!C186 -> 324 | E57: 0
A58: 0 | B58: =INDEX(lingue!B115:E115,1,'accessori vari'!$A$1) -> armadio da assemblare su centralina CM-320/A | C58: 0884/CM3-A-SC | D58: ='Prezzo P'!C176 -> 402 | E58: 0
A59: 0 | B59: =INDEX(lingue!B279:E279,1,'accessori vari'!$A$1) -> Roomless Box MI-2000 for CM-320/AR color RAL 7035 | C59: 0884/CM3R2A-150 | D59: ='Prezzo P'!C177 -> 598 | E59: 0
A60: 0 | B60: =INDEX(lingue!B117:E117,1,'accessori vari'!$A$1) -> armadio – MI 2000 – per CM-320/A colore RAL 7035 | C60: 0884/CM32A-150 | D60: ='Prezzo P'!C178 -> 598 | E60: 0
A61: 0 | B61: =INDEX(lingue!B280:E280,1,'accessori vari'!$A$1) -> Roomless Box MI-2000 for CM-320/A color RAL 7035 (disassembled) | C61: 0884/CM32A-150.SM | D61: ='Prezzo P'!C179 -> 501 | E61: =+D61*A61*$C$3 -> 0
A62: 0 | B62: =INDEX(lingue!B118:E118,1,'accessori vari'!$A$1) -> armadio – MI 2000 CM – per CM colore RAL 7035 | C62: 0884/CMVMO2A-150 | D62: ='Prezzo P'!C180 -> 644 | E62: 0
A63: 0 | B63: =INDEX(lingue!B119:E119,1,'accessori vari'!$A$1) -> armadio – MI 2000 CA– per CA colore Ral 7035 | C63: 0884/CAVMO2A | D63: ='Prezzo P'!C181 -> 697 | E63: 0
A64: 0 | B64: =INDEX(lingue!B120:E120,1,'accessori vari'!$A$1) -> loctite 5900 per mi-2000 | C64: 5123/6 | D64: 37 | E64: 0
A65: 0 | B65: =INDEX(lingue!B121:E121,1,'accessori vari'!$A$1) -> Intercambiador de calor scamb. 5/10 con 2 tubi da mt. 3 | C65: SCAMB.5/10M-3 | D65: ='Prezzo P'!C196 -> 1382 | E65: 0
A66: 0 | B66: =INDEX(lingue!B122:E122,1,'accessori vari'!$A$1) -> Intercambiador de calor scamb. 20 con 2 tubi da mt. 3 | C66: SCAMB.20M-3 | D66: ='Prezzo P'!C197 -> 1506 | E66: 0
A67: 0 | B67: =INDEX(lingue!B123:E123,1,'accessori vari'!$A$1) -> Intercambiador de calor scamb. 30 con 2 tubi da mt. 3 | C67: SCAMB.30M-3 | D67: ='Prezzo P'!C198 -> 1832 | E67: 0
A68: 0 | B68: =INDEX(lingue!B124:E124,1,'accessori vari'!$A$1) -> Intercambiador de calor scamb.5/10 con pannello di controllo e 2 tubi mt. 3 | C68: Scase 5/10 | D68: ='Prezzo P'!C199 -> 1714 | E68: =+D68*A68*$C$3 -> 0
A69: 0 | B69: =INDEX(lingue!B125:E125,1,'accessori vari'!$A$1) -> Intercambiador de calor scamb.20 con pannello di controllo e 2 tubi mt. 3 | C69: Scase 20 | D69: ='Prezzo P'!C200 -> 1961 | E69: 0
A70: 0 | B70: =INDEX(lingue!B126:E126,1,'accessori vari'!$A$1) -> Intercambiador de calor scamb.30 con pannello di controllo e 2 tubi mt. 3 | C70: Scase 30 | D70: ='Prezzo P'!C201 -> 2163 | E70: 0
A71: 0 | B71: =INDEX(lingue!B129:E129,1,'accessori vari'!$A$1) -> Documentación técnica (cálculo piston) para verificación por inspector | D71: 48 | E71: 0
A72: 0 | B72: =INDEX(lingue!B130:E130,1,'accessori vari'!$A$1) -> Consola programación central electrónica | C72: MINITERMINAL C | D72: 284 | E72: =+D72*A72*$C$3 -> 0 | F72: =(IF(AND(A72>0,DATOS!D51="STD"),"ATTENZIONE! VALVOLA STANDARD","")) -> 
B74: =INDEX(lingue!B58:E58,1,'accessori vari'!$A$1) -> Descuento | E74: ='accessori centralina'!H51 -> 0
B75: =INDEX(lingue!B131:E131,1,'accessori vari'!$A$1) -> Precio | E75: =SUM(E4:E72) -> 0
B76: =INDEX(lingue!B132:E132,1,'accessori vari'!$A$1) -> Precio neto. | E76: =+E75*(1-'accessori centralina'!H51/100) -> 0

Sheet offerta (hidden)
B8: Riferimento offerta MORIS:
B10: Att. Sig. | E10: fax
B11: Società | E11: data | F11: =TODAY() -> 2023-11-30
B12: Riferimento Cliente | E12: pagine | F12: 1
A14: QT
A15: 1 | B15: kit per impianto/i | C15: =IF(DATOS!D7=9130,"in taglia (2:1) tipo 9130",IF(DATOS!D7=9140,"diretto laterale (1:1) tipo 9140","diretto centrale (1:1) tipo 9150")) -> in taglia (2:1) tipo 9130
B16: =CONCATENATE("portata (kg) ",DATOS!D9,"; peso cabina, arcata e operatori (kg) ",DATOS!D10) -> portata (kg) 300; peso cabina, arcata e operatori (kg) 450
B17: =IF(DATOS!D7=9130,"carico totale su pistone circa (kg)","carico totale sul pistone (kg)") -> carico totale su pistone circa (kg) | D17: =DATOS!D33 -> 1500
B18: =CONCATENATE("corsa cabina (mm) ",DATOS!D15,"; extracorsa superiore + inferiore (mm) ",DATOS!D17,"; velocità (m/s) ", DATOS!D58) -> corsa cabina (mm) 2600; extracorsa superiore + inferiore (mm) 500; velocità (m/s) 0,44
B19: =IF(A15=1,"","ciascuno composto da") -> 
A20: ='accessori centralina'!C3 -> 1 | B20: =CONCATENATE("pistone ",DATOS!D7," diametro stelo (mm) ",DATOS!D24," spessore (mm) ",DATOS!D25,"; corsa totale pistone (mm) ",DATOS!D21) -> pistone 9130 diametro stelo (mm) 70 spessore (mm) 5; corsa totale pistone (mm) 1550
A21: =IF('accessori centralina'!C3=0,0,"") ->  | B21: =(IF(DATOS!D19=2,CONCATENATE("con dispositivo stelo guidato (collare+dispositivo completo) in ",DATOS!D14," pezzo/i"),CONCATENATE("in ",DATOS!D14," pezzo/i"))) -> in 1 pezzo/i
A22: =IF(OR(DATOS!D26=0,'accessori centralina'!C3=0),0,"") -> 0 | B22: =IF(DATOS!D26=1,"con anello di protezione stelo","") -> 
A23: =IF('accessori centralina'!C3=0,0,"") ->  | B23: =CONCATENATE("lunghezza pistone chiuso (mm) ",DATOS!D22,IF(DATOS!K12=2,CONCATENATE("; portata pompa ",DATOS!D45*DATOS!D43," l/min"),"")) -> lunghezza pistone chiuso (mm) 1750
A24: =A20 -> 1 | B24: =CONCATENATE("valvola di blocco tipo ",'calcoli vari'!B87," a chiusura totale",IF(AND(DATOS!K16=2,DATOS!D13=1),", per KMI",""),"; attacco tubazione ", ,'calcoli vari'!B88) -> valvola di blocco tipo 1"1/4 a chiusura totale; attacco tubazione 1"1/4 metrico (M45x2)
A25: =IF('accessori centralina'!C3=0,0,"") ->  | B25: =CONCATENATE(IF(DATOS!D7=9150,"attacco valvola su pistone: in alto secondo disegno 9150",IF(DATOS!K14=1,"attacco valvola su pistone: in basso a 200 mm dal fondo","attacco valvola su pistone: in alto a 400 mm da sommità")),", di tipo ",'calcoli vari'!B90) -> attacco valvola su pistone: in basso a 200 mm dal fondo, di tipo quadrato
A26: ='accessori centralina'!F10*'accessori centralina'!C3 -> 0 | B26: ='accessori centralina'!A10 -> Lower piston plate (MI plate)
A27: ='accessori centralina'!C16 -> 1 | B27: =CONCATENATE(IF(DATOS!D51="STD","Centralina tipo ","Centralina elettronica "),DATOS!D65,'calcoli vari'!B58,"; pompa (l/min) ",DATOS!D45,"; pressione max (bar) ",INT(DATOS!D39-0.5)+1,"; min (bar) ",INT(DATOS!D40-0.5)+1) -> Centralina tipo MS-A/K; pompa (l/min) 55; pressione max (bar) 39; min (bar) 23
A28: =IF('accessori centralina'!C16=0,0,"") ->  | B28: =CONCATENATE("motore: potenza (KW) ",'accessori centralina'!B18," (HP) ",centraline!F141) -> motore: potenza (KW) 6 (HP) 8 | D28: tensione motore | E28: ='calcoli vari'!B50 -> 400/690 VAC, 50 Hz
A29: =IF('accessori centralina'!C16=0,0,"") ->  | B29: =CONCATENATE("avviamento ",IF('accessori centralina'!F23=1,"stella triangolo","diretto")) -> avviamento diretto
A30: =IF(AND('accessori centralina'!C16>0,DATOS!D52="D"),"",0) -> 0 | B30: =IF(DATOS!D52="D","Attenzione! capacità serbatoio sufficiente per il solo olio in circolo","") -> 
A31: =IF(AND(LEFT(DATOS!D65,2)="HL",DATOS!K12<>2),"",0) -> 0 | B31: =IF(DATOS!D49=1,"singola velocità",IF(DATOS!D49=2,"doppia velocità","ERRORE")) -> singola velocità
A32: ='accessori centralina'!G23*'accessori centralina'!C16 -> 0 | B32: valvola stella triangolo
A33: =IF(OR(DATOS!D51="STD",'accessori centralina'!C16=0),0,"") -> 0 | B33: =CONCATENATE("valvola CLRV (tensione di alimentazione NTA-2: ",DATOS!D55,")") -> valvola CLRV (tensione di alimentazione NTA-2: 230 VAC)
A34: =IF(OR(DATOS!D51="ELE",'accessori centralina'!C16=0),0,"") ->  | B34: =CONCATENATE("tensione elettrovalvole ",DATOS!H75) -> tensione elettrovalvole 24 VDC + 12 VDC | F34: codice
A35: =IF(OR(DATOS!D51="STD",'accessori centralina'!C16=0),0,"") -> 0 | B35: con alimentazione di emergenza (+24, 0, -24 VDC) | F35: codice
A36: =IF(AND('accessori centralina'!F22=1,'accessori centralina'!C16>0),"",'accessori centralina'!F22*'accessori centralina'!$C$16) -> 0 | B36: ='accessori centralina'!K22 -> cassone maggiorato
A37: ='accessori centralina'!F40*'accessori centralina'!C16 -> 0 | B37: ='accessori centralina'!A40 -> emergency lowering valve 12 VDC for electronic power unit | F37: ='accessori centralina'!I40 -> MICR.D/250-IN-MB
A38: ='accessori centralina'!F27*'accessori centralina'!C16 -> 1 | B38: =CONCATENATE('accessori centralina'!A27," ",'accessori centralina'!E27) -> Pressure switch, 5-70 bar, NO+NC, wired as N.C. | F38: ='accessori centralina'!I27 -> 5304/1
A39: ='accessori centralina'!F28*'accessori centralina'!$C$16 -> 0 | B39: ='accessori centralina'!A28 -> Pressure sensor CHD 100 (DINACELL) | F39: ='accessori centralina'!I28 -> CHD-100
A40: ='accessori centralina'!F29*'accessori centralina'!C16 -> 1 | B40: ='accessori centralina'!A29 -> hand pump | F40: ='accessori centralina'!I29 -> POM.MAN.INT
A41: ='accessori centralina'!F31*'accessori centralina'!$C$16 -> 0 | B41: ='accessori centralina'!A31 -> oil heater 400W 230V for tank | F41: ='accessori centralina'!I31 -> RIS.CON TER
A42: ='accessori centralina'!F32*'accessori centralina'!$C$16 -> 0 | B42: ='accessori centralina'!A32 -> oil heater 400W 400V for tank | F42: ='accessori centralina'!I32 -> RIS.CON TE/400
A43: ='accessori centralina'!F33*'accessori centralina'!$C$16 -> 0 | B43: ='accessori centralina'!A33 -> oil heater 200W 230V for HL tank | F43: ='accessori centralina'!I33 -> RIS.CON TE/HL
A44: ='accessori centralina'!F25*'accessori centralina'!$C$16 -> 0 | B44: ='accessori centralina'!A25 -> internal plate
A45: ='accessori centralina'!F30*'accessori centralina'!C16 -> 1 | B45: ='accessori centralina'!A30 -> exclusion pressure gauge tap En 81.2 | F45: ='accessori centralina'!I30 -> 5377.1
A46: ='accessori centralina'!F26*'accessori centralina'!$C$16 -> 0 | B46: ='accessori centralina'!A26 -> tank arrangement for heat exchanger | F46: ='accessori centralina'!I26 -> CASS.PRED.GAR
A47: ='accessori centralina'!F34*'accessori centralina'!$C$16 -> 0 | B47: ='accessori centralina'!A34 -> soft stop + screw #21 (for 15-250 l/min pumps) | F47: ='accessori centralina'!I34 -> SOFT STOP 250
A48: ='accessori centralina'!F35*'accessori centralina'!$C$16 -> 0 | B48: ='accessori centralina'!A35 -> soft stop + screw #21 (for 300-380 l/min pumps) | F48: ='accessori centralina'!I35 -> SOFT STOP 380/MO
A49: ='accessori centralina'!F36*'accessori centralina'!$C$16 -> 0 | B49: ='accessori centralina'!A36 -> soft stop + screw #21 (for 440-650 l/min pumps) | F49: ='accessori centralina'!I36 -> SOFT STOP 650/MO
A50: ='accessori centralina'!F37*'accessori centralina'!$C$16 -> 0 | B50: ='accessori centralina'!A37 -> down re-levelling electrovalve (for 15 to 250 l/min pumps) | F50: ='accessori centralina'!I37 -> MICR.D/250-IN
A51: ='accessori centralina'!F38*'accessori centralina'!$C$16 -> 0 | B51: ='accessori centralina'!A38 -> down re-levelling electrovalve (for 300 to 650 l/min pumps) | F51: ='accessori centralina'!I38 -> MICR.D/650-IN
A52: ='accessori centralina'!F39*'accessori centralina'!C16 -> 0 | B52: ='accessori centralina'!A39 -> Bomba de micronivelación 20 l/min - 3 CV | F52: ='accessori centralina'!I39 -> MICR.COM20/3
A53: ='accessori centralina'!F24*'accessori centralina'!$C$16 -> 0 | B53: ='accessori centralina'!K24 -> amplificatore protezione motore | F53: 5001/3
A54: =IF(AND(A27>0,DATOS!K21=2),1,0) -> 0 | B54: imballo centralina con bancale fumigato e scatola di cartone
A55: =IF(AND(A27>0,DATOS!K21=3),1,0) -> 0 | B55: imballo centralina con cassa di legno compresso
A56: ='accessori vari'!A4 -> 0 | B56: ='accessori vari'!B4 -> barra tubo mandata ø 35 x 2,5 (m 6) | F56: ='accessori vari'!C4 -> 5438 / P
A57: ='accessori vari'!A5 -> 0 | B57: ='accessori vari'!B5 -> barra tubo mandata ø 42 x 3 (m 6) | F57: ='accessori vari'!C5 -> 5439 / P
A58: ='accessori vari'!A30 -> 0 | B58: =CONCATENATE('accessori vari'!B30,", lunghezza (m) ",'accessori vari'!C30) -> tuboflex 3/4 " diritto-90°, lunghezza (m) 5
A59: ='accessori vari'!A31 -> 0 | B59: =CONCATENATE('accessori vari'!B31,", lunghezza (m) ",'accessori vari'!C31) -> tuboflex 3/4 " diritto-diritto, lunghezza (m) 0
A60: ='accessori vari'!A32 -> 0 | B60: =CONCATENATE('accessori vari'!B32,", lunghezza (m) ",'accessori vari'!C32) -> tuboflex 1" diritto-90°, lunghezza (m) 5
A61: ='accessori vari'!A33 -> 0 | B61: =CONCATENATE('accessori vari'!B33,", lunghezza (m) ",'accessori vari'!C33) -> tuboflex 1" diritto-diritto, lunghezza (m) 0
A62: ='accessori vari'!A34 -> 0 | B62: =CONCATENATE('accessori vari'!B34,", lunghezza (m) ",'accessori vari'!C34) -> tuboflex 1" 1/4 diritto-90°, lunghezza (m) 5
A63: ='accessori vari'!A35 -> 0 | B63: =CONCATENATE('accessori vari'!B35,", lunghezza (m) ",'accessori vari'!C35) -> tuboflex 1" 1/4 diritto-diritto, lunghezza (m) 0
A64: ='accessori vari'!A36 -> 0 | B64: =CONCATENATE('accessori vari'!B36,", lunghezza (m) ",'accessori vari'!C36) -> tuboflex 1" 1/2 diritto-90°, lunghezza (m) 5
A65: ='accessori vari'!A37 -> 0 | B65: =CONCATENATE('accessori vari'!B37,", lunghezza (m) ",'accessori vari'!C37) -> tuboflex 1" 1/2 diritto-diritto, lunghezza (m) 0
A66: ='accessori vari'!A38 -> 0 | B66: =CONCATENATE('accessori vari'!B38,", lunghezza (m) ",'accessori vari'!C38) -> tuboflex 2" diritto-diritto, lunghezza (m) 0
A67: ='accessori vari'!A39 -> 0 | B67: =CONCATENATE('accessori vari'!B39,", lunghezza (m) ",'accessori vari'!C39) -> tuboflex 2" diritto-diritto, lunghezza (m) 0
A68: ='accessori vari'!A25 -> 0 | B68: ='accessori vari'!B25 -> tubo miniflex para valvula paracaidas ø 8 -5 m | F68: ='accessori vari'!C25 -> 5425
A69: ='accessori vari'!A26 -> 0 | B69: ='accessori vari'!B26 -> Conexión tubo miniflex-valvula paracaidas 2 piezas | F69: ='accessori vari'!C26 -> RACC.90/VP-MF
A70: ='accessori vari'!A27 -> 0 | B70: ='accessori vari'!B27 -> Conexión intermedia tubo miniflex ø 8 | F70: ='accessori vari'!C27 -> 5307/5
A71: ='accessori vari'!A11 -> 0 | B71: ='accessori vari'!B11 -> Racor de conexión directo ø 35 | F71: ='accessori vari'!C11 -> 5308
A72: ='accessori vari'!A12 -> 0 | B72: ='accessori vari'!B12 -> Racor de conexión directo ø 42 | F72: ='accessori vari'!C12 -> 5309
A73: ='accessori vari'!A15 -> 0 | B73: ='accessori vari'!B15 -> Conexión 3 vias ‘T’ 1" ¼ | F73: ='accessori vari'!C15 -> 5316
A74: ='accessori vari'!A16 -> 0 | B74: ='accessori vari'!B16 -> Conexión 3 vias a ‘T’ 1" ½ x 1" ¼ x 1" ¼ | F74: ='accessori vari'!C16 -> RACC.T42+2/35
A75: ='accessori vari'!A17 -> 0 | B75: ='accessori vari'!B17 -> Conexión 3 vias‘T’ 1" ½ | F75: ='accessori vari'!C17 -> 5317
A76: ='accessori vari'!A18 -> 0 | B76: ='accessori vari'!B18 -> Conexión 3 vias a ‘Y’ 1" ½ x 1" ¼ x 1" ¼ | F76: ='accessori vari'!C18 -> 0696/2
A77: ='accessori vari'!A19 -> 0 | B77: ='accessori vari'!B19 -> Conexión 3 vias‘Y’ 1" ½ | F77: ='accessori vari'!C19 -> 0696/1
A78: ='accessori vari'!A20 -> 0 | B78: ='accessori vari'!B20 -> Conexión 3 vias a ‘Y’ 2" x 1" ½ x 1" ½ | F78: ='accessori vari'!C20 -> 0696
A79: ='accessori vari'!A21 -> 0 | B79: ='accessori vari'!B21 -> Conexión 3 vias‘Y’ 2" | F79: ='accessori vari'!C21 -> 0696/3
A80: ='accessori vari'!A13 -> 0 | B80: ='accessori vari'!B13 -> Racor de conexion directo ø 35 | F80: ='accessori vari'!C13 -> 5310
A81: ='accessori vari'!A14 -> 0 | B81: ='accessori vari'!B14 -> Racor de conexión a 90º ø 42 | F81: ='accessori vari'!C14 -> 5311
A82: ='accessori vari'!A22 -> 0 | B82: ='accessori vari'!B22 -> Racor 1"1/4 para conexion a tres vias a Y | F82: ='accessori vari'!C22 -> 5306
A83: ='accessori vari'!A23 -> 0 | B83: ='accessori vari'!B23 -> Racor 1"1/2 para conexion a tres vias a Y | F83: ='accessori vari'!C23 -> 5307
A84: ='accessori vari'!A24 -> 0 | B84: ='accessori vari'!B24 -> Racor 2" para conexion a tres vias a Y | F84: ='accessori vari'!C24 -> 5325
A85: ='accessori vari'!A41 -> 0 | B85: ='accessori vari'!B41 -> staffa fissaggio per tubiflex ¾", 1" e barre tubo ø 35 | F85: ='accessori vari'!C41 -> STAF.TUB.35
A86: ='accessori vari'!A42 -> 0 | B86: ='accessori vari'!B42 -> staffa fissaggio per barre tubo ø 42 | F86: ='accessori vari'!C42 -> STAF.TUB.42
A87: ='accessori vari'!A43 -> 0 | B87: ='accessori vari'!B43 -> staffa fissaggio per tuboflex 1" ¼ | F87: ='accessori vari'!C43 -> STAF.TU.1"1/4
A88: ='accessori vari'!A44 -> 0 | B88: ='accessori vari'!B44 -> staffa fissaggio per tuboflex 1" ½ | F88: ='accessori vari'!C44 -> STAF.TU.1"1/2
A89: ='accessori vari'!A45 -> 0 | B89: ='accessori vari'!B45 -> staffa fissaggio per tuboflex 2" | F89: ='accessori vari'!C45 -> STAF.TU.2"G
A90: ='accessori vari'!A46 -> 0 | B90: ='accessori vari'!B46 -> staffa speciale fissaggio per tuboflex 1" ¼ | F90: ='accessori vari'!C46 -> FAS/FLEX 1"1/4
A91: ='accessori vari'!A47 -> 0 | B91: ='accessori vari'!B47 -> staffa speciale fissaggio per tuboflex 1" ½ | F91: ='accessori vari'!C47 -> FAS/FLEX 1"1/2
A92: ='accessori vari'!A48 -> 0 | B92: ='accessori vari'!B48 -> staffa speciale fissaggio per tuboflex 2" | F92: ='accessori vari'!C48 -> FAS/FLEX 2"
A93: ='accessori vari'!A49 -> 0 | B93: ='accessori vari'!B49 -> oil recovery tank for piston, 5 liters | F93: ='accessori vari'!C49 -> TANICA R05 LT
A94: ='accessori vari'!A50 -> 0 | B94: ='accessori vari'!B50 -> coppia staffe per avvitamento pistone in due pezzi da ø 70 a ø 120 | F94: ='accessori vari'!C50 -> 0745
A95: ='accessori vari'!A51 -> 0 | B95: ='accessori vari'!B51 -> coppia staffe per avvitamento pistone in due pezzi da ø 130 a ø 200 | F95: ='accessori vari'!C51 -> 0747
A96: ='accessori vari'!A52 -> 0 | B96: ='accessori vari'!B52 -> carta catramata – rotolo lungh. 10 m largh. 10 cm per pistoni interrati | F96: ='accessori vari'!C52 -> 5256/5
A97: ='accessori vari'!A53 -> 0 | B97: ='accessori vari'!B53 -> Complete roomless box for HL-300/AR tank | F97: ='accessori vari'!C53 -> 0946/300-COMPL.
A98: ='accessori vari'!A54 -> 0 | B98: ='accessori vari'!B54 -> Complete roomless box for HL-420/AR tank | F98: ='accessori vari'!C54 -> 0946/420-COMPL.
A99: ='accessori vari'!A55 -> 0 | B99: ='accessori vari'!B55 -> Complete roomless box for HL-300/AR tank (disassembled version) | F99: ='accessori vari'!C55 -> 0946/300-COMPL.SM.
A100: ='accessori vari'!A56 -> 0 | B100: ='accessori vari'!B56 -> Complete roomless box for HL-420/AR tank (disassembled version) | F100: ='accessori vari'!C56 -> 0946/420-COMPL.SM.
A101: ='accessori vari'!A57 -> 0 | B101: ='accessori vari'!B57 -> Complete roomless box for HL/OIL-265 tank | F101: ='accessori vari'!C57 -> 0946/HL-OIL
A102: ='accessori vari'!A58 -> 0 | B102: ='accessori vari'!B58 -> armadio da assemblare su centralina CM-320/A | F102: ='accessori vari'!C58 -> 0884/CM3-A-SC
A103: ='accessori vari'!A59 -> 0 | B103: ='accessori vari'!B59 -> Roomless Box MI-2000 for CM-320/AR color RAL 7035 | F103: ='accessori vari'!C59 -> 0884/CM3R2A-150
A104: ='accessori vari'!A60 -> 0 | B104: ='accessori vari'!B60 -> armadio – MI 2000 – per CM-320/A colore RAL 7035 | F104: ='accessori vari'!C60 -> 0884/CM32A-150
A105: ='accessori vari'!A61 -> 0 | B105: ='accessori vari'!B61 -> Roomless Box MI-2000 for CM-320/A color RAL 7035 (disassembled) | F105: ='accessori vari'!C61 -> 0884/CM32A-150.SM
A106: ='accessori vari'!A62 -> 0 | B106: ='accessori vari'!B62 -> armadio – MI 2000 CM – per CM colore RAL 7035 | F106: ='accessori vari'!C62 -> 0884/CMVMO2A-150
A107: ='accessori vari'!A63 -> 0 | B107: ='accessori vari'!B63 -> armadio – MI 2000 CA– per CA colore Ral 7035 | F107: ='accessori vari'!C63 -> 0884/CAVMO2A
A108: ='accessori vari'!A64 -> 0 | B108: ='accessori vari'!B64 -> loctite 5900 per mi-2000 | F108: ='accessori vari'!C64 -> 5123/6
A109: ='accessori vari'!A65 -> 0 | B109: ='accessori vari'!B65 -> Intercambiador de calor scamb. 5/10 con 2 tubi da mt. 3 | F109: ='accessori vari'!C65 -> SCAMB.5/10M-3
A110: ='accessori vari'!A66 -> 0 | B110: ='accessori vari'!B66 -> Intercambiador de calor scamb. 20 con 2 tubi da mt. 3 | F110: ='accessori vari'!C66 -> SCAMB.20M-3
A111: ='accessori vari'!A67 -> 0 | B111: ='accessori vari'!B67 -> Intercambiador de calor scamb. 30 con 2 tubi da mt. 3 | F111: ='accessori vari'!C67 -> SCAMB.30M-3
A112: ='accessori vari'!A68 -> 0 | B112: ='accessori vari'!B68 -> Intercambiador de calor scamb.5/10 con pannello di controllo e 2 tubi mt. 3 | F112: ='accessori vari'!C68 -> Scase 5/10
A113: ='accessori vari'!A69 -> 0 | B113: ='accessori vari'!B69 -> Intercambiador de calor scamb.20 con pannello di controllo e 2 tubi mt. 3 | F113: ='accessori vari'!C69 -> Scase 20
A114: ='accessori vari'!A70 -> 0 | B114: ='accessori vari'!B70 -> Intercambiador de calor scamb.30 con pannello di controllo e 2 tubi mt. 3 | F114: ='accessori vari'!C70 -> Scase 30
A115: ='accessori vari'!A71 -> 0 | B115: ='accessori vari'!B71 -> Documentación técnica (cálculo piston) para verificación por inspector
A116: ='accessori vari'!A72 -> 0 | B116: ='accessori vari'!B72 -> Consola programación central electrónica | F116: ='accessori vari'!C72 -> MINITERMINAL C
A117: ='accessori centralina'!F41*$A$15*'accessori centralina'!$C$16 -> 0 | B117: ='accessori centralina'!A41 -> set of gasket valve block HL | F117: ='accessori centralina'!I41 -> S.GUA.DIS/HL
A118: ='accessori centralina'!F42*$A$15*'accessori centralina'!$C$16 -> 0 | B118: ='accessori centralina'!A42 -> set of gasket valve block 15-250 l/m | F118: ='accessori centralina'!I42 -> S.GUA.DIS/250
A119: ='accessori centralina'!F43*$A$15*'accessori centralina'!$C$16 -> 0 | B119: ='accessori centralina'!A43 -> set of gasket valve block 300-650 l/m | F119: ='accessori centralina'!I43 -> S.GUA.DIS/650
A120: ='accessori centralina'!F56 -> 0 | B120: ='accessori centralina'!A56 -> xxx
A121: ='accessori centralina'!F57 -> 0 | B121: ='accessori centralina'!A57 -> xxx
A122: ='accessori centralina'!F58 -> 0 | B122: ='accessori centralina'!A58 -> riduzione valvola di blocco 1"1/2-1"1/4 lato tubo | F122: =lingue!A90 -> 5320/COMPLETO
A123: ='accessori centralina'!F59 -> 0 | B123: ='accessori centralina'!A59 -> raccordo tra valvola di blocco 1" e tubo 3/4" | F123: 5320/4
A124: ='accessori centralina'!F60 -> 0 | B124: ='accessori centralina'!A60 -> xxx
A125: ='accessori centralina'!F8*'accessori centralina'!$C$3 -> 0 | B125: ='accessori centralina'!A8 -> ram head gasket
A126: ='accessori centralina'!F9*'accessori centralina'!$C$3 -> 0 | B126: ='accessori centralina'!A9 -> set of jack gasket
A127: ='accessori vari'!A6 -> 0 | B127: ='accessori vari'!B6 -> Racor a 90º ø 28 salida vertical en central | F127: ='accessori vari'!C6 -> KIT.RACC/VER28
A128: ='accessori vari'!A7 -> 0 | B128: ='accessori vari'!B7 -> Racor a 90º ø 35 salida vertical en central | F128: ='accessori vari'!C7 -> KIT.RACC/VER35
A129: ='accessori vari'!A8 -> 0 | B129: ='accessori vari'!B8 -> Racor a 90º ø 42 salida vertical en central | F129: ='accessori vari'!C8 -> KIT.RACC/VER42
A130: ='accessori vari'!A9 -> 0 | B130: ='accessori vari'!B9 -> Racor a 90º ø 35 salida horizontal en central | F130: ='accessori vari'!C9 -> KIT.RACC/ORR35
A131: ='accessori vari'!A10 -> 0 | B131: ='accessori vari'!B10 -> Racor a 90º ø 42 salida horizontal en central | F131: ='accessori vari'!C10 -> KIT.RACC/ORR42
A132: =IF(DATOS!K16=2,1,0) -> 0 | B132: =CONCATENATE("kit KMI in centralina per emend. A.3 con tubo da ",DATOS!D30," m; tensione ",DATOS!D29) -> kit KMI in centralina per emend. A.3 con tubo da 1 m; tensione 24 VDC
A133: =IF(AND(A132=1,DATOS!D13>1),1,0) -> 0 | B133: =CONCATENATE("valvola pilotata di arresto ",INDEX(centraline!C132:F132,1,'accessori centralina'!G21)," con raccordi su centralina per KMI e doppio pistone") -> valvola pilotata di arresto 1"1/4 con raccordi su centralina per KMI e doppio pistone
A134: =IF(AND(A132=1,DATOS!D13>1)," ",0) -> 0 | B134: =CONCATENATE("(codice ",'calcoli vari'!B10,")") -> (codice KIT.RAC/35KMI-TAN)
A135: =IF(DATOS!K16=3,1,0) -> 0 | B135: =CONCATENATE("dispositivo ",'calcoli vari'!B112," per A.3, con bobina ",DATOS!H76) -> dispositivo HM-SV 150 B per A.3, con bobina 110 VDC + 12 VDC | F135: ='calcoli vari'!B124 -> Z000009AA-A0
B137: =IF(A139=0,IF($A$15=1,"prezzo netto *","prezzo netto per ciascun impianto *"),IF($A$15=1,"prezzo netto idraulica ","prezzo netto idraulica per ciascun impianto ")) -> prezzo netto * | E137: =IF(NOTE!J31=0,'accessori centralina'!H68,"ATTENZIONE! CONTROLLARE FOGLIO NOTE") ->  | F137: =IF(NOTE!J31=0,"EUR + IVA","") -> EUR + IVA
A138: ='accessori centralina'!F71 -> 0 | B138: =CONCATENATE("colonne guide tipo ",'accessori centralina'!C71," lungh./cad. ",'accessori centralina'!D71," m") -> colonne guide tipo aa lungh./cad. 11 m | E138: ='accessori centralina'!E71 -> 100.54542 | F138: EUR/m + IVA
A139: =IF(A138=0,0,'accessori centralina'!F72) -> 0 | B139: kit piastre e bulloni | E139: ='accessori centralina'!E72 -> 100.245749 | F139: EUR/cad + IVA
A140: ='accessori centralina'!F73 -> 0 | B140: =CONCATENATE("bride tipo ",'accessori centralina'!C73," con grower") -> bride tipo Tx con grower | E140: ='accessori centralina'!E73 -> 100 | F140: EUR/cad + IVA
A141: =IF(SUM('accessori centralina'!F71:F73)=0,0," ") -> 0 | B141: prezzo netto con guide e/o accessori | E141: ='accessori centralina'!H75 ->  | F141: EUR + IVA
B142: consegna * | D142: 3/4 settimane
B143: validità offerta | D143: 30 giorni
B144: resa | D144: f.co fabbrica
B145: pagamento | D145: solito in uso
B148: =CONCATENATE(DATOS!B81," ",ROUND(DATOS!D81,1)) -> aceite necesario para el funcionamiento conexiones incluidas (litros) 44
B150: Distinti saluti | D150: TIMBRO E FIRMA
B151: D. Caprioli | D151: (per accettazione)
B152: davide.caprioli@moris.it
A154: * | B154: Le date di consegna verranno confermate da MORIS per ordini ricevuti in agosto e in dicembre
B155: I cilindri, se in numero maggiore di 2, vengono imballati in cestelli a rendere, dal costo di 30 EUR
H160: =DATOS!D2 -> V.14

Sheet Offer (hidden)
J7: 1
B8: MORIS reference number:
B10: =INDEX(lingue!C206:D206,1,Offer!$J$7) -> Attention | E10: =INDEX(lingue!C209:D209,1,Offer!$J$7) -> fax
B11: =INDEX(lingue!C207:D207,1,Offer!$J$7) -> Customer | E11: =INDEX(lingue!C210:D210,1,Offer!$J$7) -> date | F11: =TODAY() -> 2023-11-30
B12: =INDEX(lingue!C208:D208,1,Offer!$J$7) -> Customer ref. | E12: =INDEX(lingue!C211:D211,1,Offer!$J$7) -> page | F12: 1
A14: QT
A15: 1 | B15: kit(s) for elevator | C15: =IF(DATOS!D7=9130,"rope side acting ram (2:1), type 9130",IF(DATOS!D7=9140,"direct side acting ram (1:1), type 9140","direct central-underground ram (1:1), type 9150")) -> rope side acting ram (2:1), type 9130
B16: =CONCATENATE("Rated load (Q) = ",DATOS!D9," kg - total car weight (P) = ",DATOS!D10," kg") -> Rated load (Q) = 300 kg - total car weight (P) = 450 kg
B17: =CONCATENATE(IF(DATOS!D7=9130,"total load on ram nearly (Kg) ","total load on ram (Kg) "),DATOS!D33) -> total load on ram nearly (Kg) 1500
B18: =CONCATENATE("car stroke ",DATOS!D15," mm; total car extrastroke ",DATOS!D17," mm; car speed ",DATOS!D58," m/s") -> car stroke 2600 mm; total car extrastroke 500 mm; car speed 0,44 m/s
B19: =IF(A15=1,"","each plant is built-up with the following items") -> 
A20: ='accessori centralina'!C3 -> 1 | B20: =CONCATENATE("jack model ",DATOS!D7,": ram diameter (mm) ",DATOS!D24,"; rod thickness (mm) ",DATOS!D25,"; total piston stroke (mm) ",DATOS!D21) -> jack model 9130: ram diameter (mm) 70; rod thickness (mm) 5; total piston stroke (mm) 1550
A21: =IF('accessori centralina'!C3=0,0,"") ->  | B21: =IF(DATOS!D19=1,CONCATENATE("divided in ",DATOS!D14," piece/s"),CONCATENATE(INDEX(lingue!C230:D230,1,Offer!$J$7),," divided in ",DATOS!D14," piece/s")) -> divided in 1 piece/s
A22: =IF(OR(DATOS!D26=0,'accessori centralina'!C3=0),0,"") -> 0 | B22: =IF(DATOS!D26=1,"with rod protection ring","") -> 
A23: =IF('accessori centralina'!C3=0,0,"") ->  | B23: =CONCATENATE("closed piston length (mm) ",DATOS!D22,IF(DATOS!K12=2,CONCATENATE("; pump flow ",DATOS!D45*DATOS!D43," l/min"),"")) -> closed piston length (mm) 1750
A24: =A20 -> 1 | B24: =CONCATENATE("rupture valve type ",'calcoli vari'!B87," without hole",IF(AND(DATOS!K16=2,DATOS!D13=1),", for KMI",""),"; hose connection thread ",'calcoli vari'!B89) -> rupture valve type 1"1/4 without hole; hose connection thread 1"1/4 metric (M45x2)
A25: =IF('accessori centralina'!C3=0,0,"") ->  | B25: =CONCATENATE(IF(DATOS!D7=9150,"valve connection on piston: on top, according to dwg. 9150",IF(DATOS!K14=1,"valve connection on piston: 200 mm from the bottom","valve connection on piston: 400 mm from the top")),", ",'calcoli vari'!B91) -> valve connection on piston: 200 mm from the bottom, with square flange
A26: ='accessori centralina'!F10*'accessori centralina'!C3 -> 0 | B26: Lower piston plate (MI plate)
A27: ='accessori centralina'!C16 -> 1 | B27: =CONCATENATE(IF(DATOS!D51="ELE","electronic ",""),"power unit model ",DATOS!D65,'calcoli vari'!B58,"; pump (l/min) ",DATOS!D45,"; static pressures (bar): Max = ",INT(DATOS!D39-0.5)+1,"; Min = ",INT(DATOS!D40-0.5)+1) -> power unit model MS-A/K; pump (l/min) 55; static pressures (bar): Max = 39; Min = 23
A28: =IF('accessori centralina'!C16=0,0,"") ->  | B28: =CONCATENATE("electrical motor: power (kW) ",'accessori centralina'!B18," (HP) ",centraline!F141,"; voltage ",'calcoli vari'!B50) -> electrical motor: power (kW) 6 (HP) 8; voltage 400/690 VAC, 50 Hz
A29: =IF('accessori centralina'!C16=0,0,"") ->  | B29: =CONCATENATE("starting",IF('accessori centralina'!F23=0," direct"," star-delta")) -> starting direct
A30: =IF(AND(LEFT(DATOS!D65,2)="HL",DATOS!K12<>2),"",0) -> 0 | B30: =IF(DATOS!D49=1,"single speed",IF(DATOS!D49=2,"double speed","ERRORE")) -> single speed
A31: ='accessori centralina'!G23*'accessori centralina'!C16 -> 0 | B31: star-delta valve
A32: =IF(AND('accessori centralina'!C16>0,DATOS!D52="D"),"",0) -> 0 | B32: =IF(DATOS!D52="D","Warning! Tank capacity is sufficient only for the circulating oil","") -> 
A33: =IF(OR(DATOS!D51="STD",'accessori centralina'!C16=0),0,"") -> 0 | B33: =CONCATENATE("CLRV valve (NTA-2 power supply voltage ",DATOS!D55,")") -> CLRV valve (NTA-2 power supply voltage 230 VAC)
A34: =IF(OR(DATOS!D51="ELE",'accessori centralina'!C16=0),0,"") ->  | B34: =CONCATENATE("valve coil voltage ",DATOS!H75) -> valve coil voltage 24 VDC + 12 VDC | F34: code
A35: =IF(OR(DATOS!D51="STD",'accessori centralina'!C16=0),0,"") -> 0 | B35: with emergency power supply input (+24, 0, -24 VDC) | F35: code
A36: =IF(AND('accessori centralina'!F22=1,'accessori centralina'!C16>0),"",'accessori centralina'!F22*'accessori centralina'!$C$16) -> 0 | B36: over size tank
A37: =offerta!A37 -> 0 | B37: =lingue!C274 -> emergency lowering valve 12 VDC for electronic power unit | F37: =offerta!F37 -> MICR.D/250-IN-MB
A38: =offerta!A38 -> 1 | B38: =CONCATENATE(lingue!C166," ",'accessori centralina'!E27) -> Pressure switch, 5-70 bar, NO+NC, wired as N.C. | F38: =offerta!F38 -> 5304/1
A39: =offerta!A39 -> 0 | B39: Pressure sensor CHD 100 (DINACELL) | F39: =offerta!F39 -> CHD-100
A40: =offerta!A40 -> 1 | B40: =IF(DATOS!D50="CIF","remote hand pump with 5 meter connection hoses","hand pump") -> hand pump | F40: =offerta!F40 -> POM.MAN.INT
A41: =offerta!A41 -> 0 | B41: oil heater 400W 230V for tank | F41: =offerta!F41 -> RIS.CON TER
A42: =offerta!A42 -> 0 | B42: oil heater 400W 400V for tank | F42: =offerta!F42 -> RIS.CON TE/400
A43: =offerta!A43 -> 0 | B43: oil heater 200W 230V for HL tank | F43: =offerta!F43 -> RIS.CON TE/HL
A44: =offerta!A44 -> 0 | B44: internal plate
A45: =offerta!A45 -> 1 | B45: exclusion pressure gauge tap En 81.2 | F45: =offerta!F45 -> 5377.1
A46: =offerta!A46 -> 0 | B46: tank arrangement for heat exchanger | F46: =offerta!F46 -> CASS.PRED.GAR
A47: =offerta!A47 -> 0 | B47: soft stop + screw #21 (for 15-250 l/min pumps) | F47: =offerta!F47 -> SOFT STOP 250
A48: =offerta!A48 -> 0 | B48: soft stop + screw #21 (for 300-380 l/min pumps) | F48: =offerta!F48 -> SOFT STOP 380/MO
A49: =offerta!A49 -> 0 | B49: soft stop + screw #21 (for 440-650 l/min pumps) | F49: =offerta!F49 -> SOFT STOP 650/MO
A50: =offerta!A50 -> 0 | B50: down levelling electrovalve (for 15 to 250 l/min pumps) | F50: =offerta!F50 -> MICR.D/250-IN
A51: =offerta!A51 -> 0 | B51: down levelling electrovalve (for 300 to 650 l/min pumps) | F51: =offerta!F51 -> MICR.D/650-IN
A52: =offerta!A52 -> 0 | B52: Micro levelling pump flow rate 20 L/M – power 3 HP | F52: =offerta!F52 -> MICR.COM20/3
A53: =offerta!A53 -> 0 | B53: motor protection amplifier | F53: 5001/3
A54: =IF(AND(A27>0,DATOS!K21=2),1,0) -> 0 | B54: power unit packaging with cardboard box and fumigated pallet
A55: =IF(AND(A27>0,DATOS!K21=3),1,0) -> 0 | B55: power unit packaging with full plywood crate
A56: =offerta!A56 -> 0 | B56: Steel pipe ø 35 x 2,5 (m 6) | F56: =offerta!F56 -> 5438 / P
A57: =offerta!A57 -> 0 | B57: Steel pipe ø 42 x 3 (m 6) | F57: =offerta!F57 -> 5439 / P
A58: =offerta!A58 -> 0 | B58: =CONCATENATE("Flexible hose 3/4"" straight-90°, length (m) ",'accessori vari'!C30) -> Flexible hose 3/4" straight-90°, length (m) 5
A59: =offerta!A59 -> 0 | B59: =CONCATENATE("Flexible hose 3/4"" straight-straight, length (m) ",'accessori vari'!C31) -> Flexible hose 3/4" straight-straight, length (m) 0
A60: =offerta!A60 -> 0 | B60: =CONCATENATE("Flexible hose 1"" straight-90°, length (m) ",'accessori vari'!C32) -> Flexible hose 1" straight-90°, length (m) 5
A61: =offerta!A61 -> 0 | B61: =CONCATENATE("Flexible hose 1"" straight-straight, length (m) ",'accessori vari'!C33) -> Flexible hose 1" straight-straight, length (m) 0
A62: =offerta!A62 -> 0 | B62: =CONCATENATE("Flexible hose 1"" 1/4 straight-90°, length (m) ",'accessori vari'!C34) -> Flexible hose 1" 1/4 straight-90°, length (m) 5
A63: =offerta!A63 -> 0 | B63: =CONCATENATE("Flexible hose 1"" 1/4 straight-straight, length (m) ",'accessori vari'!C35) -> Flexible hose 1" 1/4 straight-straight, length (m) 0
A64: =offerta!A64 -> 0 | B64: =CONCATENATE("Flexible hose 1"" 1/2 straight-90°, length (m) ",'accessori vari'!C36) -> Flexible hose 1" 1/2 straight-90°, length (m) 5
A65: =offerta!A65 -> 0 | B65: =CONCATENATE("Flexible hose 1"" 1/2 straight-straight, length (m) ",'accessori vari'!C37) -> Flexible hose 1" 1/2 straight-straight, length (m) 0
A66: =offerta!A66 -> 0 | B66: =CONCATENATE("Flexible hose 2"" straight-straight, length (m) ",'accessori vari'!C38) -> Flexible hose 2" straight-straight, length (m) 0
A67: =offerta!A67 -> 0 | B67: =CONCATENATE("Flexible hose 2"" straight-straight, length (m) ",'accessori vari'!C39) -> Flexible hose 2" straight-straight, length (m) 0
A68: =offerta!A68 -> 0 | B68: Hose to balance rupture valve ø 8 - m 5 | F68: =offerta!F68 -> 5425
A69: =offerta!A69 -> 0 | B69: Connection between hose and rupture valve (2 pieces) | F69: =offerta!F69 -> RACC.90/VP-MF
A70: =offerta!A70 -> 0 | B70: Connection between 2 hoses ø 8 - m 5 | F70: =offerta!F70 -> 5307/5
A71: =offerta!A71 -> 0 | B71: Straight connection ø 35 | F71: =offerta!F71 -> 5308
A72: =offerta!A72 -> 0 | B72: Straight connection ø 42 | F72: =offerta!F72 -> 5309
A73: =offerta!A73 -> 0 | B73: 3 way T connection 1" ¼ | F73: =offerta!F73 -> 5316
A74: =offerta!A74 -> 0 | B74: 3 way T connection 1" ½ x 1" ¼ x 1" ¼ | F74: =offerta!F74 -> RACC.T42+2/35
A75: =offerta!A75 -> 0 | B75: 3 way T connection 1" ½ | F75: =offerta!F75 -> 5317
A76: =offerta!A76 -> 0 | B76: 3 way Y connection 1" ½ x 1" ¼ x 1" ¼ | F76: =offerta!F76 -> 0696/2
A77: =offerta!A77 -> 0 | B77: 3 way Y connection 1" ½ | F77: =offerta!F77 -> 0696/1
A78: =offerta!A78 -> 0 | B78: 3 way Y connection 2" x 1" ½ x 1" ½ | F78: =offerta!F78 -> 0696
A79: =offerta!A79 -> 0 | B79: 3 way Y connection 2" | F79: =offerta!F79 -> 0696/3
A80: =offerta!A80 -> 0 | B80: Elbow connection 90 ° ø 35 | F80: =offerta!F80 -> 5310
A81: =offerta!A81 -> 0 | B81: Elbow connection 90 ° ø 42 | F81: =offerta!F81 -> 5311
A82: =offerta!A82 -> 0 | B82: Nipplo 1"1/4 for 3 way Y connection | F82: =offerta!F82 -> 5306
A83: =offerta!A83 -> 0 | B83: Nipplo 1"1/2 for 3 way Y connection | F83: =offerta!F83 -> 5307
A84: =offerta!A84 -> 0 | B84: Nipplo 2" for 3 way Y connection | F84: =offerta!F84 -> 5325
A85: =offerta!A85 -> 0 | B85: Fixation for hoses ¾", 1" and steel pipes ø 35 | F85: ='accessori vari'!C41 -> STAF.TUB.35
A86: =offerta!A86 -> 0 | B86: Fixation for steel pipe ø 42 | F86: ='accessori vari'!C42 -> STAF.TUB.42
A87: =offerta!A87 -> 0 | B87: Fixation for rubber hose 1" ¼ | F87: ='accessori vari'!C43 -> STAF.TU.1"1/4
A88: =offerta!A88 -> 0 | B88: Fixation for rubber hose 1" ½ | F88: ='accessori vari'!C44 -> STAF.TU.1"1/2
A89: =offerta!A89 -> 0 | B89: Fixation for rubber pipe 2" | F89: ='accessori vari'!C45 -> STAF.TU.2"G
A90: =offerta!A90 -> 0 | B90: Bracket - hose 1" 1/4 | F90: ='accessori vari'!C46 -> FAS/FLEX 1"1/4
A91: =offerta!A91 -> 0 | B91: Bracket - hose 1" 1/2 | F91: ='accessori vari'!C47 -> FAS/FLEX 1"1/2
A92: =offerta!A92 -> 0 | B92: Bracket - hose 2" | F92: ='accessori vari'!C48 -> FAS/FLEX 2"
A93: =offerta!A93 -> 0 | B93: oil recovery tank for piston, 5 liters | F93: =offerta!F93 -> TANICA R05 LT
A94: =offerta!A94 -> 0 | B94: Tie kit to screw ram in 2 pieces from ø 70 to ø 120 | F94: =offerta!F94 -> 0745
A95: =offerta!A95 -> 0 | B95: Tie kit to screw ram in 2 pieces from ø 130 to ø 200 | F95: =offerta!F95 -> 0747
A96: =offerta!A96 -> 0 | B96: =lingue!C114 -> Roll of Tar paper, length 10 m width 10 cm for underground pistons | F96: =offerta!F96 -> 5256/5
A97: =offerta!A97 -> 0 | B97: Complete roomless box for HL-300/AR tank | F97: =offerta!F97 -> 0946/300-COMPL.
A98: =offerta!A98 -> 0 | B98: Complete roomless box for HL-420/AR tank | F98: =offerta!F98 -> 0946/420-COMPL.
A99: =offerta!A99 -> 0 | B99: Complete roomless box for HL-300/AR tank (disassembled version) | F99: =offerta!F99 -> 0946/300-COMPL.SM.
A100: =offerta!A100 -> 0 | B100: Complete roomless box for HL-420/AR tank (disassembled version) | F100: =offerta!F100 -> 0946/420-COMPL.SM.
A101: =offerta!A101 -> 0 | B101: =lingue!C278 -> Complete roomless box for HL/OIL-265 tank | F101: =offerta!F101 -> 0946/HL-OIL
A102: =offerta!A102 -> 0 | B102: Roomless Box to be assembled on tank CM-320/A | F102: =offerta!F102 -> 0884/CM3-A-SC
A103: =offerta!A103 -> 0 | B103: =lingue!C279 -> Roomless Box MI-2000 for CM-320/AR color RAL 7035 | F103: =offerta!F103 -> 0884/CM3R2A-150
A104: =offerta!A104 -> 0 | B104: =lingue!C117 -> Roomless Box MI-2000 for CM-320/A color RAL 7035 | F104: =offerta!F104 -> 0884/CM32A-150
A105: =offerta!A105 -> 0 | B105: =lingue!C280 -> Roomless Box MI-2000 for CM-320/A color RAL 7035 (disassembled) | F105: =offerta!F105 -> 0884/CM32A-150.SM
A106: =offerta!A106 -> 0 | B106: Roomless Box MI-2000 for CM color RAL 7035 | F106: =offerta!F106 -> 0884/CMVMO2A-150
A107: =offerta!A107 -> 0 | B107: Roomless Box MI-2000 for CA color RAL 7035 | F107: =offerta!F107 -> 0884/CAVMO2A
A108: =offerta!A108 -> 0 | B108: Loctite 5900 (for Box MI-2000) | F108: =offerta!F108 -> 5123/6
A109: =offerta!A109 -> 0 | B109: Heat exchanger SCAMB. 5/10 with 2 rubber pipe 3 m | F109: =offerta!F109 -> SCAMB.5/10M-3
A110: =offerta!A110 -> 0 | B110: Heat exchanger SCAMB. 20 with 2 rubber pipe 3m | F110: =offerta!F110 -> SCAMB.20M-3
A111: =offerta!A111 -> 0 | B111: Heat exchanger SCAMB. 30 with 2 rubber pipe 3m | F111: =offerta!F111 -> SCAMB.30M-3
A112: =offerta!A112 -> 0 | B112: Heat exchanger SCAMB.5/10 with control box, 2 rubber pipe 3m | F112: =offerta!F112 -> Scase 5/10
A113: =offerta!A113 -> 0 | B113: Heat exchanger SCAMB.20 with control box, 2 rubber pipe 3m | F113: =offerta!F113 -> Scase 20
A114: =offerta!A114 -> 0 | B114: Heat exchanger SCAMB.30 with control box, 2 rubber pipe 3m | F114: =offerta!F114 -> Scase 30
A115: =offerta!A115 -> 0 | B115: Technical documentation (jack calculation) for final inspection
A116: =offerta!A116 -> 0 | B116: Programming keyboard for Electronic power unit | F116: ='accessori vari'!C72 -> MINITERMINAL C
A117: =offerta!A117 -> 0 | B117: set of gasket valve block HL | F117: =offerta!F117 -> S.GUA.DIS/HL
A118: =offerta!A118 -> 0 | B118: set of gasket valve block 15-250 l/m | F118: =offerta!F118 -> S.GUA.DIS/250
A119: =offerta!A119 -> 0 | B119: set of gasket valve block 300-650 l/m | F119: =offerta!F119 -> S.GUA.DIS/650
A120: =offerta!A120 -> 0 | B120: xxx | F120: =offerta!F120 -> 0
A121: =offerta!A121 -> 0 | B121: xxx | F121: =offerta!F121 -> 0
A122: =offerta!A122 -> 0 | B122: reduction rupture valve 1"1/2-1"1/4 side hose | F122: =offerta!F122 -> 5320/COMPLETO
A123: =offerta!A123 -> 0 | B123: reduction between rupture valve 1" and hose 3/4" | F123: =offerta!F123 -> 5320/4
A124: =offerta!A124 -> 0 | B124: xxx
A125: =offerta!A125 -> 0 | B125: ram head gasket
A126: =offerta!A126 -> 0 | B126: set of jack gasket
A127: ='accessori vari'!A6 -> 0 | B127: Elbow connection 90 ° ø 28 vertical exit power unit | F127: ='accessori vari'!C6 -> KIT.RACC/VER28
A128: ='accessori vari'!A7 -> 0 | B128: Elbow connection 90 ° ø 35 vertical exit power unit | F128: ='accessori vari'!C7 -> KIT.RACC/VER35
A129: ='accessori vari'!A8 -> 0 | B129: Elbow connection 90 ° ø 42 vertical exit power unit | F129: ='accessori vari'!C8 -> KIT.RACC/VER42
A130: ='accessori vari'!A9 -> 0 | B130: Elbow connection 90 ° ø 35 horizontal exit power unit | F130: ='accessori vari'!C9 -> KIT.RACC/ORR35
A131: ='accessori vari'!A10 -> 0 | B131: Elbow connection 90 ° ø 42 horizontal exit power unit | F131: ='accessori vari'!C10 -> KIT.RACC/ORR42
A132: =IF(DATOS!K16=2,1,0) -> 0 | B132: =CONCATENATE("KMI kit for A.3 amend. inside power unit, with ",DATOS!D30," m hose; voltage ",DATOS!D29) -> KMI kit for A.3 amend. inside power unit, with 1 m hose; voltage 24 VDC
A133: =IF(AND(A132=1,DATOS!D13>1),1,0) -> 0 | B133: =CONCATENATE("piloted stop valve ",INDEX(centraline!C132:F132,1,'accessori centralina'!G21)," with fittings on tank for KMI and twin pistons") -> piloted stop valve 1"1/4 with fittings on tank for KMI and twin pistons | F133: ='calcoli vari'!B10 -> KIT.RAC/35KMI-TAN
A134: =IF(DATOS!K16=3,1,0) -> 0 | B134: =CONCATENATE('calcoli vari'!B112," device for A.3, with coil ",DATOS!H76) -> HM-SV 150 B device for A.3, with coil 110 VDC + 12 VDC | F134: ='calcoli vari'!B124 -> Z000009AA-A0
B136: =IF(A15=1,"Price Hydraulic *","Price Hydraulic for each plant") -> Price Hydraulic * | E136: =IF(NOTE!J31=0,'accessori centralina'!H68,"WARNING! CHECK 'NOTE' SHEET") ->  | F136: =IF(NOTE!J31=0,"EUR","") -> EUR
A137: ='accessori centralina'!F71 -> 0 | B137: =CONCATENATE("column guide type ",'accessori centralina'!C71," length/each m ",'accessori centralina'!D71) -> column guide type aa length/each m 11 | E137: =offerta!E138 -> 100.54542 | F137: EUR/m
A138: ='accessori centralina'!F72 -> 0 | B138: fish plate kits | E138: =offerta!E139 -> 100.245749 | F138: EUR/each
A139: ='accessori centralina'!F73 -> 0 | B139: =CONCATENATE("clips, type ",'accessori centralina'!C73," with locknut") -> clips, type Tx with locknut | E139: =offerta!E140 -> 100 | F139: EUR/each
A140: =IF(A138=0,0,"") -> 0 | D140: Total amount | E140: ='accessori centralina'!H75 ->  | F140: EUR
B141: price quoted | D141: Ex Works
B142: Delivery time * | D142: 3/4 weeks
B143: Quotation validity | D143: 30 days
B144: Payment | D144: same in use
B147: =CONCATENATE("oil to be purchased, needed for the lift to work (excluding hoses) ",ROUND(DATOS!D81,1)," (liters)") -> oil to be purchased, needed for the lift to work (excluding hoses) 44 (liters)
B149: Best Regards
B150: D. Caprioli
B151: davide.caprioli@moris.it
A153: * | B153: Delivery time in August or second second half of Dec. shall be confirmed after the receipt of the order.
B154: Cylinders, if more than 2, will be packaged in re-usable U-brackets, with a cost of 30 EUR per package
H159: =DATOS!D2 -> V.14

Sheet NOTE (hidden)
A1: ANOMALIE RISCONTRATE - ERROR CHECK
A3: =IF(J3=0,"","Cassone maggiorato non disponibile con centralina elettronica o centralina in fossa") ->  | J3: =IF(AND(OR(DATOS!D51="ELE",DATOS!D50="CIF"),'accessori centralina'!F22<>0),1,0) -> 0 | K3: centralina elettronica/centralina in fossa e cassone maggiorato
A4: =IF(J3=0,"","Oversize tank not available with electronic valve or power unit in the tank") -> 
A5: =IF(J5=0,"","Centralina in fossa solo per 55-250 litri/min") ->  | J5: =IF(AND(OR(DATOS!D45<55,DATOS!D45>250),DATOS!D50="CIF"),1,0) -> 0 | K5: CIF e portata pompa
A6: =IF(J5=0,"","Power unit in the pit available only for 55-250 lit/min") -> 
A7: =IF(J7=0,"","La pressione statica massima deve essere pari inferiore a 45 bar") ->  | J7: =IF(DATOS!D39>45,1,0) -> 0 | K7: pressione statica massima
A8: =IF(J7=0,"","Max static pressure must be equal or lower than 45 bar") -> 
A9: =IF(J9=0,"","La pressione statica a vuoto deve essere pari o superiore a 12 bar") ->  | J9: =IF(DATOS!D40<12,1,0) -> 0 | K9: pressione statica minima
A10: =IF(J9=0,"","Minimum pressure with empty car must be equal or greater than 12 bar") -> 
A11: =IF(J11=0,"","La lunghezza massima della singola verga di tubo è di 11 metri. Contattate MORIS") ->  | J11: =IF(DATOS!D22/DATOS!D14>11000,1,0) -> 0 | K11: lunghezza MAX verga
A12: =IF(J11=0,"","The maximum length of each piston section is 11 meters. Please contact MORIS") -> 
A13: =IF(J13=0,"","Stabilità non verificata; incrementare diametro o spessore pistone") ->  | J13: =IF(DATOS!D38<2,1,0) -> 0 | K13: coefficiente di stabilità
A14: =IF(J13=0,"","Stability is not verified; please increase piston diameter or thickness") -> 
A15: =IF(J15=0,"","Dispositivo Guida Stelo solo per pistoni in taglia e diam. da 80 a 160 mm") ->  | J15: =IF(AND(DATOS!D19=2,OR(DATOS!D7<>9130,DATOS!D24<80,DATOS!D24>160)),1,0) -> 0 | K15: guida stelo: solo su certi diametri e 2:1
A16: =IF(J15=0,"","Guided Ram device only for roped elevators and diam. 80 to 160 mm") -> 
A17: =IF(J17=0,"","Giunzione pistone o anello di protezione stelo solo per diam. 70 mm e superiori") ->  | J17: =IF(AND(DATOS!D24<=60,OR(DATOS!D14>2,DATOS!D26>0)),1,0) -> 0 | K17: anello protezione e giunzione non per 50 e 60 mm
A18: =IF(J17=0,"","Piston junctions or rod protection ring not vailable for 50 and 60 mm pistons") -> 
A19: =IF(J19=0,"","anello di protezione stelo disponibile solo per pisotni in 1 pezzo") ->  | J19: =IF(DATOS!D14*DATOS!D26>1,1,0) -> 0 | K19: anello di protezione non in 2 pezzi
A20: =IF(J19=0,"","rod protection ring available for single-section pistons") -> 
A21: =IF(J21=0,"","pistone diretto centrale: attacco solo in alto") ->  | J21: =IF(AND(DATOS!D7=9150,DATOS!K14=1),1,0) -> 0 | K21: pistone 9150 con attacco in basso
A22: =IF(J21=0,"","underground 1:1 piston: the oil inlet is only on top") -> 
A23: =IF(J23=0,"","imballo scelto non è disponibile per il modello della centralina") ->  | J23: =IF(OR('calcoli vari'!B74="x",'calcoli vari'!B75="x"),1,0) -> 0 | K23: imballo non disponibile per centralina scelta
A24: =IF(J23=0,"","the selected power pack packaging is not available for the selected tank") -> 
A25: =IF(J25=0,"","la pressione statica minima è troppo bassa per il funzionamento della door lock valve") ->  | J25: =IF(AND(DATOS!K16=3,'calcoli vari'!B104=0),1,0) -> 0 | K25: pressione minima troppo bassa per door lock valve
A26: =IF(J25=0,"","the minimum static pressure is too low for the door lock valve operations") -> 
A27: =IF(J27=0,"","la door lock valve HMSV/HSV è utilizzabile fino a 440 l/min; contattare MORIS") ->  | J27: =IF(AND(DATOS!K16=3,DATOS!D45>440),1,0) -> 0 | K27: portata pompa troppo alta per HSV
A28: =IF(J27=0,"","the HMSV/HSV door lock valve is suitable up to 440 l/min; contact MORIS") -> 
J31: =SUM(J3:J30) -> 0 | K31: errori

Sheet calcoli vari
A1: Qf | B1: =IF(OR(DATOS!D7="MCE",DATOS!D7="MCS"),INDEX(database1!C103:Q104,'accessori centralina'!J7,DATOS!K2),IF(DATOS!D7="CRA",INDEX(database1!C120:Q120,'accessori centralina'!J7,DATOS!K2),INDEX(database1!C84:Q86,'accessori centralina'!J7,DATOS!K2))) -> 200
A5: KMI | B5: 170
A6: tubazioni | B6: =INDEX(B61:B70,DATOS!K19) -> 7
A7: doppio pistone | B7: =offerta!A133*INDEX(centraline!C134:F134,1,B9) -> 0
A8: totale | B8: =IF(DATOS!D28="KMI",SUM(B5:B7),0) -> 0
A9: indice VB | B9: =MATCH('accessori centralina'!B19,centraline!B131:F131,1) -> 1
A10: codice doppio pistone | B10: =INDEX(centraline!C133:F133,1,B9) -> KIT.RAC/35KMI-TAN
A11: L tubo KMI | B11: =IF(DATOS!D13=1,ODD('accessori vari'!A30*'accessori vari'!C30+'accessori vari'!A31*'accessori vari'!C31+'accessori vari'!A32*'accessori vari'!C32+'accessori vari'!A33*'accessori vari'!C33+'accessori vari'!A34*'accessori vari'!C34+'accessori vari'!A35*'accessori vari'!C35+'accessori vari'!A36*'accessori vari'!C36+'accessori vari'!A37*'accessori vari'!C37+'accessori vari'!A38*'accessori vari'!C38+'accessori vari'!A39*'accessori vari'!C39+'accessori vari'!A4*6+'accessori vari'!A5*6),1) -> 1
A13: cassone | B13: peso
A14: HL-300 | B14: 50
A15: HL-420 | B15: 55
A16: HL-420-2V | B16: 85
A17: HL/OIL-265 | B17: 55
A18: HL/OIL-265-2V | B18: 85
A19: MHL-S | B19: 22
A20: XL-OIL | B20: 55
A21: CM-320 | B21: 125
A22: CM | B22: 140
A23: CA | B23: 200
A24: CA/A | B24: 315
A25: CG | B25: 360
A26: CIF-2 | B26: 160
A27: CE-320/MB | B27: 80
A28: CE/CM-MB | B28: 106
A29: CE/CA-MB | B29: 138
A30: CE/CIF-2-MB | B30: 160
A31: indice | B31: =MATCH(DATOS!D65,A14:A30,0) -> 
A34: tensione linea | B34: tensione motore
A35: 230 VAC, 50 Hz mono | B35: 230 VAC, 50 Hz mono
A36: 240 VAC, 50 Hz mono | B36: 240 VAC, 50 Hz mono
A37: 230x3 VAC, 50 Hz | B37: 230/400 VAC, 50 Hz
A38: 400x3 VAC, 50 Hz | B38: =IF(DATOS!D44="Lift","400/690 VAC, 50 Hz","230/400 VAC, 50 Hz") -> 400/690 VAC, 50 Hz
A39: 415x3 VAC, 50 Hz | B39: =IF(DATOS!D44="Lift","415/720 VAC, 50 Hz","240/415 VAC, 50 Hz") -> 415/720 VAC, 50 Hz
A42: tensione speciale | B42: extra prezzo
A43: fino a 9,5 kW | B43: =IF(DATOS!$D$59<=9.5,1,0)*27 -> 27
A44: da 12 a 18,5 kW | B44: =IF(AND(DATOS!$D$59>9.5,DATOS!$D$59<=18.5),1,0)*35 -> 0
A45: da 22,5 a 37 kW | B45: =IF(AND(DATOS!$D$59>18.5,DATOS!$D$59<=37),1,0)*70 -> 0
A46: da 45 kW a 60 kW | B46: =IF(AND(DATOS!$D$59>37,DATOS!$D$59<75),1,0)*90 -> 0
A47: 75 kW | B47: =IF(DATOS!$D$59=75,1,0)*100 -> 0
A48: extracosto | B48: =IF(DATOS!D46=DATOS!AF3,SUM(B43:B47)*'accessori centralina'!C16,0) -> 0
A50: tensione scelta | B50: =INDEX(B35:B39,DATOS!K18,1) -> 400/690 VAC, 50 Hz
C54: suffisso
A55: armadio HL? | B55: =IF(SUM('accessori vari'!A53:A57)>0,1,0) -> 0 | C55: =IF(AND(B55=1,LEFT(DATOS!D65,2)="HL"),"/AR","") -> 
A56: armadio centralina CM3? | B56: =IF(SUM('accessori vari'!A58:A63)>0,1,0) -> 0 | C56: =IF(AND(B56=1,DATOS!D65="CM-320"),CONCATENATE("/A",IF('accessori vari'!A59=1,"R","")),"") -> 
A58: suffisso centralina per armadio | B58: =CONCATENATE(C55,C56) -> 
A60: L tubo KMI | B60: prezzo
A61: 0 | B61: 0
A62: 1 | B62: 7
A63: =A62+2 -> 3 | B63: 14
A64: =A63+2 -> 5 | B64: =B63+4 -> 18
A65: 7 | B65: =B64+4 -> 22
A66: 9 | B66: 26
A67: 11 | B67: 30
A68: 13 | B68: 34
A69: 15 | B69: 38
A70: 17 | B70: 42
A71: indice | B71: =MATCH(B11,A61:A70,0) -> 2
A73: tipo centralina | B73: ='accessori centralina'!B17 -> MS-A/K
A74: costo imballo cartone | B74: =IF(DATOS!K21=2,INDEX(centraline!B124:M124,'accessori centralina'!J21),0) -> 0
A75: costo imballo legno | B75: =IF(DATOS!K21=3,INDEX(centraline!B125:M125,'accessori centralina'!J21),0) -> 0
A76: costo imballo | B76: =B74+B75 -> 0
A79: portata | B79: 8 | C79: 24 | D79: 151 | E79: 381 | F79: 651
A80: valvola di blocco | C80: =IF('accessori centralina'!B17="HL",B93,D93) -> 1"1/4 | D80: =IF(OR('accessori centralina'!B17="HL",('accessori vari'!A32+'accessori vari'!A33)>0),'calcoli vari'!C93,'calcoli vari'!D93) -> 1"1/4 | E80: 1"1/2 | F80: 2"
A81: portata nominale valvola | B81: indice
A82: ='accessori centralina'!B19*DATOS!D43/DATOS!D13 -> 55 | B82: =MATCH(A82,B79:F79,1) -> 2
A85: attatto valvola di blocco | B85: =INDEX(C80:G80,1,B82) -> 1"1/4
A86: indice | B86: =MATCH(B85,B93:F93,0) -> 3
A87: modello valvola di blocco | B87: =INDEX(B94:F94,B86) -> 1"1/4
A88: attacco tubo IT | B88: =INDEX(B95:F95,B86) -> 1"1/4 metrico (M45x2)
A89: attacco tubo EN | B89: =INDEX(B96:F96,B86) -> 1"1/4 metric (M45x2)
A90: attacco pistone IT | B90: =INDEX(B97:F97,B86) -> quadrato
A91: attacco pistone EN | B91: =INDEX(B98:F98,B86) -> with square flange
A93: attacco valvola | B93: 3/4" | C93: 1" | D93: 1"1/4 | E93: 1"1/2 | F93: 2"
A94: modello valvola | B94: 3/4" | C94: 1"1/4 | D94: 1"1/4 | E94: 1"1/2 | F94: 2"
A95: connessione tubo IT | B95: 3/4" metrico (M30x2) | C95: 1" metrico (M36x2) | D95: 1"1/4 metrico (M45x2) | E95: 1"1/2 metrico (M52x2) | F95: G 2" BSP
A96: connessione tubo EN | B96: 3/4" metric (M30x2) | C96: 1" metric (M36x2) | D96: 1"1/4 metric (M45x2) | E96: 1"1/2 metric (M52x2) | F96: G 2" BSP
A97: attacco pistone IT | B97: quadrato | C97: quadrato | D97: quadrato | E97: quadrato | F97: rotondo 2"
A98: attacco pistone EN | B98: with square flange | C98: with square flange | D98: with square flange | E98: with square flange | F98: cylindrical 2"
A101: Door Lock Valve
A102: portata pompa | B102: =DATOS!D45 -> 55
A103: pressione statica minima | B103: =DATOS!D40 -> 23.39178238
A104: la pressione è corretta? | B104: =IF(OR(AND(B105=150,B103>=13),AND(B105=440,B103>=17)),1,0) -> 1
A105: 150 o 440? | B105: =IF(B102<=150,150,440) -> 150
A106: centralina elettronica | B106: =IF(DATOS!D51="ELE",1,0) -> 0
A107: CIF-2 | B107: =IF(DATOS!D50="CIF",1,0) -> 0
A108: > 250 l/min | B108: =IF(B102>250,1,0) -> 0
A109: > 440 l/min | B109: =IF(B102>440,1,0) -> 0
A110: M o B | B110: =IF(DATOS!K23=1,"B","M") -> B
A111: macro-tipo | B111: =IF((B106+B107+B108)>0,"HSV","HM-SV") -> HM-SV
A112: dicitura completa | B112: =IF(B109>0,"ERRORE",CONCATENATE(B111," ",B105," ",B110)) -> HM-SV 150 B
A113: costo | B113: =IF(DATOS!K16=3,150,0) -> 0
A114: tipo | B114: codice
A115: HM-SV 150 M | B115: Z000008AA-A0
A116: HM-SV 150 B | B116: Z000009AA-A0
A117: HM-SV 440 M | B117: Z000010AA-A0
A118: HM-SV 440 B | B118: Z000011AA-A0
A119: HSV 150 M | B119: 8690503
A120: HSV 150 B | B120: 8690505
A121: HSV 440 M | B121: 8690504
A122: HSV 440 B | B122: 8690506
A123: indice | B123: =MATCH(B112,A115:A122,0) -> 2
A124: codice | B124: =INDEX(B115:B122,B123) -> Z000009AA-A0

Sheet centraline
L1: potencia
A2: portata | B2: 0.75 | C2: 1.1 | D2: 1.5 | E2: 1.8 | F2: 2 | G2: 2.2 | H2: 2.5 | I2: 3 | J2: 3.3 | K2: 3.7 | L2: 4.5 | M2: 4.8 | N2: 6 | O2: 7.5 | P2: 9.5 | Q2: 12 | R2: 15 | S2: 18.5 | T2: 22.5 | U2: 30 | V2: 37 | W2: 45 | X2: 60 | Y2: 75
A3: 55CM | B3: x | C3: x | D3: x | E3: x | F3: x | G3: x | H3: x | I3: x | J3: x | K3: x | L3: =D335 -> 1597 | M3: x | N3: =D336 -> 1617 | O3: x | P3: x | Q3: x | R3: x | S3: x | T3: x | U3: x | V3: x | W3: x | X3: x | Y3: x
A4: 75CM | B4: x | C4: x | D4: x | E4: x | F4: x | G4: x | H4: x | I4: x | J4: x | K4: x | L4: =D337 -> 1597 | M4: x | N4: =D338 -> 1617 | O4: =D339 -> 1653 | P4: x | Q4: x | R4: x | S4: x | T4: x | U4: x | V4: x | W4: x | X4: x | Y4: x
A5: 100CM | B5: x | C5: x | D5: x | E5: x | F5: x | G5: x | H5: x | I5: x | J5: x | K5: x | L5: =D340 -> 1601 | M5: x | N5: =D341 -> 1637 | O5: =D342 -> 1653 | P5: =D343 -> 1680 | Q5: x | R5: x | S5: x | T5: x | U5: x | V5: x | W5: x | X5: x | Y5: x
A6: 125CM | B6: x | C6: x | D6: x | E6: x | F6: x | G6: x | H6: x | I6: x | J6: x | K6: x | L6: x | M6: x | N6: =D344 -> 1637 | O6: =D345 -> 1653 | P6: =D346 -> 1680 | Q6: =D347 -> 1722 | R6: x | S6: x | T6: x | U6: x | V6: x | W6: x | X6: x | Y6: x
A7: 150CM | B7: x | C7: x | D7: x | E7: x | F7: x | G7: x | H7: x | I7: x | J7: x | K7: x | L7: x | M7: x | N7: =D348 -> 1637 | O7: =D349 -> 1653 | P7: =D350 -> 1680 | Q7: =D351 -> 1722 | R7: =D352 -> 1749 | S7: x | T7: x | U7: x | V7: x | W7: x | X7: x | Y7: x
A8: 180CM | B8: x | C8: x | D8: x | E8: x | F8: x | G8: x | H8: x | I8: x | J8: x | K8: x | L8: x | M8: x | N8: x | O8: x | P8: =D353 -> 1972 | Q8: =D354 -> 2017 | R8: =D355 -> 2047 | S8: =D356 -> 2081 | T8: x | U8: x | V8: x | W8: x | X8: x | Y8: x
A9: 210CM | B9: x | C9: x | D9: x | E9: x | F9: x | G9: x | H9: x | I9: x | J9: x | K9: x | L9: x | M9: x | N9: x | O9: x | P9: =D357 -> 1972 | Q9: =D358 -> 2017 | R9: =D359 -> 2047 | S9: =D360 -> 2081 | T9: x | U9: x | V9: x | W9: x | X9: x | Y9: x
A10: 55CE/CM-MB | B10: x | C10: x | D10: x | E10: x | F10: x | G10: x | H10: x | I10: x | J10: x | K10: x | L10: =D585 -> 2461 | M10: x | N10: =D586 -> 2479 | O10: x | P10: x | Q10: x | R10: x | S10: x | T10: x | U10: x | V10: x | W10: x | X10: x | Y10: x
A11: 75CE/CM-MB | B11: x | C11: x | D11: x | E11: x | F11: x | G11: x | H11: x | I11: x | J11: x | K11: x | L11: =D587 -> 2461 | M11: x | N11: =D588 -> 2479 | O11: =D589 -> 2539 | P11: x | Q11: x | R11: x | S11: x | T11: x | U11: x | V11: x | W11: x | X11: x | Y11: x
A12: 100CE/CM-MB | B12: x | C12: x | D12: x | E12: x | F12: x | G12: x | H12: x | I12: x | J12: x | K12: x | L12: =D590 -> 2527 | M12: x | N12: =D591 -> 2563 | O12: =D592 -> 2579 | P12: =D593 -> 2606 | Q12: x | R12: x | S12: x | T12: x | U12: x | V12: x | W12: x | X12: x | Y12: x
A13: 125CE/CM-MB | B13: x | C13: x | D13: x | E13: x | F13: x | G13: x | H13: x | I13: x | J13: x | K13: x | L13: x | M13: x | N13: =D595 -> 2563 | O13: =D596 -> 2579 | P13: =D597 -> 2606 | Q13: =D598 -> 2648 | R13: x | S13: x | T13: x | U13: x | V13: x | W13: x | X13: x | Y13: x
A14: 150CE/CM-MB | B14: x | C14: x | D14: x | E14: x | F14: x | G14: x | H14: x | I14: x | J14: x | K14: x | L14: x | M14: x | N14: =D600 -> 2563 | O14: =D601 -> 2579 | P14: =D602 -> 2606 | Q14: =D603 -> 2648 | R14: =D604 -> 2675 | S14: x | T14: x | U14: x | V14: x | W14: x | X14: x | Y14: x
A15: 180CE/CM-MB | B15: x | C15: x | D15: x | E15: x | F15: x | G15: x | H15: x | I15: x | J15: x | K15: x | L15: x | M15: x | N15: x | O15: x | P15: =D605 -> 2904 | Q15: =D606 -> 2948 | R15: =D607 -> 2977 | S15: =D608 -> 3012 | T15: x | U15: x | V15: x | W15: x | X15: x | Y15: x
A16: 210CE/CM-MB | B16: x | C16: x | D16: x | E16: x | F16: x | G16: x | H16: x | I16: x | J16: x | K16: x | L16: x | M16: x | N16: x | O16: x | P16: =D609 -> 2904 | Q16: =D610 -> 2948 | R16: =D611 -> 2977 | S16: =D612 -> 3012 | T16: x | U16: x | V16: x | W16: x | X16: x | Y16: x
A17: 15CM-320M | B17: x | C17: x | D17: =D288 -> 1602 | E17: x | F17: x | G17: =D289 -> 1632 | H17: x | I17: x | J17: x | K17: x | L17: x | M17: x | N17: x | O17: x | P17: x | Q17: x | R17: x | S17: x | T17: x | U17: x | V17: x | W17: x | X17: x | Y17: x
A18: 23CM-320M | B18: x | C18: x | D18: =D290 -> 1602 | E18: x | F18: x | G18: =D291 -> 1670 | H18: x | I18: =D292 -> 1712 | J18: x | K18: x | L18: x | M18: x | N18: x | O18: x | P18: x | Q18: x | R18: x | S18: x | T18: x | U18: x | V18: x | W18: x | X18: x | Y18: x
A19: 30CM-320M | B19: x | C19: x | D19: x | E19: x | F19: x | G19: =D292 -> 1712 | H19: x | I19: =D293 -> 1730 | J19: x | K19: =D294 -> 1772 | L19: x | M19: x | N19: x | O19: x | P19: x | Q19: x | R19: x | S19: x | T19: x | U19: x | V19: x | W19: x | X19: x | Y19: x
A20: 35CM-320M | B20: x | C20: x | D20: x | E20: x | F20: x | G20: =D293 -> 1730 | H20: x | I20: =D294 -> 1772 | J20: x | K20: =D295 -> 1807 | L20: x | M20: x | N20: x | O20: x | P20: x | Q20: x | R20: x | S20: x | T20: x | U20: x | V20: x | W20: x | X20: x | Y20: x
A21: 55CM-320M | B21: x | C21: x | D21: x | E21: x | F21: x | G21: x | H21: x | I21: =D296 -> 1772 | J21: x | K21: =D297 -> 1807 | L21: x | M21: =D298 -> 1890 | N21: =D299 -> 2002 | O21: x | P21: x | Q21: x | R21: x | S21: x | T21: x | U21: x | V21: x | W21: x | X21: x | Y21: x
A22: 75CM-320M | B22: x | C22: x | D22: x | E22: x | F22: x | G22: x | H22: x | I22: x | J22: x | K22: =D300 -> 1807 | L22: x | M22: =D301 -> 1890 | N22: =D302 -> 2002 | O22: x | P22: x | Q22: x | R22: x | S22: x | T22: x | U22: x | V22: x | W22: x | X22: x | Y22: x
A23: 15CM-320 | B23: x | C23: x | D23: x | E23: x | F23: =D307 -> 1512 | G23: x | H23: x | I23: x | J23: x | K23: x | L23: x | M23: x | N23: x | O23: x | P23: x | Q23: x | R23: x | S23: x | T23: x | U23: x | V23: x | W23: x | X23: x | Y23: x
A24: 23CM-320 | B24: x | C24: x | D24: x | E24: x | F24: =D308 -> 1512 | G24: x | H24: x | I24: =D309 -> 1529 | J24: x | K24: x | L24: x | M24: x | N24: x | O24: x | P24: x | Q24: x | R24: x | S24: x | T24: x | U24: x | V24: x | W24: x | X24: x | Y24: x
A25: 30CM-320 | B25: x | C25: x | D25: x | E25: x | F25: =D309 -> 1529 | G25: x | H25: x | I25: =D310 -> 1523 | J25: x | K25: x | L25: =D311 -> 1529 | M25: x | N25: x | O25: x | P25: x | Q25: x | R25: x | S25: x | T25: x | U25: x | V25: x | W25: x | X25: x | Y25: x
A26: 35CM-320 | B26: x | C26: x | D26: x | E26: x | F26: =D310 -> 1523 | G26: x | H26: x | I26: =D311 -> 1529 | J26: x | K26: x | L26: =D312 -> 1535 | M26: x | N26: x | O26: x | P26: x | Q26: x | R26: x | S26: x | T26: x | U26: x | V26: x | W26: x | X26: x | Y26: x
A27: 55CM-320 | B27: x | C27: x | D27: x | E27: x | F27: x | G27: x | H27: x | I27: x | J27: x | K27: x | L27: =D313 -> 1535 | M27: x | N27: =D314 -> 1553 | O27: x | P27: x | Q27: x | R27: x | S27: x | T27: x | U27: x | V27: x | W27: x | X27: x | Y27: x
A28: 75CM-320 | B28: x | C28: x | D28: x | E28: x | F28: x | G28: x | H28: x | I28: x | J28: x | K28: x | L28: =D315 -> 1535 | M28: x | N28: =D316 -> 1553 | O28: =D317 -> 1613 | P28: x | Q28: x | R28: x | S28: x | T28: x | U28: x | V28: x | W28: x | X28: x | Y28: x
A29: 100CM-320 | B29: x | C29: x | D29: x | E29: x | F29: x | G29: x | H29: x | I29: x | J29: x | K29: x | L29: =D318 -> 1601 | M29: x | N29: =D319 -> 1637 | O29: =D320 -> 1653 | P29: =D321 -> 1680 | Q29: x | R29: x | S29: x | T29: x | U29: x | V29: x | W29: x | X29: x | Y29: x
A30: 125CM-320 | B30: x | C30: x | D30: x | E30: x | F30: x | G30: x | H30: x | I30: x | J30: x | K30: x | L30: x | M30: x | N30: =D322 -> 1637 | O30: =D323 -> 1653 | P30: =D324 -> 1680 | Q30: =D325 -> 1722 | R30: x | S30: x | T30: x | U30: x | V30: x | W30: x | X30: x | Y30: x
A31: 150CM-320 | B31: x | C31: x | D31: x | E31: x | F31: x | G31: x | H31: x | I31: x | J31: x | K31: x | L31: x | M31: x | N31: =D326 -> 1637 | O31: =D327 -> 1653 | P31: =D328 -> 1680 | Q31: =D329 -> 1722 | R31: =D330 -> 1749 | S31: x | T31: x | U31: x | V31: x | W31: x | X31: x | Y31: x
A32: 15CE-320/MB | B32: x | C32: x | D32: x | E32: x | F32: =D550 -> 2438 | G32: x | H32: x | I32: =D551 -> 2454 | J32: x | K32: x | L32: x | M32: x | N32: x | O32: x | P32: x | Q32: x | R32: x | S32: x | T32: x | U32: x | V32: x | W32: x | X32: x | Y32: x
A33: 23CE-320/MB | B33: x | C33: x | D33: x | E33: x | F33: =D552 -> 2438 | G33: x | H33: x | I33: =D553 -> 2454 | J33: x | K33: x | L33: =D554 -> 2461 | M33: x | N33: x | O33: x | P33: x | Q33: x | R33: x | S33: x | T33: x | U33: x | V33: x | W33: x | X33: x | Y33: x
A34: 35CE-320/MB | B34: x | C34: x | D34: x | E34: x | F34: =D555 -> 2449 | G34: x | H34: x | I34: =D556 -> 2454 | J34: x | K34: x | L34: =D557 -> 2461 | M34: x | N34: x | O34: x | P34: x | Q34: x | R34: x | S34: x | T34: x | U34: x | V34: x | W34: x | X34: x | Y34: x
A35: 55CE-320/MB | B35: x | C35: x | D35: x | E35: x | F35: x | G35: x | H35: x | I35: =D558 -> 2454 | J35: x | K35: x | L35: =D559 -> 2461 | M35: x | N35: =D560 -> 2479 | O35: x | P35: x | Q35: x | R35: x | S35: x | T35: x | U35: x | V35: x | W35: x | X35: x | Y35: x
A36: 75CE-320/MB | B36: x | C36: x | D36: x | E36: x | F36: x | G36: x | H36: x | I36: =D561 -> 2454 | J36: x | K36: x | L36: =D562 -> 2461 | M36: x | N36: =D563 -> 2479 | O36: =D564 -> 2539 | P36: x | Q36: x | R36: x | S36: x | T36: x | U36: x | V36: x | W36: x | X36: x | Y36: x
A37: 100CE-320/MB | B37: x | C37: x | D37: x | E37: x | F37: x | G37: x | H37: x | I37: x | J37: x | K37: x | L37: =D565 -> 2527 | M37: x | N37: =D566 -> 2563 | O37: =D567 -> 2579 | P37: =D568 -> 2606 | Q37: =D569 -> 2648 | R37: x | S37: x | T37: x | U37: x | V37: x | W37: x | X37: x | Y37: x
A38: 125CE-320/MB | B38: x | C38: x | D38: x | E38: x | F38: x | G38: x | H38: x | I38: x | J38: x | K38: x | L38: =D570 -> 2527 | M38: x | N38: =D571 -> 2563 | O38: =D572 -> 2579 | P38: =D573 -> 2606 | Q38: =D574 -> 2648 | R38: x | S38: x | T38: x | U38: x | V38: x | W38: x | X38: x | Y38: x
A39: 150CE-320/MB | B39: x | C39: x | D39: x | E39: x | F39: x | G39: x | H39: x | I39: x | J39: x | K39: x | L39: x | M39: x | N39: =D576 -> 2563 | O39: =D577 -> 2579 | P39: =D578 -> 2606 | Q39: =D579 -> 2648 | R39: =D580 -> 2675 | S39: x | T39: x | U39: x | V39: x | W39: x | X39: x | Y39: x
A40: 55CA | B40: x | C40: x | D40: x | E40: x | F40: x | G40: x | H40: x | I40: x | J40: x | K40: x | L40: =D365 -> 1714 | M40: x | N40: =D366 -> 1734 | O40: x | P40: x | Q40: x | R40: x | S40: x | T40: x | U40: x | V40: x | W40: x | X40: x | Y40: x
A41: 75CA | B41: x | C41: x | D41: x | E41: x | F41: x | G41: x | H41: x | I41: x | J41: x | K41: x | L41: =D367 -> 1714 | M41: x | N41: =D368 -> 1734 | O41: =D369 -> 1770 | P41: x | Q41: x | R41: x | S41: x | T41: x | U41: x | V41: x | W41: x | X41: x | Y41: x
A42: 100CA | B42: x | C42: x | D42: x | E42: x | F42: x | G42: x | H42: x | I42: x | J42: x | K42: x | L42: =D370 -> 1718 | M42: x | N42: =D371 -> 1754 | O42: =D372 -> 1770 | P42: =D373 -> 1797 | Q42: x | R42: x | S42: x | T42: x | U42: x | V42: x | W42: x | X42: x | Y42: x
A43: 125CA | B43: x | C43: x | D43: x | E43: x | F43: x | G43: x | H43: x | I43: x | J43: x | K43: x | L43: x | M43: x | N43: =D374 -> 1754 | O43: =D375 -> 1770 | P43: =D376 -> 1797 | Q43: =D377 -> 1839 | R43: x | S43: x | T43: x | U43: x | V43: x | W43: x | X43: x | Y43: x
A44: 150CA | B44: x | C44: x | D44: x | E44: x | F44: x | G44: x | H44: x | I44: x | J44: x | K44: x | L44: x | M44: x | N44: =D378 -> 1754 | O44: =D379 -> 1770 | P44: =D380 -> 1797 | Q44: =D381 -> 1839 | R44: =D382 -> 1866 | S44: x | T44: x | U44: x | V44: x | W44: x | X44: x | Y44: x
A45: 180CA | B45: x | C45: x | D45: x | E45: x | F45: x | G45: x | H45: x | I45: x | J45: x | K45: x | L45: x | M45: x | N45: x | O45: x | P45: =D383 -> 1978 | Q45: =D384 -> 2022 | R45: =D385 -> 2051 | S45: =D386 -> 2086 | T45: x | U45: x | V45: x | W45: x | X45: x | Y45: x
A46: 210CA | B46: x | C46: x | D46: x | E46: x | F46: x | G46: x | H46: x | I46: x | J46: x | K46: x | L46: x | M46: x | N46: x | O46: x | P46: =D387 -> 1978 | Q46: =D388 -> 2022 | R46: =D389 -> 2051 | S46: =D390 -> 2086 | T46: =D391 -> 2176 | U46: x | V46: x | W46: x | X46: x | Y46: x
A47: 250CA | B47: x | C47: x | D47: x | E47: x | F47: x | G47: x | H47: x | I47: x | J47: x | K47: x | L47: x | M47: x | N47: x | O47: x | P47: x | Q47: x | R47: =D392 -> 2134 | S47: =D393 -> 2171 | T47: =D394 -> 2275 | U47: =D395 -> 2389 | V47: x | W47: x | X47: x | Y47: x
A48: 180CE/CA-MB | B48: x | C48: x | D48: x | E48: x | F48: x | G48: x | H48: x | I48: x | J48: x | K48: x | L48: x | M48: x | N48: x | O48: x | P48: =D617 -> 2904 | Q48: =D618 -> 2948 | R48: =D619 -> 2977 | S48: =D620 -> 3012 | T48: x | U48: x | V48: x | W48: x | X48: x | Y48: x
A49: 210CE/CA-MB | B49: x | C49: x | D49: x | E49: x | F49: x | G49: x | H49: x | I49: x | J49: x | K49: x | L49: x | M49: x | N49: x | O49: x | P49: =D621 -> 2904 | Q49: =D622 -> 2948 | R49: =D623 -> 2977 | S49: =D624 -> 3012 | T49: =D625 -> 3102 | U49: x | V49: x | W49: x | X49: x | Y49: x
A50: 250CE/CA-MB | B50: x | C50: x | D50: x | E50: x | F50: x | G50: x | H50: x | I50: x | J50: x | K50: x | L50: x | M50: x | N50: x | O50: x | P50: x | Q50: x | R50: =D626 -> 3060 | S50: =D627 -> 3097 | T50: =D628 -> 3201 | U50: =D629 -> 3315 | V50: x | W50: x | X50: x | Y50: x
A51: 300CE/CA-MB | B51: x | C51: x | D51: x | E51: x | F51: x | G51: x | H51: x | I51: x | J51: x | K51: x | L51: x | M51: x | N51: x | O51: x | P51: x | Q51: =D630 -> 3586 | R51: =D631 -> 3617 | S51: =D632 -> 3653 | T51: =D633 -> 3701 | U51: =D634 -> 3859 | V51: x | W51: x | X51: x | Y51: x
A52: 330CE/CA-MB | B52: x | C52: x | D52: x | E52: x | F52: x | G52: x | H52: x | I52: x | J52: x | K52: x | L52: x | M52: x | N52: x | O52: x | P52: x | Q52: x | R52: =D635 -> 3640 | S52: =D636 -> 3668 | T52: =D637 -> 3710 | U52: =D638 -> 3907 | V52: x | W52: x | X52: x | Y52: x
A53: 380CE/CA-MB | B53: x | C53: x | D53: x | E53: x | F53: x | G53: x | H53: x | I53: x | J53: x | K53: x | L53: x | M53: x | N53: x | O53: x | P53: x | Q53: x | R53: =D639 -> 3701 | S53: =D640 -> 3701 | T53: =D641 -> 3718 | U53: =D642 -> 3957 | V53: x | W53: x | X53: x | Y53: x
A54: 55CA/A | B54: x | C54: x | D54: x | E54: x | F54: x | G54: x | H54: x | I54: x | J54: x | K54: x | L54: =D400 -> 1860 | M54: x | N54: =D401 -> 1880 | O54: x | P54: x | Q54: x | R54: x | S54: x | T54: x | U54: x | V54: x | W54: x | X54: x | Y54: x
A55: 75CA/A | B55: x | C55: x | D55: x | E55: x | F55: x | G55: x | H55: x | I55: x | J55: x | K55: x | L55: =D402 -> 1860 | M55: x | N55: =D403 -> 1880 | O55: =D404 -> 1916 | P55: x | Q55: x | R55: x | S55: x | T55: x | U55: x | V55: x | W55: x | X55: x | Y55: x
A56: 100CA/A | B56: x | C56: x | D56: x | E56: x | F56: x | G56: x | H56: x | I56: x | J56: x | K56: x | L56: =D405 -> 1864 | M56: x | N56: =D406 -> 1900 | O56: =D407 -> 1916 | P56: =D408 -> 1943 | Q56: x | R56: x | S56: x | T56: x | U56: x | V56: x | W56: x | X56: x | Y56: x
A57: 125CA/A | B57: x | C57: x | D57: x | E57: x | F57: x | G57: x | H57: x | I57: x | J57: x | K57: x | L57: x | M57: x | N57: =D409 -> 1900 | O57: =D410 -> 1916 | P57: =D411 -> 1943 | Q57: =D412 -> 1985 | R57: x | S57: x | T57: x | U57: x | V57: x | W57: x | X57: x | Y57: x
A58: 150CA/A | B58: x | C58: x | D58: x | E58: x | F58: x | G58: x | H58: x | I58: x | J58: x | K58: x | L58: x | M58: x | N58: =D413 -> 1900 | O58: =D414 -> 1916 | P58: =D415 -> 1943 | Q58: =D416 -> 1985 | R58: =D417 -> 2012 | S58: x | T58: x | U58: x | V58: x | W58: x | X58: x | Y58: x
A59: 180CA/A | B59: x | C59: x | D59: x | E59: x | F59: x | G59: x | H59: x | I59: x | J59: x | K59: x | L59: x | M59: x | N59: x | O59: x | P59: =D418 -> 2124 | Q59: =D419 -> 2168 | R59: =D420 -> 2197 | S59: =D421 -> 2232 | T59: x | U59: x | V59: x | W59: x | X59: x | Y59: x
A60: 210CA/A | B60: x | C60: x | D60: x | E60: x | F60: x | G60: x | H60: x | I60: x | J60: x | K60: x | L60: x | M60: x | N60: x | O60: x | P60: =D422 -> 2124 | Q60: =D423 -> 2168 | R60: =D424 -> 2197 | S60: =D425 -> 2232 | T60: =D426 -> 2322 | U60: x | V60: x | W60: x | X60: x | Y60: x
A61: 250CA/A | B61: x | C61: x | D61: x | E61: x | F61: x | G61: x | H61: x | I61: x | J61: x | K61: x | L61: x | M61: x | N61: x | O61: x | P61: x | Q61: x | R61: =D427 -> 2280 | S61: =D428 -> 2317 | T61: =D429 -> 2421 | U61: =D430 -> 2535 | V61: x | W61: x | X61: x | Y61: x
A62: 300CA/A | B62: x | C62: x | D62: x | E62: x | F62: x | G62: x | H62: x | I62: x | J62: x | K62: x | L62: x | M62: x | N62: x | O62: x | P62: x | Q62: =D431 -> 2310 | R62: =D432 -> 2341 | S62: =D433 -> 2377 | T62: =D434 -> 2425 | U62: =D435 -> 2583 | V62: x | W62: x | X62: x | Y62: x
A63: 330CA/A | B63: x | C63: x | D63: x | E63: x | F63: x | G63: x | H63: x | I63: x | J63: x | K63: x | L63: x | M63: x | N63: x | O63: x | P63: x | Q63: x | R63: =D436 -> 2364 | S63: =D437 -> 2392 | T63: =D438 -> 2434 | U63: =D439 -> 2631 | V63: =D440 -> 2766 | W63: x | X63: x | Y63: x
A64: 380CA/A | B64: x | C64: x | D64: x | E64: x | F64: x | G64: x | H64: x | I64: x | J64: x | K64: x | L64: x | M64: x | N64: x | O64: x | P64: x | Q64: x | R64: =D441 -> 2425 | S64: =D442 -> 2425 | T64: =D443 -> 2442 | U64: =D444 -> 2681 | V64: =D445 -> 2789 | W64: x | X64: x | Y64: x
A65: 300CG | B65: x | C65: x | D65: x | E65: x | F65: x | G65: x | H65: x | I65: x | J65: x | K65: x | L65: x | M65: x | N65: x | O65: x | P65: x | Q65: =D450 -> 2542 | R65: =D451 -> 2573 | S65: =D452 -> 2609 | T65: =D453 -> 2657 | U65: =D454 -> 2815 | V65: x | W65: x | X65: x | Y65: x
A66: 330CG | B66: x | C66: x | D66: x | E66: x | F66: x | G66: x | H66: x | I66: x | J66: x | K66: x | L66: x | M66: x | N66: x | O66: x | P66: x | Q66: x | R66: =D455 -> 2596 | S66: =D456 -> 2624 | T66: =D457 -> 2666 | U66: =D458 -> 2863 | V66: =D459 -> 2998 | W66: x | X66: x | Y66: x
A67: 380CG | B67: x | C67: x | D67: x | E67: x | F67: x | G67: x | H67: x | I67: x | J67: x | K67: x | L67: x | M67: x | N67: x | O67: x | P67: x | Q67: x | R67: =D460 -> 2657 | S67: =D461 -> 2657 | T67: =D462 -> 2674 | U67: =D463 -> 2913 | V67: =D464 -> 3021 | W67: x | X67: x | Y67: x
A68: 440CG | B68: x | C68: x | D68: x | E68: x | F68: x | G68: x | H68: x | I68: x | J68: x | K68: x | L68: x | M68: x | N68: x | O68: x | P68: x | Q68: x | R68: x | S68: =D465 -> 2879 | T68: =D466 -> 3007 | U68: =D467 -> 3137 | V68: =D468 -> 3266 | W68: =D469 -> 3280 | X68: x | Y68: x
A69: 500CG | B69: x | C69: x | D69: x | E69: x | F69: x | G69: x | H69: x | I69: x | J69: x | K69: x | L69: x | M69: x | N69: x | O69: x | P69: x | Q69: x | R69: x | S69: =D470 -> 2879 | T69: =D471 -> 3007 | U69: =D472 -> 3137 | V69: =D473 -> 3266 | W69: =D474 -> 3280 | X69: =D475 -> 3300 | Y69: x
A70: 650CG | B70: x | C70: x | D70: x | E70: x | F70: x | G70: x | H70: x | I70: x | J70: x | K70: x | L70: x | M70: x | N70: x | O70: x | P70: x | Q70: x | R70: x | S70: x | T70: =D476 -> 3137 | U70: =D477 -> 3266 | V70: =D478 -> 3390 | W70: =D479 -> 3403 | X70: =D480 -> 3446 | Y70: =D481 -> 3494
A71: 35CIF-2 | B71: x | C71: x | D71: x | E71: x | F71: =D486 -> 2121 | G71: x | H71: x | I71: =D487 -> 2126 | J71: x | K71: x | L71: =D488 -> 2132 | M71: x | N71: x | O71: x | P71: x | Q71: x | R71: x | S71: x | T71: x | U71: x | V71: x | W71: x | X71: x | Y71: x
A72: 55CIF-2 | B72: x | C72: x | D72: x | E72: x | F72: x | G72: x | H72: x | I72: x | J72: x | K72: x | L72: =D489 -> 2132 | M72: x | N72: =D490 -> 2153 | O72: x | P72: x | Q72: x | R72: x | S72: x | T72: x | U72: x | V72: x | W72: x | X72: x | Y72: x
A73: 75CIF-2 | B73: x | C73: x | D73: x | E73: x | F73: x | G73: x | H73: x | I73: x | J73: x | K73: x | L73: =D491 -> 2132 | M73: x | N73: =D492 -> 2153 | O73: =D493 -> 2189 | P73: x | Q73: x | R73: x | S73: x | T73: x | U73: x | V73: x | W73: x | X73: x | Y73: x
A74: 100CIF-2 | B74: x | C74: x | D74: x | E74: x | F74: x | G74: x | H74: x | I74: x | J74: x | K74: x | L74: =D494 -> 2136 | M74: x | N74: =D495 -> 2172 | O74: =D496 -> 2189 | P74: =D497 -> 2216 | Q74: x | R74: x | S74: x | T74: x | U74: x | V74: x | W74: x | X74: x | Y74: x
A75: 125CIF-2 | B75: x | C75: x | D75: x | E75: x | F75: x | G75: x | H75: x | I75: x | J75: x | K75: x | L75: x | M75: x | N75: =D498 -> 2172 | O75: =D499 -> 2189 | P75: =D500 -> 2216 | Q75: =D501 -> 2258 | R75: x | S75: x | T75: x | U75: x | V75: x | W75: x | X75: x | Y75: x
A76: 150CIF-2 | B76: x | C76: x | D76: x | E76: x | F76: x | G76: x | H76: x | I76: x | J76: x | K76: x | L76: x | M76: x | N76: =D502 -> 2172 | O76: =D503 -> 2189 | P76: =D504 -> 2216 | Q76: =D505 -> 2258 | R76: =D506 -> 2285 | S76: x | T76: x | U76: x | V76: x | W76: x | X76: x | Y76: x
A77: 180CIF-2 | B77: x | C77: x | D77: x | E77: x | F77: x | G77: x | H77: x | I77: x | J77: x | K77: x | L77: x | M77: x | N77: x | O77: x | P77: =D507 -> 2508 | Q77: =D508 -> 2552 | R77: =D509 -> 2582 | S77: =D510 -> 2616 | T77: x | U77: x | V77: x | W77: x | X77: x | Y77: x
A78: 210CIF-2 | B78: x | C78: x | D78: x | E78: x | F78: x | G78: x | H78: x | I78: x | J78: x | K78: x | L78: x | M78: x | N78: x | O78: x | P78: =D511 -> 2508 | Q78: =D512 -> 2552 | R78: =D513 -> 2582 | S78: =D514 -> 2616 | T78: =D515 -> 2707 | U78: x | V78: x | W78: x | X78: x | Y78: x
A79: 250CIF-2 | B79: x | C79: x | D79: x | E79: x | F79: x | G79: x | H79: x | I79: x | J79: x | K79: x | L79: x | M79: x | N79: x | O79: x | P79: x | Q79: x | R79: =D516 -> 2665 | S79: =D517 -> 2702 | T79: =D518 -> 2806 | U79: x | V79: x | W79: x | X79: x | Y79: x
A80: 35CE/CIF-2-MB | B80: x | C80: x | D80: x | E80: x | F80: =D647 -> 3047 | G80: x | H80: x | I80: =D648 -> 3052 | J80: x | K80: x | L80: =D649 -> 3058 | M80: x | N80: x | O80: x | P80: x | Q80: x | R80: x | S80: x | T80: x | U80: x | V80: x | W80: x | X80: x | Y80: x
A81: 55CE/CIF-2-MB | B81: x | C81: x | D81: x | E81: x | F81: x | G81: x | H81: x | I81: x | J81: x | K81: x | L81: =D650 -> 3058 | M81: x | N81: =D651 -> 3079 | O81: x | P81: x | Q81: x | R81: x | S81: x | T81: x | U81: x | V81: x | W81: x | X81: x | Y81: x
A82: 75CE/CIF-2-MB | B82: x | C82: x | D82: x | E82: x | F82: x | G82: x | H82: x | I82: x | J82: x | K82: x | L82: =D652 -> 3058 | M82: x | N82: =D653 -> 3079 | O82: =D654 -> 3115 | P82: x | Q82: x | R82: x | S82: x | T82: x | U82: x | V82: x | W82: x | X82: x | Y82: x
A83: 100CE/CIF-2-MB | B83: x | C83: x | D83: x | E83: x | F83: x | G83: x | H83: x | I83: x | J83: x | K83: x | L83: =D655 -> 3062 | M83: x | N83: =D656 -> 3098 | O83: =D657 -> 3115 | P83: =D658 -> 3142 | Q83: x | R83: x | S83: x | T83: x | U83: x | V83: x | W83: x | X83: x | Y83: x
A84: 125CE/CIF-2-MB | B84: x | C84: x | D84: x | E84: x | F84: x | G84: x | H84: x | I84: x | J84: x | K84: x | L84: x | M84: x | N84: =D659 -> 3098 | O84: =D660 -> 3115 | P84: =D661 -> 3142 | Q84: =D662 -> 3184 | R84: x | S84: x | T84: x | U84: x | V84: x | W84: x | X84: x | Y84: x
A85: 150CE/CIF-2-MB | B85: x | C85: x | D85: x | E85: x | F85: x | G85: x | H85: x | I85: x | J85: x | K85: x | L85: x | M85: x | N85: =D663 -> 3098 | O85: =D664 -> 3115 | P85: =D665 -> 3142 | Q85: =D666 -> 3184 | R85: =D667 -> 3211 | S85: x | T85: x | U85: x | V85: x | W85: x | X85: x | Y85: x
A86: 180CE/CIF-2-MB | B86: x | C86: x | D86: x | E86: x | F86: x | G86: x | H86: x | I86: x | J86: x | K86: x | L86: x | M86: x | N86: x | O86: x | P86: =D668 -> 3434 | Q86: =D669 -> 3478 | R86: =D670 -> 3508 | S86: =D671 -> 3542 | T86: x | U86: x | V86: x | W86: x | X86: x | Y86: x
A87: 210CE/CIF-2-MB | B87: x | C87: x | D87: x | E87: x | F87: x | G87: x | H87: x | I87: x | J87: x | K87: x | L87: x | M87: x | N87: x | O87: x | P87: =D672 -> 3434 | Q87: =D673 -> 3478 | R87: =D674 -> 3508 | S87: =D675 -> 3542 | T87: =D676 -> 3633 | U87: x | V87: x | W87: x | X87: x | Y87: x
A88: 250CE/CIF-2-MB | B88: x | C88: x | D88: x | E88: x | F88: x | G88: x | H88: x | I88: x | J88: x | K88: x | L88: x | M88: x | N88: x | O88: x | P88: x | Q88: x | R88: =D677 -> 3591 | S88: =D678 -> 3628 | T88: =D679 -> 3732 | U88: x | V88: x | W88: x | X88: x | Y88: x
A89: 8HLM | B89: =D174 -> 976 | C89: =D175 -> 991 | D89: x | E89: x | F89: x | G89: x | H89: x | I89: x | J89: x | K89: x | L89: x | M89: x | N89: x | O89: x | P89: x | Q89: x | R89: x | S89: x | T89: x | U89: x | V89: x | W89: x | X89: x | Y89: x
A90: 12HLM | B90: =D176 -> 976 | C90: =D177 -> 991 | D90: =D178 -> 1000 | E90: x | F90: x | G90: x | H90: x | I90: x | J90: x | K90: x | L90: x | M90: x | N90: x | O90: x | P90: x | Q90: x | R90: x | S90: x | T90: x | U90: x | V90: x | W90: x | X90: x | Y90: x
A91: 18HLM | B91: x | C91: =D179 -> 991 | D91: =D180 -> 1000 | E91: =D181 -> 1016 | F91: x | G91: x | H91: x | I91: x | J91: x | K91: x | L91: x | M91: x | N91: x | O91: x | P91: x | Q91: x | R91: x | S91: x | T91: x | U91: x | V91: x | W91: x | X91: x | Y91: x
A92: 23HLM | B92: x | C92: x | D92: =D182 -> 1000 | E92: =D183 -> 1016 | F92: x | G92: =D184 -> 1110 | H92: x | I92: x | J92: x | K92: x | L92: x | M92: x | N92: x | O92: x | P92: x | Q92: x | R92: x | S92: x | T92: x | U92: x | V92: x | W92: x | X92: x | Y92: x
A93: 8HL | B93: =D231 -> 926 | C93: =D232 -> 936 | D93: x | E93: x | F93: x | G93: x | H93: x | I93: x | J93: x | K93: x | L93: x | M93: x | N93: x | O93: x | P93: x | Q93: x | R93: x | S93: x | T93: x | U93: x | V93: x | W93: x | X93: x | Y93: x
A94: 12HL | B94: =D233 -> 926 | C94: =D234 -> 936 | D94: =D235 -> 950 | E94: x | F94: x | G94: x | H94: x | I94: x | J94: x | K94: x | L94: x | M94: x | N94: x | O94: x | P94: x | Q94: x | R94: x | S94: x | T94: x | U94: x | V94: x | W94: x | X94: x | Y94: x
A95: 18HL | B95: =D236 -> 926 | C95: =D237 -> 936 | D95: =D238 -> 950 | E95: x | F95: x | G95: x | H95: x | I95: x | J95: x | K95: x | L95: x | M95: x | N95: x | O95: x | P95: x | Q95: x | R95: x | S95: x | T95: x | U95: x | V95: x | W95: x | X95: x | Y95: x
A96: 23HL | B96: x | C96: =D239 -> 936 | D96: =D240 -> 950 | E96: x | F96: x | G96: =D241 -> 969 | H96: x | I96: x | J96: x | K96: x | L96: x | M96: x | N96: x | O96: x | P96: x | Q96: x | R96: x | S96: x | T96: x | U96: x | V96: x | W96: x | X96: x | Y96: x
A97: 18HLMD | B97: x | C97: =D204 -> 1206 | D97: =D205 -> 1215 | E97: =D206 -> 1231 | F97: x | G97: x | H97: x | I97: x | J97: x | K97: x | L97: x | M97: x | N97: x | O97: x | P97: x | Q97: x | R97: x | S97: x | T97: x | U97: x | V97: x | W97: x | X97: x | Y97: x
A98: 23HLMD | B98: x | C98: x | D98: =D207 -> 1215 | E98: =D208 -> 1231 | F98: x | G98: =D209 -> 1326 | H98: x | I98: =D210 -> 1483 | J98: x | K98: x | L98: x | M98: x | N98: x | O98: x | P98: x | Q98: x | R98: x | S98: x | T98: x | U98: x | V98: x | W98: x | X98: x | Y98: x
A99: 30HLMD | B99: x | C99: x | D99: x | E99: =D211 -> 1366 | F99: x | G99: =D212 -> 1382 | H99: x | I99: =D213 -> 1541 | J99: x | K99: x | L99: x | M99: x | N99: x | O99: x | P99: x | Q99: x | R99: x | S99: x | T99: x | U99: x | V99: x | W99: x | X99: x | Y99: x
A100: 18HLD | B100: =D261 -> 1141 | C100: =D262 -> 1152 | D100: =D263 -> 1165 | E100: x | F100: x | G100: x | H100: x | I100: x | J100: x | K100: x | L100: x | M100: x | N100: x | O100: x | P100: x | Q100: x | R100: x | S100: x | T100: x | U100: x | V100: x | W100: x | X100: x | Y100: x
A101: 23HLD | B101: x | C101: =D264 -> 1152 | D101: =D265 -> 1165 | E101: x | F101: x | G101: =D266 -> 1185 | H101: x | I101: x | J101: x | K101: x | L101: x | M101: x | N101: x | O101: x | P101: x | Q101: x | R101: x | S101: x | T101: x | U101: x | V101: x | W101: x | X101: x | Y101: x
A102: 30HLD | B102: x | C102: x | D102: =D267 -> 1302 | E102: x | F102: x | G102: =D268 -> 1315 | H102: x | I102: =D269 -> 1400 | J102: x | K102: x | L102: x | M102: x | N102: x | O102: x | P102: x | Q102: x | R102: x | S102: x | T102: x | U102: x | V102: x | W102: x | X102: x | Y102: x
A103: 8HLM-OIL | B103: =D189 -> 1164 | C103: =D190 -> 1178 | D103: x | E103: x | F103: x | G103: x | H103: x | I103: x | J103: x | K103: x | L103: x | M103: x | N103: x | O103: x | P103: x | Q103: x | R103: x | S103: x | T103: x | U103: x | V103: x | W103: x | X103: x | Y103: x
A104: 12HLM-OIL | B104: =D191 -> 1164 | C104: =D192 -> 1178 | D104: =D193 -> 1188 | E104: x | F104: x | G104: x | H104: x | I104: x | J104: x | K104: x | L104: x | M104: x | N104: x | O104: x | P104: x | Q104: x | R104: x | S104: x | T104: x | U104: x | V104: x | W104: x | X104: x | Y104: x
A105: 18HLM-OIL | B105: x | C105: =D194 -> 1178 | D105: =D195 -> 1188 | E105: =D196 -> 1203 | F105: x | G105: x | H105: x | I105: x | J105: x | K105: x | L105: x | M105: x | N105: x | O105: x | P105: x | Q105: x | R105: x | S105: x | T105: x | U105: x | V105: x | W105: x | X105: x | Y105: x
A106: 23HLM-OIL | B106: x | C106: x | D106: =D197 -> 1188 | E106: =D198 -> 1203 | F106: x | G106: =D199 -> 1298 | H106: x | I106: x | J106: x | K106: x | L106: x | M106: x | N106: x | O106: x | P106: x | Q106: x | R106: x | S106: x | T106: x | U106: x | V106: x | W106: x | X106: x | Y106: x
A107: 8HL-OIL | B107: =D246 -> 1113 | C107: =D247 -> 1124 | D107: x | E107: x | F107: x | G107: x | H107: x | I107: x | J107: x | K107: x | L107: x | M107: x | N107: x | O107: x | P107: x | Q107: x | R107: x | S107: x | T107: x | U107: x | V107: x | W107: x | X107: x | Y107: x
A108: 12HL-OIL | B108: =D248 -> 1113 | C108: =D249 -> 1124 | D108: =D250 -> 1137 | E108: x | F108: x | G108: x | H108: x | I108: x | J108: x | K108: x | L108: x | M108: x | N108: x | O108: x | P108: x | Q108: x | R108: x | S108: x | T108: x | U108: x | V108: x | W108: x | X108: x | Y108: x
A109: 18HL-OIL | B109: =D251 -> 1113 | C109: =D252 -> 1124 | D109: =D253 -> 1137 | E109: x | F109: x | G109: x | H109: x | I109: x | J109: x | K109: x | L109: x | M109: x | N109: x | O109: x | P109: x | Q109: x | R109: x | S109: x | T109: x | U109: x | V109: x | W109: x | X109: x | Y109: x
A110: 23HL-OIL | B110: x | C110: =D254 -> 1124 | D110: =D255 -> 1137 | E110: x | F110: x | G110: =D256 -> 1157 | H110: x | I110: x | J110: x | K110: x | L110: x | M110: x | N110: x | O110: x | P110: x | Q110: x | R110: x | S110: x | T110: x | U110: x | V110: x | W110: x | X110: x | Y110: x
A111: 18HLMD-OIL | B111: x | C111: =D217 -> 1419 | D111: =D218 -> 1429 | E111: =D219 -> 1444 | F111: x | G111: x | H111: x | I111: x | J111: x | K111: x | L111: x | M111: x | N111: x | O111: x | P111: x | Q111: x | R111: x | S111: x | T111: x | U111: x | V111: x | W111: x | X111: x | Y111: x
A112: 23HLMD-OIL | B112: x | C112: x | D112: =D220 -> 1429 | E112: =D221 -> 1444 | F112: x | G112: =D222 -> 1539 | H112: x | I112: =D223 -> 1696 | J112: x | K112: x | L112: x | M112: x | N112: x | O112: x | P112: x | Q112: x | R112: x | S112: x | T112: x | U112: x | V112: x | W112: x | X112: x | Y112: x
A113: 30HLMD-OIL | B113: x | C113: x | D113: x | E113: =D224 -> 1579 | F113: x | G113: =D225 -> 1595 | H113: x | I113: =D226 -> 1754 | J113: x | K113: x | L113: x | M113: x | N113: x | O113: x | P113: x | Q113: x | R113: x | S113: x | T113: x | U113: x | V113: x | W113: x | X113: x | Y113: x
A114: 18HLD-OIL | B114: =D274 -> 1354 | C114: =D275 -> 1365 | D114: =D276 -> 1378 | E114: x | F114: x | G114: x | H114: x | I114: x | J114: x | K114: x | L114: x | M114: x | N114: x | O114: x | P114: x | Q114: x | R114: x | S114: x | T114: x | U114: x | V114: x | W114: x | X114: x | Y114: x
A115: 23HLD-OIL | B115: x | C115: =D277 -> 1365 | D115: =D278 -> 1378 | E115: x | F115: x | G115: =D279 -> 1398 | H115: x | I115: x | J115: x | K115: x | L115: x | M115: x | N115: x | O115: x | P115: x | Q115: x | R115: x | S115: x | T115: x | U115: x | V115: x | W115: x | X115: x | Y115: x
A116: 30HLD-OIL | B116: x | C116: x | D116: =D280 -> 1491 | E116: x | F116: x | G116: =D281 -> 1502 | H116: x | I116: =D282 -> 1508 | J116: x | K116: x | L116: x | M116: x | N116: x | O116: x | P116: x | Q116: x | R116: x | S116: x | T116: x | U116: x | V116: x | W116: x | X116: x | Y116: x
B117: 0.75 | C117: 1.1 | D117: 1.5 | E117: 1.8 | F117: 2 | G117: 2.2 | H117: 2.5 | I117: 3 | J117: 3.3 | K117: 3.7 | L117: 4.5 | M117: 4.8 | N117: 6 | O117: 7.5 | P117: 9.5 | Q117: 12 | R117: 15 | S117: 18.5 | T117: 22.5 | U117: 30 | V117: 37 | W117: 45 | X117: 60 | Y117: 75
C121: CM-320 | D121: CM | E121: CA | F121: CA/A | G121: CG | H121: HL | I121: CE-320/MB | J121: CE/CM-MB | K121: CE/CA-MB | L121: CIF-2 | M121: CE/CIF-2-MB
A122: cassone maggiorato | C122: 0 | D122: 117 | E122: 146 | F122: 231 | G122: 0 | H122: 0 | I122: 0 | J122: 117 | K122: 146 | L122: 0 | M122: 0
A123: stella triangolo | C123: 35 | D123: 35 | E123: 35 | F123: 35 | G123: 47 | H123: 0 | I123: 0 | J123: 0 | K123: 0 | L123: 35 | M123: 0
A124: imballo cartone | C124: 43 | D124: 49 | E124: 60 | F124: 80 | G124: 106 | H124: 36 | I124: 43 | J124: 49 | K124: 60 | L124: x | M124: x
A125: imballo legno | C125: 147 | D125: 147 | E125: x | F125: x | G125: x | H125: x | I125: 121 | J125: 147 | K125: x | L125: x | M125: x
A128: lamiera interna | C128: 0 | D128: 14.5 | E128: 14.5 | F128: 14.5 | G128: 21 | H128: 0 | I128: 0 | J128: 0
A129: Rupture valve | C129: 1"1/4 | D129: 1"1/4 | E129: 1"1/2 | F129: 1"1/2 | G129: 2" | H129: 3/4" | I129: 1"1/4 | J129: 1"1/2
A131: portata | B131: 15 | C131: 151 | D131: 381 | E131: 651 | F131: HL
A132: Rupture valve | C132: 1"1/4 | D132: 1"1/2 | E132: 2" | F132: 3/4"
A133: KMI doppio pistone | C133: KIT.RAC/35KMI-TAN | D133: KIT.RAC/42KMI-TAN | E133: KIT.RAC/2"KMI-TAN
A134: netto | C134: 120 | D134: 130 | E134: 130
B137: HP | C137: KW
B138: 1 | C138: 0.75 | E138: PARA P | F138: =MATCH('accessori centralina'!B18,C138:C161,0) -> 13
B139: 1.5 | C139: 1.1 | E139: kW prezzo | F139: ='accessori centralina'!B18 -> 6
B140: 2 | C140: 1.5 | E140: kw | F140: =DATOS!D59 -> 6
B141: 2.5 | C141: 1.8 | E141: hp | F141: =INDEX(B138:B161,F138,1) -> 8
B142: 2.7 | C142: 2
B143: 3 | C143: 2.2
B144: 3.5 | C144: 2.5
B145: 4 | C145: 3
B146: 4.5 | C146: 3.3
B147: 5 | C147: 3.7
B148: 6 | C148: 4.5
B149: 6.5 | C149: 4.8
B150: 8 | C150: 6
B151: 10 | C151: 7.5
B152: 13 | C152: 9.5
B153: 16 | C153: 12
B154: 20 | C154: 15
B155: 25 | C155: 18.5
B156: 30 | C156: 22.5
B157: 40 | C157: 30
B158: 50 | C158: 37
B159: 60 | C159: 45
B160: 80 | C160: 60
B161: 100 | C161: 75
A170: LISTINO CENTRALINE
A172: CENTRALINA TIPO | B172: MOTORI IN ARIA | D172: PREZZO €
A173: HL-300, HL-420 Monofase | B173: KW HP
A174: 8 l/m | B174: 0.75 | C174: 1 | D174: 976
A175: 8 l/m | B175: 1.1 | C175: 1.5 | D175: 991
A176: 12 l/m | B176: 0.75 | C176: 1 | D176: 976
A177: 12 l/m | B177: 1.1 | C177: 1.5 | D177: 991
A178: 12 l/m | B178: 1.5 | C178: 2 | D178: 1000
A179: 18 l/m | B179: 1.1 | C179: 1.5 | D179: 991
A180: 18 l/m | B180: 1.5 | C180: 2 | D180: 1000
A181: 18 l/m | B181: 1.8 | C181: 2.5 | D181: 1016
A182: 23 l/m | B182: 1.5 | C182: 2 | D182: 1000
A183: 23 l/m | B183: 1.8 | C183: 2.5 | D183: 1016
A184: 23 l/m | B184: 2.2 | C184: 3 | D184: 1110
A187: CENTRALINA TIPO | B187: MOTORI IN OLIO | D187: PREZZO €
A188: HL/OIL-265 Monofase | B188: KW HP
A189: 8 l/m | B189: 0.75 | C189: 1 | D189: 1164
A190: 8 l/m | B190: 1.1 | C190: 1.5 | D190: 1178
A191: 12 l/m | B191: 0.75 | C191: 1 | D191: 1164
A192: 12 l/m | B192: 1.1 | C192: 1.5 | D192: 1178
A193: 12 l/m | B193: 1.5 | C193: 2 | D193: 1188
A194: 18 l/m | B194: 1.1 | C194: 1.5 | D194: 1178
A195: 18 l/m | B195: 1.5 | C195: 2 | D195: 1188
A196: 18 l/m | B196: 1.8 | C196: 2.5 | D196: 1203
A197: 23 l/m | B197: 1.5 | C197: 2 | D197: 1188
A198: 23 l/m | B198: 1.8 | C198: 2.5 | D198: 1203
A199: 23 l/m | B199: 2.2 | C199: 3 | D199: 1298
A202: CENTRALINA TIPO | B202: MOTORI IN ARIA | D202: PREZZO €
A203: HL-420-2V Monofase | B203: KW HP
A204: 18 l/m | B204: 1.1 | C204: 1.5 | D204: 1206
A205: 18 l/m | B205: 1.5 | C205: 2 | D205: 1215
A206: 18 l/m | B206: 1.8 | C206: 2.5 | D206: 1231
A207: 23 l/m | B207: 1.5 | C207: 2 | D207: 1215
A208: 23 l/m | B208: 1.8 | C208: 2.5 | D208: 1231
A209: 23 l/m | B209: 2.2 | C209: 3 | D209: 1326
A210: 23 l/m | B210: 3 | C210: 4 | D210: 1483
A211: 30 l/m | B211: 1.8 | C211: 2.5 | D211: 1366
A212: 30 l/m | B212: 2.2 | C212: 3 | D212: 1382
A213: 30 l/m | B213: 3 | C213: 4 | D213: 1541
A215: CENTRALINA TIPO | B215: MOTORI IN OLIO | D215: PREZZO
A216: HL/OIL-265-2V Monofase | B216: KW HP
A217: 18 l/m | B217: 1.1 | C217: 1.5 | D217: 1419
A218: 18 l/m | B218: 1.5 | C218: 2 | D218: 1429
A219: 18 l/m | B219: 1.8 | C219: 2.5 | D219: 1444
A220: 23 l/m | B220: 1.5 | C220: 2 | D220: 1429
A221: 23 l/m | B221: 1.8 | C221: 2.5 | D221: 1444
A222: 23 l/m | B222: 2.2 | C222: 3 | D222: 1539
... 422 more rows

Sheet Prezzo P (hidden)
B2: Prezzo pistoni primi 3 mt. diretto laterale e in taglia (9130-9140)
B3: 50 | C3: 60 | D3: 70 | E3: 80 | F3: 85 | G3: 90 | H3: 100 | I3: 110 | J3: 120 | K3: 130 | L3: 150 | M3: 160 | N3: 180 | O3: 200
A4: 5 | B4: =B62 -> 452 | C4: =B64 -> 477 | D4: =B66 -> 544 | E4: =B68 -> 582 | F4: x | G4: =B72 -> 659 | H4: =B75 -> 712 | I4: =B78 -> 830 | J4: =B81 -> 858 | K4: =B84 -> 947 | L4: x | M4: x | N4: x | O4: x
A5: 6 | B5: x | C5: x | D5: x | E5: x | F5: x | G5: x | H5: x | I5: x | J5: x | K5: x | L5: =B87 -> 1156 | M5: x | N5: x | O5: x
A6: 7.5 | B6: =B63 -> 488 | C6: =B65 -> 511 | D6: =B67 -> 582 | E6: =B69 -> 617 | F6: =B71 -> 617 | G6: =B73 -> 697 | H6: =B76 -> 763 | I6: =B79 -> 911 | J6: =B82 -> 969 | K6: =B85 -> 1061 | L6: x | M6: x | N6: x | O6: x
A7: 10 | B7: x | C7: x | D7: x | E7: x | F7: x | G7: x | H7: x | I7: x | J7: x | K7: x | L7: =B88 -> 1301 | M7: =B89 -> 1801 | N7: =B90 -> 2177 | O7: =B91 -> 2841
A8: 12 | B8: x | C8: x | D8: x | E8: =B70 -> 675 | F8: x | G8: =B74 -> 763 | H8: =B77 -> 836 | I8: =B80 -> 984 | J8: =B83 -> 1032 | K8: =B86 -> 1120 | L8: x | M8: x | N8: x | O8: x
B11: Prezzo pistoni metro successivo
B12: 50 | C12: 60 | D12: 70 | E12: 80 | F12: 85 | G12: 90 | H12: 100 | I12: 110 | J12: 120 | K12: 130 | L12: 150 | M12: 160 | N12: 180 | O12: 200
A13: 5 | B13: =D62 -> 47 | C13: =D64 -> 53 | D13: =D66 -> 62 | E13: =D68 -> 71 | F13: x | G13: =D72 -> 82 | H13: =D75 -> 82 | I13: =D78 -> 109 | J13: =D81 -> 109 | K13: =D84 -> 126 | L13: x | M13: x | N13: x | O13: x
A14: 6 | B14: x | C14: x | D14: x | E14: x | F14: x | G14: x | H14: x | I14: x | J14: x | K14: x | L14: =D87 -> 163 | M14: x | N14: x | O14: x
A15: 7.5 | B15: =D63 -> 52 | C15: =D65 -> 61 | D15: =D67 -> 71 | E15: =D69 -> 87 | F15: =D71 -> 87 | G15: =D73 -> 95 | H15: =D76 -> 124 | I15: =D79 -> 126 | J15: =D82 -> 140 | K15: =D85 -> 161 | L15: x | M15: x | N15: x | O15: x
A16: 10 | B16: x | C16: x | D16: x | E16: x | F16: x | G16: x | H16: x | I16: x | J16: x | K16: x | L16: =D88 -> 237 | M16: =D89 -> 281 | N16: =D90 -> 366 | O16: =D91 -> 474
A17: 12 | B17: x | C17: x | D17: x | E17: =D70 -> 101 | F17: x | G17: =D74 -> 121 | H17: =D77 -> 137 | I17: =D80 -> 157 | J17: =D83 -> 177 | K17: =D86 -> 200 | L17: x | M17: x | N17: x | O17: x
B20: Prezzo pistoni primi 3 mt diretto centrale (9150)
B21: 50 | C21: 60 | D21: 70 | E21: 80 | F21: 85 | G21: 90 | H21: 100 | I21: 110 | J21: 120 | K21: 130 | L21: 150 | M21: 160 | N21: 180 | O21: 200
A22: 5 | B22: =C62 -> 573 | C22: =C64 -> 657 | D22: =C66 -> 684 | E22: =C68 -> 723 | F22: x | G22: =C72 -> 804 | H22: =C75 -> 858 | I22: =C78 -> 1015 | J22: =C81 -> 1055 | K22: =C84 -> 1268 | L22: x | M22: x | N22: x | O22: x
A23: 6 | B23: x | C23: x | D23: x | E23: x | F23: x | G23: x | H23: x | I23: x | J23: x | K23: x | L23: =C87 -> 1480 | M23: x | N23: x | O23: x
A24: 7.5 | B24: =C63 -> 618 | C24: =C65 -> 692 | D24: =C67 -> 723 | E24: =C69 -> 757 | F24: =C71 -> 757 | G24: =C73 -> 846 | H24: =C76 -> 913 | I24: =C79 -> 1072 | J24: =C82 -> 1113 | K24: =C85 -> 1341 | L24: x | M24: x | N24: x | O24: x
A25: 10 | B25: x | C25: x | D25: x | E25: x | F25: x | G25: x | H25: x | I25: x | J25: x | K25: x | L25: =C88 -> 1618 | M25: =C89 -> 1964 | N25: =C90 -> 2381 | O25: =C91 -> 2886
A26: 12 | B26: x | C26: x | D26: x | E26: =C70 -> 876 | F26: x | G26: =C74 -> 911 | H26: =C77 -> 985 | I26: =C80 -> 1154 | J26: =C83 -> 1207 | K26: =C86 -> 1455 | L26: x | M26: x | N26: x | O26: x
B30: Prezzo giunta pistone
B31: 50 | C31: 60 | D31: 70 | E31: 80 | F31: 85 | G31: 90 | H31: 100 | I31: 110 | J31: 120 | K31: 130 | L31: 150 | M31: 160 | N31: 180 | O31: 200
A32: 5 | B32: 0 | C32: 0 | D32: =E66 -> 336 | E32: =E68 -> 351 | F32: x | G32: =E72 -> 365 | H32: =E75 -> 381 | I32: =E78 -> 449 | J32: =E81 -> 462 | K32: =E84 -> 509 | L32: x | M32: x | N32: x | O32: x
A33: 6 | B33: x | C33: x | D33: x | E33: x | F33: x | G33: x | H33: x | I33: x | J33: x | K33: x | L33: =E87 -> 595 | M33: x | N33: x | O33: x
A34: 7.5 | B34: 0 | C34: 0 | D34: =E67 -> 338 | E34: =E69 -> 351 | F34: =E71 -> 351 | G34: =E73 -> 365 | H34: =E76 -> 381 | I34: =E79 -> 449 | J34: =E82 -> 462 | K34: =E85 -> 509 | L34: x | M34: x | N34: x | O34: x
A35: 10 | B35: x | C35: x | D35: x | E35: x | F35: x | G35: x | H35: x | I35: x | J35: x | K35: x | L35: =E88 -> 595 | M35: =E89 -> 693 | N35: =E90 -> 987 | O35: =E91 -> 1167
A36: 12 | B36: x | C36: x | D36: x | E36: =E70 -> 378 | F36: x | G36: =E74 -> 367 | H36: =E77 -> 390 | I36: =E80 -> 461 | J36: =E83 -> 479 | K36: =E86 -> 526 | L36: x | M36: x | N36: x | O36: x
B39: Prezzo guarnizioni
B40: 50 | C40: 60 | D40: 70 | E40: 80 | F40: 85 | G40: 90 | H40: 100 | I40: 110 | J40: 120 | K40: 130 | L40: 150 | M40: 160 | N40: 180 | O40: 200
A41: testata | B41: =B112 -> 10 | C41: =B113 -> 10 | D41: =B114 -> 11 | E41: =B115 -> 12 | F41: =B116 -> 15 | G41: =B117 -> 15 | H41: =B118 -> 15 | I41: =B119 -> 16 | J41: =B120 -> 18 | K41: =B121 -> 20 | L41: =B122 -> 23 | M41: =B123 -> 25 | N41: =B124 -> 28 | O41: =B125 -> 32
A42: set g 1 | B42: =B98 -> 18 | C42: =B99 -> 20 | D42: =B100 -> 23 | E42: =B101 -> 25 | F42: =B102 -> 26 | G42: =B103 -> 27 | H42: =B104 -> 28 | I42: =B105 -> 30 | J42: =B106 -> 32 | K42: =B107 -> 39 | L42: =B108 -> 43 | M42: =B109 -> 52 | N42: =B110 -> 58 | O42: =B111 -> 110
B45: Prezzo anello di protezione stelo
B46: 50 | C46: 60 | D46: 70 | E46: 80 | F46: 85 | G46: 90 | H46: 100 | I46: 110 | J46: 120 | K46: 130 | L46: 150 | M46: 160 | N46: 180 | O46: 200
A47: 5 | B47: 0 | C47: 0 | D47: =F66 -> 38 | E47: =F68 -> 43 | F47: x | G47: =F72 -> 50 | H47: =F75 -> 52 | I47: =F78 -> 54 | J47: =F81 -> 61 | K47: =F84 -> 95 | L47: x | M47: x | N47: x | O47: x
A48: 6 | B48: x | C48: x | D48: x | E48: x | F48: x | G48: x | H48: x | I48: x | J48: x | K48: x | L48: =F87 -> 100 | M48: x | N48: x | O48: x
A49: 7.5 | B49: 0 | C49: 0 | D49: =F67 -> 38 | E49: =F69 -> 43 | F49: =F71 -> 50 | G49: =F73 -> 50 | H49: =F76 -> 52 | I49: =F79 -> 54 | J49: =F82 -> 61 | K49: =F85 -> 95 | L49: x | M49: x | N49: x | O49: x
A50: 10 | B50: x | C50: x | D50: x | E50: x | F50: x | G50: x | H50: x | I50: x | J50: x | K50: x | L50: =F88 -> 100 | M50: =F89 -> 105 | N50: =F90 -> 126 | O50: =F91 -> 160
A51: 12 | B51: x | C51: x | D51: x | E51: =F70 -> 43 | F51: x | G51: =F74 -> 50 | H51: =F77 -> 52 | I51: =F80 -> 54 | J51: =F83 -> 61 | K51: =F86 -> 95 | L51: x | M51: x | N51: x | O51: x
A58: LISTINO PISTONI
B59: 9130
B60: 9140 | C60: 9150
A61: tipo | B61: 3 m | C61: 3 m | D61: 1 m | E61: guinta | F61: protez.
A62: 50 x 5 | B62: 452 | C62: 573 | D62: 47 | E62: nd | F62: nd
A63: 50 x 7,5 | B63: 488 | C63: 618 | D63: 52 | E63: nd | F63: nd
A64: 60 x 5 | B64: 477 | C64: 657 | D64: 53 | E64: nd | F64: nd
A65: 60 x 7,5 | B65: 511 | C65: 692 | D65: 61 | E65: nd | F65: nd
A66: 70 x 5 | B66: 544 | C66: 684 | D66: 62 | E66: 336 | F66: 38
A67: 70 x 7,5 | B67: 582 | C67: 723 | D67: 71 | E67: 338 | F67: 38
A68: 80 x 5 | B68: 582 | C68: 723 | D68: 71 | E68: 351 | F68: 43
A69: 80 x 7,5 | B69: 617 | C69: 757 | D69: 87 | E69: 351 | F69: 43
A70: 80 x 12 | B70: 675 | C70: 876 | D70: 101 | E70: 378 | F70: 43
A71: 85 x 7,5 | B71: 617 | C71: 757 | D71: 87 | E71: 351 | F71: 50
A72: 90 x 5 | B72: 659 | C72: 804 | D72: 82 | E72: 365 | F72: 50
A73: 90 x 7,5 | B73: 697 | C73: 846 | D73: 95 | E73: 365 | F73: 50
A74: 90 x 12 | B74: 763 | C74: 911 | D74: 121 | E74: 367 | F74: 50
A75: 100 x 5 | B75: 712 | C75: 858 | D75: 82 | E75: 381 | F75: 52
A76: 100 x 7,5 | B76: 763 | C76: 913 | D76: 124 | E76: 381 | F76: 52
A77: 100 x 12 | B77: 836 | C77: 985 | D77: 137 | E77: 390 | F77: 52
A78: 110 x 5 | B78: 830 | C78: 1015 | D78: 109 | E78: 449 | F78: 54
A79: 110 x 7,5 | B79: 911 | C79: 1072 | D79: 126 | E79: 449 | F79: 54
A80: 110 x 12 | B80: 984 | C80: 1154 | D80: 157 | E80: 461 | F80: 54
A81: 120 x 5 | B81: 858 | C81: 1055 | D81: 109 | E81: 462 | F81: 61
A82: 120 x 7,5 | B82: 969 | C82: 1113 | D82: 140 | E82: 462 | F82: 61
A83: 120 x 12 | B83: 1032 | C83: 1207 | D83: 177 | E83: 479 | F83: 61
A84: 130 x 5 | B84: 947 | C84: 1268 | D84: 126 | E84: 509 | F84: 95
A85: 130 x 7,5 | B85: 1061 | C85: 1341 | D85: 161 | E85: 509 | F85: 95
A86: 130 x 12 | B86: 1120 | C86: 1455 | D86: 200 | E86: 526 | F86: 95
A87: 150 x 6 | B87: 1156 | C87: 1480 | D87: 163 | E87: 595 | F87: 100
A88: 150 x 10 | B88: 1301 | C88: 1618 | D88: 237 | E88: 595 | F88: 100
A89: 160 x 10 | B89: 1801 | C89: 1964 | D89: 281 | E89: 693 | F89: 105
A90: 180 x 10 | B90: 2177 | C90: 2381 | D90: 366 | E90: 987 | F90: 126
A91: 200 x 10 | B91: 2841 | C91: 2886 | D91: 474 | E91: 1167 | F91: 160
A93: piastra MI | B93: 69
A96: LISTINO GUARNIZIONI
A97: DESCRIZIONE | B97: PREZZO €
A98: serie 50 mm | B98: 18
A99: serie 60 mm | B99: 20
A100: serie 70 mm | B100: 23
A101: serie 80 mm | B101: 25
A102: serie 85 mm | B102: 26
A103: serie 90 mm | B103: 27
A104: serie 100 mm | B104: 28
A105: serie 110 mm | B105: 30
A106: serie 120 mm | B106: 32
A107: serie 130 mm | B107: 39
A108: serie 150 mm | B108: 43
A109: serie 160 mm | B109: 52
A110: serie 180 mm | B110: 58
A111: serie 200 mm | B111: 110
A112: balsele 50 mm | B112: 10
A113: balsele 60 mm | B113: 10
A114: balsele 70 mm | B114: 11
A115: balsele 80 mm | B115: 12
A116: balsele 85 mm | B116: 15
A117: balsele 90 mm | B117: 15
A118: balsele 100 mm | B118: 15
A119: balsele 110 mm | B119: 16
A120: balsele 120 mm | B120: 18
A121: balsele 130 mm | B121: 20
A122: balsele 150 mm | B122: 23
A123: balsele 160 mm | B123: 25
A124: balsele 180 mm | B124: 28
A125: balsele 200 mm | B125: 32
A128: Pressostato tarabile da 5 a 70 bar, contatto di scambio (NA+NC) | B128: 5304/1 | C128: 55
A129: pompa a mano di manovra in salita | B129: POM.MAN.INT | C129: 106
A130: attacco manometro ispezione en 81.2 | B130: 224.0423611 | C130: 19
A131: tuboflex ¾" (primo metro) dir-90° | B131: TF3/4"-M01.0 | C131: 41
A132: tuboflex ¾" (metro successivo) | B132: TF3/4"-M00.0 | C132: 11
A133: tuboflex 1" (primo metro) dir-90° | B133: TF1"1-M01.0 | C133: 49
A134: tuboflex 1" (metro successivo) | B134: TF1"1-M00.0 | C134: 15
A135: tuboflex 1" 1/4 (primo metro) dir-90° | B135: TF1"1/4-M01.0 | C135: 67
A136: tuboflex 1" 1/4 (metro successivo) | B136: TF1"1/4-M00.0 | C136: 23
A137: tuboflex 1" 1/2 (primo metro) dir-90° | B137: TF1"1/2-M01.0 | C137: 93
A138: tuboflex 1" 1/2 (metro successivo) | B138: TF1"1/2-M00.0 | C138: 31
A139: tuboflex 2" (primo metro) dir-dir | B139: TF-2"-M01.0 | C139: 104
A140: tuboflex 2" (metro successivo) | B140: TF-2"-M00.0 | C140: 41
A141: barra tubo mandata diametro 28 x 2 (m 6) | B141: 5437 / P | C141: 48
A142: barra tubo mandata diametro 35 x 2,5 (m 6) | B142: 5438 / P | C142: 68
A143: barra tubo mandata diametro 42 x 3 (m 6) | B143: 5439 / P | C143: 97
A144: staffa fissaggio per barre tubo F 35 e tuboflex ¾” e 1” | B144: STAF.TUB.35 | C144: 8
A145: staffa fissaggio per barre tubo mandata diametro F 42 | B145: STAF.TUB.42 | C145: 8
A146: staffa fissaggio per tuboflex 1” ¼ | B146: STAF.TU.1"1/4 | C146: 8
A147: staffa fissaggio per tuboflex 1” ½ | B147: STAF.TU.1"1/2 | C147: 8
A148: staffa fissaggio per tuboflex 2” | B148: STAF.TU.2”G | C148: 11
A149: raccordo 90° uscita verticale centralina diam. 28 | B149: KIT.RACC/VER28 | C149: 12
A150: raccordo 90° uscita verticale centralina diam. 35 | B150: KIT.RACC/VER35 | C150: 22
A151: raccordo 90° uscita verticale centralina diam. 42 | B151: KIT.RACC/VER42 | C151: 29
A152: raccordo uscita orizzontale centralina diam. 35 | B152: KIT.RACC/ORR35 | C152: 22
A153: raccordo uscita orizzontale centralina diam. 42 | B153: KIT.RACC/ORR42 | C153: 29
A154: raccordo di giunzione diritto diam. 35 | B154: 5308 | C154: 16
A155: raccordo di giunzione diritto diam. 42 | B155: 5309 | C155: 21
A156: raccordo di giunzione a 90 ° diam. 35 | B156: 5310 | C156: 22
A157: raccordo di giunzione a 90 ° diam. 42 | B157: 5311 | C157: 29
A160: Raccordo 3 vie a ‘T’ 1" ¼ (con raccordi) | B160: 5316 | C160: 59
A161: Raccordo 3 vie a ‘T’ 1" ½ x 1" ¼ x 1" ¼ (con raccordi) | B161: RACC.T42+2/35 | C161: 70
A162: Raccordo 3 vie a ‘T’ 1" ½ (con raccordi) | B162: 5317 | C162: 70
A163: Raccordo 3 vie a ‘Y’ 1" ½ x 1" ¼ x 1" ¼ (senza raccordi) | B163: 0696/2 | C163: 103
A164: Raccordo 3 vie a ‘Y’ 1" ½ (senza raccordi) | B164: 0696/1 | C164: 103
A165: Raccordo 3 vie a ‘Y’ 2" x 1" ½ x 1" ½ (senza raccordi) | B165: 696 | C165: 160
A166: Raccordo 3 vie a ‘Y’ 2" (senza raccordi) | B166: 0696/3 | C166: 177
A167: nipplo 1"1/4 per raccordo a tre vie Y 1" ¼ | B167: 5306 | C167: 20
A168: nipplo 1"1/2 per raccordo a tre vie Y 1" ½ | B168: 5307 | C168: 20
A169: nipplo 2" per raccordo a tre vie Y 2" | B169: 5325 | C169: 22
A170: tubo miniflex per collegamento valvole paracadute F 8 - m 5 | B170: 5425 | C170: 35
A171: raccordi per tubo miniflex F 8 serie di due | B171: RACC.90/VP-MF | C171: 6
A172: Raccordo intermedio per tubo miniflex F 8 | B172: 5307/5 | C172: 3
A173: kit staffe per avvitamento pistone in due pezzi F 70 - F 120 (Qt. 2) | B173: 2x 0745 | C173: 279
A174: kit staffe per avvitamento pistone in due pezzi F 130 - F 200 (Qt. 2) | B174: 2x 0747 | C174: 321
A175: carta catramata – rotolo lungh. 10 m largh. 10 cm - | B175: 5256/5 | C175: 35
A176: armadio da assemblare su centralina CM-320/A | B176: 0884/CM3-A-SC | C176: 402
A177: armadio – MI 2000, mod. CM3/R – (serbatoio CM-320/AR) | B177: 0884/CM3R2A-150 | C177: 598
A178: armadio – MI 2000, mod. CM3 – (serbatoio CM-320) | B178: 0884/CM32A-150 | C178: 598
A179: armadio – MI 2000, mod. CM3 – (serbatoio CM-320, versione smontata) | B179: 0884/CM32A-150.SM | C179: 501
A180: armadio – MI 2000, mod. CM – (serbatoio CM) | B180: 0884/CMVMO2A-150 | C180: 644
A181: armadio – MI 2000, mod. CA – (serbatoio CA) | B181: 0884/CAVMO2A | C181: 697
A182: armadio completo per centralina HL-300/AR | B182: 0946/300-COMPL. | C182: 316
A183: armadio completo per centralina HL-420/AR | B183: 0946/420-COMPL. | C183: 316
A184: armadio completo per centralina HL-300/AR – smontato | B184: 0946/300-COMPL.SM. | C184: 324
A185: armadio completo per centralina HL-420/AR – smontato | B185: 0946/420-COMPL.SM. | C185: 324
A186: armadio completo per centralina HL/OIL-265 | B186: 0946/HL-OIL | C186: 324
A187: pompa di microlivellamento 20 l/m – 3 HP per CA | B187: MICR.COM20/3-CA | C187: 976
A188: pompa di microlivellamento 20 l/m – 3 HP per CG | B188: MICR.COM20/3-CG | C188: 976
A189: microlivellamento in discesa 15/250 l/m (fornitura con centralina) | B189: MICR.D/250-IN | C189: 118
A190: microlivellamento in discesa 300/650 l/m (fornitura con centralina) | B190: MICR.D/650-IN | C190: 178
A191: resistenza 400W 230V con termostato | B191: RIS.CON TER | C191: 27
A192: resistenza 400W 400V con termostato | B192: RIS.CON TE/400 | C192: 27
A193: resistenza 400W 230V con termostato per centraline HL | B193: RIS.CON TE/HL | C193: 27
A196: scambiatore di calore modello scamb. 5/10 con 2 tubi da mt. 3 | B196: SCAMB.5/10M-3 | C196: 1382
A197: scambiatore di calore modello scamb. 20 con 2 tubi da mt. 3 | B197: SCAMB.20M-3 | C197: 1506
A198: scambiatore di calore modello scamb. 30 con 2 tubi da mt. 3 | B198: SCAMB.30M-3 | C198: 1832
A199: scamb. di calore SCAMB.5/10 con 2 tubi da 3 m e quadro elettrico di comando | B199: SCASE 5/10 | C199: 1714
A200: scamb. di calore SCAMB.20 con 2 tubi da 3 m e quadro elettrico di comando | B200: SCASE 20 | C200: 1961
A201: scamb. di calore SCAMB.30 con 2 tubi da 3 m e quadro elettrico di comando | B201: SCASE 30 | C201: 2163
A202: predisposizione centralina per scambiatore di calore con rubinetti | B202: CASS.PRED.GAR | C202: 74
A203: lamiera anticaduta oggetti per serbatoio CM (55 – 210 l/m) | B203: RIP.C.O.CB/CM | C203: 14.5
A204: lamiera anticaduta oggetti per serbatoio CA (180 l/m) | B204: RIP.C.O.CA180 | C204: 14.5
A205: lamiera anticaduta oggetti per serbatoio CA (210 – 380 l/m) | B205: RIP.C.O.CA300 | C205: 14.5
A206: lamiera anticaduta oggetti per serbatoio CA/A (380 l/m) | B206: RIP.C.O.CA380 | C206: 14.5
A207: lamiera anticaduta oggetti per serbatoio CG (440 – 650 l/m) | B207: RIP.C.O.CG | C207: 21
A208: soft stop + reg. 21/250 | B208: SOFT STOP 250 | C208: 101
A209: soft stop + reg. 21/380 | B209: SOFT STOP 380/MO | C209: 177
A210: soft stop + reg. 21/650 | B210: SOFT STOP 650/MO | C210: 177
A211: amplificatore protezione motore | B211: 5001/3 | C211: 110

Sheet database1
A3: CARATTERISTICHE GEOMETRICHE PER IL CALCOLO DEGLI STELI
G6: DIAMETRO PISTONE
C7: SPESSORE | D7: 36 | E7: 50 | F7: 60 | G7: 70 | H7: 80 | I7: 85 | J7: 90 | K7: 100 | L7: 110 | M7: 120 | N7: 130 | O7: 150 | P7: 160 | Q7: 180 | R7: 200
A8: SEZIONE | B8: Ax0 | C8: 0 | D8: 1018 | E8: x | F8: x | G8: x | H8: x | I8: x | J8: x | K8: x | L8: x | M8: x | N8: x | O8: x | P8: x | Q8: x | R8: x
A9: RESISTENTE | B9: Ax5 | C9: 5 | D9: x | E9: 707 | F9: 864 | G9: 1021 | H9: 1178 | I9: x | J9: 1335 | K9: 1492 | L9: 1649 | M9: 1806 | N9: 1963 | O9: x | P9: x | Q9: x | R9: x
A10: A | B10: Ax6 | C10: 6 | D10: x | E10: x | F10: x | G10: x | H10: x | I10: x | J10: x | K10: x | L10: x | M10: x | N10: x | O10: 2713 | P10: x | Q10: x | R10: x
A11: mm2 | B11: Ax7,5 | C11: 7.5 | D11: x | E11: 1001 | F11: 1237 | G11: 1472 | H11: 1708 | I11: 1826 | J11: 1943 | K11: 2179 | L11: 2415 | M11: 2650 | N11: 2885 | O11: x | P11: x | Q11: x | R11: x
B12: Ax10 | C12: 10 | D12: x | E12: x | F12: x | G12: x | H12: x | I12: x | J12: x | K12: x | L12: x | M12: x | N12: x | O12: 4398 | P12: 4712 | Q12: 5340 | R12: 5969
B13: Ax12 | C13: 12 | D13: x | E13: x | F13: x | G13: x | H13: 2563 | I13: x | J13: 2940 | K13: 3317 | L13: 3694 | M13: 4071 | N13: 4448 | O13: x | P13: x | Q13: x | R13: x
A14: RAGGIO | B14: ix0 | C14: 0 | D14: 9 | E14: x | F14: x | G14: x | H14: x | I14: x | J14: x | K14: x | L14: x | M14: x | N14: x | O14: x | P14: x | Q14: x | R14: x
A15: D' INERZIA | B15: ix5 | C15: 5 | D15: x | E15: 16 | F15: 19.53 | G15: 23.05 | H15: 26.58 | I15: x | J15: 30.1 | K15: 33.63 | L15: 37.17 | M15: 40.7 | N15: 44.23 | O15: x | P15: x | Q15: x | R15: x
A16: I | B16: ix6 | C16: 6 | D16: x | E16: x | F16: x | G16: x | H16: x | I16: x | J16: x | K16: x | L16: x | M16: x | N16: x | O16: 50.96 | P16: x | Q16: x | R16: x
A17: mm | B17: ix7,5 | C17: 7.5 | D17: x | E17: 15.26 | F17: 18.75 | G17: 22.26 | H17: 25.77 | I17: 27.53 | J17: 29.29 | K17: 32.81 | L17: 36.34 | M17: 39.85 | N17: 43.39 | O17: x | P17: x | Q17: x | R17: x
B18: ix10 | C18: 10 | D18: x | E18: x | F18: x | G18: x | H18: x | I18: x | J18: x | K18: x | L18: x | M18: x | N18: x | O18: 49.62 | P18: 53.15 | Q18: 60.21 | R18: 67.27
B19: ix12 | C19: 12 | D19: x | E19: x | F19: x | G19: x | H19: 24.41 | I19: x | J19: 27.9 | K19: 31.4 | L19: 34.91 | M19: 38.42 | N19: 41.93 | O19: x | P19: x | Q19: x | R19: x
A20: MOMENTO | B20: Jx0 | C20: 0 | D20: 82400 | E20: x | F20: x | G20: x | H20: x | I20: x | J20: x | K20: x | L20: x | M20: x | N20: x | O20: x | P20: x | Q20: x | R20: x
A21: D' INERZIA | B21: Jx5 | C21: 5 | D21: x | E21: 181132 | F21: 329376 | G21: 542415 | H21: 832031 | I21: x | J21: 1210004 | K21: 1688115 | L21: 2278145 | M21: 2991876 | N21: 3841087 | O21: x | P21: x | Q21: x | R21: x
A22: J | B22: Jx6 | C22: 6 | D22: x | E22: x | F22: x | G22: x | H22: x | I22: x | J22: x | K22: x | L22: x | M22: x | N22: x | O22: 7047770 | P22: x | Q22: x | R22: x
A23: mm4 | B23: Jx7,5 | C23: 7.5 | D23: x | E23: 233134 | F23: 434883 | G23: 729408 | H23: 1134380 | I23: 1383802 | J23: 1667469 | K23: 2346347 | L23: 3188687 | M23: 4212139 | N23: 5434415 | O23: x | P23: x | Q23: x | R23: x
B24: Jx10 | C24: 10 | D24: x | E24: x | F24: x | G24: x | H24: x | I24: x | J24: x | K24: x | L24: x | M24: x | N24: x | O24: 10830641 | P24: 13312499 | Q24: 19360065 | R24: 27009843
B25: Jx12 | C25: 12 | D25: x | E25: x | F25: x | G25: x | H25: 1527870 | I25: x | J25: 2289205 | K25: 3271075 | L25: 4501764 | M25: 6009542 | N25: 7822664 | O25: x | P25: x | Q25: x | R25: x
B26: Pr0 | C26: 0 | D26: 8 | E26: x | F26: x | G26: x | H26: x | I26: x | J26: x | K26: x | L26: x | M26: x | N26: x | O26: x | P26: x | Q26: x | R26: x
A27: MASSA/LUN. | B27: Prx5 | C27: 5 | D27: x | E27: 5.5 | F27: 6.7 | G27: 7.9 | H27: 9.2 | I27: x | J27: 10.4 | K27: 11.7 | L27: 12.9 | M27: 14.1 | N27: 15.3 | O27: x | P27: x | Q27: x | R27: x
B28: Prx6 | C28: 6 | D28: x | E28: x | F28: x | G28: x | H28: x | I28: x | J28: x | K28: x | L28: x | M28: x | N28: x | O28: 21.2 | P28: x | Q28: x | R28: x
A29: Y | B29: Prx7,5 | C29: 7.5 | D29: x | E29: 7.8 | F29: 9.6 | G29: 11.5 | H29: 13.3 | I29: 14.3 | J29: 15.2 | K29: 17.1 | L29: 18.9 | M29: 20.7 | N29: 22.5 | O29: x | P29: x | Q29: x | R29: x
B30: Prx10 | C30: 10 | D30: x | E30: x | F30: x | G30: x | H30: x | I30: x | J30: x | K30: x | L30: x | M30: x | N30: x | O30: 34.4 | P30: 36.8 | Q30: 41.7 | R30: 46.6
A31: kg/m | B31: Prx12 | C31: 12 | D31: x | E31: x | F31: x | G31: x | H31: 20 | I31: x | J31: 23 | K31: 25.9 | L31: 28.9 | M31: 31.8 | N31: 34.7 | O31: x | P31: x | Q31: x | R31: x
A32: peso giunta | B32: Prx0 | C32: 0 | D32: x | E32: x | F32: x | G32: x | H32: x | I32: x | J32: x | K32: x | L32: x | M32: x | N32: x | O32: x | P32: x | Q32: x | R32: x
A33: stelo | B33: Prx5 | C33: 5 | D33: x | E33: x | F33: x | G33: 5.1 | H33: 7.3 | I33: x | J33: 9.6 | K33: 13.2 | L33: 25 | M33: 25 | N33: 32.5 | O33: x | P33: x | Q33: x | R33: x
B34: Prx6 | C34: 6 | D34: x | E34: x | F34: x | G34: x | H34: x | I34: x | J34: x | K34: x | L34: x | M34: x | N34: x | O34: 47.6 | P34: x | Q34: x | R34: x
B35: Prx7,5 | C35: 7.5 | D35: x | E35: x | F35: x | G35: 4.2 | H35: 6.4 | I35: 7.3 | J35: 8.5 | K35: 11.7 | L35: 14.6 | M35: 22.8 | N35: 30.8 | O35: x | P35: x | Q35: x | R35: x
A36: kg | B36: Prx10 | C36: 10 | D36: x | E36: x | F36: x | G36: x | H36: x | I36: x | J36: x | K36: x | L36: x | M36: x | N36: x | O36: 42.1 | P36: 49 | Q36: 74.5 | R36: 106.5
B37: Prx12 | C37: 12 | D37: x | E37: x | F37: x | G37: x | H37: 4.5 | I37: x | J37: 6.5 | K37: 8.7 | L37: 11.9 | M37: 14.9 | N37: 23.1 | O37: x | P37: x | Q37: x | R37: x
B38: Prx0 | C38: 0 | D38: x | E38: x | F38: x | G38: x | H38: x | I38: x | J38: x | K38: x | L38: x | M38: x | N38: x | O38: x | P38: x | Q38: x | R38: x
A39: peso pistone | B39: Prx5 | C39: 5 | D39: x | E39: 60 | F39: 64 | G39: 75 | H39: 79 | I39: x | J39: 96 | K39: 107 | L39: 126 | M39: 131 | N39: 153 | O39: x | P39: x | Q39: x | R39: x
A40: primi 3 m | B40: Prx6 | C40: 6 | D40: x | E40: x | F40: x | G40: x | H40: x | I40: x | J40: x | K40: x | L40: x | M40: x | N40: x | O40: 194 | P40: x | Q40: x | R40: x
A41: 9130 | B41: Prx7,5 | C41: 7.5 | D41: x | E41: 64 | F41: 71 | G41: 84 | H41: 91 | I41: 94 | J41: 109 | K41: 122 | L41: 144 | M41: 152 | N41: 175 | O41: x | P41: x | Q41: x | R41: x
B42: Prx10 | C42: 10 | D42: x | E42: x | F42: x | G42: x | H42: x | I42: x | J42: x | K42: x | L42: x | M42: x | N42: x | O42: 236 | P42: 309 | Q42: 357 | R42: 444
A43: kg | B43: Prx12 | C43: 12 | D43: x | E43: x | F43: x | G43: x | H43: 110 | I43: x | J43: 134 | K43: 150 | L43: 175 | M43: 186 | N43: 214 | O43: x | P43: x | Q43: x | R43: x
B44: Prx0 | C44: 0 | D44: x | E44: x | F44: x | G44: x | H44: x | I44: x | J44: x | K44: x | L44: x | M44: x | N44: x | O44: x | P44: x | Q44: x | R44: x
A45: peso pistone | B45: Prx5 | C45: 5 | D45: x | E45: 64 | F45: 68 | G45: 79 | H45: 83 | I45: x | J45: 100 | K45: 111 | L45: 133 | M45: 138 | N45: 160 | O45: x | P45: x | Q45: x | R45: x
A46: primi 3 m | B46: Prx6 | C46: 6 | D46: x | E46: x | F46: x | G46: x | H46: x | I46: x | J46: x | K46: x | L46: x | M46: x | N46: x | O46: 201 | P46: x | Q46: x | R46: x
A47: 9140 | B47: Prx7,5 | C47: 7.5 | D47: x | E47: 68 | F47: 75 | G47: 88 | H47: 95 | I47: 98 | J47: 113 | K47: 126 | L47: 151 | M47: 159 | N47: 182 | O47: x | P47: x | Q47: x | R47: x
B48: Prx10 | C48: 10 | D48: x | E48: x | F48: x | G48: x | H48: x | I48: x | J48: x | K48: x | L48: x | M48: x | N48: x | O48: 243 | P48: x | Q48: x | R48: x
A49: kg | B49: Prx12 | C49: 12 | D49: x | E49: x | F49: x | G49: x | H49: 114 | I49: x | J49: 138 | K49: 154 | L49: 182 | M49: 193 | N49: 221 | O49: x | P49: x | Q49: x | R49: x
B50: Prx0 | C50: 0 | D50: x | E50: x | F50: x | G50: x | H50: x | I50: x | J50: x | K50: x | L50: x | M50: x | N50: x | O50: x | P50: x | Q50: x | R50: x
A51: peso pistone | B51: Prx5 | C51: 5 | D51: x | E51: 97 | F51: 101 | G51: 113 | H51: 117 | I51: x | J51: 132 | K51: 143 | L51: 184 | M51: 189 | N51: 211 | O51: x | P51: x | Q51: x | R51: x
A52: primi 3 m | B52: Prx6 | C52: 6 | D52: x | E52: x | F52: x | G52: x | H52: x | I52: x | J52: x | K52: x | L52: x | M52: x | N52: x | O52: 252 | P52: x | Q52: x | R52: x
A53: 9150 | B53: Prx7,5 | C53: 7.5 | D53: x | E53: 101 | F53: 108 | G53: 122 | H53: 129 | I53: 132 | J53: 145 | K53: 158 | L53: 202 | M53: 210 | N53: 233 | O53: x | P53: x | Q53: x | R53: x
B54: Prx10 | C54: 10 | D54: x | E54: x | F54: x | G54: x | H54: x | I54: x | J54: x | K54: x | L54: x | M54: x | N54: x | O54: 294 | P54: 415 | Q54: 461 | R54: 543
A55: kg | B55: Prx12 | C55: 12 | D55: x | E55: x | F55: x | G55: x | H55: 148 | I55: x | J55: 170 | K55: 186 | L55: 233 | M55: 244 | N55: 272 | O55: x | P55: x | Q55: x | R55: x
B56: Prx0 | C56: 0 | D56: x | E56: x | F56: x | G56: x | H56: x | I56: x | J56: x | K56: x | L56: x | M56: x | N56: x | O56: x | P56: x | Q56: x | R56: x
A57: peso pistone | B57: Prx5 | C57: 5 | D57: x | E57: 15 | F57: 16 | G57: 20 | H57: 21 | I57: x | J57: 26 | K57: 28 | L57: 33 | M57: 34 | N57: 40 | O57: x | P57: x | Q57: x | R57: x
A58: metro | B58: Prx6 | C58: 6 | D58: x | E58: x | F58: x | G58: x | H58: x | I58: x | J58: x | K58: x | L58: x | M58: x | N58: x | O58: 50 | P58: x | Q58: x | R58: x
A59: successivo | B59: Prx7,5 | C59: 7.5 | D59: x | E59: 16 | F59: 19 | G59: 23 | H59: 25 | I59: 26 | J59: 30 | K59: 33 | L59: 39 | M59: 41 | N59: 47 | O59: x | P59: x | Q59: x | R59: x
B60: Prx10 | C60: 10 | D60: x | E60: x | F60: x | G60: x | H60: x | I60: x | J60: x | K60: x | L60: x | M60: x | N60: x | O60: 63 | P60: 79 | Q60: 90 | R60: 113
A61: kg | B61: Prx12 | C61: 12 | D61: x | E61: x | F61: x | G61: x | H61: 31 | I61: x | J61: 38 | K61: 42 | L61: 49 | M61: 52 | N61: 59 | O61: x | P61: x | Q61: x | R61: x
B62: Prx0 | C62: 0 | D62: x | E62: x | F62: x | G62: x | H62: x | I62: x | J62: x | K62: x | L62: x | M62: x | N62: x | O62: x | P62: x | Q62: x | R62: x
A63: peso giunta | B63: Prx5 | C63: 5 | D63: x | E63: x | F63: x | G63: 11 | H63: 13 | I63: x | J63: 17 | K63: 23 | L63: 29 | M63: 37 | N63: 45 | O63: x | P63: x | Q63: x | R63: x
A64: pistone | B64: Prx6 | C64: 6 | D64: x | E64: x | F64: x | G64: x | H64: x | I64: x | J64: x | K64: x | L64: x | M64: x | N64: x | O64: 66 | P64: x | Q64: x | R64: x
B65: Prx7,5 | C65: 7.5 | D65: x | E65: x | F65: x | G65: 10 | H65: 12 | I65: 13 | J65: 16 | K65: 21 | L65: 26 | M65: 34 | N65: 42 | O65: x | P65: x | Q65: x | R65: x
B66: Prx10 | C66: 10 | D66: x | E66: x | F66: x | G66: x | H66: x | I66: x | J66: x | K66: x | L66: x | M66: x | N66: x | O66: 61 | P66: 70 | Q66: 100 | R66: 134
A67: kg | B67: Prx12 | C67: 12 | D67: x | E67: x | F67: x | G67: x | H67: 10 | I67: x | J67: 14 | K67: 18 | L67: 23 | M67: 26 | N67: 36 | O67: x | P67: x | Q67: x | R67: x
A70: CARATTERISTICHE GEOMETRICHE CILINDRO
C71: PISTONE
A72: d | B72: mm | C72: 36 | D72: 50 | E72: 60 | F72: 70 | G72: 80 | H72: 85 | I72: 90 | J72: 100 | K72: 110 | L72: 120 | M72: 130 | N72: 150 | O72: 160 | P72: 180 | Q72: 200
A73: e cyl | B73: mm | C73: x | D73: 3.6 | E73: 3.6 | F73: 4 | G73: 4 | H73: 4 | I73: 4.5 | J73: 4.5 | K73: 5 | L73: 5 | M73: 5.6 | N73: 5.9 | O73: 8 | P73: 8 | Q73: 10
A74: D | B74: mm | C74: x | D74: 101.6 | E74: 101.6 | F74: 114.3 | G74: 114.3 | H74: 114.3 | I74: 133 | J74: 139.7 | K74: 159 | L74: 159 | M74: 177.8 | N74: 193.7 | O74: 219.1 | P74: 244.5 | Q74: 273
A75: e1 | B75: mm | C75: x | D75: 20 | E75: 20 | F75: 20 | G75: 20 | H75: 20 | I75: 20 | J75: 20 | K75: 28 | L75: 28 | M75: 28 | N75: 28 | O75: 35 | P75: 35 | Q75: 35
A76: D1 | B76: mm | C76: x | D76: 94.4 | E76: 94.4 | F76: 106.3 | G76: 106.3 | H76: 106.3 | I76: 124 | J76: 130.7 | K76: 149 | L76: 149 | M76: 166.6 | N76: 181.1 | O76: 203.1 | P76: 228.5 | Q76: 253
A77: r1 | B77: mm | C77: 5 | D77: 5 | E77: 5 | F77: 5 | G77: 5 | H77: 5 | I77: 5 | J77: 5 | K77: 6 | L77: 6 | M77: 6 | N77: 6 | O77: 7 | P77: 7 | Q77: 7
A78: s1 | B78: mm | C78: 4.9 | D78: 4.3 | E78: 4.3 | F78: 4.9 | G78: 4.9 | H78: 4.9 | I78: 5.5 | J78: 5.2 | K78: 6 | L78: 6 | M78: 6.7 | N78: 7.5 | O78: 9.5 | P78: 9.3 | Q78: 11.5
A79: h1 | B79: mm | C79: 20 | D79: 20 | E79: 20 | F79: 20 | G79: 20 | H79: 20 | I79: 20 | J79: 20 | K79: 28 | L79: 28 | M79: 28 | N79: 28 | O79: 35 | P79: 35 | Q79: 35
A80: u1 | B80: mm | C80: 6.2 | D80: 5.6 | E80: 5.6 | F80: 6.2 | G80: 6.2 | H80: 6.2 | I80: 7.2 | J80: 7.5 | K80: 8.4 | L80: 8.4 | M80: 9.3 | N80: 10.1 | O80: 11.2 | P80: 12.6 | Q80: 13.9
A81: olio tot | C81: x | D81: 7 | E81: 7 | F81: 9 | G81: 9 | H81: 9 | I81: 12.2 | J81: 13.5 | K81: 17.5 | L81: 17.5 | M81: 22 | N81: 26 | O81: 32.5 | P81: 41 | Q81: 50
A82: olio circolo | C82: x | D82: =ROUND(POWER(D72/200,2)*PI()*10,2) -> 1.96 | E82: =ROUND(POWER(E72/200,2)*PI()*10,2) -> 2.83 | F82: 3.85 | G82: 5.03 | H82: 5.67 | I82: 6.36 | J82: 7.85 | K82: 9.5 | L82: 11.31 | M82: 13.27 | N82: 17.67 | O82: 20.11 | P82: 25.45 | Q82: 31.42
A83: g (0367/2-P) | B83: mm | C83: 46 | D83: 46 | E83: 46 | F83: 46 | G83: 46 | H83: 46 | I83: 46 | J83: 46 | K83: 53 | L83: 53 | M83: 51 | N83: 53 | O83: 50 | P83: 52 | Q83: 44 | S83: COTA Y+5
A84: Qf mm | B84: 9130 | C84: x | D84: 200 | E84: 200 | F84: 200 | G84: 200 | H84: 200 | I84: 200 | J84: 200 | K84: 215 | L84: 215 | M84: 215 | N84: 215 | O84: 260 | P84: 260 | Q84: 260
A85: Qf mm | B85: 9140 | C85: x | D85: 235 | E85: 235 | F85: 235 | G85: 235 | H85: 235 | I85: 235 | J85: 235 | K85: 250 | L85: 250 | M85: 250 | N85: 250 | O85: x | P85: x | Q85: x
A86: Qf mm | B86: 9150 | C86: x | D86: 235 | E86: 235 | F86: 235 | G86: 235 | H86: 235 | I86: 235 | J86: 235 | K86: 250 | L86: 250 | M86: 250 | N86: 250 | O86: 295 | P86: 295 | Q86: 295
A89: CARATTERISTICHE GEOMETRICHE CILINDRO MCE/S
C90: PISTONE
A91: d | B91: mm | C91: X | D91: X | E91: X | F91: 70 | G91: 80
A92: e cyl | B92: mm | F92: 3.7 | G92: 3.7
A93: D | B93: mm | F93: 90 | G93: 100
A94: e1 | B94: mm | F94: 20 | G94: 84.5
A95: D1 | B95: mm | F95: 82.6 | G95: 92.6
A96: r1 | B96: mm | F96: 5 | G96: 5
A97: s1 | B97: mm | F97: 4.9 | G97: 4.9
A98: h1 | B98: mm | F98: 20 | G98: 20
A99: u1 | B99: mm | F99: 6.2 | G99: 6.2
A100: olio tot | C100: x | E100: x | F100: 5.36 | G100: 6.73 | H100: x | I100: x | J100: x | K100: x | L100: x | M100: x | N100: x | O100: x | P100: x | Q100: x
A101: olio circolo | C101: x | E101: x | F101: =ROUND(POWER(F91/200,2)*PI()*10,2) -> 3.85 | G101: 5.03 | H101: x | I101: x | J101: x | K101: x | L101: x | M101: x | N101: x | O101: x | P101: x | Q101: x
A102: g (0367/2-P) | B102: mm | C102: x | E102: x | F102: 32 | G102: 32 | H102: x | I102: x | J102: x | K102: x | L102: x | M102: x | N102: x | O102: x | P102: x | Q102: x | R102: COTA Y+5
A103: Qf mm | B103: MCE | C103: x | E103: x | F103: 243 | G103: 243 | H103: x | I103: x | J103: x | K103: x | L103: x | M103: x | N103: x | O103: x | P103: x | Q103: x
A104: Qf mm | B104: MCS | C104: x | E104: x | F104: 173 | G104: 173 | H104: x | I104: x | J104: x | K104: x | L104: x | M104: x | N104: x | O104: x | P104: x | Q104: x
A106: CARATTERISTICHE GEOMETRICHE CILINDRO CRA
C107: PISTONE
A108: d | B108: mm | C108: 36 | D108: X | E108: 60 | F108: X | G108: X
A109: e cyl | B109: mm | C109: 5.3 | E109: 5.3
A110: D | B110: mm | C110: 60 | E110: 80
A111: e1 | B111: mm | C111: 50 | E111: 50
A112: D1 | B112: mm | C112: 49.7 | E112: 69.4
A113: r1 | B113: mm | C113: 5 | E113: 5
A114: s1 | B114: mm | C114: 4.9 | E114: 4.9
A115: h1 | B115: mm | C115: 20 | E115: 20
A116: u1 | B116: mm | C116: 6.2 | E116: 6.2
A117: olio tot | C117: 7 | D117: x | E117: 7 | F117: x | G117: x | H117: x | I117: x | J117: x | K117: x | L117: x | M117: x | N117: x | O117: x | P117: x | Q117: x
A118: olio circolo | C118: =ROUND(POWER(C108/200,2)*PI()*10,2) -> 1.02 | D118: x | E118: =ROUND(POWER(E108/200,2)*PI()*10,2) -> 2.83 | F118: x | G118: x | H118: x | I118: x | J118: x | K118: x | L118: x | M118: x | N118: x | O118: x | P118: x | Q118: x
A119: g (0367/2-P) | B119: mm | C119: 55 | D119: x | E119: 55 | F119: x | G119: x | H119: x | I119: x | J119: x | K119: x | L119: x | M119: x | N119: x | O119: x | P119: x | Q119: x
A120: Qf mm | B120: CRA | C120: 222 | D120: x | E120: 222 | F120: x | G120: x | H120: x | I120: x | J120: x | K120: x | L120: x | M120: x | N120: x | O120: x | P120: x | Q120: x

Sheet accessori centralina
A1: 4
A2: =INDEX(lingue!B58:E58,1,$A$1) -> Descuento | C2: 0
A3: =INDEX(lingue!B135:E135,1,$A$1) -> Cantidad | C3: =DATOS!D13*IF(OR(DATOS!K12=1,DATOS!K12=2),1,0) -> 1 | F3: =INDEX(lingue!B136:E136,1,$A$1) -> Qt | G3: =INDEX(lingue!B137:E137,1,$A$1) -> precio €
A4: =INDEX(lingue!B138:E138,1,$A$1) -> Pistón | B4: =DATOS!D24 -> 70 | C4: =INDEX(lingue!B139:D139,1,$A$1) ->  | D4: =DATOS!D25 -> 5 | E4: 3 mt | F4: =1*C3 -> 1 | H4: =IF(B5=9150,INDEX('Prezzo P'!B22:O26,J5,J4),INDEX('Prezzo P'!B4:O8,J5,J4))*C3 -> 544 | I4: prametro 3mt. | J4: =MATCH(B4,'Prezzo P'!B3:O3,0) -> 3
A5: =INDEX(lingue!B140:E140,1,$A$1) -> modelo | B5: =DATOS!D7 -> 9130 | D5: m | F5: =IF(DATOS!D21<3000,0,DATOS!D21-3000)/1000 -> 0 | G5: =(INDEX('Prezzo P'!$B$13:$O$17,$J$5,$J$4)) -> 62 | H5: =G5*F5*C3 -> 0 | I5: parametro 3mt | J5: =MATCH(D4,'Prezzo P'!A4:A8,0) -> 1
A6: =INDEX(lingue!B141:E141,1,$A$1) -> en 2 piezas | H6: =INDEX('Prezzo P'!B32:O36,J5,J4)*IF(DATOS!D14>1,1,0)*C3 -> 0
A7: =INDEX(lingue!B142:E142,1,$A$1) -> en 3 piezas | H7: =H6*1.2*(DATOS!D14-2) -> 0 | I7: indice | J7: =IF(OR(DATOS!D7="MCE",DATOS!D7="MCS"),MATCH(DATOS!D7,database1!B103:B104,0),IF(DATOS!D7="CRA",MATCH(DATOS!D7,database1!B120:B120,0),MATCH(DATOS!D7,database1!B84:B86,0))) -> 1 | K7: indice del tipo di pistone (9130, 9140 o 9150/MCE/S)
A8: =INDEX(lingue!B143:E143,1,$A$1) -> ram head gasket | F8: 0 | G8: =INDEX('Prezzo P'!$B$41:$O$42,J8,$J$4) -> 11 | H8: =G8*F8*$C$3 -> 0 | I8: para | J8: 1
A9: =INDEX(lingue!B144:E144,1,$A$1) -> set of jack gasket | F9: 0 | G9: =INDEX('Prezzo P'!$B$41:$O$42,J9,$J$4) -> 23 | H9: =G9*F9*$C$3 -> 0 | I9: para | J9: 2
A10: =INDEX(lingue!B145:E145,1,$A$1) -> Lower piston plate (MI plate) | F10: =IF(B5=9140,1,0) -> 0 | G10: 69 | H10: =G10*F10*$C$3 -> 0
A11: anello di protezone | H11: =INDEX('Prezzo P'!B47:O51,J5,J4)*C3*DATOS!D26 -> 0
H12: =G12*F12*$C$3 -> 0
A13: =CONCATENATE(INDEX(lingue!B58:E58,1,$A$1)," ",INDEX(lingue!B138:E138,1,$A$1)) -> Descuento Pistón | H13: =C2 -> 0
A14: =CONCATENATE(INDEX(lingue!B148:E148,1,$A$1)," ",INDEX(lingue!B138:E138,1,$A$1)) -> Price list Pistón | H14: =IF(C3=0,0,SUM(H4:H12)) -> 544
A15: =CONCATENATE(INDEX(lingue!B149:E149,1,$A$1)," ",INDEX(lingue!B138:E138,1,$A$1)) -> Net Price Pistón | H15: =H14*(100-H13)/100 -> 544
A16: =INDEX(lingue!B150:E150,1,$A$1) -> Quantity Power Unit | C16: =DATOS!D43*IF(OR(DATOS!K12=1,DATOS!K12=3),1,0) -> 1
A17: =INDEX(lingue!B151:E151,1,$A$1) -> power unit | B17: =IF(OR(DATOS!D65="HL-300",DATOS!D65="HL-420",DATOS!D65="HL-420-2V",DATOS!D65="HL/OIL-265",DATOS!D65="HL/OIL-265-2V"),"HL",DATOS!D65) -> MS-A/K | C17: =INDEX(lingue!B153:D153,1,$A$1) ->  | D17: =CONCATENATE(B19,B17,IF(C18="M","M",),IF(AND(DATOS!D49=2,DATOS!D44="HL"),"D",""),IF(AND(DATOS!D48="O",DATOS!D44="HL"),"-OIL","")) -> 55MS-A/K
A18: =INDEX(lingue!B154:E154,1,$A$1) -> power | B18: =DATOS!D59 -> 6 | C18: =DATOS!H46 -> T | D18: para-1 | E18: =MATCH(D17,centraline!A3:A116,0) ->  | H18: =INDEX(centraline!B3:Y116,E18,E19)*C16 -> 
A19: =INDEX(lingue!B155:E155,1,$A$1) -> flow rate | B19: =DATOS!D45 -> 55 | D19: para-2 | E19: =MATCH(B18,centraline!B2:Y2,0) -> 13
A20: =INDEX(lingue!B156:E156,1,$A$1) -> rupture valve | C20: =IF(B17="HL",IF(B19<=23,centraline!F132,"1"""),INDEX(centraline!C132:F132,1,G20)) -> 1"1/4 | D20: portata a pistone | F20: =B19/DATOS!D13*DATOS!D43 -> 55 | G20: =SUM(MATCH(F20,centraline!B131:F131,1)) -> 1 | I20: para
G21: =SUM(MATCH(B19,centraline!B131:F131,1)) -> 1 | I21: para Centr. | J21: =MATCH(B17,centraline!B121:M121,0) ->  | K21: Rupture valve
A22: =INDEX(lingue!B157:E157,1,$A$1) -> over size tank | F22: 0 | H22: =INDEX(centraline!$B$122:$M$129,J22,$J$21)*F22*C16 ->  | I22: para | J22: =MATCH(K22,centraline!$A$122:$A$127,0) -> 1 | K22: cassone maggiorato
A23: =INDEX(lingue!B158:E158,1,$A$1) -> star delta | F23: =IF(B18>9.5,1,0) -> 0 | G23: =F23*IF(DATOS!D51="ELE",0,1)*IF(SUM(F34:F36)=0,1,0) -> 0 | H23: =INDEX(centraline!$B$122:$M$129,J23,$J$21)*F23*C16*G23 ->  | I23: para | J23: =MATCH(K23,centraline!$A$122:$A$127,0) -> 2 | K23: stella triangolo
A24: =INDEX(lingue!B161:E161,1,$A$1) -> motor protection amplifier | F24: 0 | G24: 110 | H24: =F24*G24*C16 -> 0 | I24: 5001/3 | K24: amplificatore protezione motore
A25: =INDEX(lingue!B163:E163,1,$A$1) -> internal plate | F25: 0 | H25: =INDEX(centraline!$B$122:$M$129,J25,$J$21)*F25*C16 ->  | I25: para | J25: =MATCH(K25,centraline!$A$122:$A$128,0) -> 7 | K25: lamiera interna
A26: =INDEX(lingue!B165:E165,1,$A$1) -> tank arrangement for heat exchanger | F26: =IF(SUM('accessori vari'!A65:A70)>0,1,0) -> 0 | G26: 74 | H26: =G26*F26*$C$16 -> 0 | I26: CASS.PRED.GAR
A27: =INDEX(lingue!B166:E166,1,$A$1) -> Pressure switch, 5-70 bar, NO+NC, wired as | E27: =INDEX(DATOS!AG2:AG3,DATOS!K20,1) -> N.C. | F27: 1 | G27: 55 | H27: =G27*F27 -> 55 | I27: 5304/1
A28: =INDEX(lingue!B182:E182,1,$A$1) -> Pressure sensor CHD 100 (DINACELL) | F28: 0 | G28: 484 | H28: =G28*F28*$C$16 -> 0 | I28: CHD-100
A29: =INDEX(lingue!B167:E167,1,$A$1) -> hand pump | F29: 1 | G29: 106 | H29: =G29*F29 -> 106 | I29: POM.MAN.INT
A30: =INDEX(lingue!B168:E168,1,$A$1) -> exclusion pressure gauge tap En 81.2 | F30: =IF(DATOS!D51="ELE",0,1) -> 1 | G30: 19 | H30: =G30*F30 -> 19 | I30: 5377.1
A31: =INDEX(lingue!B169:E169,1,$A$1) -> oil heater 400W 230V for tank | F31: =IF(SUM(F34:F36)>0,1,0) -> 0 | G31: 27 | H31: =G31*F31*$C$16 -> 0 | I31: RIS.CON TER
A32: =INDEX(lingue!B170:E170,1,$A$1) -> oil heater 400W 400V for tank | F32: 0 | G32: 27 | H32: 0 | I32: RIS.CON TE/400
A33: =INDEX(lingue!B171:E171,1,$A$1) -> oil heater 200W 230V for HL tank | F33: 0 | G33: 27 | H33: 0 | I33: RIS.CON TE/HL
A34: =INDEX(lingue!B173:E173,1,$A$1) -> soft stop + screw #21 (for 15-250 l/min pumps) | F34: 0 | G34: 101 | H34: 0 | I34: SOFT STOP 250
A35: =INDEX(lingue!B174:E174,1,$A$1) -> soft stop + screw #21 (for 300-380 l/min pumps) | F35: 0 | G35: 177 | H35: 0 | I35: SOFT STOP 380/MO
A36: =INDEX(lingue!B175:E175,1,$A$1) -> soft stop + screw #21 (for 440-650 l/min pumps) | F36: 0 | G36: 177 | H36: 0 | I36: SOFT STOP 650/MO
A37: =INDEX(lingue!B176:E176,1,$A$1) -> down re-levelling electrovalve (for 15 to 250 l/min pumps) | F37: =IF(AND(DATOS!D19=2,DATOS!D45<=250),1,0) -> 0 | G37: 118 | H37: 0 | I37: MICR.D/250-IN
A38: =INDEX(lingue!B177:E177,1,$A$1) -> down re-levelling electrovalve (for 300 to 650 l/min pumps) | F38: =IF(AND(DATOS!D19=2,DATOS!D45>250),1,0) -> 0 | G38: 178 | H38: 0 | I38: MICR.D/650-IN
A39: =INDEX(lingue!B128:E128,1,$A$1) -> Bomba de micronivelación 20 l/min - 3 CV | F39: 0 | G39: 976 | H39: 0 | I39: MICR.COM20/3
A40: =INDEX(lingue!B274:E274,1,$A$1) -> emergency lowering valve 12 VDC for electronic power unit | F40: 0 | G40: 80 | H40: 0 | I40: MICR.D/250-IN-MB
A41: =INDEX(lingue!B179:E179,1,$A$1) -> set of gasket valve block HL | F41: 0 | G41: 18 | H41: 0 | I41: S.GUA.DIS/HL
A42: =INDEX(lingue!B180:E180,1,$A$1) -> set of gasket valve block 15-250 l/m | F42: 0 | G42: 22 | H42: 0 | I42: S.GUA.DIS/250
A43: =INDEX(lingue!B181:E181,1,$A$1) -> set of gasket valve block 300-650 l/m | F43: 0 | G43: 28 | H43: 0 | I43: S.GUA.DIS/650
A44: imballo | H44: ='calcoli vari'!B76 -> 0 | I44: =DATOS!D56 -> standard: with thermoplastic foil
A45: motore speciale | H45: ='calcoli vari'!B48 -> 0
A47: =INDEX(lingue!B184:E184,1,$A$1) -> Power Unit discount | H47: =C2 -> 0
A48: =INDEX(lingue!B185:E185,1,$A$1) -> Price list | H48: =IF(C16=0,0,SUM(H18:H45)) -> 
A49: =INDEX(lingue!B186:E186,1,$A$1) -> Net price | H49: =H48*(100-H47)/100 -> 
A50: =INDEX(lingue!B187:E187,1,$A$1) -> Quantity Accessories | C50: 1
A51: =INDEX(lingue!B188:E188,1,$A$1) -> Discount Accessories | H51: =C2 -> 0
A52: =INDEX(lingue!B189:E189,1,$A$1) -> Price list | H52: ='accessori vari'!E75 -> 0
A53: =INDEX(lingue!B190:E190,1,$A$1) -> Net price | H53: ='accessori vari'!E76 -> 0
A54: =INDEX(lingue!B191:E191,1,$A$1) -> Other items | C54: 1 | F54: Qt | G54: prezzo
A55: =INDEX(lingue!B146:E146,1,$A$1) -> guided ram | F55: =IF(AND(DATOS!D19=2,DATOS!D6<>3),DATOS!D13,0) -> 0 | G55: 740 | H55: =G55*F55*$C$54 -> 0
A56: =INDEX(lingue!B193:E193,1,$A$1) -> xxx | F56: 0 | G56: 0 | H56: =G56*F56*$C$54 -> 0
A57: xxx | F57: 0 | G57: 0 | H57: =G57*F57*$C$54 -> 0
A58: =INDEX(lingue!B90:E90,1,'accessori vari'!$A$1) -> riduzione valvola di blocco 1"1/2-1"1/4 lato tubo | F58: =IF(AND(OR(DATOS!D45=180,DATOS!D45=210),'accessori vari'!A34=1),1,0) -> 0 | G58: 15 | H58: =+G58*F58 -> 0
A59: raccordo tra valvola di blocco 1" e tubo 3/4" | F59: =IF(AND('accessori vari'!A30+'accessori vari'!A31>0,C20="1"""),1,0) -> 0 | G59: 5 | H59: =+G59*F59 -> 0
A60: =INDEX(lingue!B194:E194,1,$A$1) -> xxx | F60: 0 | G60: 0 | H60: =G60*F60*$C$54 -> 0
A61: =INDEX(lingue!B196:E196,1,$A$1) -> Total | H61: =SUM(H54:H60)*C54 -> 0
A62: KMI | H62: ='calcoli vari'!B8 -> 0
A63: HM-SV - HSV | H63: ='calcoli vari'!B113 -> 0
A64: =INDEX(lingue!B197:E197,1,$A$1) -> Net Pirce | H64: =SUM(H61:H63) -> 0
A65: =INDEX(lingue!B198:E198,1,$A$1) -> price list | H65: =+H14+H48+H52+H64 -> 
A66: =INDEX(lingue!B199:E199,1,$A$1) -> Total NET Price | H66: =+H15+H49+H53+H64 -> 
A67: =INDEX(lingue!B200:E200,1,$A$1) -> extra discount | H67: 0
A68: =INDEX(lingue!B201:E201,1,$A$1) -> Final price | H68: =IF(OR(DATOS!F7="Errore",DATOS!F21="Errore",DATOS!F37="Errore",DATOS!F39="Errore",DATOS!F40="Errore",DATOS!F57="Errore",DATOS!F137="errore"),"Errore",INT(H66-H66*H67/100+0.5)) -> 
A69: =INDEX(lingue!B202:E202,1,$A$1) -> Currency | B69: 1 estero = EUR | D69: ?? | H69: =IF(D69=0,"//",H68/D69) -> 
C70: tipo | D70: lunghezza cad | E70: prezzo/um | F70: qt | H70: tot
A71: colonna guide | C71: aa | D71: 11 | E71: 100.54542 | F71: 0 | H71: =+E71*D71*F71 -> 0
A72: kit piastre e bulloni | E72: 100.245749 | F72: 0 | H72: =+E72*F72 -> 0
A73: bride | C73: Tx | E73: 100 | F73: 0 | H73: =+E73*F73 -> 0
F75: totale impianto | H75: =H68+SUM(H71:H73) -> 

Sheet EN 81.50
B1: =INDEX(lingue!B362:E362,1,DATOS!$B$5) -> CÁLCULO DEL PISTÓN
B2: =INDEX(lingue!B363:E363,1,DATOS!$B$5) -> CONFORME EN 81-50:2014
B4: =INDEX(lingue!B292:E292,1,DATOS!$B$5) -> Cliente | C4: INAUXA
B5: =INDEX(lingue!B293:E293,1,DATOS!$B$5) -> Referncia Instalación: | C5: 170221
B7: =INDEX(lingue!B294:E294,1,DATOS!$B$5) -> DATOS DE LA INSTALACION
B9: =INDEX(lingue!B295:E295,1,DATOS!$B$5) -> Suspensión 1 (1:1) 2 (2:1) | C9: cm = | D9: =DATOS!D8 -> 2
B10: =INDEX(lingue!B296:E296,1,DATOS!$B$5) -> Carga nominal | C10: Q = | D10: =DATOS!D9 -> 300 | E10: Kg
B11: =INDEX(lingue!B297:E297,1,DATOS!$B$5) -> Peso de la cabina y chasis | C11: P3 = | D11: =DATOS!D10 -> 450 | E11: Kg
B12: =INDEX(lingue!B298:E298,1,DATOS!$B$5) -> Peso de los cables lado cabina | C12: Pf = | D12: =DATOS!D11 -> 0 | E12: Kg
B13: =INDEX(lingue!B299:E299,1,DATOS!$B$5) -> Peso de la polea | C13: Prh = | D13: =DATOS!D12 -> 0 | E13: Kg
B14: =INDEX(lingue!B300:E300,1,DATOS!$B$5) -> Número de pistones. | C14: Nr = | D14: =DATOS!D13 -> 1
B15: =INDEX(lingue!B301:E301,1,DATOS!$B$5) -> Pistón dividido en 1,2,3 piezas | C15: n = | D15: =DATOS!D14 -> 1
B16: =INDEX(lingue!B302:E302,1,DATOS!$B$5) -> Pistón guiado (no = 1; si = 2) | C16: gds= | D16: =DATOS!D19 -> 1
B17: =INDEX(lingue!B303:E303,1,DATOS!$B$5) -> Recorrido total del pistón | C17: Lp = | D17: =IF(D16=1,DATOS!D21/10,DATOS!D21/10+13) -> 155 | E17: cm
B18: =INDEX(lingue!B304:E304,1,DATOS!$B$5) -> Distancia entre eje de polea y cabeza del vastago | C18: L1 = | D18: =DATOS!D20/10 -> 11.5 | E18: cm
B19: =INDEX(lingue!B305:E305,1,DATOS!$B$5) -> Longitud libre de inflexión (Lp/gds+L1+g) | C19: L = | D19: =(D17/D16+D18)+INDEX(database1!C83:Q83,1,C107)*0.1 -> 171.1 | E19: cm
B20: =INDEX(lingue!B306:E306,1,DATOS!$B$5) -> Peso de la unión | C20: Pgs = | D20: =IF(D15=1,0,INDEX(database1!D32:R37,C108,C109)) -> 0 | E20: Kg
B21: =INDEX(lingue!B307:E307,1,DATOS!$B$5) -> Peso del vastago por metro | C21: q = | D21: =INDEX(database1!D26:R31,C108,C109) -> 7.9 | E21: Kg /m
B22: =INDEX(lingue!B308:E308,1,DATOS!$B$5) -> Peso total del vastgago (Lp*q)/100+Pgs*(n-1) | C22: Pr = | D22: =(D17*D21)/100+D20*(D15-1) -> 12.245 | E22: Kg
B24: =INDEX(lingue!B309:E309,1,DATOS!$B$5) -> Carga total sobre el pistón
B25: =INDEX(lingue!B310:E310,1,DATOS!$B$5) -> a plena carga T=gn/10*[cm*(Q+P3)/Nr+Pf+Prh] | C25: T = | D25: =D30/10*(D9*(D10+D11)/D14+D12+D13) -> 1471.5 | E25: daN
B26: =INDEX(lingue!B311:E311,1,DATOS!$B$5) -> a cabina vacia Tv=gn/10*[cm*(P3)/Nr+Pf+Prh] | C26: Tv = | D26: =D30/10*(D9*D11/D14+D12+D13) -> 882.9 | E26: daN
B28: =INDEX(lingue!B312:E312,1,DATOS!$B$5) -> Altura piezométrica | C28: H = | D28: =D17/100 -> 1.55 | E28: m
B29: =INDEX(lingue!B313:E313,1,DATOS!$B$5) -> Peso específico del fluido hidraulico | C29: y = | D29: 0.89 | E29: daN /dm^3 | H29: =+(D29*D28)*10000 -> 13795 | I29: Pa
B30: =INDEX(lingue!B314:E314,1,DATOS!$B$5) -> Acceleración de la gravedad | C30: gn = | D30: 9.81 | E30: m/s^2 | H30: =+H29/100000 -> 0.13795 | I30: bar
B31: pi | C31: pi = | D31: 3.141592654
B32: =INDEX(lingue!B315:E315,1,DATOS!$B$5) -> Pres. stat. a plena carga (T+Pr*gn/10)/A+(y*H/10) | C32: pstat = | D32: =(D25+D22*D30/10)/D53+(D29*D28/10) -> 38.68624761 | E32: bar
B33: =INDEX(lingue!B316:E316,1,DATOS!$B$5) -> Pres. stat. en vacio (Tv+Pr*gn/10)/A+(y*H/10) | C33: pv = | D33: =(D26+D22*D30/10)/D53+(D29*D28/10) -> 23.39178238 | E33: bar
B34: =INDEX(lingue!B317:E317,1,DATOS!$B$5) -> Tarado de la válvula de sobrepresión =< pstat*1.4 | C34: ps = | D34: =D32*1.4 -> 54.16074665 | E34: bar
B36: =INDEX(lingue!B318:E318,1,DATOS!$B$5) -> PISTÓN
B37: =INDEX(lingue!B319:E319,1,DATOS!$B$5) -> 1- El sistema de unión entre los elementos del pistón y del cilindro, cuando se fabrica en varias piezas, asegura una resistencia no inferior a la de un pistón de iguales dimensiones construido en una sola pieza | C37: =INDEX(lingue!C319:F319,1,DATOS!$B$5) -> 0 | D37: =INDEX(lingue!D319:G319,1,DATOS!$B$5) -> 0 | E37: =INDEX(lingue!E319:H319,1,DATOS!$B$5) -> 0 | F37: =INDEX(lingue!F319:I319,1,DATOS!$B$5) -> 0 | G37: =INDEX(lingue!G319:J319,1,DATOS!$B$5) -> 0
B38: =INDEX(lingue!B320:E320,1,DATOS!$B$5) -> 2- El límite superior del recorrido del pistón es determinado por el tope del fondo sobre la cabeza del cilindro (tope amortiguado). | C38: =INDEX(lingue!C320:F320,1,DATOS!$B$5) -> 0 | D38: =INDEX(lingue!D320:G320,1,DATOS!$B$5) -> 0 | E38: =INDEX(lingue!E320:H320,1,DATOS!$B$5) -> 0 | F38: =INDEX(lingue!F320:I320,1,DATOS!$B$5) -> 0 | G38: =INDEX(lingue!G320:J320,1,DATOS!$B$5) -> 0
B39: =INDEX(lingue!B321:E321,1,DATOS!$B$5) -> 3- Con la cabina apoyada en la parte inferior, sobre los amortiguadores comprimidos totalmente, el pistón no toca el fondo del cilindro | C39: =INDEX(lingue!C321:F321,1,DATOS!$B$5) -> 0 | D39: =INDEX(lingue!D321:G321,1,DATOS!$B$5) -> 0 | E39: =INDEX(lingue!E321:H321,1,DATOS!$B$5) -> 0 | F39: =INDEX(lingue!F321:I321,1,DATOS!$B$5) -> 0 | G39: =INDEX(lingue!G321:J321,1,DATOS!$B$5) -> 0
B41: =INDEX(lingue!B322:E322,1,DATOS!$B$5) -> MATERIAL
B43: =INDEX(lingue!B323:E323,1,DATOS!$B$5) -> Modulo de elasticidad | C43: E = | D43: 2100000 | E43: daN /cm^2
B44: =INDEX(lingue!B324:E324,1,DATOS!$B$5) -> Material: St 52,0 (NBK) DIN 1629 / DIN 2391
B45: =INDEX(lingue!B325:E325,1,DATOS!$B$5) -> Limite convenzional de elasticidad | C45: Rp0,2 = | D45: 355 | E45: N /mm^2
B46: =INDEX(lingue!B326:E326,1,DATOS!$B$5) -> Resistencia a la tracción del material | C46: Rm = | D46: 500 | E46: N /mm^2
B48: =INDEX(lingue!B327:E327,1,DATOS!$B$5) -> DATOS DEL PISTON
B49: =INDEX(lingue!B328:E328,1,DATOS!$B$5) -> Diametro externo de la varilla | C49: d = | D49: =DATOS!D24 -> 70 | E49: mm
B50: =INDEX(lingue!B329:E329,1,DATOS!$B$5) -> Diametro interno de la varilla | C50: di = | D50: =IF(D51=0,0,D49-2*D51) -> 60 | E50: mm
B51: =INDEX(lingue!B330:E330,1,DATOS!$B$5) -> Espesor de la varilla | C51: es = | D51: =DATOS!D25 -> 5 | E51: mm
B52: =INDEX(lingue!B331:E331,1,DATOS!$B$5) -> Momento de inercia pi/640000*(d^4-di^4) | C52: J = | D52: =D31/640000*(D49^4-D50^4) -> 54.24156066 | E52: cm^4
B53: =INDEX(lingue!B332:E332,1,DATOS!$B$5) -> Area del la varilla pi/400*d^2 | C53: A = | D53: =D31/400*D49^2 -> 38.48451001 | E53: cm^2
B54: =INDEX(lingue!B333:E333,1,DATOS!$B$5) -> Sección resistente pi/400*(d^2-di^2) | C54: F = | D54: =D31/400*(D49^2-D50^2) -> 10.21017612 | E54: cm^2
B55: =INDEX(lingue!B334:E334,1,DATOS!$B$5) -> Radio de inercia (J/F)^1/2 | C55: i = | D55: =SQRT(D52/D54) -> 2.304886114 | E55: cm
B56: =INDEX(lingue!B335:E335,1,DATOS!$B$5) -> VERIFICACIÓN DE LA CARGA EN PUNTA
B57: =INDEX(lingue!B336:E336,1,DATOS!$B$5) -> Grado de esbeltez L/i | C57: lambda | D57: =D19/D55 -> 74.23360267 | F57: =IF(D57>=100,">","<") -> < | G57: 100
B58: =INDEX(lingue!B337:E337,1,DATOS!$B$5) -> Carga en punta efectiva
B59: F5=1.4*gn/10*[cm*(Q+P3)/Nr+0,64*Pr+Pf+Prh] | C59: F5 = | D59: =(1.4*D30/10*(D9*(D10+D11)/D14+0.64*D22+D12+D13)) -> 2070.863061 | E59: daN
B60: =INDEX(lingue!B338:E338,1,DATOS!$B$5) -> Carga máxima admisible
B61: =IF(D57>100," F5am=pi^2*E*J/(2*L^2)"," F5am=F/2[Rm-(Rm-210)*(lambda/100)^2]") -> F5am=F/2[Rm-(Rm-210)*(lambda/100)^2] | C61: F5am | D61: =IF(D57>100,D31^2*D43*D52/(2*D19^2),(D54*10/2)*(D46-(D46-210)*(D57/100)^2)) -> 17367.09071 | E61: daN
B63: =INDEX(lingue!B339:E339,1,DATOS!$B$5) -> COEFICIENTE DE SEGURIDAD | D63: =(D61*2)/D59 -> 16.77280457
B65: =INDEX(lingue!B340:E340,1,DATOS!$B$5) -> VERIFICACIÓN DE RESISTENCIA DE LA PARED A PRESION RADIAL
B66: gs=20*Rp0,2*(es-0,5)/(2,3*pstat*d) => 1,7 | C66: gs = | D66: =IF(D51=0,"MACIZO",20*D45*(D51-0.5)/(2.3*D32*D49)) -> 5.129657624 | F66: > | G66: 1.7
B67: =INDEX(lingue!B341:E341,1,DATOS!$B$5) -> CILINDRO
B68: =INDEX(lingue!B342:E342,1,DATOS!$B$5) -> Material: St 52,0 (NBK) DIN 1629 / DIN 2448
B69: =INDEX(lingue!B343:E343,1,DATOS!$B$5) -> Limite convenzional de elasticidad | C69: Rp0,2 = | D69: 355 | E69: N /mm^2
B70: =INDEX(lingue!B344:E344,1,DATOS!$B$5) -> DATO DEL CILINDRO
B71: =INDEX(lingue!B345:E345,1,DATOS!$B$5) -> Modelo Piston | D71: =DATOS!D7 -> 9130
B72: =INDEX(lingue!B346:E346,1,DATOS!$B$5) -> Diametro externo del cilindro | C72: D = | D72: =IF(OR(DATOS!D7="MCS",DATOS!D7="MCE"),INDEX(database1!C92:Q99,2,'EN 81.50'!C107),IF(DATOS!D7="CRA",INDEX(database1!C109:Q116,2,'EN 81.50'!C107),INDEX(database1!C73:Q80,2,'EN 81.50'!C107))) -> 114.3 | E72: mm
B73: =INDEX(lingue!B347:E347,1,DATOS!$B$5) -> Diametro interno del cilindro | C73: Di = | D73: =D72-2*D74 -> 106.3 | E73: mm
B74: =INDEX(lingue!B348:E348,1,DATOS!$B$5) -> Espesor del cilindro | C74: ecy1 = | D74: =IF(OR(DATOS!D7="MCS",DATOS!D7="MCE"),INDEX(database1!C92:Q99,1,'EN 81.50'!C107),IF(DATOS!D7="CRA",INDEX(database1!C109:Q116,1,'EN 81.50'!C107),INDEX(database1!C73:Q80,1,'EN 81.50'!C107))) -> 4 | E74: mm
B75: =INDEX(lingue!B349:E349,1,DATOS!$B$5) -> VERIFICACIÓN PRESIÓN INTERNA DEL CILINDRO
B76: gc=20*Rp0,2*(ecy1-1)/2,3*pstat*Di) => 1,7 | C76: gc = | D76: =20*D45*(D74-1)/(2.3*D32*D73) -> 2.251966345 | F76: > | G76: 1.7
B77: =INDEX(lingue!B350:E350,1,DATOS!$B$5) -> VERIFICACIÓN A PRESIÓN INTERNA DEL FONDO DEL CILINDRO (CON RANURA DE DESAHOGO)
B78: =INDEX(lingue!B351:E351,1,DATOS!$B$5) -> Espesor de la pared interna de la ranura | C78: s1 = | D78: =INDEX(database1!C73:Q80,6,'EN 81.50'!C107) -> 4.9 | E78: mm
B79: =INDEX(lingue!B352:E352,1,DATOS!$B$5) -> Espesor del fondo | C79: e1 = h1 = | D79: =INDEX(database1!C73:Q80,7,'EN 81.50'!C107) -> 20 | E79: mm
B80: ge1=10*Rp0,2*(e1-1)^2/(0,16*2,3*pstat*Di^2) | C80: ge1 = | D80: =10*D45*(D79-1)^2/(0.16*2.3*D32*D73^2) -> 7.966445696 | E80: mm | F80: > | G80: 1,7
B81: h1 >= u1 + r1 | C81: h1 = | D81: =D79 -> 20 | E81: mm | F81: > | G81: =D85+D82 -> 11.2
B82: =INDEX(lingue!B353:E353,1,DATOS!$B$5) -> Radio de la ranura de desahogo | C82: r1 = | D82: =INDEX(database1!C73:Q80,5,'EN 81.50'!C107) -> 5 | E82: mm
B83: r1 >= 5 | C83: r1 = | D83: =D82 -> 5 | E83: mm
B84: r1 >= 0,2*s1 | C84: r1 = | D84: =D82 -> 5 | E84: mm | F84: > | G84: =0.2*D78 -> 0.98
B85: =INDEX(lingue!B354:E354,1,DATOS!$B$5) -> Espesor del fondo de la ranura de desahogo | C85: u1 = | D85: =INDEX(database1!C73:Q80,8,'EN 81.50'!C107) -> 6.2 | E85: mm
B86: gu1=10*Rp0,2*(u1-1)/[1,3*2,3*pstat*(D1/2-r1)] | C86: gu1 = | D86: =10*D69*(D85-1)/(1.3*2.3*D32*(D73/2-D82)) -> 3.314420525 | E86: mm | F86: > | G86: 1.7
B87: u1 =< 1,5*s1 | C87: u1 = | D87: =D85 -> 6.2 | E87: mm | F87: < | G87: =1.5*D78 -> 7.35
B88: =INDEX(lingue!B355:E355,1,DATOS!$B$5) -> CONDUCCIÓN DE CONEXIÓN ENTRE LA CENTRAL Y LA VÁLVULA PARACAÍDAS
B89: =INDEX(lingue!B356:E356,1,DATOS!$B$5) -> Material: St 37,0 (GBK) DIN 1629 / DIN 2391
B90: =INDEX(lingue!B357:E357,1,DATOS!$B$5) -> Limite convencional de elasticidad | C90: Rp0,2 = | D90: 235 | E90: N /mm^2
B91: =INDEX(lingue!B358:E358,1,DATOS!$B$5) -> Diámetro externo de la conducción | C91: Dt = | D91: 35 | E91: mm
B92: =INDEX(lingue!B359:E359,1,DATOS!$B$5) -> Espesor de la conducción | C92: et = | D92: 2.5 | E92: mm
B93: =INDEX(lingue!B360:E360,1,DATOS!$B$5) -> VERIFICACIÓN DE LA PRESIÓN INTERNA
B94: gt=20*Rp0,2*(et-0,5)/(2,3*pstat*Dt) >= 1,7 | C94: gt = | D94: =20*D90*(D92-0.5)/(2.3*D32*D91) -> 3.018390088 | F94: > | G94: 1.7
B96: =INDEX(lingue!B361:E361,1,DATOS!$B$5) -> Las válvulas y todas las conexión están calculadas y construidas de modo que, bajo los esfuerzos derivados de una persión 2,3 veces la presion estática máxima, está garantizado un coeficiente de seguridad de 1,7 respecto al límite convencional de Rp0,2 | C96: =INDEX(lingue!C363:F363,1,DATOS!$B$5) -> 0 | D96: =INDEX(lingue!D363:G363,1,DATOS!$B$5) -> 0 | E96: =INDEX(lingue!E363:H363,1,DATOS!$B$5) -> 0 | F96: =INDEX(lingue!F363:I363,1,DATOS!$B$5) -> 0 | G96: =INDEX(lingue!G363:J363,1,DATOS!$B$5) -> 0
B102: =INDEX(lingue!B364:E364,1,DATOS!$B$5) -> SELLO Y FIRMA __________________________________ | D102: =TODAY() -> 2023-11-30
B107: PARAMETRO 1 | C107: =MATCH(D49,database1!C72:Q72,0) -> 4
B108: PARAMETRO 2 | C108: =MATCH(D51,database1!C26:C31,0) -> 2
B109: PARAMETRO 3 | C109: =MATCH(D49,database1!D7:R7,0) -> 4
B114: massa giunta pistone | C114: =IF(D49<=60,0,INDEX(database1!D62:R67,C108,C109)*(D15-1)) -> 0 | D114: por piston
B115: masa piston 9130 | C115: =INDEX(database1!D38:R43,C108,C109)+(D17/100-3)*INDEX(database1!D56:R61,C108,C109) -> 46 | D115: por piston | E115: masa primer tramo 3 metros + massa del la diferencia (incluso negativa)
B116: masa piston 9140 | C116: =INDEX(database1!D44:R49,C108,C109)+(D17/100-3)*INDEX(database1!D56:R61,C108,C109) -> 50 | D116: por piston
B117: masa piston 9150 | C117: =INDEX(database1!D50:R55,C108,C109)+(D17/100-3)*INDEX(database1!D56:R61,C108,C109) -> 84 | D117: por piston
B120: peso totale pistón | C120: =(IF('accessori centralina'!B5=9130,'EN 81.50'!C115,IF('accessori centralina'!B5=9140,'EN 81.50'!C116,'EN 81.50'!C117))+'EN 81.50'!C114)*D14 -> 46

Sheet EN 81.50 (T)
A1: CÁLCULO DEL PISTÓN TELESCOPICO
A2: CONFORME EN 81-50:2014
A3: REV4
A4: Cliente
A5: Referncia Instalación: | S5: 36/60 | T5: 60/80
R6: Modelos | S6: 1 | T6: 2
A7: DATOS DE LA INSTALACION | K7: Densidad acero | L7: 7.85 | M7: gr/cm3 | R7: 36/60 | S7: 80 | T7: 110
R8: 60/80 | S8: 5 | T8: 5
A9: Suspensión 1 (1:1) | B9: cm = | C9: =DATOS!D8 -> 2 | K9: vástago 1 | L9: =INDEX(S21:T21,1,$E$32) ->  | N9: vástago 2 | O9: =INDEX(S22:T22,1,$E$32) ->  | S9: 60 | T9: 80
A10: Carga nominal | B10: Q = | C10: =DATOS!D9 -> 300 | D10: Kg | J10: Peso/m | K10: =INDEX(S21:T21,1,$E$32) ->  | L10: =C51*$L$7/1000 ->  | M10: kg/cm | N10: =INDEX(S22:T22,1,$E$32) ->  | O10: =C65*L7/1000 ->  | P10: kg/cm | S10: 5 | T10: 5
A11: Peso de la cabina y chasis | B11: P = | C11: =DATOS!D10 -> 450 | D11: Kg | K11: Cierre antiretorno | L11: 0.32 | M11: kg | N11: Cabeza vástago | O11: 1.36 | P11: kg | S11: 36 | T11: 60
A12: Número de pistones. | B12: Nr = | C12: =DATOS!D13 -> 1 | K12: Varilla percutora | L12: 0.12 | M12: kg | N12: Varilla percutora | O12: 0.12 | P12: kg | S12: 0 | T12: 5
A13: Recorrido total del pistón | B13: Lp = | C13: =DATOS!D21/10 -> 155 | D13: cm | K13: Cabeza camisa | L13: 2.01 | M13: kg | N13: fondo vástago | O13: 0.11 | P13: kg | R13: Cota para Lt | S13: 43 | T13: 49.5
A14: Longitud de piston cerrado | B14: Lt | C14: =C13/2+INDEX(S13:T13,1,$E$32) ->  | D14: cm | H14: LT=Lp/2+CotaLt | K14: antirretorno | L14: 2.02 | M14: kg | N14: Pele2 | O14: =SUM(O11:O13) -> 1.59 | P14: kg | R14: Lt | S14: =$C$13/2+S13 -> 120.5 | T14: =$C$13/2+T13 -> 127 | U14: cm
K15: Pele1 | L15: =SUM(L11:L14) -> 4.47 | M15: kg | R15: Lc | S15: =S14-33 -> 87.5 | T15: =T14-39.2 -> 87.8
A16: Carga total sobre el pistón | Q16: 60 | R16: Lv1 | S16: =S14-25 -> 95.5 | T16: =T14-31 -> 96
A17: a plena carga T=gn/10*[cm*(Q+P)/Nr] | B17: T = | C17: =C22/10*(C9*(C10+C11)/C12) -> 1471.5 | D17: daN | Q17: 36 | R17: Lv2 | S17: =S14-21.2 -> 99.3 | T17: =T14-19 -> 108
A18: a cabina vacia Tv=gn/10*[cm*(P)/Nr] | B18: Tv = | C18: =C22/10*(C9*C11/C12) -> 882.9 | D18: daN
K19: Calculo de velocidades
A20: Altura piezométrica | B20: H = | C20: =C13/100 -> 1.55 | D20: m | K20: Bomba | L20: =DATOS!D45 -> 55 | M20: l/min
A21: Peso específico del fluido hidráulico | B21: y = | C21: 0.89 | D21: daN /dm^3 | G21: =+(C21*C20)*10000 -> 13795 | H21: Pa | K21: Hz | L21: =DATOS!D47 -> 50 | M21: Hz | S21: VASTAGO 60/5 | T21: VASTAGO 80/5
A22: Aceleración de la gravedad | B22: gn = | C22: 9.81 | D22: m/s^2 | G22: =+G21/100000 -> 0.13795 | H22: bar | K22: Factor | L22: 2 | S22: VASTAGO 36/0 | T22: VASTAGO 60/5
A23: pi | B23: pi = | C23: =PI() -> 3.141592654 | I23: 2 | K23: Velocidad | L23: =IF(L21=50,L22*L20/6/C37,1.2*L22*L20/6/C37) ->  | M23: m/s | S23: 36/60 | T23: 60/80
A25: MATERIAL
A27: Modulo de elasticidad | B27: E = | C27: 2100000 | D27: daN /cm^2
A28: Material: St 52,0 (NBK) DIN 1629 / DIN 2391
A29: Limite convencional de elasticidad | B29: Rp0,2 = | C29: 355 | D29: N /mm^2
A30: Resistencia a la tracción del material | B30: Rm = | C30: 500 | D30: N /mm^2
I31: 3
A32: DATOS DEL PISTON | B32: modelo | C32: =IF(DATOS!K2=16,"36/60",IF(DATOS!K2=17,"60/80","ERROR")) -> ERROR | E32: =DATOS!K2-15 -> -11
A33: Datos del cilindro
A34: Diámetro externo del cilindro | B34: D = | C34: =INDEX(S7:T7,1,$E$32) ->  | D34: mm
A35: Diámetro interno del cilindro | B35: Di = | C35: =C34-2*C36 ->  | D35: mm
A36: Espesor del cilindro | B36: ecy1 = | C36: =INDEX(S8:T8,1,$E$32) ->  | D36: mm
A37: Area interior del cilindro pi/400*Di^2 | B37: A= | C37: =C23/400*C35^2 ->  | D37: cm^2
A38: Area de trasmisión (A-F1) | B38: At= | C38: =C37-C51 ->  | D38: cm^2
A39: Presión stat.a plena carga cilindro ((pstat1*At+Pr1)*gn/10)/A | B39: pstat = | C39: =(C54*C38+(C48*C22/10))/C37 ->  | D39: bar
A40: Presión stat. en vacío ((pv1*At+Pr1)*gn/10)/A | B40: pv = | C40: =(C55*C38+(C48*C22)/10)/C37 ->  | D40: bar | H40: Relación sincronismo Di^2-D1^2 | J40: =(C35^2-C43^2)/100 ->  | K40: cm^2
A41: Tarado de la válvula de sobrepresión =< pstat*1.4 | B41: ps = | C41: =C39*1.4 ->  | D41: bar | H41: Relación sincronismo d2^2 | J41: =C57^2/100 ->  | K41: cm^2
A42: 1º Sección | J42: =J41/J40 -> 
A43: Diámetro externo de la varilla 1º sección | B43: d1 = | C43: =INDEX(S9:T9,1,$E$32) ->  | D43: mm
A44: Diámetro interno de la varilla 1sección | B44: di1 = | C44: =C43-2*C45 ->  | D44: mm | I44: caudal | J44: =IF(DATOS!D47=60,DATOS!D45*1.2,DATOS!D45) -> 55 | K44: l/min
A45: Espesor de la varilla | B45: es1 = | C45: =INDEX(S10:T10,1,$E$32) ->  | D45: mm | I45: velocidad | J45: =J44*((C37-C50)/C37)/C64/3 ->  | K45: m/s
A46: Peso del vástago 1 por metro | B46: q1 | C46: =L10 ->  | D46: kg/cm | I46: potencia | J46: =J44*1.4*C39/600/0.8 ->  | K46: kw
A47: Peso de elementos del vástago | B47: Pele1 | C47: =L15 -> 4.47 | D47: kg | I47: aceite en piston | J47: =IF(DATOS!K2=16,S16*C50/1000,IF(DATOS!K2=17,T16*C50/1000,)) -> 0 | K47: l | L47: El aceite contenido en las camaras sincronismo que es cte
A48: Peso total vástago q1*Lp/2+Pele1 | B48: Pr1 | C48: =C46*C13/2+C47 ->  | D48: kg | I48: aceite en circulacion | J48: =IF(DATOS!K2=16,S15*C37/1000,IF(DATOS!K2=17,T15*C37/1000,)) -> 0 | K48: l | L48: El aceite en circulacion lo que entra en la camisa
A49: Momento de inercia pi/640000*(d1^4-di^4) | B49: J1 = | C49: =C23/640000*(C43^4-C44^4) ->  | D49: cm^4
A50: Area del la varilla pi/400*d1^2 | B50: A1 = | C50: =C23/400*C43^2 ->  | D50: cm^2
A51: Sección resistente pi/400*(d1^2-di^2) | B51: F1 = | C51: =C23/400*(C43^2-C44^2) ->  | D51: cm^2
A52: Radio de inercia (J/F1)^1/2 | B52: i1 = | C52: =SQRT(C49/C51) ->  | D52: cm
A53: Longitud libre de inflexión sección 1 | B53: L1= | C53: =$C$13/2 -> 77.5 | D53: cm
A54: Presion stat.a plena carga sección1 ((T+Pr2)*gn/10)/A2 | B54: pstat1= | C54: =((C17+(C62*C22/10))/C64) ->  | D54: bar | H54: =C54*1.4 -> 
A55: Presion stat en vacío sección 1 ((Tv+Pr2)*gn/10)/A2 | B55: pv1= | C55: =(C18+(C62*C22/10))/C64 ->  | D55: bar
A56: 2º Sección maciza
A57: Diámetro externo de la varilla 2º sección | B57: d2 = | C57: =INDEX(S11:T11,1,$E$32) ->  | D57: mm
A58: Diámetro interno de la varilla 2º sección | B58: di2 = | C58: =IF(C59=0,0,C57-2*C59) ->  | D58: mm
A59: Espesor de la varilla | B59: es1 = | C59: =INDEX(S12:T12,1,$E$32) ->  | D59: mm
A60: Peso del vástago 2 por metro | B60: q2= | C60: =O10 ->  | D60: kg/cm
A61: Peso de elementos del vástago | B61: Pele2 | C61: =O14 -> 1.59 | D61: kg
A62: Peso total vástago q2*Lp/2+Pele2 | B62: Pr2 | C62: =C60*C13/2+C61 ->  | D62: kg
A63: Momento de inercia pi/640000*(d2^4-di2^4) | B63: J2 | C63: =$C$23/640000*(C57^4-C58^4) ->  | D63: cm^4
A64: Area del la varilla pi/400*d2^2 | B64: A2 = | C64: =C23/400*C57^2 ->  | D64: cm^2
A65: Sección resistente pi/400*(d2^2-di2^2) | B65: F2 = | C65: =$C$23/400*(C57^2-C58^2) ->  | D65: cm^2
A66: Radio de inercia (J/F)^1/2 | B66: i2 = | C66: =SQRT(C63/C65) ->  | D66: cm
A67: Longitud libre de inflexión sección 2 | B67: L2= | C67: =$C$13/2 -> 77.5 | D67: cm
A68: VERIFICACIÓN DE LA CARGA EN PUNTA
A69: Constante Phi 1,25*(J2/J1)^0,5-0,2 | B69: phi= | C69: =1.25*(C63/C49)^0.5-0.2 -> 
A70: Radio de giro equivalente ie=d1/4*(phi*(1+(di1/d1)^2)^0,5 | B70: ie= | C70: =0.1*C43/4*(C69*(1+(C44/C43)^2))^0.5 ->  | D70: cm
A71: Coeficiente esbeltez equivalente | B71: lme= | C71: =C13/C70 ->  | E71: =IF(C71>=100,">","<") ->  | F71: 100
A72: Carga en punta efectiva
A73: F5=1.4*gn/10*[cm*(Q+P)/Nr+0,64*Pr1+Pr2] | B73: F5 = | C73: =1.4*$C$22/10*(C10+C11+0.64*C48+C62) ->  | D73: daN | E73: > | H73: con guiado
A74: Carga máxima admisible | H74: lme>100
A75: =IF(C71>100," F5am=pi^2*E*J2*phi/(2*L^2)"," F5am=F/2[Rm-(Rm-210)*(lambda/100)^2]") ->  | B75: F5am | C75: =IF(C71>100,$C$23^2*$C$27*C49*C69/(2*C13^2),"ERROR") ->  | D75: daN | E75: =>' | F75: F5 | H75: F5am | I75: 6585.27 | J75: daN
A77: COEFICIENTE DE SEGURIDAD | C77: =(C75*2)/C73 ->  | I77: 10.33406213
A79: VERIFICACIÓN DE RESISTENCIA DE LA PARED A PRESION RADIAL 1º SECCIÓN
A80: gs=20*Rp0,2*(es-0,5)/(2,3*pstat1*d1) => 1,7 | B80: gs = | C80: =20*$C$29*(C45-0.5)/(2.3*C54*C43) ->  | E80: > | F80: 1.7
A81: VERIFICACIÓN PRESIÓN INTERNA DEL CILINDRO
A82: gc=20*Rp0,2*(ecy1-1)/2,3*pstat1*D) => 1,7 | B82: gc = | C82: =20*$C$29*(C36-1)/(2.3*C54*C34) ->  | E82: > | F82: 1.7
A83: VERIFICACIÓN A PRESIÓN INTERNA DEL FONDO DEL CILINDRO (CON FONDO PLANO)
A84: Espesor del fondo | B84: e3 | C84: 26 | D84: mm
A85: ge3=10*Rp0,2*(e3-1)^2/(0,16*2,3*pstat*Di^2) | B85: ge1 = | C85: =10*$C$29*(C84-1)^2/(0.16*2.3*C39*C35^2) ->  | D85: mm | E85: > | F85: 1,7
A86: CONDUCCIÓN DE CONEXIÓN RIGIDA ENTRE LA CENTRAL Y LA VÁLVULA PARACAÍDAS
A87: Material: St 37,0 (GBK) DIN 1629 / DIN 2391
A88: Limite convencional de elasticidad | B88: Rp0,2 = | C88: 235 | D88: N /mm^2
A89: Diámetro externo de la conducción | B89: Dt = | C89: 35 | D89: mm
A90: Espesor de la conducción | B90: et = | C90: 2.5 | D90: mm
A91: VERIFICACIÓN DE LA PRESIÓN INTERNA
A92: gt=20*Rp0,2*(et-0,5)/(2,3*pstat*Dt) >= 1,7 | B92: gt = | C92: =20*C88*(C90-0.5)/(2.3*C39*C89) ->  | E92: > | F92: 1.7
A97: SELLO Y FIRMA __________________________________ | C97: =TODAY() -> 2023-11-30

Sheet EN 81.50 HCR-75
B1: =INDEX(lingue!B362:E362,1,DATOS!$B$5) -> CÁLCULO DEL PISTÓN
B2: =INDEX(lingue!B363:E363,1,DATOS!$B$5) -> CONFORME EN 81-50:2014
B4: =INDEX(lingue!B292:E292,1,DATOS!$B$5) -> Cliente
B5: =INDEX(lingue!B293:E293,1,DATOS!$B$5) -> Referncia Instalación:
B7: =INDEX(lingue!B294:E294,1,DATOS!$B$5) -> DATOS DE LA INSTALACION | K7: Densidad acero | L7: 7850 | Q7: Recorrido (m) | R7: Carga (kg) | S7: Pmax
Q8: 15 | R8: 200
B9: =INDEX(lingue!B295:E295,1,DATOS!$B$5) -> Suspensión 1 (1:1) 2 (2:1) | C9: cm = | D9: =DATOS!D8 -> 2 | K9: Peso del vastago por metro | L9: =D55/10000*L7 -> 12.48488555 | Q9: 13.4 | R9: 300
B10: =INDEX(lingue!B296:E296,1,DATOS!$B$5) -> Carga nominal | C10: Q = | D10: =DATOS!D9 -> 300 | E10: Kg | K10: Peso tapa cabeza vastago | L10: 0.234 | Q10: 12 | R10: 400
B11: =INDEX(lingue!B297:E297,1,DATOS!$B$5) -> Peso de la cabina y chasis | C11: P3 = | D11: =DATOS!D10 -> 450 | E11: Kg | K11: Peso tapa inferior vastago | L11: 1.841 | Q11: 11.2 | R11: 500
B12: =INDEX(lingue!B298:E298,1,DATOS!$B$5) -> Peso de los cables lado cabina | C12: Pf = | D12: =DATOS!D11 -> 0 | E12: Kg | Q12: 10.4 | R12: 600
B13: =INDEX(lingue!B299:E299,1,DATOS!$B$5) -> Peso de la polea | C13: Prh = | D13: =DATOS!D12 -> 0 | E13: Kg | Q13: 9.7 | R13: 700
B14: =INDEX(lingue!B300:E300,1,DATOS!$B$5) -> Número de pistones. | C14: Nr = | D14: =DATOS!D13 -> 1 | Q14: 9.2 | R14: 800
B15: =INDEX(lingue!B301:E301,1,DATOS!$B$5) -> Pistón dividido en 1,2,3 piezas | C15: n = | D15: =DATOS!D14 -> 1 | Q15: 8.7 | R15: 900
B16: =INDEX(lingue!B302:E302,1,DATOS!$B$5) -> Pistón guiado (no = 1; si = 2) | C16: gds= | D16: =DATOS!D19 -> 1 | Q16: 8.3 | R16: 1000
B17: =INDEX(lingue!B303:E303,1,DATOS!$B$5) -> Recorrido total del pistón | C17: Lp = | D17: =IF(D16=1,DATOS!D21/10,DATOS!D21/10+13) -> 155 | E17: cm | Q17: 7.9 | R17: 1100
B18: Longitud de piston cerrado | C18: Lt | D18: =D17+334 -> 489 | E18: cm | Q18: 7.6 | R18: 1200
B19: =INDEX(lingue!B304:E304,1,DATOS!$B$5) -> Distancia entre eje de polea y cabeza del vastago | C19: L1 = | D19: =DATOS!D20/10 -> 11.5 | E19: cm | Q19: 7.3 | R19: 1300
B20: =INDEX(lingue!B305:E305,1,DATOS!$B$5) -> Longitud libre de inflexión (Lp/gds+L1+g) | C20: L = | D20: =(D17/D16+D19)+35*0.1 -> 170 | E20: cm | H20: cota g=35mm | Q20: 7.05 | R20: 1400
B21: =INDEX(lingue!B306:E306,1,DATOS!$B$5) -> Peso de la unión | C21: Pgs = | D21: =IF(D15=1,0,INDEX(database1!E33:R37,C110,C111)) -> 0 | E21: Kg | Q21: 6.8 | R21: 1500
B22: =INDEX(lingue!B307:E307,1,DATOS!$B$5) -> Peso del vastago por metro | C22: q = | D22: =L9 -> 12.48488555 | E22: Kg /m | Q22: 6.6 | R22: 1600
B23: =INDEX(lingue!B308:E308,1,DATOS!$B$5) -> Peso total del vastgago (Lp*q)/100+Pgs*(n-1) | C23: Pr = | D23: =(D17*D22)/100+D21*(D15-1)+L10+L11 -> 21.42657261 | E23: Kg | Q23: 6.45 | R23: 1700
Q24: 6.3 | R24: 1800
B25: =INDEX(lingue!B309:E309,1,DATOS!$B$5) -> Carga total sobre el pistón | K25: Volumen de aceite de circulacion | L25: =D76/100*10 -> 5.026548246 | M25: l/m | Q25: 6.1 | R25: 1900
B26: =INDEX(lingue!B310:E310,1,DATOS!$B$5) -> a plena carga T=gn/10*[cm*(Q+P3)/Nr+Pf+Prh] | C26: T = | D26: =D31/10*(D9*(D10+D11)/D14+D12+D13) -> 1471.5 | E26: daN | Q26: 5.95 | R26: 2000
B27: =INDEX(lingue!B311:E311,1,DATOS!$B$5) -> a cabina vacia Tv=gn/10*[cm*(P3)/Nr+Pf+Prh] | C27: Tv = | D27: =D31/10*(D9*D11/D14+D12+D13) -> 882.9 | E27: daN | Q27: 5.8 | R27: 2100
Q28: 5.7 | R28: 2200
B29: =INDEX(lingue!B312:E312,1,DATOS!$B$5) -> Altura piezométrica | C29: H = | D29: =D17/100 -> 1.55 | E29: m | Q29: 5.6 | R29: 2300
B30: =INDEX(lingue!B313:E313,1,DATOS!$B$5) -> Peso específico del fluido hidraulico | C30: y = | D30: 0.89 | E30: daN /dm^3 | H30: =+(D30*D29)*10000 -> 13795 | I30: Pa | Q30: 5.5 | R30: 2400
B31: =INDEX(lingue!B314:E314,1,DATOS!$B$5) -> Acceleración de la gravedad | C31: gn = | D31: 9.81 | E31: m/s^2 | H31: =+H30/100000 -> 0.13795 | I31: bar | Q31: 5.4 | R31: 2500
B32: pi | C32: pi = | D32: 3.141592654 | Q32: 5.3 | R32: 2600
B33: =INDEX(lingue!B315:E315,1,DATOS!$B$5) -> Pres. stat. a plena carga (T+Pr*gn/10)/A+(y*H/10) | C33: pstat = | D33: =(D26+D23*D31/10)/D54+(D30*D29/10) -> 33.92167991 | E33: bar | Q33: 5.2 | R33: 2700
B34: =INDEX(lingue!B316:E316,1,DATOS!$B$5) -> Pres. stat. en vacio (Tv+Pr*gn/10)/A+(y*H/10) | C34: pv = | D34: =(D27+D23*D31/10)/D54+(D30*D29/10) -> 20.59850132 | E34: bar | Q34: 5.1 | R34: 2800
B35: =INDEX(lingue!B317:E317,1,DATOS!$B$5) -> Tarado de la válvula de sobrepresión =< pstat*1.4 | C35: ps = | D35: =D33*1.4 -> 47.49035188 | E35: bar | Q35: 5 | R35: 2900
Q36: 4.9 | R36: 3000
B37: =INDEX(lingue!B318:E318,1,DATOS!$B$5) -> PISTÓN | Q37: 4.8 | R37: 3100
B38: =INDEX(lingue!B319:E319,1,DATOS!$B$5) -> 1- El sistema de unión entre los elementos del pistón y del cilindro, cuando se fabrica en varias piezas, asegura una resistencia no inferior a la de un pistón de iguales dimensiones construido en una sola pieza | C38: =INDEX(lingue!C319:F319,1,DATOS!$B$5) -> 0 | D38: =INDEX(lingue!D319:G319,1,DATOS!$B$5) -> 0 | E38: =INDEX(lingue!E319:H319,1,DATOS!$B$5) -> 0 | F38: =INDEX(lingue!F319:I319,1,DATOS!$B$5) -> 0 | G38: =INDEX(lingue!G319:J319,1,DATOS!$B$5) -> 0 | Q38: 4.75 | R38: 3200
B39: =INDEX(lingue!B320:E320,1,DATOS!$B$5) -> 2- El límite superior del recorrido del pistón es determinado por el tope del fondo sobre la cabeza del cilindro (tope amortiguado). | C39: =INDEX(lingue!C320:F320,1,DATOS!$B$5) -> 0 | D39: =INDEX(lingue!D320:G320,1,DATOS!$B$5) -> 0 | E39: =INDEX(lingue!E320:H320,1,DATOS!$B$5) -> 0 | F39: =INDEX(lingue!F320:I320,1,DATOS!$B$5) -> 0 | G39: =INDEX(lingue!G320:J320,1,DATOS!$B$5) -> 0 | Q39: 4.7 | R39: 3300
B40: =INDEX(lingue!B321:E321,1,DATOS!$B$5) -> 3- Con la cabina apoyada en la parte inferior, sobre los amortiguadores comprimidos totalmente, el pistón no toca el fondo del cilindro | C40: =INDEX(lingue!C321:F321,1,DATOS!$B$5) -> 0 | D40: =INDEX(lingue!D321:G321,1,DATOS!$B$5) -> 0 | E40: =INDEX(lingue!E321:H321,1,DATOS!$B$5) -> 0 | F40: =INDEX(lingue!F321:I321,1,DATOS!$B$5) -> 0 | G40: =INDEX(lingue!G321:J321,1,DATOS!$B$5) -> 0 | Q40: 4.65 | R40: 3400 | S40: 68
B42: =INDEX(lingue!B322:E322,1,DATOS!$B$5) -> MATERIAL
B44: =INDEX(lingue!B323:E323,1,DATOS!$B$5) -> Modulo de elasticidad | C44: E = | D44: 2100000 | E44: daN /cm^2
B45: =INDEX(lingue!B324:E324,1,DATOS!$B$5) -> Material: St 52,0 (NBK) DIN 1629 / DIN 2391
B46: =INDEX(lingue!B325:E325,1,DATOS!$B$5) -> Limite convenzional de elasticidad | C46: Rp0,2 = | D46: 355 | E46: N /mm^2
B47: =INDEX(lingue!B326:E326,1,DATOS!$B$5) -> Resistencia a la tracción del material | C47: Rm = | D47: 500 | E47: N /mm^2
B49: =INDEX(lingue!B327:E327,1,DATOS!$B$5) -> DATOS DEL PISTON
B50: =INDEX(lingue!B328:E328,1,DATOS!$B$5) -> Diametro externo de la varilla | C50: d = | D50: 75 | E50: mm
B51: =INDEX(lingue!B329:E329,1,DATOS!$B$5) -> Diametro interno de la varilla | C51: di = | D51: =IF(D52=0,0,D50-2*D52) -> 60 | E51: mm
B52: =INDEX(lingue!B330:E330,1,DATOS!$B$5) -> Espesor de la varilla | C52: es = | D52: 7.5 | E52: mm
B53: =INDEX(lingue!B331:E331,1,DATOS!$B$5) -> Momento de inercia pi/640000*(d^4-di^4) | C53: J = | D53: =D32/640000*(D50^4-D51^4) -> 91.69830354 | E53: cm^4
B54: =INDEX(lingue!B332:E332,1,DATOS!$B$5) -> Area del la varilla pi/400*d^2 | C54: Av= | D54: =D32/400*D50^2 -> 44.17864669 | E54: cm^2
B55: =INDEX(lingue!B333:E333,1,DATOS!$B$5) -> Sección resistente pi/400*(d^2-di^2) | C55: F = | D55: =D32/400*(D50^2-D51^2) -> 15.90431281 | E55: cm^2
B56: =INDEX(lingue!B334:E334,1,DATOS!$B$5) -> Radio de inercia (J/F)^1/2 | C56: i = | D56: =SQRT(D53/D55) -> 2.401171589 | E56: cm
B57: =INDEX(lingue!B335:E335,1,DATOS!$B$5) -> VERIFICACIÓN DE LA CARGA EN PUNTA
B58: =INDEX(lingue!B336:E336,1,DATOS!$B$5) -> Grado de esbeltez L/i | C58: lambda | D58: =D20/D56 -> 70.79877206 | F58: =IF(D58>=100,">","<") -> < | G58: 100
B59: =INDEX(lingue!B337:E337,1,DATOS!$B$5) -> Carga en punta efectiva
B60: F5=1.4*gn/10*[cm*(Q+P3)/Nr+0,64*Pr+Pf+Prh] | C60: F5 = | D60: =(1.4*D31/10*(D9*(D10+D11)/D14+0.64*D23+D12+D13)) -> 2078.933443 | E60: daN
B61: =INDEX(lingue!B338:E338,1,DATOS!$B$5) -> Carga máxima admisible
B62: =IF(D58>100," F5am=pi^2*E*J/(2*L^2)"," F5am=F/2[Rm-(Rm-210)*(lambda/100)^2]") -> F5am=F/2[Rm-(Rm-210)*(lambda/100)^2] | C62: F5am | D62: =IF(D58>100,D32^2*D44*D53/(2*D20^2),(D55*10/2)*(D47-(D47-210)*(D58/100)^2)) -> 28201.40679 | E62: daN
B64: =INDEX(lingue!B339:E339,1,DATOS!$B$5) -> COEFICIENTE DE SEGURIDAD | D64: =(D62*2)/D60 -> 27.13064902 | F64: > | G64: 2
B66: =INDEX(lingue!B340:E340,1,DATOS!$B$5) -> VERIFICACIÓN DE RESISTENCIA DE LA PARED A PRESION RADIAL
B67: gs=20*Rp0,2*(es-0,5)/(2,3*pstat*d) => 1,7 | C67: gs = | D67: =IF(D52=0,"MACIZO",20*D46*(D52-0.5)/(2.3*D33*D50)) -> 8.49356349 | F67: > | G67: 1.7
B68: =INDEX(lingue!B341:E341,1,DATOS!$B$5) -> CILINDRO
B69: =INDEX(lingue!B342:E342,1,DATOS!$B$5) -> Material: St 52,0 (NBK) DIN 1629 / DIN 2448
B70: =INDEX(lingue!B343:E343,1,DATOS!$B$5) -> Limite convenzional de elasticidad | C70: Rp0,2 = | D70: 355 | E70: N /mm^2
B71: =INDEX(lingue!B344:E344,1,DATOS!$B$5) -> DATO DEL CILINDRO
B72: =INDEX(lingue!B345:E345,1,DATOS!$B$5) -> Modelo Piston | D72: =DATOS!D7 -> 9130
B73: =INDEX(lingue!B346:E346,1,DATOS!$B$5) -> Diametro externo del cilindro | C73: D = | D73: 90 | E73: mm
B74: =INDEX(lingue!B347:E347,1,DATOS!$B$5) -> Diametro interno del cilindro | C74: Di = | D74: =D73-2*D75 -> 80 | E74: mm
B75: =INDEX(lingue!B348:E348,1,DATOS!$B$5) -> Espesor del cilindro | C75: ecy1 = | D75: 5 | E75: mm
B76: Area interna de la camisa pi/400*Di^2 | C76: A= | D76: =D32/400*D74^2 -> 50.26548246 | E76: mm
B77: =INDEX(lingue!B349:E349,1,DATOS!$B$5) -> VERIFICACIÓN PRESIÓN INTERNA DEL CILINDRO
B78: gc=20*Rp0,2*(ecy1-1)/2,3*pstat*Di) => 1,7 | C78: gc = | D78: =20*D46*(D75-1)/(2.3*D33*D74) -> 4.550123298 | F78: > | G78: 1.7
B79: =INDEX(lingue!B350:E350,1,DATOS!$B$5) -> VERIFICACIÓN A PRESIÓN INTERNA DEL FONDO DEL CILINDRO (CON RANURA DE DESAHOGO)
B80: =INDEX(lingue!B351:E351,1,DATOS!$B$5) -> Espesor de la pared interna de la ranura | C80: s1 = | D80: 6.5 | E80: mm
B81: =INDEX(lingue!B352:E352,1,DATOS!$B$5) -> Espesor del fondo | C81: e1 = h1 = | D81: 13 | E81: mm
B82: ge1=10*Rp0,2*(e1-1)^2/(0,16*2,3*pstat*Di^2) | C82: ge1 = | D82: =10*D46*(D81-1)^2/(0.16*2.3*D33*D74^2) -> 6.398610888 | E82: mm | F82: > | G82: 1,7
B83: h1 >= u1 + r1 | C83: h1 = | D83: =D81 -> 13 | E83: mm | F83: > | G83: =D87+D84 -> 11.2
B84: =INDEX(lingue!B353:E353,1,DATOS!$B$5) -> Radio de la ranura de desahogo | C84: r1 = | D84: 5 | E84: mm
B85: r1 >= 5 | C85: r1 = | D85: =D84 -> 5 | E85: mm
B86: r1 >= 0,2*s1 | C86: r1 = | D86: =D84 -> 5 | E86: mm | F86: > | G86: =0.2*D80 -> 1.3 | K86: r1 | L86: mm | M86: 5
B87: =INDEX(lingue!B354:E354,1,DATOS!$B$5) -> Espesor del fondo de la ranura de desahogo | C87: u1 = | D87: 6.2 | E87: mm | K87: s1 | L87: mm
B88: gu1=10*Rp0,2*(u1-1)/[1,3*2,3*pstat*(D1/2-r1)] | C88: gu1 = | D88: =10*D70*(D87-1)/(1.3*2.3*D33*(D74/2-D84)) -> 5.200140912 | E88: mm | F88: > | G88: 1.7 | K88: h1 | L88: mm | M88: 13
B89: u1 =< 1,5*s1 | C89: u1 = | D89: =D87 -> 6.2 | E89: mm | F89: < | G89: =1.5*D80 -> 9.75 | K89: u1 | L89: mm | M89: 6.2
B90: =INDEX(lingue!B355:E355,1,DATOS!$B$5) -> CONDUCCIÓN DE CONEXIÓN ENTRE LA CENTRAL Y LA VÁLVULA PARACAÍDAS
B91: =INDEX(lingue!B356:E356,1,DATOS!$B$5) -> Material: St 37,0 (GBK) DIN 1629 / DIN 2391
B92: =INDEX(lingue!B357:E357,1,DATOS!$B$5) -> Limite convencional de elasticidad | C92: Rp0,2 = | D92: 235 | E92: N /mm^2
B93: =INDEX(lingue!B358:E358,1,DATOS!$B$5) -> Diámetro externo de la conducción | C93: Dt = | D93: 35 | E93: mm
B94: =INDEX(lingue!B359:E359,1,DATOS!$B$5) -> Espesor de la conducción | C94: et = | D94: 2.5 | E94: mm
B95: =INDEX(lingue!B360:E360,1,DATOS!$B$5) -> VERIFICACIÓN DE LA PRESIÓN INTERNA
B96: gt=20*Rp0,2*(et-0,5)/(2,3*pstat*Dt) >= 1,7 | C96: gt = | D96: =20*D92*(D94-0.5)/(2.3*D33*D93) -> 3.442346801 | F96: > | G96: 1.7
B98: =INDEX(lingue!B361:E361,1,DATOS!$B$5) -> Las válvulas y todas las conexión están calculadas y construidas de modo que, bajo los esfuerzos derivados de una persión 2,3 veces la presion estática máxima, está garantizado un coeficiente de seguridad de 1,7 respecto al límite convencional de Rp0,2 | C98: =INDEX(lingue!C363:F363,1,DATOS!$B$5) -> 0 | D98: =INDEX(lingue!D363:G363,1,DATOS!$B$5) -> 0 | E98: =INDEX(lingue!E363:H363,1,DATOS!$B$5) -> 0 | F98: =INDEX(lingue!F363:I363,1,DATOS!$B$5) -> 0 | G98: =INDEX(lingue!G363:J363,1,DATOS!$B$5) -> 0
B104: =INDEX(lingue!B364:E364,1,DATOS!$B$5) -> SELLO Y FIRMA __________________________________ | D104: =TODAY() -> 2023-11-30
B109: PARAMETRO 1 | C109: =MATCH(D50,database1!C72:Q72,0) -> 
B110: PARAMETRO 2 | C110: =MATCH(D52,database1!C26:C31,0) -> 4
B111: PARAMETRO 3 | C111: =MATCH(D50,database1!D7:R7,0) -> 
B116: massa giunta pistone | C116: =IF(D50<=60,0,INDEX(database1!E63:R67,C110,C111)*(D15-1)) ->  | D116: por piston
B117: masa piston 9130 | C117: =INDEX(database1!E39:R43,C110,C111)+(D17/100-3)*INDEX(database1!E57:R61,C110,C111) ->  | D117: por piston | E117: masa primer tramo 3 metros + massa del la diferencia (incluso negativa)
B118: masa piston 9140 | C118: =INDEX(database1!E45:R49,C110,C111)+(D17/100-3)*INDEX(database1!E57:R61,C110,C111) ->  | D118: por piston
B119: masa piston 9150 | C119: =INDEX(database1!E51:R55,C110,C111)+(D17/100-3)*INDEX(database1!E57:R61,C110,C111) ->  | D119: por piston
B121: peso totale pistón | C121: =(IF('accessori centralina'!B5=9130,'EN 81.50 HCR-75'!C117,IF('accessori centralina'!B5=9140,'EN 81.50 HCR-75'!C118,'EN 81.50 HCR-75'!C119))+'EN 81.50 HCR-75'!C116)*D14 -> 

Sheet velocidad
B1: real
B2: VELOCITA' CENTRALINA 50hz | T2: VELOCITA' CENTRALINA 60Hz | AM2: SETTIMA
A3: teorico | B3: DIAMETRO PISTONE | Q3: real | V3: DIAMETRO PISTONE | BM3: Teórica | BN3: "REAL 50HZ" | BZ3: Area dm^2 | CM3: VISCOSIDAD VERKOL HM46
A4: POMPA | B4: 36 | C4: 50 | D4: 60 | E4: 70 | F4: 80 | G4: 85 | H4: 90 | I4: 100 | J4: 110 | K4: 120 | L4: 130 | M4: 150 | N4: 160 | O4: 180 | P4: 200 | Q4: 238 | R4: 76.1 | T4: POMPA | V4: POMPA | W4: 36 | X4: 50 | Y4: 60 | Z4: 70 | AA4: 80 | AB4: 85 | AC4: 90 | AD4: 100 | AE4: 110 | AF4: 120 | AG4: 130 | AH4: 150 | AI4: 160 | AJ4: 180 | AK4: 200 | AL4: 238 | AM4: 76.1 | BM4: POMPA | BN4: POMPA | BO4: %DES | BP4: 36 | BQ4: 50 | BR4: 60 | BS4: 70 | BT4: 75 | BU4: 80 | BV4: 85 | BW4: 90 | BX4: 100 | BY4: 160 | CA4: 36 | CB4: 50 | CC4: 60 | CD4: 70 | CE4: 75 | CF4: 80 | CG4: 85 | CH4: 90 | CI4: 100 | CJ4: 160 | CM4: T(ºC) | CN4: Viscosidad (cSt)
A5: 8 | B5: 0.1309757695 | C5: 0.06 | D5: 0.04 | E5: 0.03 | F5: 0.02 | G5: 0.02 | H5: 0.02 | I5: x | J5: x | K5: x | L5: x | M5: x | N5: x | O5: x | P5: x | Q5: x | R5: 0.02 | T5: 10 | V5: 8 | W5: =B5*1.2 -> 0.1571709234 | X5: 0.072 | Y5: 0.048 | Z5: 0.036 | AA5: 0.024 | AB5: 0.024 | AC5: 0.024 | AD5: x | AE5: x | AF5: x | AG5: x | AH5: x | AI5: x | AJ5: x | AK5: x | AL5: x | AM5: =R5*1.2 -> 0.024 | BM5: 8 | BN5: 8 | BO5: =BN5/BM5 -> 1 | BP5: =$BN5/(CA5*600) -> 0.1309757695 | BQ5: =$BN5/(CB5*600) -> 0.06792324673 | BR5: 0.0471642495 | BS5: 0.03465003465 | BT5: 0.02551345835 | BU5: 0.02551345835 | BV5: 0.0234948605 | BW5: 0.02096106482 | BX5: 0.01697648756 | BY5: 0.01403018782 | CA5: 0.1018 | CB5: 0.1963 | CC5: 0.2827 | CD5: 0.3848 | CE5: 0.5226 | CF5: 0.5226 | CG5: 0.5675 | CH5: 0.6361 | CI5: 0.7854 | CJ5: =PI()*1.1^2/4 -> 0.9503317777 | CM5: 5 | CN5: 383.56
A6: 12 | B6: 0.1964636542 | C6: 0.1 | D6: 0.07 | E6: 0.05 | F6: 0.04 | G6: 0.03 | H6: 0.03 | I6: x | J6: x | K6: x | L6: x | M6: x | N6: x | O6: x | P6: x | Q6: x | R6: 0.04 | T6: 15 | V6: 12 | W6: 0.2357563851 | X6: 0.12 | Y6: 0.084 | Z6: 0.06 | AA6: 0.048 | AB6: 0.036 | AC6: 0.036 | AD6: x | AE6: x | AF6: x | AG6: x | AH6: x | AI6: x | AJ6: x | AK6: x | AL6: x | AM6: 0.048 | BM6: 12 | BN6: 12 | BO6: 1 | BP6: 0.1964636542 | BQ6: 0.1018848701 | BR6: 0.07074637425 | BS6: 0.05197505198 | BT6: 0.03827018752 | BU6: 0.03827018752 | BV6: 0.03524229075 | BW6: 0.03144159723 | BX6: 0.02546473135 | BY6: 0.02104528173 | CA6: 0.1018 | CB6: 0.1963 | CC6: 0.2827 | CD6: 0.3848 | CE6: 0.5226 | CF6: 0.5226 | CG6: 0.5675 | CH6: 0.6361 | CI6: 0.7854 | CJ6: =PI()*1.1^2/4 -> 0.9503317777 | CM6: 10 | CN6: 262.47
A7: 15 | B7: 0.2455795678 | C7: 0.12 | D7: 0.08 | E7: 0.06 | F7: 0.05 | G7: 0.04 | H7: 0.04 | I7: x | J7: x | K7: x | L7: x | M7: x | N7: x | O7: x | P7: x | Q7: x | R7: 0.05 | T7: 19 | V7: 15 | W7: 0.2946954813 | X7: 0.144 | Y7: 0.096 | Z7: 0.072 | AA7: 0.06 | AB7: 0.048 | AC7: 0.048 | AD7: x | AE7: x | AF7: x | AG7: x | AH7: x | AI7: x | AJ7: x | AK7: x | AL7: x | AM7: 0.06 | BM7: 15 | BN7: 15 | BO7: 1 | BP7: 0.2455795678 | BQ7: 0.1273560876 | BR7: 0.08843296781 | BS7: 0.06496881497 | BT7: 0.0478377344 | BU7: 0.0478377344 | BV7: 0.04405286344 | BW7: 0.03930199654 | BX7: 0.03183091418 | BY7: =$BN7/(CJ7*600) -> 0.02630660216 | CA7: 0.1018 | CB7: 0.1963 | CC7: 0.2827 | CD7: 0.3848 | CE7: 0.5226 | CF7: 0.5226 | CG7: 0.5675 | CH7: 0.6361 | CI7: 0.7854 | CJ7: 0.9503317777 | CM7: 15 | CN7: 185.04
A8: 18 | B8: 0.2946954813 | C8: 0.15 | D8: 0.1 | E8: 0.07 | F8: 0.06 | G8: 0.05 | H8: 0.05 | I8: x | J8: x | K8: x | L8: x | M8: x | N8: x | O8: x | P8: x | Q8: x | R8: 0.06 | T8: 22 | V8: 18 | W8: 0.3536345776 | X8: 0.18 | Y8: 0.12 | Z8: 0.084 | AA8: 0.072 | AB8: 0.06 | AC8: 0.06 | AD8: x | AE8: x | AF8: x | AG8: x | AH8: x | AI8: x | AJ8: x | AK8: x | AL8: x | AM8: 0.072 | BM8: 18 | BN8: 18 | BO8: 1 | BP8: 0.2946954813 | BQ8: 0.1528273051 | BR8: 0.1061195614 | BS8: 0.07796257796 | BT8: 0.05740528129 | BU8: 0.05740528129 | BV8: 0.05286343612 | BW8: 0.04716239585 | BX8: 0.03819709702 | BY8: =$BN8/(CJ8*600) -> 0.0315679226 | CA8: 0.1018 | CB8: 0.1963 | CC8: 0.2827 | CD8: 0.3848 | CE8: 0.5226 | CF8: 0.5226 | CG8: 0.5675 | CH8: 0.6361 | CI8: 0.7854 | CJ8: 0.9503317777 | CM8: 20 | CN8: 134.01
A9: 23 | B9: 0.3765553373 | C9: 0.19 | D9: 0.13 | E9: 0.09 | F9: 0.07 | G9: 0.06 | H9: 0.06 | I9: 0.05 | J9: x | K9: x | L9: x | M9: x | N9: x | O9: x | P9: x | Q9: x | R9: 0.07 | T9: 27 | V9: 23 | W9: 0.4518664047 | X9: 0.228 | Y9: 0.156 | Z9: 0.108 | AA9: 0.084 | AB9: 0.072 | AC9: 0.072 | AD9: =I9*1.2 -> 0.06 | AE9: x | AF9: x | AG9: x | AH9: x | AI9: x | AJ9: x | AK9: x | AL9: x | AM9: 0.084 | BM9: 23 | BN9: 23 | BO9: 1 | BP9: 0.3765553373 | BQ9: 0.1952793344 | BR9: 0.1355972173 | BS9: 0.09961884962 | BT9: 0.07335119275 | BU9: 0.07335119275 | BV9: 0.06754772394 | BW9: 0.06026306136 | BX9: 0.04880740175 | BY9: 0.04033678998 | CA9: 0.1018 | CB9: 0.1963 | CC9: 0.2827 | CD9: 0.3848 | CE9: 0.5226 | CF9: 0.5226 | CG9: 0.5675 | CH9: 0.6361 | CI9: 0.7854 | CJ9: 0.9503317777 | CM9: 25 | CN9: 99.45
A10: 30 | B10: x | C10: 0.25 | D10: 0.17 | E10: 0.12 | F10: 0.1 | G10: 0.08 | H10: 0.075 | I10: 0.06 | J10: 0.05 | K10: x | L10: x | M10: x | N10: x | O10: x | P10: x | Q10: x | R10: 0.1 | V10: 30 | W10: x | X10: =C10*1.2 -> 0.3 | Y10: 0.204 | Z10: 0.144 | AA10: 0.12 | AB10: 0.096 | AC10: 0.09 | AD10: 0.072 | AE10: =J10*1.2 -> 0.06 | AF10: x | AG10: x | AH10: x | AI10: x | AJ10: x | AK10: x | AL10: x | AM10: 0.12 | BM10: 35 | BN10: 75 | BO10: 2.142857143 | BP10: 1.227897839 | BQ10: 0.6367804381 | BR10: 0.4421648391 | BS10: 0.3248440748 | BT10: 0.239188672 | BU10: 0.239188672 | BV10: 0.2202643172 | BW10: 0.1965099827 | BX10: 0.1591545709 | BY10: =$BN10/(CJ10*600) -> 0.06216989965 | CA10: 0.1018 | CB10: 0.1963 | CC10: 0.2827 | CD10: 0.3848 | CE10: 0.5226 | CF10: 0.5226 | CG10: 0.5675 | CH10: 0.6361 | CI10: 0.7854 | CJ10: =PI()*1.6^2/4 -> 2.010619298 | CM10: 30 | CN10: 75.44
A11: 35 | B11: x | C11: 0.3 | D11: 0.2 | E11: 0.15 | F11: 0.11 | G11: 0.1 | H11: 0.09 | I11: 0.07 | J11: 0.06 | K11: x | L11: x | M11: x | N11: x | O11: x | P11: x | Q11: x | R11: 0.11 | V11: 35 | W11: x | X11: 0.36 | Y11: 0.24 | Z11: 0.18 | AA11: 0.132 | AB11: 0.12 | AC11: 0.108 | AD11: 0.084 | AE11: 0.072 | AF11: x | AG11: x | AH11: x | AI11: x | AJ11: x | AK11: x | AL11: x | AM11: 0.132 | BZ11: =PI()*0.36^2/4 -> 0.101787602 | CM11: 35 | CN11: 58.38
A12: 45 | B12: x | C12: 0.3820682629 | D12: 0.2652989034 | E12: 0.1949064449 | F12: 0.1435132032 | G12: 0.1321585903 | H12: 0.1179059896 | I12: 0.09549274255 | J12: 0.07891980649 | K12: x | L12: x | M12: x | N12: 0.04 | O12: x | P12: x | Q12: x | R12: 0.1435132032 | V12: 45 | W12: x | X12: 0.4584819154 | Y12: 0.3183586841 | Z12: 0.2338877339 | AA12: 0.1722158439 | AB12: 0.1585903084 | AC12: 0.1414871875 | AD12: 0.1145912911 | AE12: 0.09470376779 | AF12: x | AG12: x | AH12: x | AI12: x | AJ12: x | AK12: x | AL12: x | AM12: 0.1722158439 | BZ12: =PI()*0.7*0.7/4 -> 0.3848451001 | CM12: 40 | CN12: 46
A13: 55 | B13: x | C13: 0.44 | D13: 0.3 | E13: 0.22 | F13: 0.17 | G13: 0.16 | H13: 0.13 | I13: 0.11 | J13: 0.09 | K13: 0.08 | L13: 0.06 | M13: x | N13: 0.05 | O13: x | P13: x | Q13: x | R13: x | V13: 55 | W13: x | X13: 0.528 | Y13: 0.36 | Z13: 0.264 | AA13: 0.204 | AB13: 0.192 | AC13: 0.156 | AD13: 0.132 | AE13: 0.108 | AF13: =K13*1.2 -> 0.096 | AG13: =L13*1.2 -> 0.072 | AH13: x | AI13: x | AJ13: x | AK13: x | AL13: x | AM13: x | BN13: 10 | CM13: 45 | CN13: 36.85
A14: 75 | B14: x | C14: 0.6 | D14: 0.42 | E14: 0.31 | F14: 0.25 | G14: 0.22 | H14: 0.18 | I14: 0.15 | J14: 0.12 | K14: 0.11 | L14: 0.09 | M14: 0.06 | N14: 0.06 | O14: x | P14: x | Q14: x | R14: x | V14: 75 | W14: x | X14: 0.72 | Y14: 0.504 | Z14: 0.372 | AA14: 0.3 | AB14: 0.264 | AC14: 0.216 | AD14: 0.18 | AE14: 0.144 | AF14: 0.132 | AG14: 0.108 | AH14: =M14*1.2 -> 0.072 | AI14: x | AJ14: x | AK14: x | AL14: x | AM14: x | BN14: 15 | CM14: 50 | CN14: 29.96
A15: 100 | B15: x | C15: x | D15: 0.57 | E15: 0.42 | F15: 0.31 | G15: 0.29 | H15: 0.26 | I15: 0.2 | J15: 0.17 | K15: 0.15 | L15: 0.12 | M15: 0.09 | N15: 0.08 | O15: 0.06 | P15: x | Q15: x | R15: x | V15: 100 | W15: x | X15: x | Y15: =D15*1.2 -> 0.684 | Z15: 0.504 | AA15: 0.372 | AB15: 0.348 | AC15: 0.312 | AD15: 0.24 | AE15: 0.204 | AF15: 0.18 | AG15: 0.144 | AH15: 0.108 | AI15: =N15*1.2 -> 0.096 | AJ15: =O15*1.2 -> 0.072 | AK15: x | AL15: x | AM15: x | BN15: 19 | CM15: 55 | CN15: 24.69
A16: 125 | B16: x | C16: x | D16: 0.71 | E16: 0.52 | F16: 0.4 | G16: 0.36 | H16: 0.31 | I16: 0.26 | J16: 0.21 | K16: 0.18 | L16: 0.15 | M16: 0.11 | N16: 0.1 | O16: 0.07 | P16: 0.06 | Q16: x | R16: x | V16: 125 | W16: x | X16: x | Y16: 0.852 | Z16: 0.624 | AA16: 0.48 | AB16: 0.432 | AC16: 0.372 | AD16: 0.312 | AE16: 0.252 | AF16: 0.216 | AG16: 0.18 | AH16: 0.132 | AI16: 0.12 | AJ16: 0.084 | AK16: =P16*1.2 -> 0.072 | AL16: x | AM16: x | BN16: 22 | CM16: 60 | CN16: 20.61
A17: 150 | B17: x | C17: x | D17: x | E17: 0.61 | F17: 0.47 | G17: 0.44 | H17: 0.37 | I17: 0.31 | J17: 0.26 | K17: 0.21 | L17: 0.18 | M17: 0.13 | N17: 0.12 | O17: 0.09 | P17: 0.07 | Q17: x | R17: x | V17: 150 | W17: x | X17: x | Y17: x | Z17: =E17*1.2 -> 0.732 | AA17: 0.564 | AB17: 0.528 | AC17: 0.444 | AD17: 0.372 | AE17: 0.312 | AF17: 0.252 | AG17: 0.216 | AH17: 0.156 | AI17: 0.144 | AJ17: 0.108 | AK17: 0.084 | AL17: x | AM17: x | BN17: 27 | CM17: 65 | CN17: 17.39
A18: 180 | B18: x | C18: x | D18: x | E18: 0.76 | F18: 0.58 | G18: 0.52 | H18: 0.46 | I18: 0.37 | J18: 0.31 | K18: 0.26 | L18: 0.22 | M18: 0.16 | N18: 0.15 | O18: 0.11 | P18: 0.09 | Q18: 0.06 | R18: x | V18: 180 | W18: x | X18: x | Y18: x | Z18: 0.912 | AA18: 0.696 | AB18: 0.624 | AC18: 0.552 | AD18: 0.444 | AE18: 0.372 | AF18: 0.312 | AG18: 0.264 | AH18: 0.192 | AI18: 0.18 | AJ18: 0.132 | AK18: 0.108 | AL18: =Q18*1.2 -> 0.072 | AM18: x | BN18: 43 | CM18: 70 | CN18: 12.77
A19: 210 | B19: x | C19: x | D19: x | E19: x | F19: 0.67 | G19: 0.61 | H19: 0.53 | I19: 0.43 | J19: 0.36 | K19: 0.31 | L19: 0.26 | M19: 0.2 | N19: 0.17 | O19: 0.13 | P19: 0.1 | Q19: 0.07 | R19: x | V19: 210 | W19: x | X19: x | Y19: x | Z19: x | AA19: =F19*1.2 -> 0.804 | AB19: 0.732 | AC19: 0.636 | AD19: 0.516 | AE19: 0.432 | AF19: 0.372 | AG19: 0.312 | AH19: 0.24 | AI19: 0.204 | AJ19: 0.156 | AK19: 0.12 | AL19: 0.084 | AM19: x
A20: 250 | B20: x | C20: x | D20: x | E20: x | F20: 0.8 | G20: 0.73 | H20: 0.65 | I20: 0.52 | J20: 0.43 | K20: 0.36 | L20: 0.31 | M20: 0.23 | N20: 0.21 | O20: 0.16 | P20: 0.13 | Q20: 0.09 | R20: x | V20: 250 | W20: x | X20: x | Y20: x | Z20: x | AA20: 0.96 | AB20: 0.876 | AC20: 0.78 | AD20: 0.624 | AE20: 0.516 | AF20: 0.432 | AG20: 0.372 | AH20: 0.276 | AI20: 0.252 | AJ20: 0.192 | AK20: 0.156 | AL20: 0.108 | AM20: x
A21: 300 | B21: x | C21: x | D21: x | E21: x | F21: x | G21: x | H21: 0.75 | I21: 0.61 | J21: 0.5 | K21: 0.43 | L21: 0.36 | M21: 0.27 | N21: 0.25 | O21: 0.2 | P21: 0.15 | Q21: 0.11 | R21: x | V21: 300 | W21: x | X21: x | Y21: x | Z21: x | AA21: x | AB21: x | AC21: =H21*1.2 -> 0.9 | AD21: 0.732 | AE21: 0.6 | AF21: 0.516 | AG21: 0.432 | AH21: 0.324 | AI21: 0.3 | AJ21: 0.24 | AK21: 0.18 | AL21: 0.132 | AM21: x
A22: 330 | B22: x | C22: x | D22: x | E22: x | F22: x | G22: x | H22: 0.82 | I22: 0.67 | J22: 0.55 | K22: 0.47 | L22: 0.39 | M22: 0.29 | N22: 0.27 | O22: 0.22 | P22: 0.16 | Q22: 0.12 | R22: x | V22: 330 | W22: x | X22: x | Y22: x | Z22: x | AA22: x | AB22: x | AC22: =H22*1.2 -> 0.984 | AD22: 0.804 | AE22: 0.66 | AF22: 0.564 | AG22: 0.468 | AH22: 0.348 | AI22: 0.324 | AJ22: 0.264 | AK22: 0.192 | AL22: 0.144 | AM22: x
A23: 380 | B23: x | C23: x | D23: x | E23: x | F23: x | G23: x | H23: x | I23: 0.77 | J23: 0.65 | K23: 0.55 | L23: 0.45 | M23: 0.35 | N23: 0.31 | O23: 0.24 | P23: 0.2 | Q23: 0.13 | R23: x | V23: 380 | W23: x | X23: x | Y23: x | Z23: x | AA23: x | AB23: x | AC23: x | AD23: 0.924 | AE23: 0.78 | AF23: 0.66 | AG23: 0.54 | AH23: 0.42 | AI23: 0.372 | AJ23: 0.288 | AK23: 0.24 | AL23: 0.156 | AM23: x
A24: 440 | B24: x | C24: x | D24: x | E24: x | F24: x | G24: x | H24: x | I24: 0.93 | J24: 0.77 | K24: 0.64 | L24: 0.55 | M24: 0.41 | N24: 0.36 | O24: 0.28 | P24: 0.23 | Q24: 0.16 | R24: x | V24: 440 | W24: x | X24: x | Y24: x | Z24: x | AA24: x | AB24: x | AC24: x | AD24: 1.116 | AE24: 0.924 | AF24: 0.768 | AG24: 0.66 | AH24: 0.492 | AI24: 0.432 | AJ24: 0.336 | AK24: 0.276 | AL24: 0.192 | AM24: x
A25: 500 | B25: x | C25: x | D25: x | E25: x | F25: x | G25: x | H25: x | I25: x | J25: 0.85 | K25: 0.73 | L25: 0.62 | M25: 0.47 | N25: 0.41 | O25: 0.32 | P25: 0.26 | Q25: 0.18 | R25: x | V25: 500 | W25: x | X25: x | Y25: x | Z25: x | AA25: x | AB25: x | AC25: x | AD25: x | AE25: 1.02 | AF25: 0.876 | AG25: 0.744 | AH25: 0.564 | AI25: 0.492 | AJ25: 0.384 | AK25: 0.312 | AL25: 0.216 | AM25: x
A26: 650 | B26: x | C26: x | D26: x | E26: x | F26: x | G26: x | H26: x | I26: x | J26: x | K26: 0.95 | L26: 0.81 | M26: 0.61 | N26: 0.53 | O26: 0.42 | P26: 0.34 | Q26: 0.24 | R26: x | V26: 650 | W26: x | X26: x | Y26: x | Z26: x | AA26: x | AB26: x | AC26: x | AD26: x | AE26: x | AF26: 1.14 | AG26: 0.972 | AH26: 0.732 | AI26: 0.636 | AJ26: 0.504 | AK26: 0.408 | AL26: 0.288 | AM26: x | AV26: SEIM
B28: POTENZA CENTRALINA MECCANICA 50HZ kW
B29: PRESSIONE
A30: pompa | B30: 12 | C30: 13 | D30: 14 | E30: 15 | F30: 16 | G30: 17 | H30: 18 | I30: 19 | J30: 20 | K30: 21 | L30: 22 | M30: 23 | N30: 24 | O30: 25 | P30: 26 | Q30: 27 | R30: 28 | S30: 29 | T30: 30 | U30: 31 | V30: 32 | W30: 33 | X30: 34 | Y30: 35 | Z30: 36 | AA30: 37 | AB30: 38 | AC30: 39 | AD30: 40 | AE30: 41 | AF30: 42 | AG30: 43 | AH30: 44 | AI30: 45 | AJ30: 46 | AK30: 47 | AL30: 48 | AM30: 49 | AN30: 50 | AO30: 51 | AP30: 52 | AQ30: 53 | AR30: 54 | AS30: 55 | AT30: 56 | AU30: 57 | AV30: 58 | AW30: 59 | AX30: 60
A31: HL8M | B31: x | C31: x | D31: x | E31: x | F31: 0.75 | G31: 0.75 | H31: 0.75 | I31: 0.75 | J31: 0.75 | K31: 0.75 | L31: 0.75 | M31: 0.75 | N31: 0.75 | O31: 0.75 | P31: 0.75 | Q31: 0.75 | R31: 0.75 | S31: 0.75 | T31: 0.75 | U31: 0.75 | V31: 0.75 | W31: 0.75 | X31: 1.1 | Y31: 1.1 | Z31: 1.1 | AA31: 1.1 | AB31: 1.1 | AC31: 1.1 | AD31: 1.1 | AE31: 1.1 | AF31: 1.1 | AG31: 1.1 | AH31: 1.1 | AI31: 1.1 | AJ31: 1.1 | AK31: x | AL31: x | AM31: x | AN31: x | AO31: x | AP31: x
A32: HL12M | B32: x | C32: x | D32: x | E32: x | F32: 0.75 | G32: 0.75 | H32: 0.75 | I32: 0.75 | J32: 0.75 | K32: 0.75 | L32: 0.75 | M32: 1.1 | N32: 1.1 | O32: 1.1 | P32: 1.1 | Q32: 1.1 | R32: 1.1 | S32: 1.1 | T32: 1.1 | U32: 1.1 | V32: 1.1 | W32: 1.1 | X32: 1.5 | Y32: 1.5 | Z32: 1.5 | AA32: 1.5 | AB32: 1.5 | AC32: 1.5 | AD32: 1.5 | AE32: 1.5 | AF32: 1.5 | AG32: 1.5 | AH32: 1.5 | AI32: 1.5 | AJ32: X | AK32: x | AL32: x | AM32: x | AN32: x | AO32: x | AP32: x
A33: HL18M | B33: x | C33: x | D33: x | E33: x | F33: 1.1 | G33: 1.1 | H33: 1.1 | I33: 1.1 | J33: 1.1 | K33: 1.1 | L33: 1.1 | M33: 1.1 | N33: 1.1 | O33: 1.1 | P33: 1.1 | Q33: 1.1 | R33: 1.5 | S33: 1.5 | T33: 1.5 | U33: 1.5 | V33: 1.5 | W33: 1.5 | X33: 1.5 | Y33: 1.5 | Z33: 1.5 | AA33: 1.8 | AB33: 1.8 | AC33: 1.8 | AD33: 1.8 | AE33: 1.8 | AF33: 1.8 | AG33: 1.8 | AH33: 1.8 | AI33: 1.8 | AJ33: X | AK33: x | AL33: x | AM33: x | AN33: x | AO33: x | AP33: x
A34: HL23M | B34: x | C34: x | D34: x | E34: x | F34: 1.5 | G34: 1.5 | H34: 1.5 | I34: 1.5 | J34: 1.5 | K34: 1.5 | L34: 1.5 | M34: 1.5 | N34: 1.8 | O34: 1.8 | P34: 1.8 | Q34: 1.8 | R34: 1.8 | S34: 1.8 | T34: 2.2 | U34: 2.2 | V34: 2.2 | W34: 2.2 | X34: 2.2 | Y34: 2.2 | Z34: 2.2 | AA34: X | AB34: X | AC34: X | AD34: X | AE34: X | AF34: X | AG34: X | AH34: X | AI34: X | AJ34: X | AK34: x | AL34: x | AM34: x | AN34: x | AO34: x | AP34: x
A35: HL8T | B35: x | C35: x | D35: x | E35: x | F35: 0.75 | G35: 0.75 | H35: 0.75 | I35: 0.75 | J35: 0.75 | K35: 0.75 | L35: 0.75 | M35: 0.75 | N35: 0.75 | O35: 0.75 | P35: 0.75 | Q35: 0.75 | R35: 0.75 | S35: 0.75 | T35: 0.75 | U35: 0.75 | V35: 0.75 | W35: 0.75 | X35: 0.75 | Y35: 0.75 | Z35: 0.75 | AA35: 0.75 | AB35: 0.75 | AC35: 0.75 | AD35: 0.75 | AE35: 0.75 | AF35: 0.75 | AG35: 1.1 | AH35: 1.1 | AI35: 1.1 | AJ35: 1.1 | AK35: x | AL35: x | AM35: x | AN35: x | AO35: x | AP35: x
A36: HL12T | B36: x | C36: x | D36: x | E36: x | F36: 0.75 | G36: 0.75 | H36: 0.75 | I36: 0.75 | J36: 0.75 | K36: 0.75 | L36: 0.75 | M36: 0.75 | N36: 0.75 | O36: 0.75 | P36: 0.75 | Q36: 0.75 | R36: 0.75 | S36: 1.1 | T36: 1.1 | U36: 1.1 | V36: 1.1 | W36: 1.1 | X36: 1.1 | Y36: 1.1 | Z36: 1.1 | AA36: 1.1 | AB36: 1.1 | AC36: 1.1 | AD36: 1.1 | AE36: 1.1 | AF36: 1.1 | AG36: 1.5 | AH36: 1.5 | AI36: 1.5 | AJ36: 1.5 | AK36: x | AL36: x | AM36: x | AN36: x | AO36: x | AP36: x
A37: HL18T | B37: x | C37: x | D37: x | E37: x | F37: 0.75 | G37: 0.75 | H37: 0.75 | I37: 0.75 | J37: 0.75 | K37: 0.75 | L37: 0.75 | M37: 1.1 | N37: 1.1 | O37: 1.1 | P37: 1.1 | Q37: 1.1 | R37: 1.1 | S37: 1.1 | T37: 1.1 | U37: 1.1 | V37: 1.1 | W37: 1.1 | X37: 1.1 | Y37: 1.5 | Z37: 1.5 | AA37: 1.5 | AB37: 1.5 | AC37: 1.5 | AD37: 1.5 | AE37: 1.5 | AF37: 1.5 | AG37: 1.5 | AH37: 1.5 | AI37: 1.5 | AJ37: X | AK37: x | AL37: x | AM37: x | AN37: x | AO37: x | AP37: x
A38: HL23T | B38: x | C38: x | D38: x | E38: x | F38: 1.1 | G38: 1.1 | H38: 1.1 | I38: 1.1 | J38: 1.1 | K38: 1.1 | L38: 1.1 | M38: 1.5 | N38: 1.5 | O38: 1.5 | P38: 1.5 | Q38: 1.5 | R38: 1.5 | S38: 1.5 | T38: 2.2 | U38: 2.2 | V38: 2.2 | W38: 2.2 | X38: 2.2 | Y38: 2.2 | Z38: 2.2 | AA38: 2.2 | AB38: 2.2 | AC38: 2.2 | AD38: 2.2 | AE38: 2.2 | AF38: 2.2 | AG38: 2.2 | AH38: 2.2 | AI38: X | AJ38: X | AK38: x | AL38: x | AM38: x | AN38: x | AO38: x | AP38: x
A39: HL12MD | B39: x | C39: x | D39: x | E39: x | F39: 0.75 | G39: 0.75 | H39: 0.75 | I39: 0.75 | J39: 0.75 | K39: 0.75 | L39: 0.75 | M39: 1.1 | N39: 1.1 | O39: 1.1 | P39: 1.1 | Q39: 1.1 | R39: 1.1 | S39: 1.1 | T39: 1.1 | U39: 1.1 | V39: 1.1 | W39: 1.5 | X39: 1.5 | Y39: 1.5 | Z39: 1.5 | AA39: 1.5 | AB39: 1.5 | AC39: 1.5 | AD39: 1.5 | AE39: 1.5 | AF39: 1.5 | AG39: 1.5 | AH39: 1.5 | AI39: 1.5 | AJ39: X | AK39: x | AL39: x | AM39: x | AN39: x | AO39: x | AP39: x
A40: HL18MD | B40: x | C40: x | D40: x | E40: x | F40: 1.1 | G40: 1.1 | H40: 1.1 | I40: 1.1 | J40: 1.1 | K40: 1.1 | L40: 1.1 | M40: 1.1 | N40: 1.1 | O40: 1.1 | P40: 1.1 | Q40: 1.1 | R40: 1.5 | S40: 1.5 | T40: 1.5 | U40: 1.5 | V40: 1.5 | W40: 1.5 | X40: 1.5 | Y40: 1.5 | Z40: 1.5 | AA40: 1.8 | AB40: 1.8 | AC40: 1.8 | AD40: 1.8 | AE40: 1.8 | AF40: 1.8 | AG40: 1.8 | AH40: 1.8 | AI40: 1.8 | AJ40: X | AK40: x | AL40: x | AM40: x | AN40: x | AO40: x | AP40: x
A41: HL23MD | B41: x | C41: x | D41: x | E41: x | F41: 1.5 | G41: 1.5 | H41: 1.5 | I41: 1.5 | J41: 1.5 | K41: 1.5 | L41: 1.5 | M41: 1.5 | N41: 1.8 | O41: 1.8 | P41: 1.8 | Q41: 1.8 | R41: 1.8 | S41: 1.8 | T41: 2.2 | U41: 2.2 | V41: 2.2 | W41: 2.2 | X41: 2.2 | Y41: 2.2 | Z41: 2.2 | AA41: 3 | AB41: 3 | AC41: 3 | AD41: 3 | AE41: 3 | AF41: 3 | AG41: 3 | AH41: 3 | AI41: 3 | AJ41: X | AK41: x | AL41: x | AM41: x | AN41: x | AO41: x | AP41: x
A42: HL30MD | B42: x | C42: x | D42: x | E42: x | F42: 1.8 | G42: 1.8 | H42: 1.8 | I42: 1.8 | J42: 1.8 | K42: 1.8 | L42: 1.8 | M42: 1.8 | N42: 2.2 | O42: 2.2 | P42: 2.2 | Q42: 2.2 | R42: 2.2 | S42: 3 | T42: 3 | U42: 3 | V42: 3 | W42: 3 | X42: 3 | Y42: 3 | Z42: 3 | AA42: 3 | AB42: X | AC42: X | AD42: X | AE42: X | AF42: X | AG42: X | AH42: X | AI42: X | AJ42: X | AK42: x | AL42: x | AM42: x | AN42: x | AO42: x | AP42: x
A43: HL12TD | B43: x | C43: x | D43: x | E43: x | F43: 0.75 | G43: 0.75 | H43: 0.75 | I43: 0.75 | J43: 0.75 | K43: 0.75 | L43: 0.75 | M43: 0.75 | N43: 0.75 | O43: 0.75 | P43: 0.75 | Q43: 0.75 | R43: 0.75 | S43: 1.1 | T43: 1.1 | U43: 1.1 | V43: 1.1 | W43: 1.1 | X43: 1.1 | Y43: 1.1 | Z43: 1.1 | AA43: 1.1 | AB43: 1.1 | AC43: 1.1 | AD43: 1.1 | AE43: 1.1 | AF43: 1.5 | AG43: 1.5 | AH43: 1.5 | AI43: 1.5 | AJ43: 1.5 | AK43: x | AL43: x | AM43: x | AN43: x | AO43: x | AP43: x
A44: HL18TD | B44: x | C44: x | D44: x | E44: x | F44: 0.75 | G44: 0.75 | H44: 0.75 | I44: 0.75 | J44: 0.75 | K44: 0.75 | L44: 0.75 | M44: 1.1 | N44: 1.1 | O44: 1.1 | P44: 1.1 | Q44: 1.1 | R44: 1.1 | S44: 1.1 | T44: 1.1 | U44: 1.1 | V44: 1.1 | W44: 1.1 | X44: 1.1 | Y44: 1.5 | Z44: 1.5 | AA44: 1.5 | AB44: 1.5 | AC44: 1.5 | AD44: 1.5 | AE44: 1.5 | AF44: 1.5 | AG44: 1.5 | AH44: 1.5 | AI44: 1.5 | AJ44: X | AK44: x | AL44: x | AM44: x | AN44: x | AO44: x | AP44: x
A45: HL23TD | B45: x | C45: x | D45: x | E45: x | F45: 1.1 | G45: 1.1 | H45: 1.1 | I45: 1.1 | J45: 1.1 | K45: 1.1 | L45: 1.1 | M45: 1.5 | N45: 1.5 | O45: 1.5 | P45: 1.5 | Q45: 1.5 | R45: 1.5 | S45: 1.5 | T45: 2.2 | U45: 2.2 | V45: 2.2 | W45: 2.2 | X45: 2.2 | Y45: 2.2 | Z45: 2.2 | AA45: 2.2 | AB45: 2.2 | AC45: 2.2 | AD45: 2.2 | AE45: 2.2 | AF45: 2.2 | AG45: 2.2 | AH45: 2.2 | AI45: X | AJ45: X | AK45: x | AL45: x | AM45: x | AN45: x | AO45: x | AP45: x
A46: HL30TD | B46: x | C46: x | D46: x | E46: x | F46: 1.5 | G46: 1.5 | H46: 1.5 | I46: 1.5 | J46: 1.5 | K46: 1.5 | L46: 1.5 | M46: 2.2 | N46: 2.2 | O46: 2.2 | P46: 2.2 | Q46: 2.2 | R46: 2.2 | S46: 2.2 | T46: 2.2 | U46: 2.2 | V46: 2.2 | W46: 2.2 | X46: 2.2 | Y46: 3 | Z46: 3 | AA46: 3 | AB46: 3 | AC46: 3 | AD46: 3 | AE46: 3 | AF46: 3 | AG46: 3 | AH46: 3 | AI46: 3 | AJ46: X | AK46: x | AL46: x | AM46: x | AN46: x | AO46: x | AP46: x
A47: 8M | B47: 1.5 | C47: 1.5 | D47: 1.5 | E47: 1.5 | F47: 1.5 | G47: 1.5 | H47: 1.5 | I47: 1.5 | J47: 1.5 | K47: 1.5 | L47: 1.5 | M47: 1.5 | N47: 1.5 | O47: 1.5 | P47: 1.5 | Q47: 1.5 | R47: 1.5 | S47: 1.5 | T47: 1.5 | U47: 1.5 | V47: 1.5 | W47: 1.5 | X47: 1.5 | Y47: 1.5 | Z47: 1.5 | AA47: 1.5 | AB47: 1.5 | AC47: 1.5 | AD47: 2.2 | AE47: 2.2 | AF47: 2.2 | AG47: 2.2 | AH47: 2.2 | AI47: 2.2 | AJ47: 2.2 | AK47: 2.2 | AL47: 2.2 | AM47: 2.2 | AN47: 2.2 | AO47: 2.2 | AP47: 2.2 | AQ47: 2.2 | AR47: 2.2 | AS47: 2.2 | AT47: 2.2 | AU47: 2.2 | AV47: 2.2 | AW47: 2.2 | AX47: 2.2
A48: 12M | B48: 1.5 | C48: 1.5 | D48: 1.5 | E48: 1.5 | F48: 1.5 | G48: 1.5 | H48: 1.5 | I48: 1.5 | J48: 1.5 | K48: 1.5 | L48: 1.5 | M48: 1.5 | N48: 1.5 | O48: 1.5 | P48: 1.5 | Q48: 1.5 | R48: 1.5 | S48: 1.5 | T48: 1.5 | U48: 1.5 | V48: 1.5 | W48: 1.5 | X48: 1.5 | Y48: 1.5 | Z48: 1.5 | AA48: 1.5 | AB48: 1.5 | AC48: 1.5 | AD48: 2.2 | AE48: 2.2 | AF48: 2.2 | AG48: 2.2 | AH48: 2.2 | AI48: 2.2 | AJ48: 2.2 | AK48: 2.2 | AL48: 2.2 | AM48: 2.2 | AN48: 2.2 | AO48: 2.2 | AP48: 2.2 | AQ48: 2.2 | AR48: 2.2 | AS48: 2.2 | AT48: 2.2 | AU48: 2.2 | AV48: 2.2 | AW48: 2.2 | AX48: 2.2
A49: 18M | B49: 1.5 | C49: 1.5 | D49: 1.5 | E49: 1.5 | F49: 1.5 | G49: 1.5 | H49: 1.5 | I49: 1.5 | J49: 1.5 | K49: 1.5 | L49: 1.5 | M49: 1.5 | N49: 1.5 | O49: 1.5 | P49: 1.5 | Q49: 1.5 | R49: 1.5 | S49: 1.5 | T49: 1.5 | U49: 1.5 | V49: 1.5 | W49: 1.5 | X49: 1.5 | Y49: 1.5 | Z49: 1.5 | AA49: 1.5 | AB49: 1.5 | AC49: 1.5 | AD49: 2.2 | AE49: 2.2 | AF49: 2.2 | AG49: 2.2 | AH49: 2.2 | AI49: 2.2 | AJ49: 2.2 | AK49: 2.2 | AL49: 2.2 | AM49: 2.2 | AN49: 2.2 | AO49: 2.2 | AP49: 2.2 | AQ49: 2.2 | AR49: 2.2 | AS49: 2.2 | AT49: 2.2 | AU49: 2.2 | AV49: 2.2 | AW49: 2.2 | AX49: 2.2
A50: 23M | B50: 1.5 | C50: 1.5 | D50: 1.5 | E50: 1.5 | F50: 1.5 | G50: 1.5 | H50: 1.5 | I50: 1.5 | J50: 1.5 | K50: 1.5 | L50: 1.5 | M50: 1.5 | N50: 1.5 | O50: 1.5 | P50: 2.2 | Q50: 2.2 | R50: 2.2 | S50: 2.2 | T50: 2.2 | U50: 2.2 | V50: 2.2 | W50: 2.2 | X50: 2.2 | Y50: 2.2 | Z50: 2.2 | AA50: 2.2 | AB50: 3 | AC50: 3 | AD50: 3 | AE50: 3 | AF50: 3 | AG50: 3 | AH50: 3 | AI50: 3 | AJ50: 3 | AK50: 3 | AL50: 3 | AM50: 3 | AN50: 3 | AO50: 3 | AP50: 3 | AQ50: 3 | AR50: 3 | AS50: 3 | AT50: 3 | AU50: 3 | AV50: 3 | AW50: 3 | AX50: 3
A51: 30M | B51: 2.2 | C51: 2.2 | D51: 2.2 | E51: 2.2 | F51: 2.2 | G51: 2.2 | H51: 2.2 | I51: 2.2 | J51: 2.2 | K51: 2.2 | L51: 2.2 | M51: 2.2 | N51: 2.2 | O51: 3 | P51: 3 | Q51: 3 | R51: 3 | S51: 3 | T51: 3 | U51: 3 | V51: 3 | W51: 3 | X51: 3 | Y51: 3 | Z51: 3.7 | AA51: 3.7 | AB51: 3.7 | AC51: 3.7 | AD51: 3.7 | AE51: 3.7 | AF51: 3.7 | AG51: 3.7 | AH51: 3.7 | AI51: 3.7 | AJ51: 3.7 | AK51: 3.7 | AL51: 3.7 | AM51: 3.7 | AN51: 3.7 | AO51: 3.7 | AP51: 3.7 | AQ51: 3.7 | AR51: 3.7 | AS51: 3.7 | AT51: 3.7 | AU51: 3.7 | AV51: 3.7 | AW51: 3.7 | AX51: 3.7
A52: 35M | B52: 2.2 | C52: 2.2 | D52: 2.2 | E52: 2.2 | F52: 3.7 | G52: 3.7 | H52: 3.7 | I52: 3.7 | J52: 3.7 | K52: 3.7 | L52: 3.7 | M52: 3.7 | N52: 3.7 | O52: 3 | P52: 3 | Q52: 3 | R52: 3 | S52: 3 | T52: 3 | U52: 3 | V52: 3 | W52: 3 | X52: 3 | Y52: 3 | Z52: 3.7 | AA52: 3.7 | AB52: 3.7 | AC52: 3.7 | AD52: 3.7 | AE52: 3.7 | AF52: 3.7 | AG52: 3.7 | AH52: 3.7 | AI52: 3.7 | AJ52: 3.7 | AK52: 3.7 | AL52: 3.7 | AM52: 3.7 | AN52: 3.7 | AO52: 3.7 | AP52: 3.7 | AQ52: 3.7 | AR52: 3.7 | AS52: 3.7 | AT52: 3.7 | AU52: 3.7 | AV52: 3.7 | AW52: 3.7 | AX52: 3.7
A53: 45M | B53: 3 | C53: 3 | D53: 3 | E53: 3 | F53: 3.7 | G53: 3.7 | H53: 3.7 | I53: 3.7 | J53: 3.7 | K53: 3.7 | L53: 3.7 | M53: 3.7 | N53: 3.7 | O53: 3.7 | P53: 4.8 | Q53: 4.8 | R53: 4.8 | S53: 4.8 | T53: 4.8 | U53: 4.8 | V53: 4.8 | W53: 4.8 | X53: 4.8 | Y53: 4.8 | Z53: 6 | AA53: 6 | AB53: 6 | AC53: 6 | AD53: 6 | AE53: 6 | AF53: 6 | AG53: x | AH53: x | AI53: x | AJ53: x | AK53: x | AL53: x | AM53: x | AN53: x | AO53: x | AP53: x | AQ53: x | AR53: x | AS53: x | AT53: x | AU53: x | AV53: x | AW53: x | AX53: x
A54: 55M | B54: 3 | C54: 3 | D54: 3 | E54: 3 | F54: 3 | G54: 3 | H54: 3 | I54: 3 | J54: 3 | K54: 3 | L54: 3 | M54: 3.7 | N54: 3.7 | O54: 3.7 | P54: 4.8 | Q54: 4.8 | R54: 4.8 | S54: 4.8 | T54: 4.8 | U54: 4.8 | V54: 4.8 | W54: 4.8 | X54: 4.8 | Y54: 4.8 | Z54: 6 | AA54: 6 | AB54: 6 | AC54: 6 | AD54: 6 | AE54: 6 | AF54: 6 | AG54: x | AH54: x | AI54: x | AJ54: x | AK54: x | AL54: x | AM54: x | AN54: x | AO54: x | AP54: x | AQ54: x | AR54: x | AS54: x | AT54: x | AU54: x | AV54: x | AW54: x | AX54: x
A55: 75M | B55: 3.7 | C55: 3.7 | D55: 3.7 | E55: 3.7 | F55: 3.7 | G55: 3.7 | H55: 3.7 | I55: 3.7 | J55: 4.8 | K55: 4.8 | L55: 4.8 | M55: 4.8 | N55: 4.8 | O55: 4.8 | P55: 6 | Q55: 6 | R55: 6 | S55: 6 | T55: 6 | U55: 6 | V55: x | W55: x | X55: x | Y55: x | Z55: x | AA55: x | AB55: x | AC55: x | AD55: x | AE55: x | AF55: x | AG55: x | AH55: x | AI55: x | AJ55: x | AK55: x | AL55: x | AM55: x | AN55: x | AO55: x | AP55: x | AQ55: x | AR55: x | AS55: x | AT55: x | AU55: x | AV55: x | AW55: x | AX55: x
A56: 8T | B56: 2 | C56: 2 | D56: 2 | E56: 2 | F56: 2 | G56: 2 | H56: 2 | I56: 2 | J56: 2 | K56: 2 | L56: 2 | M56: 2 | N56: 2 | O56: 2 | P56: 2 | Q56: 2 | R56: 2 | S56: 2 | T56: 2 | U56: 2 | V56: 2 | W56: 2 | X56: 2 | Y56: 2 | Z56: 2 | AA56: 2 | AB56: 2 | AC56: 2 | AD56: 2 | AE56: 2 | AF56: 2 | AG56: 2 | AH56: 2 | AI56: 2 | AJ56: 2 | AK56: 3 | AL56: 3 | AM56: 3 | AN56: 3 | AO56: 3 | AP56: 3 | AQ56: 3 | AR56: 3 | AS56: 3 | AT56: 3 | AU56: 3 | AV56: 3 | AW56: 3 | AX56: 3
A57: 12T | B57: 2 | C57: 2 | D57: 2 | E57: 2 | F57: 2 | G57: 2 | H57: 2 | I57: 2 | J57: 2 | K57: 2 | L57: 2 | M57: 2 | N57: 2 | O57: 2 | P57: 2 | Q57: 2 | R57: 2 | S57: 2 | T57: 2 | U57: 2 | V57: 2 | W57: 2 | X57: 2 | Y57: 2 | Z57: 2 | AA57: 2 | AB57: 2 | AC57: 2 | AD57: 2 | AE57: 2 | AF57: 2 | AG57: 2 | AH57: 2 | AI57: 2 | AJ57: 2 | AK57: 3 | AL57: 3 | AM57: 3 | AN57: 3 | AO57: 3 | AP57: 3 | AQ57: 3 | AR57: 3 | AS57: 3 | AT57: 3 | AU57: 3 | AV57: 3 | AW57: 3 | AX57: 3
A58: 18T | B58: 2 | C58: 2 | D58: 2 | E58: 2 | F58: 2 | G58: 2 | H58: 2 | I58: 2 | J58: 2 | K58: 2 | L58: 2 | M58: 2 | N58: 2 | O58: 2 | P58: 2 | Q58: 2 | R58: 2 | S58: 2 | T58: 2 | U58: 2 | V58: 2 | W58: 2 | X58: 2 | Y58: 2 | Z58: 2 | AA58: 2 | AB58: 2 | AC58: 2 | AD58: 2 | AE58: 2 | AF58: 2 | AG58: 2 | AH58: 2 | AI58: 2 | AJ58: 2 | AK58: 3 | AL58: 3 | AM58: 3 | AN58: 3 | AO58: 3 | AP58: 3 | AQ58: 3 | AR58: 3 | AS58: 3 | AT58: 3 | AU58: 3 | AV58: 3 | AW58: 3 | AX58: 3
A59: 23T | B59: 2 | C59: 2 | D59: 2 | E59: 2 | F59: 2 | G59: 2 | H59: 2 | I59: 2 | J59: 2 | K59: 2 | L59: 2 | M59: 2 | N59: 2 | O59: 2 | P59: 2 | Q59: 2 | R59: 2 | S59: 2 | T59: 2 | U59: 2 | V59: 2 | W59: 2 | X59: 2 | Y59: 2 | Z59: 2 | AA59: 2 | AB59: 2 | AC59: 2 | AD59: 2 | AE59: 3 | AF59: 3 | AG59: 3 | AH59: 3 | AI59: 3 | AJ59: 3 | AK59: 4.4 | AL59: 4.4 | AM59: 4.4 | AN59: 4.4 | AO59: 4.4 | AP59: 4.4 | AQ59: 4.4 | AR59: 4.4 | AS59: 4.4 | AT59: 4.4 | AU59: 4.4 | AV59: 4.4 | AW59: 4.4 | AX59: 4.4
A60: 30T | B60: 2 | C60: 2 | D60: 2 | E60: 2 | F60: 2 | G60: 2 | H60: 2 | I60: 2 | J60: 2 | K60: 2 | L60: 2 | M60: 2 | N60: 2 | O60: 2 | P60: 2 | Q60: 3 | R60: 3 | S60: 3 | T60: 3 | U60: 3 | V60: 3 | W60: 3 | X60: 3 | Y60: 3 | Z60: 3 | AA60: 3 | AB60: 3 | AC60: 3 | AD60: 4.4 | AE60: 4.4 | AF60: 4.4 | AG60: 4.4 | AH60: 4.4 | AI60: 4.4 | AJ60: 4.4 | AK60: 6 | AL60: 6 | AM60: 6 | AN60: 6 | AO60: 6 | AP60: 6 | AQ60: 6 | AR60: 7.7 | AS60: 7.7 | AT60: 7.7 | AU60: 7.7 | AV60: 7.7 | AW60: 7.7 | AX60: 7.7
A61: 35T | B61: 2 | C61: 2 | D61: 2 | E61: 2 | F61: 2 | G61: 2 | H61: 2 | I61: 2 | J61: 2 | K61: 2 | L61: 2 | M61: 2 | N61: 2 | O61: 2 | P61: 2 | Q61: 3 | R61: 3 | S61: 3 | T61: 3 | U61: 3 | V61: 3 | W61: 3 | X61: 3 | Y61: 3 | Z61: 3 | AA61: 3 | AB61: 3 | AC61: 3 | AD61: 4.4 | AE61: 4.4 | AF61: 4.4 | AG61: 4.4 | AH61: 4.4 | AI61: 4.4 | AJ61: 4.4 | AK61: 6 | AL61: 6 | AM61: 6 | AN61: 6 | AO61: 6 | AP61: 6 | AQ61: 6 | AR61: 7.7 | AS61: 7.7 | AT61: 7.7 | AU61: 7.7 | AV61: 7.7 | AW61: 7.7 | AX61: 7.7
A62: 45T | B62: 4.5 | C62: 4.5 | D62: 4.5 | E62: 4.5 | F62: 4.5 | G62: 4.5 | H62: 4.5 | I62: 4.5 | J62: 4.5 | K62: 4.5 | L62: 4.5 | M62: 4.5 | N62: 4.5 | O62: 4.5 | P62: 4.5 | Q62: 4.5 | R62: 4.5 | S62: 4.5 | T62: 4.5 | U62: 4.5 | V62: 4.4 | W62: 4.4 | X62: 4.4 | Y62: 4.4 | Z62: 4.4 | AA62: 4.4 | AB62: 6 | AC62: 6 | AD62: 6 | AE62: 6 | AF62: 6 | AG62: 6 | AH62: 6 | AI62: 6 | AJ62: 6 | AK62: 7.7 | AL62: 7.7 | AM62: 7.7 | AN62: 7.7 | AO62: 7.7 | AP62: 7.7 | AQ62: 7.7 | AR62: 9.5 | AS62: 9.5 | AT62: 9.5 | AU62: 9.5 | AV62: 9.5 | AW62: 9.5 | AX62: 9.5
A63: 55T | B63: 4.5 | C63: 4.5 | D63: 4.5 | E63: 4.5 | F63: 4.5 | G63: 4.5 | H63: 4.5 | I63: 4.5 | J63: 4.5 | K63: 4.5 | L63: 4.5 | M63: 4.5 | N63: 4.5 | O63: 4.5 | P63: 4.5 | Q63: 4.5 | R63: 4.5 | S63: 4.5 | T63: 4.5 | U63: 4.5 | V63: 4.4 | W63: 4.4 | X63: 4.4 | Y63: 4.4 | Z63: 4.4 | AA63: 4.4 | AB63: 6 | AC63: 6 | AD63: 6 | AE63: 6 | AF63: 6 | AG63: 6 | AH63: 6 | AI63: 6 | AJ63: 6 | AK63: 7.7 | AL63: 7.7 | AM63: 7.7 | AN63: 7.7 | AO63: 7.7 | AP63: 7.7 | AQ63: 7.7 | AR63: 9.5 | AS63: 9.5 | AT63: 9.5 | AU63: 9.5 | AV63: 9.5 | AW63: 9.5 | AX63: 9.5
A64: 75T | B64: 4.5 | C64: 4.5 | D64: 4.5 | E64: 4.5 | F64: 4.5 | G64: 4.5 | H64: 4.5 | I64: 4.5 | J64: 4.5 | K64: 4.5 | L64: 4.5 | M64: 4.5 | N64: 4.5 | O64: 4.5 | P64: 4.5 | Q64: 4.5 | R64: 6 | S64: 6 | T64: 6 | U64: 6 | V64: 6 | W64: 6 | X64: 6 | Y64: 6 | Z64: 6 | AA64: 6 | AB64: 7.7 | AC64: 7.7 | AD64: 7.7 | AE64: 7.7 | AF64: 7.7 | AG64: 7.7 | AH64: 7.7 | AI64: 7.7 | AJ64: 7.7 | AK64: 9.5 | AL64: 9.5 | AM64: 9.5 | AN64: 9.5 | AO64: 9.5 | AP64: 9.5 | AQ64: 9.5 | AR64: 12 | AS64: 12 | AT64: 12 | AU64: 12 | AV64: 12 | AW64: 12 | AX64: 12
A65: 100T | B65: 4.5 | C65: 4.5 | D65: 4.5 | E65: 4.5 | F65: 4.5 | G65: 4.5 | H65: 4.5 | I65: 4.5 | J65: 6 | K65: 6 | L65: 6 | M65: 6 | N65: 6 | O65: 6 | P65: 6 | Q65: 6 | R65: 7.5 | S65: 7.5 | T65: 7.5 | U65: 7.5 | V65: 7.7 | W65: 7.7 | X65: 7.7 | Y65: 7.7 | Z65: 9.5 | AA65: 9.5 | AB65: 9.5 | AC65: 9.5 | AD65: 9.5 | AE65: 9.5 | AF65: 9.5 | AG65: 9.5 | AH65: 9.5 | AI65: 9.5 | AJ65: 9.5 | AK65: 12 | AL65: 12 | AM65: 12 | AN65: 12 | AO65: 12 | AP65: 12 | AQ65: 12 | AR65: 14.7 | AS65: 14.7 | AT65: 14.7 | AU65: 14.7 | AV65: 14.7 | AW65: 14.7 | AX65: 14.7
A66: 125T | B66: 6 | C66: 6 | D66: 6 | E66: 6 | F66: 6 | G66: 6 | H66: 6 | I66: 6 | J66: 6 | K66: 6 | L66: 7.5 | M66: 7.5 | N66: 7.5 | O66: 7.5 | P66: 7.5 | Q66: 7.5 | R66: 7.5 | S66: 7.5 | T66: 9.5 | U66: 9.5 | V66: 9.5 | W66: 9.5 | X66: 9.5 | Y66: 9.5 | Z66: 9.5 | AA66: 9.5 | AB66: 12 | AC66: 12 | AD66: 12 | AE66: 12 | AF66: 12 | AG66: 12 | AH66: 12 | AI66: 12 | AJ66: 12 | AK66: 14.7 | AL66: 14.7 | AM66: 14.7 | AN66: 14.7 | AO66: 14.7 | AP66: 14.7 | AQ66: 14.7 | AR66: 18.5 | AS66: 18.5 | AT66: 18.5 | AU66: 18.5 | AV66: 18.5 | AW66: 18.5 | AX66: 18.5
A67: 150T | B67: 6 | C67: 6 | D67: 6 | E67: 6 | F67: 6 | G67: 6 | H67: 7.5 | I67: 7.5 | J67: 7.5 | K67: 7.5 | L67: 7.5 | M67: 7.5 | N67: 9.5 | O67: 9.5 | P67: 9.5 | Q67: 9.5 | R67: 9.5 | S67: 9.5 | T67: 12 | U67: 12 | V67: 12 | W67: 12 | X67: 12 | Y67: 12 | Z67: 14.7 | AA67: 14.7 | AB67: 14.7 | AC67: 14.7 | AD67: 14.7 | AE67: 14.7 | AF67: 14.7 | AG67: 14.7 | AH67: 14.7 | AI67: 14.7 | AJ67: 14.7 | AK67: 18.5 | AL67: 18.5 | AM67: 18.5 | AN67: 18.5 | AO67: 18.5 | AP67: 18.5 | AQ67: 18.5 | AR67: 22.5 | AS67: 22.5 | AT67: 22.5 | AU67: 22.5 | AV67: 22.5 | AW67: 22.5 | AX67: 22.5
A68: 180T | B68: 9.5 | C68: 9.5 | D68: 9.5 | E68: 9.5 | F68: 9.5 | G68: 9.5 | H68: 9.5 | I68: 9.5 | J68: 9.5 | K68: 9.5 | L68: 9.5 | M68: 9.5 | N68: 12 | O68: 12 | P68: 12 | Q68: 12 | R68: 12 | S68: 12 | T68: 15 | U68: 15 | V68: 14.7 | W68: 14.7 | X68: 14.7 | Y68: 14.7 | Z68: 14.7 | AA68: 14.7 | AB68: 18.5 | AC68: 18.5 | AD68: 18.5 | AE68: 18.5 | AF68: 18.5 | AG68: 18.5 | AH68: 18.5 | AI68: 18.5 | AJ68: 18.5 | AK68: x | AL68: x | AM68: x | AN68: x | AO68: x | AP68: x
A69: 210T | B69: 9.5 | C69: 9.5 | D69: 9.5 | E69: 9.5 | F69: 9.5 | G69: 9.5 | H69: 9.5 | I69: 9.5 | J69: 12 | K69: 12 | L69: 12 | M69: 12 | N69: 12 | O69: 12 | P69: 15 | Q69: 15 | R69: 15 | S69: 15 | T69: 15 | U69: 15 | V69: 18.5 | W69: 18.5 | X69: 18.5 | Y69: 18.5 | Z69: 18.5 | AA69: 18.5 | AB69: 18.5 | AC69: 18.5 | AD69: 22.5 | AE69: 22.5 | AF69: 22.5 | AG69: 22.5 | AH69: 22.5 | AI69: 22.5 | AJ69: 22.5 | AK69: x | AL69: x | AM69: x | AN69: x | AO69: x | AP69: x
A70: 250T | B70: 15 | C70: 15 | D70: 15 | E70: 15 | F70: 15 | G70: 15 | H70: 15 | I70: 15 | J70: 15 | K70: 15 | L70: 15 | M70: 15 | N70: 15 | O70: 15 | P70: 15 | Q70: 15 | R70: 18.5 | S70: 18.5 | T70: 18.5 | U70: 18.5 | V70: 18.5 | W70: 18.5 | X70: 22.5 | Y70: 22.5 | Z70: 22.5 | AA70: 22.5 | AB70: 22.5 | AC70: 22.5 | AD70: 30 | AE70: 30 | AF70: 30 | AG70: 30 | AH70: 30 | AI70: 30 | AJ70: 30 | AK70: x | AL70: x | AM70: x | AN70: x | AO70: x | AP70: x
A71: 300T | B71: 12 | C71: 12 | D71: 12 | E71: 12 | F71: 12 | G71: 12 | H71: 15 | I71: 15 | J71: 15 | K71: 15 | L71: 15 | M71: 15 | N71: 18.5 | O71: 18.5 | P71: 18.5 | Q71: 18.5 | R71: 18.5 | S71: 18.5 | T71: 22.5 | U71: 22.5 | V71: 22.5 | W71: 22.5 | X71: 22.5 | Y71: 22.5 | Z71: 30 | AA71: 30 | AB71: 30 | AC71: 30 | AD71: 30 | AE71: 30 | AF71: 30 | AG71: 30 | AH71: 30 | AI71: 30 | AJ71: 30 | AK71: x | AL71: x | AM71: x | AN71: x | AO71: x | AP71: x
A72: 330T | B72: 15 | C72: 15 | D72: 15 | E72: 15 | F72: 15 | G72: 15 | H72: 15 | I72: 15 | J72: 15 | K72: 18.5 | L72: 18.5 | M72: 18.5 | N72: 18.5 | O72: 18.5 | P72: 22.5 | Q72: 22.5 | R72: 22.5 | S72: 22.5 | T72: 22.5 | U72: 22.5 | V72: 30 | W72: 30 | X72: 30 | Y72: 30 | Z72: 30 | AA72: 30 | AB72: 30 | AC72: 30 | AD72: 30 | AE72: 30 | AF72: 30 | AG72: 30 | AH72: 37 | AI72: 37 | AJ72: 37 | AK72: x | AL72: x | AM72: x | AN72: x | AO72: x | AP72: x
A73: 380T | B73: 15 | C73: 15 | D73: 15 | E73: 15 | F73: 15 | G73: 15 | H73: 18.5 | I73: 18.5 | J73: 18.5 | K73: 18.5 | L73: 22.5 | M73: 22.5 | N73: 22.5 | O73: 22.5 | P73: 22.5 | Q73: 22.5 | R73: 30 | S73: 30 | T73: 30 | U73: 30 | V73: 30 | W73: 30 | X73: 30 | Y73: 30 | Z73: 37 | AA73: 37 | AB73: 37 | AC73: 37 | AD73: 37 | AE73: 37 | AF73: 37 | AG73: 37 | AH73: 37 | AI73: 37 | AJ73: 37 | AK73: x | AL73: x | AM73: x | AN73: x | AO73: x | AP73: x
A74: 440T | B74: 18.5 | C74: 18.5 | D74: 18.5 | E74: 18.5 | F74: 18.5 | G74: 18.5 | H74: 18.5 | I74: 18.5 | J74: 22.5 | K74: 22.5 | L74: 22.5 | M74: 22.5 | N74: 22.5 | O74: 30 | P74: 30 | Q74: 30 | R74: 30 | S74: 30 | T74: 30 | U74: 30 | V74: 30 | W74: 37 | X74: 37 | Y74: 37 | Z74: 37 | AA74: 37 | AB74: 37 | AC74: 37 | AD74: 37 | AE74: 45 | AF74: 45 | AG74: 45 | AH74: 45 | AI74: 45 | AJ74: 45 | AK74: x | AL74: x | AM74: x | AN74: x | AO74: x | AP74: x
A75: 500T | B75: 18.5 | C75: 18.5 | D75: 18.5 | E75: 18.5 | F75: 18.5 | G75: 18.5 | H75: 22.5 | I75: 22.5 | J75: 22.5 | K75: 22.5 | L75: 30 | M75: 30 | N75: 30 | O75: 30 | P75: 30 | Q75: 30 | R75: 30 | S75: 30 | T75: 37 | U75: 37 | V75: 37 | W75: 37 | X75: 37 | Y75: 37 | Z75: 45 | AA75: 45 | AB75: 45 | AC75: 45 | AD75: 45 | AE75: 45 | AF75: 60 | AG75: 60 | AH75: 60 | AI75: 60 | AJ75: 60 | AK75: x | AL75: x | AM75: x | AN75: x | AO75: x | AP75: x
A76: 650T | B76: 30 | C76: 30 | D76: 30 | E76: 30 | F76: 30 | G76: 30 | H76: 30 | I76: 30 | J76: 30 | K76: 37 | L76: 37 | M76: 37 | N76: 37 | O76: 37 | P76: 45 | Q76: 45 | R76: 45 | S76: 45 | T76: 45 | U76: 60 | V76: 60 | W76: 60 | X76: 60 | Y76: 60 | Z76: 60 | AA76: 60 | AB76: 60 | AC76: 60 | AD76: 60 | AE76: 75 | AF76: 75 | AG76: 75 | AH76: 75 | AI76: 75 | AJ76: 75 | AK76: x | AL76: x | AM76: x | AN76: x | AO76: x | AP76: x
B78: POTENZA CENTRALINA ELETTRONICA kW
B79: PRESSIONE
A80: pompa | B80: 12 | C80: 13 | D80: 14 | E80: 15 | F80: 16 | G80: 17 | H80: 18 | I80: 19 | J80: 20 | K80: 21 | L80: 22 | M80: 23 | N80: 24 | O80: 25 | P80: 26 | Q80: 27 | R80: 28 | S80: 29 | T80: 30 | U80: 31 | V80: 32 | W80: 33 | X80: 34 | Y80: 35 | Z80: 36 | AA80: 37 | AB80: 38 | AC80: 39 | AD80: 40 | AE80: 41 | AF80: 42 | AG80: 43 | AH80: 44 | AI80: 45 | AJ80: 46 | AK80: 47 | AL80: 48 | AM80: 49 | AN80: 50
A81: 18T | B81: 2 | C81: 2 | D81: 2 | E81: 2 | F81: 2 | G81: 2 | H81: 2 | I81: 2 | J81: 2 | K81: 2 | L81: 2 | M81: 2 | N81: 2 | O81: 2 | P81: 2 | Q81: 2 | R81: 2 | S81: 2 | T81: 2 | U81: 2 | V81: 2 | W81: 2 | X81: 2 | Y81: 2 | Z81: 2 | AA81: 2 | AB81: 2 | AC81: 2 | AD81: 2 | AE81: 2 | AF81: 2 | AG81: 2 | AH81: 2 | AI81: 2 | AJ81: 2 | AK81: 3 | AL81: 3 | AM81: 3 | AN81: 3
A82: 23T | B82: 2 | C82: 2 | D82: 2 | E82: 2 | F82: 2 | G82: 2 | H82: 2 | I82: 2 | J82: 2 | K82: 2 | L82: 2 | M82: 2 | N82: 2 | O82: 2 | P82: 2 | Q82: 2 | R82: 2 | S82: 2 | T82: 2 | U82: 2 | V82: 2 | W82: 2 | X82: 2 | Y82: 2 | Z82: 2 | AA82: 2 | AB82: 2 | AC82: 2 | AD82: 2 | AE82: 3 | AF82: 3 | AG82: 3 | AH82: 3 | AI82: 3 | AJ82: 3 | AK82: 4.5 | AL82: 4.5 | AM82: 4.5 | AN82: 4.5
A83: 35T | B83: 2 | C83: 2 | D83: 2 | E83: 2 | F83: 2 | G83: 2 | H83: 2 | I83: 2 | J83: 2 | K83: 2 | L83: 2 | M83: 2 | N83: 2 | O83: 2 | P83: 2 | Q83: 2 | R83: 2 | S83: 3 | T83: 3 | U83: 3 | V83: 3 | W83: 3 | X83: 3 | Y83: 3 | Z83: 3 | AA83: 3 | AB83: 3 | AC83: 3 | AD83: 3 | AE83: 3 | AF83: 3 | AG83: 3 | AH83: 3 | AI83: 4.5 | AJ83: 4.5 | AK83: 4.5 | AL83: 4.5 | AM83: 4.5 | AN83: 4.5
A84: 55T | B84: 2 | C84: 2 | D84: 2 | E84: 2 | F84: 2 | G84: 2 | H84: 2 | I84: 3 | J84: 3 | K84: 3 | L84: 3 | M84: 3 | N84: 3 | O84: 3 | P84: 3 | Q84: 3 | R84: 3 | S84: 4.5 | T84: 4.5 | U84: 4.5 | V84: 4.5 | W84: 4.5 | X84: 4.5 | Y84: 4.5 | Z84: 4.5 | AA84: 4.5 | AB84: 4.5 | AC84: 4.5 | AD84: 4.5 | AE84: 6 | AF84: 6 | AG84: 6 | AH84: 6 | AI84: 6 | AJ84: 6 | AK84: 6 | AL84: 6 | AM84: 6 | AN84: 6
A85: 75T | B85: 3 | C85: 3 | D85: 3 | E85: 3 | F85: 3 | G85: 3 | H85: 3 | I85: 3 | J85: 3 | K85: 3 | L85: 3 | M85: 4.5 | N85: 4.5 | O85: 4.5 | P85: 4.5 | Q85: 4.5 | R85: 4.5 | S85: 4.5 | T85: 4.5 | U85: 4.5 | V85: 4.5 | W85: 6 | X85: 6 | Y85: 6 | Z85: 6 | AA85: 6 | AB85: 6 | AC85: 6 | AD85: 6 | AE85: 6 | AF85: 6 | AG85: 6 | AH85: 6 | AI85: 7.5 | AJ85: 7.5 | AK85: 7.5 | AL85: 7.5 | AM85: 7.5 | AN85: 7.5
A86: 100T | B86: 4.5 | C86: 4.5 | D86: 4.5 | E86: 4.5 | F86: 4.5 | G86: 4.5 | H86: 4.5 | I86: 4.5 | J86: 4.5 | K86: 4.5 | L86: 4.5 | M86: 6 | N86: 6 | O86: 6 | P86: 6 | Q86: 6 | R86: 6 | S86: 6 | T86: 6 | U86: 7.5 | V86: 7.5 | W86: 7.5 | X86: 7.5 | Y86: 7.5 | Z86: 7.5 | AA86: 7.5 | AB86: 7.5 | AC86: 9.5 | AD86: 9.5 | AE86: 9.5 | AF86: 9.5 | AG86: 9.5 | AH86: 9.5 | AI86: 9.5 | AJ86: 9.5 | AK86: 9.5 | AL86: 9.5 | AM86: 12 | AN86: 12
A87: 125T | B87: 4.5 | C87: 4.5 | D87: 4.5 | E87: 4.5 | F87: 4.5 | G87: 6 | H87: 6 | I87: 6 | J87: 6 | K87: 6 | L87: 6 | M87: 6 | N87: 6 | O87: 7.5 | P87: 7.5 | Q87: 7.5 | R87: 7.5 | S87: 7.5 | T87: 7.5 | U87: 7.5 | V87: 7.5 | W87: 9.5 | X87: 9.5 | Y87: 9.5 | Z87: 9.5 | AA87: 9.5 | AB87: 9.5 | AC87: 9.5 | AD87: 9.5 | AE87: 12 | AF87: 12 | AG87: 12 | AH87: 12 | AI87: 12 | AJ87: 12 | AK87: 12 | AL87: 12 | AM87: 12 | AN87: 15
A88: 150T | B88: 6 | C88: 6 | D88: 6 | E88: 7.5 | F88: 7.5 | G88: 7.5 | H88: 7.5 | I88: 7.5 | J88: 7.5 | K88: 7.5 | L88: 7.5 | M88: 7.5 | N88: 7.5 | O88: 7.5 | P88: 7.5 | Q88: 9.5 | R88: 9.5 | S88: 9.5 | T88: 9.5 | U88: 9.5 | V88: 9.5 | W88: 12 | X88: 12 | Y88: 12 | Z88: 12 | AA88: 12 | AB88: 12 | AC88: 12 | AD88: 12 | AE88: 15 | AF88: 15 | AG88: 15 | AH88: 15 | AI88: 15 | AJ88: 15 | AK88: 15 | AL88: 15 | AM88: 15 | AN88: 15
A89: 180T | B89: 7.5 | C89: 7.5 | D89: 7.5 | E89: 7.5 | F89: 7.5 | G89: 7.5 | H89: 7.5 | I89: 7.5 | J89: 7.5 | K89: 9.5 | L89: 9.5 | M89: 9.5 | N89: 9.5 | O89: 9.5 | P89: 9.5 | Q89: 12 | R89: 12 | S89: 12 | T89: 12 | U89: 12 | V89: 12 | W89: 12 | X89: 12 | Y89: 15 | Z89: 15 | AA89: 15 | AB89: 15 | AC89: 15 | AD89: 15 | AE89: 15 | AF89: 15 | AG89: 15 | AH89: 15 | AI89: 18.5 | AJ89: 18.5 | AK89: 18.5 | AL89: 18.5 | AM89: 18.5 | AN89: 18.5
A90: 210T | B90: 7.5 | C90: 7.5 | D90: 7.5 | E90: 7.5 | F90: 7.5 | G90: 9.5 | H90: 9.5 | I90: 9.5 | J90: 9.5 | K90: 9.5 | L90: 9.5 | M90: 12 | N90: 12 | O90: 12 | P90: 12 | Q90: 12 | R90: 12 | S90: 15 | T90: 15 | U90: 15 | V90: 15 | W90: 15 | X90: 15 | Y90: 15 | Z90: 15 | AA90: 18.5 | AB90: 18.5 | AC90: 18.5 | AD90: 18.5 | AE90: 18.5 | AF90: 18.5 | AG90: 18.5 | AH90: 18.5 | AI90: 18.5 | AJ90: 18.5 | AK90: 22.5 | AL90: 22.5 | AM90: 22.5 | AN90: 22.5
A91: 250T | B91: 9.5 | C91: 9.5 | D91: 9.5 | E91: 9.5 | F91: 9.5 | G91: 12 | H91: 12 | I91: 12 | J91: 12 | K91: 12 | L91: 12 | M91: 15 | N91: 15 | O91: 15 | P91: 15 | Q91: 15 | R91: 15 | S91: 15 | T91: 15 | U91: 18.5 | V91: 18.5 | W91: 18.5 | X91: 18.5 | Y91: 18.5 | Z91: 18.5 | AA91: 18.5 | AB91: 18.5 | AC91: 22.5 | AD91: 22.5 | AE91: 22.5 | AF91: 22.5 | AG91: 22.5 | AH91: 22.5 | AI91: 22.5 | AJ91: 22.5 | AK91: 22.5 | AL91: 22.5 | AM91: 30 | AN91: 30
A92: 300T | B92: 12 | C92: 12 | D92: 12 | E92: 12 | F92: 12 | G92: 12 | H92: 12 | I92: 12 | J92: 12 | K92: 15 | L92: 15 | M92: 15 | N92: 15 | O92: 15 | P92: 15 | Q92: 18.5 | R92: 18.5 | S92: 18.5 | T92: 18.5 | U92: 18.5 | V92: 18.5 | W92: 18.5 | X92: 18.5 | Y92: 22.5 | Z92: 22.5 | AA92: 22.5 | AB92: 22.5 | AC92: 22.5 | AD92: 22.5 | AE92: 30 | AF92: 30 | AG92: 30 | AH92: 30 | AI92: 30 | AJ92: 30 | AK92: 30 | AL92: 30 | AM92: 30 | AN92: 30
A93: 330T | B93: 15 | C93: 15 | D93: 15 | E93: 15 | F93: 15 | G93: 15 | H93: 15 | I93: 15 | J93: 15 | K93: 15 | L93: 15 | M93: 18.5 | N93: 18.5 | O93: 18.5 | P93: 18.5 | Q93: 18.5 | R93: 18.5 | S93: 22.5 | T93: 22.5 | U93: 22.5 | V93: 22.5 | W93: 22.5 | X93: 22.5 | Y93: 30 | Z93: 30 | AA93: 30 | AB93: 30 | AC93: 30 | AD93: 30 | AE93: 30 | AF93: 30 | AG93: 30 | AH93: 30 | AI93: 30 | AJ93: 30 | AK93: 30 | AL93: 30 | AM93: x | AN93: x
A94: 380T | B94: 15 | C94: 15 | D94: 15 | E94: 15 | F94: 15 | G94: 15 | H94: 15 | I94: 15 | J94: 15 | K94: 18.5 | L94: 18.5 | M94: 18.5 | N94: 18.5 | O94: 18.5 | P94: 18.5 | Q94: 22.5 | R94: 22.5 | S94: 22.5 | T94: 22.5 | U94: 22.5 | V94: 22.5 | W94: 30 | X94: 30 | Y94: 30 | Z94: 30 | AA94: 30 | AB94: 30 | AC94: 30 | AD94: 30 | AE94: 30 | AF94: 30 | AG94: x | AH94: x | AI94: x | AJ94: x | AK94: x | AL94: x | AM94: x | AN94: x
B98: POTENZA CENTRALINA MECCANICA 60Hz kW
A99: 60HZ | B99: PRESSIONE
A100: pompa | B100: 12 | C100: 13 | D100: 14 | E100: 15 | F100: 16 | G100: 17 | H100: 18 | I100: 19 | J100: 20 | K100: 21 | L100: 22 | M100: 23 | N100: 24 | O100: 25 | P100: 26 | Q100: 27 | R100: 28 | S100: 29 | T100: 30 | U100: 31 | V100: 32 | W100: 33 | X100: 34 | Y100: 35 | Z100: 36 | AA100: 37 | AB100: 38 | AC100: 39 | AD100: 40 | AE100: 41 | AF100: 42 | AG100: 43 | AH100: 44 | AI100: 45 | AJ100: 46 | AK100: 47 | AL100: 48 | AM100: 49 | AN100: 50 | AO100: 51 | AP100: 52
A101: HL8M | B101: x | C101: x | D101: x | E101: x | F101: x | G101: x | H101: x | I101: x | J101: x | K101: x | L101: x | M101: x | N101: x | O101: x | P101: x | Q101: x | R101: x | S101: x | T101: x | U101: x | V101: x | W101: x | X101: x | Y101: x | Z101: x | AA101: x | AB101: x | AC101: x | AD101: x | AE101: x | AF101: x | AG101: x | AH101: x | AI101: x | AJ101: x | AK101: x | AL101: x | AM101: x | AN101: x | AO101: x | AP101: x
A102: HL12M | B102: x | C102: x | D102: x | E102: x | F102: x | G102: x | H102: x | I102: x | J102: x | K102: x | L102: x | M102: x | N102: x | O102: x | P102: x | Q102: x | R102: x | S102: x | T102: x | U102: x | V102: x | W102: x | X102: x | Y102: x | Z102: x | AA102: x | AB102: x | AC102: x | AD102: x | AE102: x | AF102: x | AG102: x | AH102: x | AI102: x | AJ102: x | AK102: x | AL102: x | AM102: x | AN102: x | AO102: x | AP102: x
A103: HL18M | B103: x | C103: x | D103: x | E103: x | F103: x | G103: x | H103: x | I103: x | J103: x | K103: x | L103: x | M103: x | N103: x | O103: x | P103: x | Q103: x | R103: x | S103: x | T103: x | U103: x | V103: x | W103: x | X103: x | Y103: x | Z103: x | AA103: x | AB103: x | AC103: x | AD103: x | AE103: x | AF103: x | AG103: x | AH103: x | AI103: x | AJ103: x | AK103: x | AL103: x | AM103: x | AN103: x | AO103: x | AP103: x
A104: HL23M | B104: x | C104: x | D104: x | E104: x | F104: x | G104: x | H104: x | I104: x | J104: x | K104: x | L104: x | M104: x | N104: x | O104: x | P104: x | Q104: x | R104: x | S104: x | T104: x | U104: x | V104: x | W104: x | X104: x | Y104: x | Z104: x | AA104: x | AB104: x | AC104: x | AD104: x | AE104: x | AF104: x | AG104: x | AH104: x | AI104: x | AJ104: x | AK104: x | AL104: x | AM104: x | AN104: x | AO104: x | AP104: x
A105: HL8T | B105: x | C105: x | D105: x | E105: x | F105: x | G105: x | H105: x | I105: x | J105: x | K105: x | L105: x | M105: x | N105: x | O105: x | P105: x | Q105: x | R105: x | S105: x | T105: x | U105: x | V105: x | W105: x | X105: x | Y105: x | Z105: x | AA105: x | AB105: x | AC105: x | AD105: x | AE105: x | AF105: x | AG105: x | AH105: x | AI105: x | AJ105: x | AK105: x | AL105: x | AM105: x | AN105: x | AO105: x | AP105: x
A106: HL12T | B106: x | C106: x | D106: x | E106: x | F106: x | G106: x | H106: x | I106: x | J106: x | K106: x | L106: x | M106: x | N106: x | O106: x | P106: x | Q106: x | R106: x | S106: x | T106: x | U106: x | V106: x | W106: x | X106: x | Y106: x | Z106: x | AA106: x | AB106: x | AC106: x | AD106: x | AE106: x | AF106: x | AG106: x | AH106: x | AI106: x | AJ106: x | AK106: x | AL106: x | AM106: x | AN106: x | AO106: x | AP106: x
A107: HL18T | B107: x | C107: x | D107: x | E107: x | F107: x | G107: x | H107: x | I107: x | J107: x | K107: x | L107: x | M107: x | N107: x | O107: x | P107: x | Q107: x | R107: x | S107: x | T107: x | U107: x | V107: x | W107: x | X107: x | Y107: x | Z107: x | AA107: x | AB107: x | AC107: x | AD107: x | AE107: x | AF107: x | AG107: x | AH107: x | AI107: x | AJ107: x | AK107: x | AL107: x | AM107: x | AN107: x | AO107: x | AP107: x
A108: HL23T | B108: x | C108: x | D108: x | E108: x | F108: x | G108: x | H108: x | I108: x | J108: x | K108: x | L108: x | M108: x | N108: x | O108: x | P108: x | Q108: x | R108: x | S108: x | T108: x | U108: x | V108: x | W108: x | X108: x | Y108: x | Z108: x | AA108: x | AB108: x | AC108: x | AD108: x | AE108: x | AF108: x | AG108: x | AH108: x | AI108: x | AJ108: x | AK108: x | AL108: x | AM108: x | AN108: x | AO108: x | AP108: x
A109: HL12MD | B109: x | C109: x | D109: x | E109: x | F109: x | G109: x | H109: x | I109: x | J109: x | K109: x | L109: x | M109: x | N109: x | O109: x | P109: x | Q109: x | R109: x | S109: x | T109: x | U109: x | V109: x | W109: x | X109: x | Y109: x | Z109: x | AA109: x | AB109: x | AC109: x | AD109: x | AE109: x | AF109: x | AG109: x | AH109: x | AI109: x | AJ109: x | AK109: x | AL109: x | AM109: x | AN109: x | AO109: x | AP109: x
A110: HL18MD | B110: x | C110: x | D110: x | E110: x | F110: x | G110: x | H110: x | I110: x | J110: x | K110: x | L110: x | M110: x | N110: x | O110: x | P110: x | Q110: x | R110: x | S110: x | T110: x | U110: x | V110: x | W110: x | X110: x | Y110: x | Z110: x | AA110: x | AB110: x | AC110: x | AD110: x | AE110: x | AF110: x | AG110: x | AH110: x | AI110: x | AJ110: x | AK110: x | AL110: x | AM110: x | AN110: x | AO110: x | AP110: x
A111: HL23MD | B111: x | C111: x | D111: x | E111: x | F111: x | G111: x | H111: x | I111: x | J111: x | K111: x | L111: x | M111: x | N111: x | O111: x | P111: x | Q111: x | R111: x | S111: x | T111: x | U111: x | V111: x | W111: x | X111: x | Y111: x | Z111: x | AA111: x | AB111: x | AC111: x | AD111: x | AE111: x | AF111: x | AG111: x | AH111: x | AI111: x | AJ111: x | AK111: x | AL111: x | AM111: x | AN111: x | AO111: x | AP111: x
A112: HL30MD | B112: x | C112: x | D112: x | E112: x | F112: x | G112: x | H112: x | I112: x | J112: x | K112: x | L112: x | M112: x | N112: x | O112: x | P112: x | Q112: x | R112: x | S112: x | T112: x | U112: x | V112: x | W112: x | X112: x | Y112: x | Z112: x | AA112: x | AB112: x | AC112: x | AD112: x | AE112: x | AF112: x | AG112: x | AH112: x | AI112: x | AJ112: x | AK112: x | AL112: x | AM112: x | AN112: x | AO112: x | AP112: x
A113: HL12TD | B113: x | C113: x | D113: x | E113: x | F113: x | G113: x | H113: x | I113: x | J113: x | K113: x | L113: x | M113: x | N113: x | O113: x | P113: x | Q113: x | R113: x | S113: x | T113: x | U113: x | V113: x | W113: x | X113: x | Y113: x | Z113: x | AA113: x | AB113: x | AC113: x | AD113: x | AE113: x | AF113: x | AG113: x | AH113: x | AI113: x | AJ113: x | AK113: x | AL113: x | AM113: x | AN113: x | AO113: x | AP113: x
A114: HL18TD | B114: x | C114: x | D114: x | E114: x | F114: x | G114: x | H114: x | I114: x | J114: x | K114: x | L114: x | M114: x | N114: x | O114: x | P114: x | Q114: x | R114: x | S114: x | T114: x | U114: x | V114: x | W114: x | X114: x | Y114: x | Z114: x | AA114: x | AB114: x | AC114: x | AD114: x | AE114: x | AF114: x | AG114: x | AH114: x | AI114: x | AJ114: x | AK114: x | AL114: x | AM114: x | AN114: x | AO114: x | AP114: x
A115: HL23TD | B115: x | C115: x | D115: x | E115: x | F115: x | G115: x | H115: x | I115: x | J115: x | K115: x | L115: x | M115: x | N115: x | O115: x | P115: x | Q115: x | R115: x | S115: x | T115: x | U115: x | V115: x | W115: x | X115: x | Y115: x | Z115: x | AA115: x | AB115: x | AC115: x | AD115: x | AE115: x | AF115: x | AG115: x | AH115: x | AI115: x | AJ115: x | AK115: x | AL115: x | AM115: x | AN115: x | AO115: x | AP115: x
A116: HL30TD | B116: x | C116: x | D116: x | E116: x | F116: x | G116: x | H116: x | I116: x | J116: x | K116: x | L116: x | M116: x | N116: x | O116: x | P116: x | Q116: x | R116: x | S116: x | T116: x | U116: x | V116: x | W116: x | X116: x | Y116: x | Z116: x | AA116: x | AB116: x | AC116: x | AD116: x | AE116: x | AF116: x | AG116: x | AH116: x | AI116: x | AJ116: x | AK116: x | AL116: x | AM116: x | AN116: x | AO116: x | AP116: x
A117: 8M | B117: x | C117: x | D117: x | E117: x | F117: 2.6 | G117: 2.6 | H117: 2.6 | I117: 2.6 | J117: 2.6 | K117: 2.6 | L117: 2.6 | M117: 2.6 | N117: 2.6 | O117: 2.6 | P117: 2.6 | Q117: 2.6 | R117: 2.6 | S117: 2.6 | T117: 2.6 | U117: 2.6 | V117: 2.6 | W117: 2.6 | X117: 2.6 | Y117: 2.6 | Z117: 2.6 | AA117: 2.6 | AB117: 2.6 | AC117: 2.6 | AD117: 3.7 | AE117: 3.7 | AF117: 3.7 | AG117: 3.7 | AH117: 3.7 | AI117: 3.7 | AJ117: 3.7 | AK117: 3.7 | AL117: 3.7 | AM117: 3.7 | AN117: 3.7 | AO117: 3.7 | AP117: 3.7
A118: 12M | B118: x | C118: x | D118: x | E118: x | F118: 2.6 | G118: 2.6 | H118: 2.6 | I118: 2.6 | J118: 2.6 | K118: 2.6 | L118: 2.6 | M118: 2.6 | N118: 2.6 | O118: 2.6 | P118: 2.6 | Q118: 2.6 | R118: 2.6 | S118: 2.6 | T118: 2.6 | U118: 2.6 | V118: 2.6 | W118: 2.6 | X118: 2.6 | Y118: 2.6 | Z118: 2.6 | AA118: 2.6 | AB118: 2.6 | AC118: 2.6 | AD118: 3.7 | AE118: 3.7 | AF118: 3.7 | AG118: 3.7 | AH118: 3.7 | AI118: 3.7 | AJ118: 3.7 | AK118: 3.7 | AL118: 3.7 | AM118: 3.7 | AN118: 3.7 | AO118: 3.7 | AP118: 3.7
A119: 18M | B119: x | C119: x | D119: x | E119: x | F119: 2.6 | G119: 2.6 | H119: 2.6 | I119: 2.6 | J119: 2.6 | K119: 2.6 | L119: 2.6 | M119: 2.6 | N119: 2.6 | O119: 2.6 | P119: 2.6 | Q119: 2.6 | R119: 2.6 | S119: 2.6 | T119: 2.6 | U119: 2.6 | V119: 2.6 | W119: 2.6 | X119: 2.6 | Y119: 2.6 | Z119: 2.6 | AA119: 2.6 | AB119: 2.6 | AC119: 2.6 | AD119: 3.7 | AE119: 3.7 | AF119: 3.7 | AG119: 3.7 | AH119: 3.7 | AI119: 3.7 | AJ119: 3.7 | AK119: 3.7 | AL119: 3.7 | AM119: 3.7 | AN119: 3.7 | AO119: 3.7 | AP119: 3.7
A120: 23M | B120: x | C120: x | D120: x | E120: x | F120: 2.6 | G120: 2.6 | H120: 2.6 | I120: 2.6 | J120: 2.6 | K120: 2.6 | L120: 2.6 | M120: 2.6 | N120: 2.6 | O120: 2.6 | P120: 3.7 | Q120: 3.7 | R120: 3.7 | S120: 3.7 | T120: 3.7 | U120: 3.7 | V120: 3.7 | W120: 3.7 | X120: 3.7 | Y120: 3.7 | Z120: 3.7 | AA120: 3.7 | AB120: 3.7 | AC120: 3.7 | AD120: 3.7 | AE120: 3.7 | AF120: 3.7 | AG120: 3.7 | AH120: 3.7 | AI120: 3.7 | AJ120: 3.7 | AK120: 3.7 | AL120: 3.7 | AM120: 3.7 | AN120: 3.7 | AO120: 3.7 | AP120: 3
A121: 30M | B121: x | C121: x | D121: x | E121: x | F121: 3.7 | G121: 3.7 | H121: 3.7 | I121: 3.7 | J121: 3.7 | K121: 3.7 | L121: 3.7 | M121: 3.7 | N121: 3.7 | O121: 3.7 | P121: 3.7 | Q121: 4.4 | R121: 4.4 | S121: 4.4 | T121: 4.4 | U121: 4.4 | V121: 4.4 | W121: 4.4 | X121: 4.4 | Y121: 4.4 | Z121: 4.4 | AA121: 4.4 | AB121: 4.4 | AC121: 6 | AD121: 6 | AE121: 6 | AF121: 6 | AG121: 6 | AH121: 6 | AI121: 6 | AJ121: 6 | AK121: 6 | AL121: 6 | AM121: 6 | AN121: 6 | AO121: 6 | AP121: 6
A122: 35M | B122: x | C122: x | D122: x | E122: x | F122: 3.7 | G122: 3.7 | H122: 3.7 | I122: 3.7 | J122: 3.7 | K122: 3.7 | L122: 3.7 | M122: 3.7 | N122: 3.7 | O122: 3.7 | P122: 3.7 | Q122: 4.4 | R122: 4.4 | S122: 4.4 | T122: 4.4 | U122: 4.4 | V122: 4.4 | W122: 4.4 | X122: 4.4 | Y122: 4.4 | Z122: 4.4 | AA122: 4.4 | AB122: 4.4 | AC122: 6 | AD122: 6 | AE122: 6 | AF122: 6 | AG122: 6 | AH122: 6 | AI122: 6 | AJ122: 6 | AK122: 6 | AL122: 6 | AM122: 6 | AN122: 6 | AO122: 6 | AP122: 6
A123: 45M | B123: x | C123: x | D123: x | E123: x | F123: 4.4 | G123: 4.4 | H123: 4.4 | I123: 4.4 | J123: 4.4 | K123: 4.4 | L123: 4.4 | M123: 4.4 | N123: 4.4 | O123: 4.4 | P123: 6 | Q123: 6 | R123: 6 | S123: 6 | T123: 6 | U123: 6 | V123: 6 | W123: 6 | X123: 6 | Y123: 6 | Z123: 6 | AA123: 6 | AB123: 6 | AC123: 6 | AD123: 6 | AE123: 6 | AF123: 6 | AG123: 7.4 | AH123: 7.4 | AI123: 7.4 | AJ123: 7.4 | AK123: 7.4 | AL123: 7.4 | AM123: 7.4 | AN123: 7.4 | AO123: 7.4 | AP123: 7.4
A124: 55M | B124: x | C124: x | D124: x | E124: x | F124: 4.4 | G124: 4.4 | H124: 4.4 | I124: 4.4 | J124: 4.4 | K124: 4.4 | L124: 4.4 | M124: 4.4 | N124: 4.4 | O124: 4.4 | P124: 6 | Q124: 6 | R124: 6 | S124: 6 | T124: 6 | U124: 6 | V124: 6 | W124: 6 | X124: 6 | Y124: 6 | Z124: 6 | AA124: 6 | AB124: 6 | AC124: 6 | AD124: 6 | AE124: 6 | AF124: 6 | AG124: 7.4 | AH124: 7.4 | AI124: 7.4 | AJ124: 7.4 | AK124: 7.4 | AL124: 7.4 | AM124: 7.4 | AN124: 7.4 | AO124: 7.4 | AP124: 7.4
A125: 75M | B125: x | C125: x | D125: x | E125: x | F125: 6 | G125: 6 | H125: 6 | I125: 6 | J125: 6 | K125: 6 | L125: 6 | M125: 6 | N125: 6 | O125: 6 | P125: 7.4 | Q125: 7.4 | R125: 7.4 | S125: 7.4 | T125: 7.4 | U125: 7.4 | V125: x | W125: x | X125: x | Y125: x | Z125: x | AA125: x | AB125: x | AC125: x | AD125: x | AE125: x | AF125: x | AG125: x | AH125: x | AI125: x | AJ125: x | AK125: x | AL125: x | AM125: x | AN125: x | AO125: x | AP125: x
A126: 8T | B126: x | C126: x | D126: x | E126: x | F126: 2.2 | G126: 2.2 | H126: 2.2 | I126: 2.2 | J126: 2.2 | K126: 2.2 | L126: 2.2 | M126: 2.2 | N126: 2.2 | O126: 2.2 | P126: 2.2 | Q126: 2.2 | R126: 2.2 | S126: 2.2 | T126: 2.2 | U126: 2.2 | V126: 2.2 | W126: 2.2 | X126: 2.2 | Y126: 2.2 | Z126: 2.2 | AA126: 2.2 | AB126: 2.2 | AC126: 2.2 | AD126: 2.2 | AE126: 2.2 | AF126: 2.2 | AG126: 2.2 | AH126: 2.2 | AI126: 2.2 | AJ126: 2.2 | AK126: 2.2 | AL126: 2.2 | AM126: 2.2 | AN126: 2.2 | AO126: 2.2 | AP126: 2.2
A127: 12T | B127: x | C127: x | D127: x | E127: x | F127: 2.2 | G127: 2.2 | H127: 2.2 | I127: 2.2 | J127: 2.2 | K127: 2.2 | L127: 2.2 | M127: 2.2 | N127: 2.2 | O127: 2.2 | P127: 2.2 | Q127: 2.2 | R127: 2.2 | S127: 2.2 | T127: 2.2 | U127: 2.2 | V127: 2.2 | W127: 2.2 | X127: 2.2 | Y127: 2.2 | Z127: 2.2 | AA127: 2.2 | AB127: 2.2 | AC127: 2.2 | AD127: 2.2 | AE127: 2.2 | AF127: 2.2 | AG127: 2.2 | AH127: 2.2 | AI127: 2.2 | AJ127: 2.2 | AK127: 3 | AL127: 3 | AM127: 3 | AN127: 3 | AO127: 3 | AP127: 3
A128: 18T | B128: x | C128: x | D128: x | E128: x | F128: 2.2 | G128: 2.2 | H128: 2.2 | I128: 2.2 | J128: 2.2 | K128: 2.2 | L128: 2.2 | M128: 2.2 | N128: 2.2 | O128: 2.2 | P128: 2.2 | Q128: 2.2 | R128: 2.2 | S128: 2.2 | T128: 2.2 | U128: 2.2 | V128: 2.2 | W128: 2.2 | X128: 2.2 | Y128: 2.2 | Z128: 2.2 | AA128: 2.2 | AB128: 2.2 | AC128: 2.2 | AD128: 2.2 | AE128: 2.2 | AF128: 2.2 | AG128: 2.2 | AH128: 2.2 | AI128: 2.2 | AJ128: 2.2 | AK128: 3 | AL128: 3 | AM128: 3 | AN128: 3 | AO128: 3 | AP128: 3
A129: 23T | B129: x | C129: x | D129: x | E129: x | F129: 2.2 | G129: 2.2 | H129: 2.2 | I129: 2.2 | J129: 2.2 | K129: 2.2 | L129: 2.2 | M129: 2.2 | N129: 2.2 | O129: 2.2 | P129: 2.2 | Q129: 2.2 | R129: 2.2 | S129: 2.2 | T129: 2.2 | U129: 2.2 | V129: 2.2 | W129: 2.2 | X129: 2.2 | Y129: 2.2 | Z129: 2.2 | AA129: 2.2 | AB129: 2.2 | AC129: 2.2 | AD129: 2.2 | AE129: 3 | AF129: 3 | AG129: 3 | AH129: 3 | AI129: 3 | AJ129: 3 | AK129: 3 | AL129: 3 | AM129: 3 | AN129: 3 | AO129: 3 | AP129: 3
A130: 30T | B130: x | C130: x | D130: x | E130: x | F130: 3 | G130: 3 | H130: 3 | I130: 3 | J130: 3 | K130: 3 | L130: 3 | M130: 3 | N130: 3 | O130: 3 | P130: 3 | Q130: 3.7 | R130: 3.7 | S130: 3.7 | T130: 3.7 | U130: 3.7 | V130: 3.7 | W130: 3.7 | X130: 3.7 | Y130: 3.7 | Z130: 3.7 | AA130: 3.7 | AB130: 3.7 | AC130: 3.7 | AD130: 5.3 | AE130: 5.3 | AF130: 5.3 | AG130: 5.3 | AH130: 5.3 | AI130: 5.3 | AJ130: 5.3 | AK130: 7.3 | AL130: 7.3 | AM130: 7.3 | AN130: 7.3 | AO130: 7.3 | AP130: 7.3
A131: 35T | B131: x | C131: x | D131: x | E131: x | F131: 3 | G131: 3 | H131: 3 | I131: 3 | J131: 3 | K131: 3 | L131: 3 | M131: 3 | N131: 3 | O131: 3 | P131: 3 | Q131: 3.7 | R131: 3.7 | S131: 3.7 | T131: 3.7 | U131: 3.7 | V131: 3.7 | W131: 3.7 | X131: 3.7 | Y131: 3.7 | Z131: 3.7 | AA131: 3.7 | AB131: 3.7 | AC131: 3.7 | AD131: 5.3 | AE131: 5.3 | AF131: 5.3 | AG131: 5.3 | AH131: 5.3 | AI131: 5.3 | AJ131: 5.3 | AK131: 7.3 | AL131: 7.3 | AM131: 7.3 | AN131: 7.3 | AO131: 7.3 | AP131: 7.3
A132: 45T | B132: 3.7 | C132: 3.7 | D132: 3.7 | E132: 3.7 | F132: 3.7 | G132: 3.7 | H132: 3.7 | I132: 3.7 | J132: 3.7 | K132: 3.7 | L132: 3.7 | M132: 3.7 | N132: 3.7 | O132: 3.7 | P132: 5.3 | Q132: 5.3 | R132: 5.3 | S132: 5.3 | T132: 5.3 | U132: 5.3 | V132: 5.3 | W132: 5.3 | X132: 5.3 | Y132: 5.3 | Z132: 5.3 | AA132: 5.3 | AB132: 7.3 | AC132: 7.3 | AD132: 7.3 | AE132: 7.3 | AF132: 7.3 | AG132: 7.3 | AH132: 7.3 | AI132: 7.3 | AJ132: 7.3 | AK132: 9.2 | AL132: 9.2 | AM132: 9.2 | AN132: 9.2 | AO132: 9.2 | AP132: 9.2
A133: 55T | B133: 3.7 | C133: 3.7 | D133: 3.7 | E133: 3.7 | F133: 3.7 | G133: 3.7 | H133: 3.7 | I133: 3.7 | J133: 3.7 | K133: 3.7 | L133: 3.7 | M133: 3.7 | N133: 3.7 | O133: 3.7 | P133: 5.3 | Q133: 5.3 | R133: 5.3 | S133: 5.3 | T133: 5.3 | U133: 5.3 | V133: 5.3 | W133: 5.3 | X133: 5.3 | Y133: 5.3 | Z133: 5.3 | AA133: 5.3 | AB133: 7.3 | AC133: 7.3 | AD133: 7.3 | AE133: 7.3 | AF133: 7.3 | AG133: 7.3 | AH133: 7.3 | AI133: 7.3 | AJ133: 7.3 | AK133: 9.2 | AL133: 9.2 | AM133: 9.2 | AN133: 9.2 | AO133: 9.2 | AP133: 9.2
A134: 75T | B134: 5.3 | C134: 5.3 | D134: 5.3 | E134: 5.3 | F134: 5.3 | G134: 5.3 | H134: 5.3 | I134: 5.3 | J134: 5.3 | K134: 5.3 | L134: 5.3 | M134: 5.3 | N134: 5.3 | O134: 5.3 | P134: 5.3 | Q134: 7.3 | R134: 7.3 | S134: 7.3 | T134: 7.3 | U134: 7.3 | V134: 7.3 | W134: 7.3 | X134: 7.3 | Y134: 7.3 | Z134: 7.3 | AA134: 7.3 | AB134: 9.2 | AC134: 9.2 | AD134: 9.2 | AE134: 9.2 | AF134: 9.2 | AG134: 9.2 | AH134: 9.2 | AI134: 9.2 | AJ134: 9.2 | AK134: 11 | AL134: 11 | AM134: 11 | AN134: 11 | AO134: 11 | AP134: 11
A135: 100T | B135: 5.3 | C135: 5.3 | D135: 5.3 | E135: 5.3 | F135: 5.3 | G135: 5.3 | H135: 5.3 | I135: 5.3 | J135: 7.3 | K135: 7.3 | L135: 7.3 | M135: 7.3 | N135: 7.3 | O135: 7.3 | P135: 7.3 | Q135: 7.3 | R135: 9.2 | S135: 9.2 | T135: 9.2 | U135: 9.2 | V135: 9.2 | W135: 9.2 | X135: 9.2 | Y135: 9.2 | Z135: 11 | AA135: 11 | AB135: 11 | AC135: 11 | AD135: 11 | AE135: 11 | AF135: 11 | AG135: 13.2 | AH135: 13.2 | AI135: 13.2 | AJ135: 13.2 | AK135: 13.2 | AL135: 13.2 | AM135: 13.2 | AN135: 13.2 | AO135: 13.2 | AP135: 13.2
A136: 125T | B136: 5.3 | C136: 5.3 | D136: 5.3 | E136: 5.3 | F136: 7.3 | G136: 7.3 | H136: 7.3 | I136: 7.3 | J136: 7.3 | K136: 7.3 | L136: 9.2 | M136: 9.2 | N136: 9.2 | O136: 9.2 | P136: 9.2 | Q136: 9.2 | R136: 9.2 | S136: 9.2 | T136: 11 | U136: 11 | V136: 11 | W136: 11 | X136: 11 | Y136: 11 | Z136: 11 | AA136: 11 | AB136: 13.2 | AC136: 13.2 | AD136: 13.2 | AE136: 13.2 | AF136: 13.2 | AG136: 13.2 | AH136: 13.2 | AI136: 15 | AJ136: 15 | AK136: 15 | AL136: 15 | AM136: 15 | AN136: 15 | AO136: 15 | AP136: 15
A137: 150T | B137: 9.5 | C137: 9.5 | D137: 9.5 | E137: 9.5 | F137: 9.5 | G137: 9.5 | H137: 9.5 | I137: 9.5 | J137: 9.2 | K137: 9.2 | L137: 9.2 | M137: 9.2 | N137: 11 | O137: 11 | P137: 11 | Q137: 11 | R137: 11 | S137: 11 | T137: 13.2 | U137: 13.2 | V137: 13.2 | W137: 13.2 | X137: 13.2 | Y137: 13.2 | Z137: 13.2 | AA137: 13.2 | AB137: 13.2 | AC137: 13.2 | AD137: 13.2 | AE137: 15 | AF137: 15 | AG137: 15 | AH137: 15 | AI137: 15 | AJ137: 15 | AK137: 18.5 | AL137: 18.5 | AM137: 18.5 | AN137: 18.5 | AO137: 18.5 | AP137: 18.5
A138: 180T | B138: 9.5 | C138: 9.5 | D138: 9.5 | E138: 9.5 | F138: 9.5 | G138: 9.5 | H138: 9.5 | I138: 9.5 | J138: 11 | K138: 11 | L138: 11 | M138: 11 | N138: 13.2 | O138: 13.2 | P138: 15 | Q138: 15 | R138: 15 | S138: 15 | T138: 15 | U138: 15 | V138: 15 | W138: 15 | X138: 15 | Y138: 18.5 | Z138: 18.5 | AA138: 18.5 | AB138: 18.5 | AC138: 18.5 | AD138: 18.5 | AE138: 18.5 | AF138: 24 | AG138: 24 | AH138: 24 | AI138: 24 | AJ138: 24 | AK138: 24 | AL138: 24 | AM138: 24 | AN138: 24 | AO138: 24 | AP138: 24
A139: 210T | B139: 15 | C139: 15 | D139: 15 | E139: 15 | F139: 15 | G139: 15 | H139: 15 | I139: 15 | J139: 13.2 | K139: 13.2 | L139: 13.2 | M139: 13.2 | N139: 13.2 | O139: 13.2 | P139: 13.2 | Q139: 18.5 | R139: 18.5 | S139: 18.5 | T139: 18.5 | U139: 18.5 | V139: 18.5 | W139: 18.5 | X139: 18.5 | Y139: 18.5 | Z139: 18.5 | AA139: 18.5 | AB139: 18.5 | AC139: 18.5 | AD139: 24 | AE139: 24 | AF139: 24 | AG139: 24 | AH139: 24 | AI139: 24 | AJ139: 29 | AK139: 29 | AL139: 29 | AM139: 29 | AN139: 29 | AO139: 29 | AP139: 29
A140: 250T | B140: 15 | C140: 15 | D140: 15 | E140: 15 | F140: 15 | G140: 15 | H140: 15 | I140: 15 | J140: 13.2 | K140: 13.2 | L140: 13.2 | M140: 18.5 | N140: 18.5 | O140: 18.5 | P140: 18.5 | Q140: 18.5 | R140: 24 | S140: 24 | T140: 24 | U140: 24 | V140: 24 | W140: 24 | X140: 29 | Y140: 29 | Z140: 29 | AA140: 29 | AB140: 29 | AC140: 29 | AD140: 37 | AE140: 37 | AF140: 37 | AG140: 37 | AH140: 37 | AI140: 37 | AJ140: 37 | AK140: 48 | AL140: 48 | AM140: 48 | AN140: 48 | AO140: 48 | AP140: 48
A141: 300T | B141: 18.5 | C141: 18.5 | D141: 18.5 | E141: 18.5 | F141: 18.5 | G141: 18.5 | H141: 18.5 | I141: 18.5 | J141: 18.5 | K141: 18.5 | L141: 18.5 | M141: 18.5 | N141: 22.5 | O141: 22.5 | P141: 24 | Q141: 24 | R141: 24 | S141: 24 | T141: 29 | U141: 29 | V141: 29 | W141: 29 | X141: 29 | Y141: 29 | Z141: 37 | AA141: 37 | AB141: 37 | AC141: 37 | AD141: 37 | AE141: 37 | AF141: 37 | AG141: 37 | AH141: 37 | AI141: 37 | AJ141: 37 | AK141: 48 | AL141: 48 | AM141: 48 | AN141: 48 | AO141: 48 | AP141: 48
A142: 330T | B142: 15 | C142: 15 | D142: 18.5 | E142: 18.5 | F142: 18.5 | G142: 18.5 | H142: 18.5 | I142: 18.5 | J142: 18.5 | K142: 22.5 | L142: 22.5 | M142: 22.5 | N142: 22.5 | O142: 22.5 | P142: 29 | Q142: 29 | R142: 29 | S142: 29 | T142: 29 | U142: 29 | V142: 37 | W142: 37 | X142: 37 | Y142: 37 | Z142: 37 | AA142: 37 | AB142: 37 | AC142: 37 | AD142: 37 | AE142: 37 | AF142: 37 | AG142: 37 | AH142: 48 | AI142: 48 | AJ142: 48 | AK142: 48 | AL142: 48 | AM142: 48 | AN142: 48 | AO142: 48 | AP142: 48
A143: 380T | B143: 18.5 | C143: 18.5 | D143: 18.5 | E143: 18.5 | F143: 18.5 | G143: 18.5 | H143: 22.5 | I143: 22.5 | J143: 22.5 | K143: 22.5 | L143: 30 | M143: 30 | N143: 30 | O143: 30 | P143: 29 | Q143: 29 | R143: 37 | S143: 37 | T143: 37 | U143: 37 | V143: 37 | W143: 37 | X143: 37 | Y143: 37 | Z143: 48 | AA143: 48 | AB143: 48 | AC143: 48 | AD143: 48 | AE143: 48 | AF143: 48 | AG143: 48 | AH143: 48 | AI143: 48 | AJ143: 48 | AK143: 57 | AL143: 57 | AM143: 57 | AN143: 57 | AO143: 57 | AP143: 57
A144: 440T | B144: 22.5 | C144: 22.5 | D144: 22.5 | E144: 22.5 | F144: 22.5 | G144: 22.5 | H144: 22.5 | I144: 22.5 | J144: 30 | K144: 30 | L144: 30 | M144: 30 | N144: 30 | O144: 37 | P144: 37 | Q144: 37 | R144: 37 | S144: 37 | T144: 37 | U144: 37 | V144: 37 | W144: 48 | X144: 48 | Y144: 48 | Z144: 48 | AA144: 48 | AB144: 48 | AC144: 48 | AD144: 48 | AE144: 57 | AF144: 57 | AG144: 57 | AH144: 57 | AI144: 57 | AJ144: 57 | AK144: x | AL144: x | AM144: x | AN144: x | AO144: x | AP144: x
A145: 500T | B145: 22.5 | C145: 22.5 | D145: 22.5 | E145: 22.5 | F145: 22.5 | G145: 22.5 | H145: 30 | I145: 30 | J145: 30 | K145: 30 | L145: 37 | M145: 37 | N145: 37 | O145: 37 | P145: 37 | Q145: 37 | R145: 37 | S145: 37 | T145: 48 | U145: 48 | V145: 48 | W145: 48 | X145: 48 | Y145: 48 | Z145: 57 | AA145: 57 | AB145: 57 | AC145: 57 | AD145: 57 | AE145: 57 | AF145: 57 | AG145: 57 | AH145: 57 | AI145: 57 | AJ145: 57 | AK145: x | AL145: x | AM145: x | AN145: x | AO145: x | AP145: x
A146: 650T | B146: 30 | C146: 30 | D146: 30 | E146: 30 | F146: 30 | G146: 30 | H146: 30 | I146: 30 | J146: 30 | K146: 37 | L146: 37 | M146: 37 | N146: 37 | O146: 37 | P146: 48 | Q146: 48 | R146: 48 | S146: 48 | T146: 48 | U146: 57 | V146: 57 | W146: 57 | X146: 57 | Y146: 57 | Z146: 57 | AA146: 57 | AB146: 57 | AC146: 57 | AD146: 57 | AE146: 72 | AF146: 72 | AG146: 72 | AH146: 72 | AI146: 72 | AJ146: 72 | AK146: x | AL146: x | AM146: x | AN146: x | AO146: x | AP146: x

Sheet lingue
A1: Italiano | B1: Italiano | C1: English | D1: Deutsch | E1: Español
A2: English | B2: Progetto Pistone modello (9130; 9140; 9150;MCS;MCE) | C2: Ram type (9130; 9140; 9150;MCS;MCE) | D2: Heberbezeichnung (9130; 9140; 9150;MCS;MCE) | E2: Modelo Piston (9130;9140;9150;MCS;MCE)
A3: Deutsch | B3: Coefficiente di taglia | C3: Rope acting (2) direct acting (1) | D3: Aufhängung | E3: Suspension (2 2:1) (1 1:1)
A4: Español | B4: Portata utile | C4: Load | D4: Nennlast | E4: Carga
B5: Massa della cabina e degli organi ad essa collegati | C5: car and sling weight | D5: Farhkorbgewicht | E5: Peso de la cabina y chasis
B6: Massa delle funi lato cabina | C6: ropes weight (car side) | D6: Gewicht Seil | E6: Peso de los cables lado cabina
B7: Massa delle funi lato cabina (per pistone) | C7: ropes weight (car side, per piston) | D7: Gewicht Seil | E7: Peso de los cables por piston
B8: Massa di puleggia e arcatina | C8: pulley weight | D8: Gewicht Rolle | E8: Peso de la polea
B9: Massa di puleggia e arcatina (per pistone) | C9: pulley weight (per piston) | D9: Gewicht Rolle | E9: Peso de la polea por pistón
B10: Numero dei pistoni | C10: number of rams | D10: Anzahl Kolben | E10: Número de pistones.
B11: Pistone diviso in 1,2,3 pezzo/i | C11: ram diveded into 1,2,3 pieces | D11: Kolben geteilt in 1,2,3 teile | E11: Pistón dividido en 1,2,3 piezas
B12: corsa impianto | C12: car stroke | D12: Förderhöhe | E12: Recorrido de la cabina
B13: extracorsa pistone | C13: rod extrastroke | D13: Reversehub Kolben | E13: Extrarrecorrido del piston
B14: extracorsa impianto | C14: car extrastroke | D14: Reservehub Kabine | E14: Extrarrecorrido de la cabina
B15: corsa minima | C15: minimum rod length | D15: min. Kolbenlänge | E15: Recorrido minimo
B16: dispositivo stelo guidato (si=2) | C16: guided ram device (yes=2) | D16: mit Führung (ja=2) | E16: Dispositivo de guiado (si=2)
B17: Distanza tra asse puleggia e sommità stelo | C17: distance between rod and pulley axe | D17: Distanz zwischen Kolben und Rolle | E17: Distancia entre piston y eje polea
B18: Corsa totale pistone | C18: rod stroke | D18: Kolbenhub | E18: Longitud total de la varilla.
B19: lunghezza totale pistone chiuso | C19: closed piston length | D19: Kolbenlänge | E19: Longitud del pistón cerrado.
B20: Lunghezza di libera inflessione | C20: buckling length | E20: Longitud libre de inflexión
B21: diametro stelo | C21: rod diameter | D21: Kolbendurchmesser | E21: Diametro varilla
B22: spessore stelo | C22: rod thickness | D22: Wandstärke | E22: Espesor varilla
B23: anello di protezione stelo | C23: rod protection ring | E23: Proteccion
B24: SÌ | C24: YES | E24: SI
B25: a pieno carico T=gn/10*[cm*(Q+P3)/Nr+Pf+Prh] | C25: Full load T=gn/10*[cm*(Q+P3)/Nr+Pf+Prh] | D25: Vollast | E25: Plena carga
B26: a cabina vuota Tv=gn/10*[cm*P3/Nr+Pf+Prh] | C26: empty load Tv=gn/10*[cm*P3/Nr+Pf+Prh] | D26: Min. Gewicht | E26: En vacio
B27: carico punta | C27: buckling load | E27: Carga en punta efectiva
B28: carico ammissibile | C28: alloable buckling load | E28: Carga máxima admisible
B29: Coeff. di sicurezza | C29: safety coeff. | E29: Coeficiente de seguridad
B30: Pres. stat. a pieno carico (T+Pr*gn/10)/A+(y*H/10) | C30: Max. Pressure | D30: Max. Druck | E30: Presion MAX.
B31: Pres. stat. a vuoto (Tv+Pr*gn/10)/A+(y*H/10) | C31: Min. pressure | D31: min. Druck | E31: Presion MIN.
B32: Progetto Centralina | C32: Power unit | D32: Aggregat | E32: Potencia motor
B33: Numero di centraline | C33: No. power units | D33: Anzahl Aggregate | E33: Número de centrales
B34: pompa | C34: pump | D34: Pumpe | E34: Bomba
B35: ascensore (Lift) o piattaforma (HL) | C35: Lift or platform (HL) | E35: Ascensor o HomeLift (Siempre LIFT nuestros HOMELIFT)
B36: motore monofase (M); trifase ( T ) | C36: motor monophase (M); 3-phase ( T ) | D36: Motor | E36: Motor Monofase (M) Trifase (T)
B37: motore in Olio (O) o in Aria (A) (solo per centraline HL) | C37: motor in Oil (O) or in Air (A) (only HL) | D37: Motor in Öl (O) oder ausserhalb (A) | E37: Sumergido (O) Aereo (A) HL MORIS
B38: 1 o 2 velocità (solo per centraline HL) | C38: single (1) or double (2) speed (only HL) | E38: 1V (1) 2V(2) solo HL
B39: CIF - centralina in fossa (da 55 a 250 l/min) | C39: CIF option (power unit in the pit, 55 to 250 l/min) | E39: CIF - central en foso ( 55 a 250 l/min)
B40: valvola standard (STD) o elettronica "MB" (ELE) | C40: standard (STD) or electronic-"MB" (ELE) valve | E40: Valvula Estándar (STD) Electronica (ELE)
B41: singolo (S) o doppio (D) riempimento | C41: single (S) or double (D) fill | E41: simple (S) o doble (D) relleno
B42: tensione elettrovalvole | C42: coil voltage | E42: Tensión bobinas
B43: tensione discesa emergenza su EB | C43: emergency voltage requested on EB coil | E43: Tensión bobina emergencia
B44: valvola elettronica: dato non necessario | C44: electronic valve: coil voltage not required | E44: Válvula electrónica dato no necesario
B45: valvola standard: dato non necessario | C45: standard valve: board voltage not required | E45: Válvula estándar dato no necesario
B46: tensione alim. scheda DELCON-C | C46: DELCON-C supply voltage | E46: Tension DELCON-C
B47: Velocità effettiva pistone | C47: real rod speed | D47: Kolbengeschwindigkeit | E47: Velocidad pistón
B48: Velocità effettiva impianto | C48: real plant speed | D48: Fahrkorbgeschwindigkeit | E48: Velocidad cabina
B49: Potenza | C49: power | D49: Motorleistung | E49: Potencia motor
B50: olio totale nel pistone | C50: oil in jack | D50: Benötigte Ölmenge im Kolben | E50: Aceite total en piston
B51: olio in circolo (olio corsa) | C51: circulating oil | D51: Benötigte Betriebsölmenge | E51: Aceite en circulación
B52: Centralina modello | C52: power unit type | D52: Aggregat typ | E52: Modelo de central
B53: Stelo | C53: ram | D53: Kolben | E53: Piston
B54: diviso in pezzi | C54: in pieces | D54: geteilt in | E54: Por piezas
B55: Centralina | C55: Power unit | D55: Aggregat | E55: Central
B56: velocità | C56: speed | D56: Geschwindigkeit | E56: Modelo central
B57: pressione | C57: pressure | D57: Druck | E57: Presion
B58: sconto | C58: discount | D58: Rabatt | E58: Descuento
B59: prezzo | C59: Price | D59: Preis | E59: Precio
B61: Quantità | C61: Quantity | D61: Stück | E61: Cantidad
B62: prezzo | C62: price | D62: Preis | E62: Precio
A63: 5438 / P | B63: barra tubo mandata ø 35 x 2,5 (m 6) | C63: Steel pipe ø 35 x 2,5 (m 6) | D63: Rohr ø 35 x 2,5 (m 6) | E63: barra tubo mandata ø 35 x 2,5 (m 6)
A64: 5439 / P | B64: barra tubo mandata ø 42 x 3 (m 6) | C64: Steel pipe ø 42 x 3 (m 6) | D64: Rohr ø 42 x 3 (m 6) | E64: barra tubo mandata ø 42 x 3 (m 6)
A65: KIT.RACC/VER28 | B65: raccordo a 90 ° ø 28 uscita verticale da centralina | C65: Elbow connection 90 ° ø 28 vertical exit power unit | D65: Elbow connection 90 ° ø 28 vertical exit power unit | E65: Racor a 90º ø 28 salida vertical en central
A66: KIT.RACC/VER35 | B66: raccordo a 90 ° ø 35 uscita verticale da centralina | C66: Elbow connection 90 ° ø 35 vertical exit power unit | D66: Elbow connection 90 ° ø 35 vertical exit power unit | E66: Racor a 90º ø 35 salida vertical en central
A67: KIT.RACC/VER42 | B67: raccordo a 90 ° ø 42 uscita verticale da centralina | C67: Elbow connection 90 ° ø 42 vertical exit power unit | D67: Elbow connection 90 ° ø 42 vertical exit power unit | E67: Racor a 90º ø 42 salida vertical en central
A68: KIT.RACC/ORR35 | B68: raccordo a 90 ° ø 35 uscita orizzontale da centralina | C68: Elbow connection 90 ° ø 35 horizontal exit power unit | D68: Elbow connection 90 ° ø 35 vertical exit power unit | E68: Racor a 90º ø 35 salida horizontal en central
A69: KIT.RACC/ORR42 | B69: raccordo a 90 ° ø 42 uscita orizzontale da centralina | C69: Elbow connection 90 ° ø 42 horizontal exit power unit | D69: Elbow connection 90 ° ø 42 vertical exit power unit | E69: Racor a 90º ø 42 salida horizontal en central
A70: 5308 | B70: raccordo di giunzione diritto ø 35 | C70: Straight connection ø 35 | D70: Direkte Verbindung ø 35 | E70: Racor de conexión directo ø 35
A71: 5309 | B71: raccordo di giunzione diritto ø 42 | C71: Straight connection ø 42 | D71: Direkte Verbindung ø 42 | E71: Racor de conexión directo ø 42
A72: 5310 | B72: raccordo di giunzione a 90 ° ø 35 | C72: Elbow connection 90 ° ø 35 | D72: 90° Winkelverbindung ø 35 | E72: Racor de conexion directo ø 35
A73: 5311 | B73: raccordo di giunzione a 90 ° ø 42 | C73: Elbow connection 90 ° ø 42 | D73: 90° Winkelverbindung ø 42 | E73: Racor de conexión a 90º ø 42
A74: 5316 | B74: raccordo 3 vie a ‘T’ 1" ¼ | C74: 3 way T connection 1" ¼ | D74: T-Verteiler 1"1/4 | E74: Conexión 3 vias ‘T’ 1" ¼
A75: RACC.T42+2/35 | B75: raccordo 3 vie a ‘T’ 1" ½ x 1" ¼ x 1" ¼ | C75: 3 way T connection 1" ½ x 1" ¼ x 1" ¼ | D75: T-Verteiler 1"1/2x1"1/4x1"1/4 | E75: Conexión 3 vias a ‘T’ 1" ½ x 1" ¼ x 1" ¼
A76: 5317 | B76: raccordo 3 vie a ‘T’ 1" ½ | C76: 3 way T connection 1" ½ | D76: T-Verteiler 1"1/2 | E76: Conexión 3 vias‘T’ 1" ½
A77: 0696/2 | B77: raccordo 3 vie a ‘Y’ 1" ½ x 1" ¼ x 1" ¼ | C77: 3 way Y connection 1" ½ x 1" ¼ x 1" ¼ | D77: Y-Verteiler 1"1/2x1"1/4x1"1/4 | E77: Conexión 3 vias a ‘Y’ 1" ½ x 1" ¼ x 1" ¼
A78: 0696/1 | B78: raccordo 3 vie a ‘Y’ 1" ½ | C78: 3 way Y connection 1" ½ | D78: Y-Verteiler 1"1/2 | E78: Conexión 3 vias‘Y’ 1" ½
A79: 0696 | B79: raccordo 3 vie a ‘Y’ 2" x 1" ½ x 1" ½ | C79: 3 way Y connection 2" x 1" ½ x 1" ½ | D79: Y-Verteiler 2"x1"1/2x1"1/2 | E79: Conexión 3 vias a ‘Y’ 2" x 1" ½ x 1" ½
A80: 0696/3 | B80: raccordo 3 vie a ‘Y’ 2" | C80: 3 way Y connection 2" | D80: Y-Verteiler 2" | E80: Conexión 3 vias‘Y’ 2"
A81: 5306 | B81: nipplo 1"1/4 per raccordo a tre vie a Y | C81: Nipplo 1"1/4 for 3 way Y connection | D81: Nippel 1"1/4 für Y verteiler | E81: Racor 1"1/4 para conexion a tres vias a Y
A82: 5307 | B82: nipplo 1"1/2 per raccordo a tre vie a Y | C82: Nipplo 1"1/2 for 3 way Y connection | D82: Nippel 1"1/2 für Y verteiler | E82: Racor 1"1/2 para conexion a tres vias a Y
A83: 5325 | B83: nipplo 2" per raccordo a tre vie a Y | C83: Nipplo 2" for 3 way Y connection | D83: Nippel 2'' für Y verteiler | E83: Racor 2" para conexion a tres vias a Y
A84: 5425 | B84: tubo miniflex per collegamento valvole paracadute ø 8 - m 5 | C84: Hose to balance rupture valve ø 8 - m 5 | D84: Schlauch für Druckausgleich der Rohrbruchventile | E84: tubo miniflex para valvula paracaidas ø 8 -5 m
A85: RACC.90/VP-MF | B85: raccordi per tubo miniflex-valvola di blocco serie di due | C85: Connection between hose and rupture valve (2 pieces) | D85: Verbindung zwischen Schlauch und Rohrbruchventil (2 teilig) | E85: Conexión tubo miniflex-valvula paracaidas 2 piezas
A86: 5307/5 | B86: raccordo intermedio per tubo miniflex ø 8 | C86: Connection between 2 hoses ø 8 - m 5 | D86: Verbindung zwischen 2 Schlauchen | E86: Conexión intermedia tubo miniflex ø 8
A87: 5426 | B87: metri di tubo in rame per collegamento valvole di blocco | C87: copper tube for connection between rupture valve | E87: Metro de tubo para conexión valvula paracaidas
A88: 5307/3 | B88: raccordo intermedio per tubo rame | C88: connection for copper tube 5426 | E88: Conexión intermedia para tubo cobre 5426
A89: 5311/5 | B89: serie di 2 raccordi per collegamento tubo rame-valvola di blocco | C89: connection between copper tube and rupture valve | E89: Conexión entre tubo de cobre y valvula paracaidas
A90: 5320/COMPLETO | B90: riduzione valvola di blocco 1"1/2-1"1/4 lato tubo | C90: reduction rupture valve 1"1/2-1"1/4 side hose | E90: riduzione valvola di blocco 1"1/2-1"1/4 lato tubo
A91: 0 | B91: tuboflex 3/4 " diritto-90° | C91: Flexible hose 3/4 " straight-90° | D91: Schlauch 3 / 4 " | E91: tuboflex 3/4 " diritto-90°
A92: 0 | B92: tuboflex 3/4 " diritto-diritto | C92: Flexible hose 3/4 " straight-straight | D92: Schlauch 3 / 4 " | E92: tuboflex 3/4 " diritto-diritto
A93: 0 | B93: tuboflex 1" diritto-90° | C93: Flexible hose 1” straight-90° | D93: Schlauch 1” direkt –90° | E93: tuboflex 1" diritto-90°
A94: 0 | B94: tuboflex 1" diritto-diritto | C94: Flexible hose 1” straight-straight | D94: Schlauch 1” direkt-direkt | E94: tuboflex 1" diritto-diritto
A95: 0 | B95: tuboflex 1" 1/4 diritto-90° | C95: Flexible hose 1” 1/4 straight-90° | D95: Schlauch 1” 1 / 4 direkt –90° | E95: tuboflex 1" 1/4 diritto-90°
A96: 0 | B96: tuboflex 1" 1/4 diritto-diritto | C96: Flexible hose 1” 1/4 straight-straight | D96: Schlauch 1” 1 / 4 direkt – direkt | E96: tuboflex 1" 1/4 diritto-diritto
A97: 0 | B97: tuboflex 1" 1/2 diritto-90° | C97: Flexible hose 1” 1/2 straight-90° | D97: Schlauch 1” 1 / 2 direkt –90° | E97: tuboflex 1" 1/2 diritto-90°
A98: 0 | B98: tuboflex 1" 1/2 diritto-diritto | C98: Flexible hose 1” 1/2 straight-straight | D98: Schlauch 1” 1 / 2 direkt - direkt | E98: tuboflex 1" 1/2 diritto-diritto
A99: 0 | B99: tuboflex 2" diritto-diritto | C99: Flexible hose 2” straight-straight | D99: Schlauch 2” | E99: tuboflex 2" diritto-diritto
A100: 0 | B100: tuboflex 2" diritto-diritto | C100: Flexible hose 2” straight-straight | D100: Schlauch 2” | E100: tuboflex 2" diritto-diritto
A101: STAF.TUB.35 | B101: staffa fissaggio per tubiflex ¾", 1" e barre tubo ø 35 | C101: Fixation for hoses ¾", 1" and steel pipes ø 35 | D101: Rohrschelle ø 35 oder Schlauchschelle 1" | E101: staffa fissaggio per tubiflex ¾", 1" e barre tubo ø 35
A102: STAF.TUB.42 | B102: staffa fissaggio per barre tubo ø 42 | C102: Fixation for steel pipe ø 42 | D102: Rohrschelle ø 42 | E102: staffa fissaggio per barre tubo ø 42
A103: STAF.TU.1"1/4 | B103: staffa fissaggio per tuboflex 1" ¼ | C103: Fixation for rubber hose 1" ¼ | D103: Schlauchschelle 3/4" - 1"1/4 | E103: staffa fissaggio per tuboflex 1" ¼
A104: STAF.TU.1"1/2 | B104: staffa fissaggio per tuboflex 1" ½ | C104: Fixation for rubber hose 1" ½ | D104: Schlauchschelle 1"1/2 | E104: staffa fissaggio per tuboflex 1" ½
A105: STAF.TU.2"G | B105: staffa fissaggio per tuboflex 2" | C105: Fixation for rubber pipe 2" | D105: Schlauchschelle 2" | E105: staffa fissaggio per tuboflex 2"
A106: FAS/FLEX 1"1/4 | B106: staffa speciale fissaggio per tuboflex 1" ¼ | C106: Bracket - hose 1" 1/4 | D106: Bracket - hose 1" 1/4 | E106: staffa speciale fissaggio per tuboflex 1" ¼
A107: FAS/FLEX 1"1/2 | B107: staffa speciale fissaggio per tuboflex 1" ½ | C107: Bracket - hose 1" 1/2 | D107: Bracket - hose 1" 1/2 | E107: staffa speciale fissaggio per tuboflex 1" ½
A108: FAS/FLEX 2" | B108: staffa speciale fissaggio per tuboflex 2" | C108: Bracket - hose 2" | D108: Bracket - hose 2" | E108: staffa speciale fissaggio per tuboflex 2"
A109: 0384/0-P | B109: vite spurgo aria per pistone | C109: Purge screw for air inside the ram | E109: vite spurgo aria per pistone
A110: 5332 | B110: raccordo per tubo recupero olio | C110: Connection for oil recover pipe | E110: raccordo per tubo recupero olio
A111: 5419 | B111: tubo recupero olio (al metro) | C111: Oil recover pipe 1 meter | E111: tubo recupero olio (al metro)
A112: 745 | B112: coppia staffe per avvitamento pistone in due pezzi da ø 70 a ø 120 | C112: Tie kit to screw ram in 2 pieces from ø 70 to ø 120 | E112: coppia staffe per avvitamento pistone in due pezzi da ø 70 a ø 120
A113: 747 | B113: coppia staffe per avvitamento pistone in due pezzi da ø 130 a ø 200 | C113: Tie kit to screw ram in 2 pieces from ø 130 to ø 200 | E113: coppia staffe per avvitamento pistone in due pezzi da ø 130 a ø 200
A114: 5256/5 | B114: carta catramata – rotolo lungh. 10 m largh. 10 cm per pistoni interrati | C114: Roll of Tar paper, length 10 m width 10 cm for underground pistons | E114: carta catramata – rotolo lungh. 10 m largh. 10 cm per pistoni interrati
A115: 0884/CM3-A-SC | B115: armadio da assemblare su centralina CM-320/A | C115: Roomless Box to be assembled on tank CM-320/A | E115: armadio da assemblare su centralina CM-320/A
A116: 0884/CMVM02A | B116: armadio – MI 2000-CM3 smontato – per CM-320 colore RAL 7035 | C116: Roomless Box MI-2000 for CM-320 not assembled color RAL 7035 | E116: armadio – MI 2000-CM3 smontato – per CM-320 colore RAL 7035
A117: 0884/CMVM02A | B117: armadio – MI 2000 – per CM-320/A colore RAL 7035 | C117: Roomless Box MI-2000 for CM-320/A color RAL 7035 | E117: armadio – MI 2000 – per CM-320/A colore RAL 7035
A118: 0884/CM3VM02A | B118: armadio – MI 2000 CM – per CM colore RAL 7035 | C118: Roomless Box MI-2000 for CM color RAL 7035 | E118: armadio – MI 2000 CM – per CM colore RAL 7035
A119: 0884/CAVM02A | B119: armadio – MI 2000 CA– per CA colore Ral 7035 | C119: Roomless Box MI-2000 for CA color RAL 7035 | E119: armadio – MI 2000 CA– per CA colore Ral 7035
A120: 5123/6 | B120: loctite 5900 per mi-2000 | C120: Loctite 5900 (for Box MI-2000) | E120: loctite 5900 per mi-2000
A121: SCAMB.5/10M-3 | B121: scambiatore di calore modello scamb. 5/10 con 2 tubi da mt. 3 | C121: Heat exchanger SCAMB. 5/10 with 2 rubber pipe 3 m | D121: Kühler SCAMB 5/10 mit Schlauch 3m | E121: Intercambiador de calor scamb. 5/10 con 2 tubi da mt. 3
A122: SCAMB.20M-3 | B122: scambiatore di calore modello scamb. 20 con 2 tubi da mt. 3 | C122: Heat exchanger SCAMB. 20 with 2 rubber pipe 3m | D122: Kühler SCAMB 20 mit Schlauch 3m | E122: Intercambiador de calor scamb. 20 con 2 tubi da mt. 3
A123: SCAMB.30M-3 | B123: scambiatore di calore modello scamb. 30 con 2 tubi da mt. 3 | C123: Heat exchanger SCAMB. 30 with 2 rubber pipe 3m | D123: Kühler SCAMB 30 mit Schlauch 3m | E123: Intercambiador de calor scamb. 30 con 2 tubi da mt. 3
B124: scambiatore di calore scamb.5/10 con pannello di controllo e 2 tubi mt. 3 | C124: Heat exchanger SCAMB. 5/10 with electrical control panel, 2 rubber pipe 3m | E124: Intercambiador de calor scamb.5/10 con pannello di controllo e 2 tubi mt. 3
A125: Scase 20 | B125: scambiatore di calore scamb.20 con pannello di controllo e 2 tubi mt. 3 | C125: Heat exchanger SCAMB. 20 with electrical control panel, 2 rubber pipe 3m | E125: Intercambiador de calor scamb.20 con pannello di controllo e 2 tubi mt. 3
A126: Scase 30 | B126: scambiatore di calore scamb.30 con pannello di controllo e 2 tubi mt. 3 | C126: Heat exchanger SCAMB. 30 with electrical control panel, 2 rubber pipe 3m | E126: Intercambiador de calor scamb.30 con pannello di controllo e 2 tubi mt. 3
A127: SCHEDA EL (PR) | B127: scheda elettronica mi – 0816 | C127: Electric card MI – 0816 | E127: Placa electrónica mi – 0816
A128: MICR.COM20/3 | B128: pompa di microlivellamento in salita 20 l/min - 3 hp | C128: up-direction micro levelling pump, 20 l/min - 3 HP | E128: Bomba de micronivelación 20 l/min - 3 CV
B129: Documentazione tecnica (calcoli pistone) per verifica ispettiva | C129: Technical documentation (jack calculation) for final inspection | E129: Documentación técnica (cálculo piston) para verificación por inspector
B130: tastierino di programmazione per valvola elettronica | C130: Programming keyboard for Electronic power unit | E130: Consola programación central electrónica
B131: Prezzo lordo accessori | C131: Price List | D131: Listenpreis | E131: Precio
B132: Prezzo netto accessori | C132: Net Price | D132: Nettopreis | E132: Precio neto.
B134: Sconto | C134: Discount | D134: Rabatt | E134: Descuento
B135: Quantità Pistoni | C135: Quantity | D135: Anzahl | E135: Cantidad
B136: Qt | C136: Qt | D136: Anz. | E136: Qt
B137: prezzo EUR | C137: price EUR | D137: Preis EUR | E137: precio €
B138: Pistone | C138: Ram | D138: Heber | E138: Pistón
B139: Spessore | C139: thickness | D139: Wandstärke | E139: espesor
B140: tipo | C140: model | D140: Typ | E140: modelo
B141: due pezzi | C141: in 2 pieces | D141: in 2 Teilen | E141: en 2 piezas
B142: pezzi 3 | C142: in 3 pieces | E142: en 3 piezas
B143: Guarnizione testata | C143: ram head gasket | E143: ram head gasket
B144: set guarnizioni pistone | C144: set of jack gasket | E144: set of jack gasket
B145: Piastra inferiore pistone (piastra MI) | C145: Lower piston plate (MI plate) | E145: Lower piston plate (MI plate)
B146: dispositivo stelo guidato | C146: guided ram | E146: guided ram
B147: Sconto pistone | C147: Ram Disount | D147: Rabatt Heber | E147: Ram Disount
B148: Prezzo lordo | C148: Price list | D148: Listenpreis | E148: Price list
B149: Prezzo netto | C149: Net Price | D149: Nettopreis | E149: Net Price
B150: Quantità Centralina | C150: Quantity Power Unit | D150: Anzahl Aggregate | E150: Quantity Power Unit
B151: centralina | C151: power unit | D151: Aggregat | E151: power unit
B152: centralina elettronica | C152: electronic power unit | E152: electronic power unit
B153: code | C153: code | D153: Code | E153: code
B154: potenza | C154: power | D154: Leistung | E154: power
B155: portata | C155: flow rate | D155: Öldurchflussmenge | E155: flow rate
B156: valvola di blocco | C156: rupture valve | D156: Rohrbruchventil | E156: rupture valve
B157: cassone maggiorato | C157: over size tank | E157: over size tank
B158: stella triangolo | C158: star delta | D158: Stern-Dreieck | E158: star delta
B159: silenziatore | C159: silencer | D159: Schalldämpfer | E159: silencer
C160: Solenoid voltage | D160: Ventilspannung | E160: Solenoid voltage
B161: amplificatore protezione motore | C161: motor protection amplifier | E161: motor protection amplifier
B162: imballo termoretraibile | C162: packing with thermoretractable plastic | E162: packing with thermoretractable plastic
B163: lamiera interna | C163: internal plate | E163: internal plate
B164: disgiuntore a relè per centraline HL monofase | C164: Relay disjunctor, HL power units, single phase | E164: Relay disjunctor, HL power units, single phase
B165: predisposizione centralina per scambiatore di calore | C165: tank arrangement for heat exchanger | E165: tank arrangement for heat exchanger
B166: pressostato NA + NC, 5-70 bar, cablato come | C166: Pressure switch, 5-70 bar, NO+NC, wired as | D166: max Druckschalter (NO) | E166: Pressure switch, 5-70 bar, NO+NC, wired as
B167: =IF(DATOS!D50="CIF","pompa a mano remota con tubi da 5 metri","pompa a mano di manovra in salita") -> pompa a mano di manovra in salita | C167: =IF(DATOS!D50="CIF","remote hand pump with 5 meter connection hoses","hand pump") -> hand pump | D167: Handpumpe | E167: =IF(DATOS!F49="CIF","remote hand pump with 5 meter connection hoses","hand pump") -> hand pump
B168: attacco manometro ispezione en 81.2 | C168: exclusion pressure gauge tap En 81.2 | D168: Anschluss Manometer EN 81.2 | E168: exclusion pressure gauge tap En 81.2
B169: resistenza scalda olio 400 w 230 v con termostato | C169: oil heater 400W 230V for tank | D169: Ölheizschlaufe | E169: oil heater 400W 230V for tank
B170: resistenza scalda olio 400 w 400 v con termostato | C170: oil heater 400W 400V for tank | E170: oil heater 400W 400V for tank
B171: resistenza scalda olio 200 w 230 v con termostato, per HL | C171: oil heater 200W 230V for HL tank | E171: oil heater 200W 230V for HL tank
B172: soft stop HL | C172: soft stop HL | D172: Soft Stop HL | E172: soft stop HL
B173: soft stop + regolazione 21 (pompe da 15 a 250 l/min) | C173: soft stop + screw #21 (for 15-250 l/min pumps) | D173: Soft Sto + Einstellschraube 21/250 | E173: soft stop + screw #21 (for 15-250 l/min pumps)
B174: soft stop + regolazione 21 (pompe da 300 a 380 l/min) | C174: soft stop + screw #21 (for 300-380 l/min pumps) | D174: Soft Sto + Einstellschraube 21/380 | E174: soft stop + screw #21 (for 300-380 l/min pumps)
B175: soft stop + regolazione 21 (pompe da 440 a 650 l/min) | C175: soft stop + screw #21 (for 440-650 l/min pumps) | D175: Soft Sto + Einstellschraube 21/650 | E175: soft stop + screw #21 (for 440-650 l/min pumps)
B176: microlivellamento in discesa (pompe da 15 a 250 l/min) | C176: down re-levelling electrovalve (for 15 to 250 l/min pumps) | E176: down re-levelling electrovalve (for 15 to 250 l/min pumps)
B177: microlivellamento in discesa (pompe da 300 a 650 l/min) | C177: down re-levelling electrovalve (for 300 to 650 l/min pumps) | E177: down re-levelling electrovalve (for 300 to 650 l/min pumps)
B178: pressostato minima pressione da 2 a 10 bar (NA) | C178: minimum pressure switch (2-10 bar) NO | D178: min. Druckschalter (2-10 bar) NO | E178: minimum pressure switch (2-10 bar) NO
B179: serie guarnizioni per distributore (tipo hl) | C179: set of gasket valve block HL | E179: set of gasket valve block HL
B180: serie guarnizioni per distributore (tipo 15 l/m – 250 l/m) | C180: set of gasket valve block 15-250 l/m | E180: set of gasket valve block 15-250 l/m
B181: serie guarnizioni per distributore (tipo 300 l/m – 650 l/m) | C181: set of gasket valve block 300-650 l/m | E181: set of gasket valve block 300-650 l/m
B182: pressostato CHD 100 (DINACELL) | C182: Pressure sensor CHD 100 (DINACELL) | E182: Pressure sensor CHD 100 (DINACELL)
B183: indicatore esterno livello cabina | C183: external car position indicator | D183: Ölstandanzeiger | E183: external car position indicator
B184: Sconto centralina | C184: Power Unit discount | E184: Power Unit discount
B185: Prezzo lordo centralina | C185: Price list | D185: Listenpreis | E185: Price list
B186: Prezzo netto centralina | C186: Net price | D186: Nettopreis | E186: Net price
B187: Quantità accessori | C187: Quantity Accessories | E187: Quantity Accessories
B188: Sconto Accessori | C188: Discount Accessories | E188: Discount Accessories
B189: Prezzo lordo accessori | C189: Price list | D189: Listenpreis | E189: Price list
B190: Prezzo netto accessori | C190: Net price | D190: Nettopreis | E190: Net price
B191: Vari netti | C191: Other items | E191: Other items
B192: XXXXX | C192: xxx | D192: x | E192: xxx
B193: XXXXX | C193: xxx | D193: x | E193: xxx
B194: XXXXX | C194: xxx | D194: x | E194: xxx
B195: XXXXX | C195: xxx | D195: x | E195: xxx
B196: totale | C196: Total | E196: Total
B197: Prezzo netto | C197: Net Pirce | E197: Net Pirce
B198: Prezzo lordo idraulica | C198: price list | E198: price list
B199: Prezzo netto idraulica | C199: Total NET Price | E199: Total NET Price
B200: extrasconto | C200: extra discount | E200: extra discount
B201: Prezzo finale idraulica | C201: Final price | E201: Final price
B202: Valuta | C202: Currency | E202: Currency
... 162 more rows

Sheet COMPRESIBILIDAD DEL ACEITE
B2: Datos a introducir | G2: Deriva del ascensor por disminución de Temperatura | M2: Deriva del ascensor por Incremento de Presión | S2: Disminución de la presión por disminución de temperatura en un circuito cerrado | Z2: Disminución de la presión en función de la deriva
G3: ΔT (ºC) | H3: Disminución de Temperatura | M3: ΔP (bar) | N3: Incremento de Presión | S3: ΔT (ºC) | T3: Disminución de Temperatura | Z3: ΔP (bar) | AA3: Disminución de Presión
B4: Cálculos | G4: a (cm) | H4: Deriva | M4: a (cm) | N4: Deriva | S4: ΔP (bar) | T4: Disminución de Presión | Z4: a (cm) | AA4: Deriva
Z5: β | AA5: Factor de compresibilidad del fluido
G6: T inicial | I6: 31 | J6: ºC | M6: P inicial | O6: =DATOS!D40 -> 23.39178238 | P6: bar | S6: T inicial | U6: 31 | V6: ºC | Z6: Av | AA6: Sección del émbolo
B7: Tiro | C7: r | D7: =DATOS!D8 -> 2 | E7: :1 | G7: T final | I7: 30 | J7: ºC | M7: P final | O7: =DATOS!D39 -> 39 | P7: bar | S7: T final | U7: 30 | V7: ºC | Z7: VT | AA7: Volumen de aceite con camisa desplegada
B8: Longitud de Cilindro | C8: Lp | D8: =DATOS!D21 -> 1550 | E8: mm | G8: Deriva final | I8: =D$7*D$14*D$11*(I6-I7)*100/D$15 -> 4.789684924 | J8: mm | M8: Deriva final | O8: =D$7*D$14*D$12*(O7-O6)*100/D$15 -> 10.04217913 | P8: mm | S8: Disminución Presión | U8: =D$11*(U6-U7)/D$12 -> 7.444444444 | V8: bar | Z8: T inicial | AB8: 31 | AC8: ºC
B9: Diámetro de émbolo | C9: de | D9: ='EN 81.50'!D49 -> 70 | E9: mm | Z9: T final | AB9: 30 | AC9: ºC
B10: Diámetro interno camisa | C10: dci | D10: ='EN 81.50'!D73 -> 106.3 | E10: mm | Z10: Disminución Presión | AB10: =((D$7*D$14*D$11*(AB8-AB9)*100/D$15)*D$15*10000)/(D$12*D$14*1000000) -> 14.88888889 | AC10: bar
B11: Factor de dilatación térmica del fluido | C11: α | D11: 0.00067 | E11: ºC-1 | Z11: Deriva final | AB11: =D$7*D$14*D$11*(AB8-AB9)*100/D$15 -> 4.789684924 | AC11: mm
B12: Factor de compresibilidad del fluido | C12: β | D12: 9e-05 | E12: bar-1 | G12: ΔT (ºC) | H12: a (cm) | I12: a (mm) | M12: ΔP (bar) | N12: a (cm) | O12: a (mm) | S12: ΔT (ºC) | T12: ΔP (bar)
G13: 1 | H13: =D$7*D$14*D$11*G13*10/D$15 -> 0.4789684924 | I13: =H13*10 -> 4.789684924 | M13: 1 | N13: =D$7*D$14*D$12*M13*10/D$15 -> 0.06433905122 | O13: =N13*10 -> 0.6433905122 | S13: 1 | T13: =D$11*S13/D$12 -> 7.444444444 | Z13: ΔT (ºC) | AA13: a (mm) | AB13: ΔP (bar)
B14: Volumen de aceite con camisa desplegada | C14: VT | D14: =PI()*(D10^2)*D8/(4*1000000) -> 13.75587145 | E14: dm3 | G14: 2 | H14: =D$7*D$14*D$11*G14*10/D$15 -> 0.9579369849 | I14: =H14*10 -> 9.579369849 | M14: 2 | N14: =D$7*D$14*D$12*M14*10/D$15 -> 0.1286781024 | O14: =N14*10 -> 1.286781024 | S14: 2 | T14: 14.88888889 | Z14: 1 | AA14: =D$7*D$14*D$11*Z14*100/D$15 -> 4.789684924 | AB14: =(AA14*D$15*10000)/(D$12*D$14*1000000) -> 14.88888889
B15: Sección del émbolo | C15: Av | D15: =PI()*(D9^2)/(4*10000) -> 0.3848451001 | E15: dm2 | G15: 3 | H15: 1.436905477 | I15: 14.36905477 | M15: 3 | N15: 0.1930171537 | O15: 1.930171537 | S15: 3 | T15: 22.33333333 | Z15: 2 | AA15: 9.579369849 | AB15: 29.77777778
G16: 4 | H16: 1.91587397 | I16: 19.1587397 | M16: 4 | N16: 0.2573562049 | O16: 2.573562049 | S16: 4 | T16: 29.77777778 | Z16: 3 | AA16: 14.36905477 | AB16: 44.66666667
G17: 5 | H17: 2.394842462 | I17: 23.94842462 | M17: 5 | N17: 0.3216952561 | O17: 3.216952561 | S17: 5 | T17: 37.22222222 | Z17: 4 | AA17: 19.1587397 | AB17: 59.55555556
G18: 6 | H18: 2.873810955 | I18: 28.73810955 | M18: 6 | N18: 0.3860343073 | O18: 3.860343073 | S18: 6 | T18: 44.66666667 | Z18: 5 | AA18: 23.94842462 | AB18: 74.44444444
G19: 7 | H19: 3.352779447 | I19: 33.52779447 | M19: 7 | N19: 0.4503733586 | O19: 4.503733586 | S19: 7 | T19: 52.11111111 | Z19: 6 | AA19: 28.73810955 | AB19: 89.33333333
G20: 8 | H20: 3.83174794 | I20: 38.3174794 | M20: 8 | N20: 0.5147124098 | O20: 5.147124098 | S20: 8 | T20: 59.55555556 | Z20: 7 | AA20: 33.52779447 | AB20: 104.2222222
G21: 9 | H21: 4.310716432 | I21: 43.10716432 | M21: 9 | N21: 0.579051461 | O21: 5.79051461 | S21: 9 | T21: 67 | Z21: 8 | AA21: 38.3174794 | AB21: 119.1111111
G22: 10 | H22: 4.789684924 | I22: 47.89684924 | M22: 10 | N22: 0.6433905122 | O22: 6.433905122 | S22: 10 | T22: 74.44444444 | Z22: 9 | AA22: 43.10716432 | AB22: 134
G23: 11 | H23: 5.268653417 | I23: 52.68653417 | M23: 11 | N23: 0.7077295635 | O23: 7.077295635 | S23: 11 | T23: 81.88888889 | Z23: 10 | AA23: 47.89684924 | AB23: 148.8888889
G24: 12 | H24: 5.747621909 | I24: 57.47621909 | M24: 12 | N24: 0.7720686147 | O24: 7.720686147 | S24: 12 | T24: 89.33333333 | Z24: 11 | AA24: 52.68653417 | AB24: 163.7777778
G25: 13 | H25: 6.226590402 | I25: 62.26590402 | M25: 13 | N25: 0.8364076659 | O25: 8.364076659 | S25: 13 | T25: 96.77777778 | Z25: 12 | AA25: 57.47621909 | AB25: 178.6666667
G26: 14 | H26: 6.705558894 | I26: 67.05558894 | M26: 14 | N26: 0.9007467171 | O26: 9.007467171 | S26: 14 | T26: 104.2222222 | Z26: 13 | AA26: 62.26590402 | AB26: 193.5555556
G27: 15 | H27: 7.184527387 | I27: 71.84527387 | M27: 15 | N27: 0.9650857684 | O27: 9.650857684 | S27: 15 | T27: 111.6666667 | Z27: 14 | AA27: 67.05558894 | AB27: 208.4444444
G28: 16 | H28: 7.663495879 | I28: 76.63495879 | M28: 16 | N28: 1.02942482 | O28: 10.2942482 | S28: 16 | T28: 119.1111111 | Z28: 15 | AA28: 71.84527387 | AB28: 223.3333333
G29: 17 | H29: 8.142464372 | I29: 81.42464372 | M29: 17 | N29: 1.093763871 | O29: 10.93763871 | S29: 17 | T29: 126.5555556 | Z29: 16 | AA29: 76.63495879 | AB29: 238.2222222
G30: 18 | H30: 8.621432864 | I30: 86.21432864 | M30: 18 | N30: 1.158102922 | O30: 11.58102922 | S30: 18 | T30: 134 | Z30: 17 | AA30: 81.42464372 | AB30: 253.1111111
G31: 19 | H31: 9.100401357 | I31: 91.00401357 | M31: 19 | N31: 1.222441973 | O31: 12.22441973 | S31: 19 | T31: 141.4444444 | Z31: 18 | AA31: 86.21432864 | AB31: 268
G32: 20 | H32: 9.579369849 | I32: 95.79369849 | M32: 20 | N32: 1.286781024 | O32: 12.86781024 | S32: 20 | T32: 148.8888889 | Z32: 19 | AA32: 91.00401357 | AB32: 282.8888889
Z33: 20 | AA33: 95.79369849 | AB33: 297.7777778
